Workbook

Sheet Charlotte
B4: ="YEAR "&'Data Update Menu'!E5&" CHARLOTTE COUNTY LEVEL OF SERVICE SPREADSHEET -" -> YEAR 2017 CHARLOTTE COUNTY LEVEL OF SERVICE SPREADSHEET - | AG4: DAILY
B5: =COLUMN(B6) -> 2 | C5: =COLUMN(C6) -> 3 | D5: 4 | E5: 5 | F5: 6 | G5: 7 | H5: 8 | I5: 9 | J5: 10 | K5: 11 | L5: 12 | M5: 13 | N5: 14 | O5: 15 | P5: 16 | Q5: 17 | R5: 18 | S5: 19 | T5: 20 | U5: 21 | V5: 22 | W5: 23 | X5: 24 | Y5: 25 | Z5: 26 | AA5: 27 | AB5: 28 | AC5: 29 | AD5: 30 | AE5: 31 | AF5: 32 | AG5: 33 | AH5: 34 | AI5: 35 | AJ5: 36 | AK5: 37 | AL5: 38 | AM5: 39 | AN5: 40 | AO5: 41 | AP5: 42 | AQ5: 43 | AR5: 44 | AS5: 45 | AT5: 46 | AU5: 47 | AV5: 48 | AW5: 49 | AX5: 50 | AY5: 51 | AZ5: 52 | BA5: 53 | BB5: 54 | BC5: 55 | BD5: 56 | BE5: 57 | BF5: 58
C7: Old | D7: New | E7: State | F7: Local | G7: From | I7: To | L7: FIHS | M7: SIS | R7: FDOT | S7: County | T7: City | U7: ="Year " & 'Data Update Menu'!E5 -> Year 2017 | AI7: ="Year " &'Data Update Menu'!E6&" (E+C)" -> Year 2023 (E+C) | AQ7: ="Year " & 'Data Update Menu'!E7 -> Year 2040 | BD7: Standard | BE7: Existing | BF7: Existing
B8: Section | C8: Cosite | D8: Cosite | E8: Road | F8: Road | H8: From | J8: To | K8: Section | N8: Functional | O8: Posted | P8: Area | Q8: Facility | R8: LOS | S8: LOS | T8: LOS | V8: Signal | W8: Arterial | X8: Divided/ | Y8: One/Two | Z8: Left Turn | AA8: Right Turn | AB8: Thru | AC8: =PROPER(AG4) -> Daily | AF8: Deficiency | AG8: TRIP | AH8: % LOS | AI8: Thru | AJ8: LOS | AK8: =PROPER(AG4) -> Daily | AQ8: Thru | AR8: LOS | AS8: =PROPER(AG4) -> Daily | BD8: K | BE8: D | BF8: T24
B9: No. | E9: No. | F9: Name | H9: M.P. | J9: M.P. | K9: Length | N9: Classification | O9: Speed | P9: Type | Q9: Type | R9: Std. | S9: Std. | T9: Std. | U9: # Signals | V9: Density | W9: Class | X9: UnDivided | Y9: Way | Z9: Bays | AA9: Bays | AB9: Lanes | AC9: Capacity | AD9: Volume | AE9: LOS | AF9: Determination | AG9: Improvement | AH9: Std | AI9: Lanes | AJ9: Std | AK9: Capacity | AL9: Divided/Undivided | AM9: Left | AN9: Right | AO9: Volume | AP9: LOS | AQ9: Lanes | AR9: Std | AS9: Capacity | AU9: Left Turn | AV9: Right Turn | AW9: Trend Volume | AX9: Trend LOS | AY9: PSWADT | AZ9: MOCF | BA9: Model AADT | BB9: Model Volume | BC9: Model LOS | BD9: Factor | BE9: Factor | BF9: Factor
A10: =IF(BB10<AD10,"**","") ->  | B10: 01010000 | D10: 10019 | E10: US 41 | F10: TAMIAMI TRAIL | G10: Lee County Line | H10: 0 | I10: Zemel Rd | J10: 2.339 | K10: =J10-H10 -> 2.339 | L10: N | N10: Principal Arterial-other | O10: 65 | P10: RDA | Q10: H | R10: =IF(P10="UA","D","C") -> C | S10: D | V10: =U10/K10 -> 0 | W10: =IF(Q10="F",Q10,IF(Q10="H","",IF(O10>=40,1,2))) ->  | X10: D | Y10: =IF(X10="1w",X10,"2W") -> 2W | Z10: WL | AA10: WR | AB10: 4 | AC10: =Service_Volume($P10,$W10,$X10,$Y10,Z10,AA10,AB10,R10,$AG$4,GSV_Database!C:V) -> 40700 | AD10: =IF($AG$4="Daily",VLOOKUP(D10,Hist_Cur_CNTS!BG:BL,2,FALSE),IF($AG$4="Peak Hour Two-Way",VLOOKUP(D10,Hist_Cur_CNTS!BG:BL,3,FALSE),VLOOKUP(D10,Hist_Cur_CNTS!BG:BL,4,FALSE))) -> 18900 | AE10: =LOS($P10,$W10,$X10,$Y10,Z10,AA10,AB10,AD10,$AG$4,GSV_Database!C:V) -> B | AF10: =IF(AND(AH10>=90,AH10<100),"Near Capacity",IF(AH10>=100,"Over Capacity","")) ->  | AH10: =AD10*100/AC10 -> 46.43734644 | AI10: 4 | AJ10: =R10 -> C | AK10: =Service_Volume($P10,$W10,$AL10,$Y10,AM10,AN10,AI10,AJ10,$AG$4,GSV_Database!C:V) -> 40700 | AL10: D | AM10: =Z10 -> WL | AN10: =AA10 -> WR | AO10: =IF($AG$4="Daily",VLOOKUP(D10,Hist_Cur_CNTS!BG:BL,5,FALSE),IF($AG$4="Peak Hour Two-Way",ROUND(VLOOKUP(D10,Hist_Cur_CNTS!BG:BL,5,FALSE) *BD10,0),ROUND(VLOOKUP(D10,Hist_Cur_CNTS!BG:BL,5,FALSE)*BD10*IF(Y10="1W",1,IF(P10="RDA",0.55,IF(OR(Q10="H",Q10="F"),VLOOKUP(P10&"_"&Q10,GSV_Database!AA:AB,2,FALSE),VLOOKUP(P10&"_"&W10&"_"&AI10,GSV_Database!AA:AB,2,FALSE)))),0))) -> 21200 | AP10: =LOS($P10,$W10,$AL10,$Y10,AM10,AN10,AI10,AO10,$AG$4,GSV_Database!C:V) -> B | AQ10: 4 | AR10: =AJ10 -> C | AS10: =Service_Volume($P10,$W10,$AT10,$Y10,AU10,AV10,AQ10,AR10,$AG$4,GSV_Database!C:V) -> 40700 | AT10: D | AU10: =AM10 -> WL | AV10: =AN10 -> WR | AW10: =IF($AG$4="Daily",VLOOKUP(D10,Hist_Cur_CNTS!BG:BL,6,FALSE),IF($AG$4="Peak Hour Two-Way",ROUND(VLOOKUP(D10,Hist_Cur_CNTS!BG:BL,6,FALSE) *BD10,0),ROUND(VLOOKUP(D10,Hist_Cur_CNTS!BG:BL,6,FALSE)*BD10*IF(Y10="1W",1,IF(P10="RDA",0.55,IF(OR(Q10="H",Q10="F"),VLOOKUP(P10&"_"&Q10,GSV_Database!AA:AB,2,FALSE),VLOOKUP(P10&"_"&W10&"_"&AQ10,GSV_Database!AA:AB,2,FALSE)))),0))) -> 27600 | AX10: =LOS($P10,$W10,$AT10,$Y10,AU10,AV10,AQ10,AW10,$AG$4,GSV_Database!C:V) -> C | AY10: =VLOOKUP(D10,Hist_Cur_CNTS!BG:BQ,11,FALSE) -> 32031 | AZ10: =VLOOKUP(D10,Hist_Cur_CNTS!BG:BQ,10,FALSE) -> 0.89 | BA10: =ROUND(AZ10*AY10,0) -> 28508 | BB10: =IF($AG$4="Daily",BA10,IF($AG$4="Peak Hour Two-Way",ROUND(BA10 *BD10,0),ROUND(BA10*BD10*IF(Y10="1W",1,IF(P10="RDA",0.55,IF(OR(Q10="H",Q10="F"),VLOOKUP(P10&"_"&Q10,GSV_Database!AA:AB,2,FALSE),VLOOKUP(P10&"_"&W10&"_"&AQ10,GSV_Database!AA:AB,2,FALSE)))),0))) -> 28508 | BC10: =LOS($P10,$W10,$AT10,$Y10,AU10,AV10,AQ10,BB10,$AG$4,GSV_Database!C:V) -> C | BD10: =VLOOKUP(D10,Hist_Cur_CNTS!BG:BO,7,FALSE)/100 -> 0.095 | BE10: =VLOOKUP(D10,Hist_Cur_CNTS!BG:BO,8,FALSE)/100 -> 0.522 | BF10: =VLOOKUP(D10,Hist_Cur_CNTS!BG:BO,9,FALSE)/100 -> 0.091 | BG10: =Facility($P10,$W10,$X10,$Y10,$Z10,$AA10,$AB10) -> RDA_UFH_2W_4L_D_WL_WR | BH10: =IF($P10="U", VLOOKUP(Facility("TA",$W10,$X10,$Y10,$Z10,$AA10,$AB10),GSV_Database!C:X,22,FALSE),VLOOKUP(BG10,GSV_Database!C:X,22,FALSE)) -> 0 | BI10: =CONCATENATE(B10,"-",H10,"-",J10) -> 01010000-0-2.339 | BJ10: =BH10 -> 0 | BK10: =AI10-AB10 -> 0
A11: =IF(BB11<AD11,"**","") ->  | B11: 01010000 | D11: 10367 | E11: US 41 | F11: TAMIAMI TRAIL | G11: Zemel Rd | H11: 2.339 | I11: Morningside Drive | J11: 5.562 | K11: 3.223 | L11: N | N11: Principal Arterial-other | O11: 65 | P11: RDA | Q11: H | R11: =IF(P11="UA","D","C") -> C | S11: D | V11: 0 | W11: =IF(Q11="F",Q11,IF(Q11="H","",IF(O11>=40,1,2))) ->  | X11: D | Y11: 2W | Z11: WL | AA11: WR | AB11: 4 | AC11: =Service_Volume($P11,$W11,$X11,$Y11,Z11,AA11,AB11,R11,$AG$4,GSV_Database!C:V) -> 40700 | AD11: =IF($AG$4="Daily",VLOOKUP(D11,Hist_Cur_CNTS!BG:BL,2,FALSE),IF($AG$4="Peak Hour Two-Way",VLOOKUP(D11,Hist_Cur_CNTS!BG:BL,3,FALSE),VLOOKUP(D11,Hist_Cur_CNTS!BG:BL,4,FALSE))) -> 17582 | AE11: =LOS($P11,$W11,$X11,$Y11,Z11,AA11,AB11,AD11,$AG$4,GSV_Database!C:V) -> B | AH11: =AD11*100/AC11 -> 43.1990172 | AI11: 4 | AJ11: =R11 -> C | AK11: =Service_Volume($P11,$W11,$AL11,$Y11,AM11,AN11,AI11,AJ11,$AG$4,GSV_Database!C:V) -> 40700 | AL11: D | AM11: =Z11 -> WL | AN11: =AA11 -> WR | AO11: =IF($AG$4="Daily",VLOOKUP(D11,Hist_Cur_CNTS!BG:BL,5,FALSE),IF($AG$4="Peak Hour Two-Way",ROUND(VLOOKUP(D11,Hist_Cur_CNTS!BG:BL,5,FALSE) *BD11,0),ROUND(VLOOKUP(D11,Hist_Cur_CNTS!BG:BL,5,FALSE)*BD11*IF(Y11="1W",1,IF(P11="RDA",0.55,IF(OR(Q11="H",Q11="F"),VLOOKUP(P11&"_"&Q11,GSV_Database!AA:AB,2,FALSE),VLOOKUP(P11&"_"&Charlotte!W11&"_"&Charlotte!AI11,GSV_Database!AA:AB,2,FALSE)))),0))) -> 20400 | AP11: =LOS($P11,$W11,$AL11,$Y11,AM11,AN11,AI11,AO11,$AG$4,GSV_Database!C:V) -> B | AQ11: 4 | AR11: =AJ11 -> C | AS11: =Service_Volume($P11,$W11,$AT11,$Y11,AU11,AV11,AQ11,AR11,$AG$4,GSV_Database!C:V) -> 40700 | AT11: D | AU11: =AM11 -> WL | AV11: =AN11 -> WR | AW11: =IF($AG$4="Daily",VLOOKUP(D11,Hist_Cur_CNTS!BG:BL,6,FALSE),IF($AG$4="Peak Hour Two-Way",ROUND(VLOOKUP(D11,Hist_Cur_CNTS!BG:BL,6,FALSE) *BD11,0),ROUND(VLOOKUP(D11,Hist_Cur_CNTS!BG:BL,6,FALSE)*BD11*IF(Y11="1W",1,IF(P11="RDA",0.55,IF(OR(Q11="H",Q11="F"),VLOOKUP(P11&"_"&Q11,GSV_Database!AA:AB,2,FALSE),VLOOKUP(P11&"_"&Charlotte!W11&"_"&Charlotte!AQ11,GSV_Database!AA:AB,2,FALSE)))),0))) -> 28500 | AX11: =LOS($P11,$W11,$AT11,$Y11,AU11,AV11,AQ11,AW11,$AG$4,GSV_Database!C:V) -> C | AY11: =VLOOKUP(D11,Hist_Cur_CNTS!BG:BQ,11,FALSE) -> 29266 | AZ11: =VLOOKUP(D11,Hist_Cur_CNTS!BG:BQ,10,FALSE) -> 0.89 | BA11: =ROUND(AZ11*AY11,0) -> 26047 | BB11: =IF($AG$4="Daily",BA11,IF($AG$4="Peak Hour Two-Way",ROUND(BA11 *BD11,0),ROUND(BA11*BD11*IF(Y11="1W",1,IF(P11="RDA",0.55,IF(OR(Q11="H",Q11="F"),VLOOKUP(P11&"_"&Q11,GSV_Database!AA:AB,2,FALSE),VLOOKUP(P11&"_"&Charlotte!W11&"_"&Charlotte!AQ11,GSV_Database!AA:AB,2,FALSE)))),0))) -> 26047 | BC11: =LOS($P11,$W11,$AT11,$Y11,AU11,AV11,AQ11,BB11,$AG$4,GSV_Database!C:V) -> C | BD11: =VLOOKUP(D11,Hist_Cur_CNTS!BG:BO,7,FALSE)/100 -> 0.095 | BE11: =VLOOKUP(D11,Hist_Cur_CNTS!BG:BO,8,FALSE)/100 -> 0.514 | BF11: =VLOOKUP(D11,Hist_Cur_CNTS!BG:BO,9,FALSE)/100 -> 0.088 | BG11: =Facility($P11,$W11,$X11,$Y11,$Z11,$AA11,$AB11) -> RDA_UFH_2W_4L_D_WL_WR | BH11: =IF($P11="U", VLOOKUP(Facility("TA",$W11,$X11,$Y11,$Z11,$AA11,$AB11),GSV_Database!C:X,22,FALSE),VLOOKUP(BG11,GSV_Database!C:X,22,FALSE)) -> 0 | BI11: =CONCATENATE(B11,"-",H11,"-",J11) -> 01010000-2.339-5.562 | BJ11: =BH11 -> 0 | BK11: =AI11-AB11 -> 0
A12: =IF(BB12<AD12,"**","") ->  | B12: 01010000 | D12: 10367 | E12: US 41 | F12: TAMIAMI TRAIL | G12: Morningside Drive | H12: 5.562 | I12: Tuckers Grade Blvd | J12: 7.013 | K12: =J12-H12 -> 1.451 | L12: N | N12: Principal Arterial-other | O12: 60 | P12: UA | Q12: H | R12: =IF(P12="UA","D","C") -> D | S12: D | U12: 1 | V12: 0 | W12: =IF(Q12="F",Q12,IF(Q12="H","",IF(O12>=40,1,2))) ->  | X12: D | Y12: =IF(X12="1w",X12,"2W") -> 2W | Z12: WL | AA12: WR | AB12: 4 | AC12: =Service_Volume($P12,$W12,$X12,$Y12,Z12,AA12,AB12,R12,$AG$4,GSV_Database!C:V) -> 65600 | AD12: =IF($AG$4="Daily",VLOOKUP(D12,Hist_Cur_CNTS!BG:BL,2,FALSE),IF($AG$4="Peak Hour Two-Way",VLOOKUP(D12,Hist_Cur_CNTS!BG:BL,3,FALSE),VLOOKUP(D12,Hist_Cur_CNTS!BG:BL,4,FALSE))) -> 17582 | AE12: =LOS($P12,$W12,$X12,$Y12,Z12,AA12,AB12,AD12,$AG$4,GSV_Database!C:V) -> B | AF12: =IF(AND(AH12>=90,AH12<100),"Near Capacity",IF(AH12>=100,"Over Capacity","")) ->  | AH12: =AD12*100/AC12 -> 26.80182927 | AI12: 4 | AJ12: =R12 -> D | AK12: =Service_Volume($P12,$W12,$AL12,$Y12,AM12,AN12,AI12,AJ12,$AG$4,GSV_Database!C:V) -> 65600 | AL12: D | AM12: =Z12 -> WL | AN12: =AA12 -> WR | AO12: =IF($AG$4="Daily",VLOOKUP(D12,Hist_Cur_CNTS!BG:BL,5,FALSE),IF($AG$4="Peak Hour Two-Way",ROUND(VLOOKUP(D12,Hist_Cur_CNTS!BG:BL,5,FALSE) *BD12,0),ROUND(VLOOKUP(D12,Hist_Cur_CNTS!BG:BL,5,FALSE)*BD12*IF(Y12="1W",1,IF(P12="RDA",0.55,IF(OR(Q12="H",Q12="F"),VLOOKUP(P12&"_"&Q12,GSV_Database!AA:AB,2,FALSE),VLOOKUP(P12&"_"&Charlotte!W12&"_"&Charlotte!AI12,GSV_Database!AA:AB,2,FALSE)))),0))) -> 20400 | AP12: =LOS($P12,$W12,$AL12,$Y12,AM12,AN12,AI12,AO12,$AG$4,GSV_Database!C:V) -> B | AQ12: 4 | AR12: =AJ12 -> D | AS12: =Service_Volume($P12,$W12,$AT12,$Y12,AU12,AV12,AQ12,AR12,$AG$4,GSV_Database!C:V) -> 65600 | AT12: D | AU12: =AM12 -> WL | AV12: =AN12 -> WR | AW12: =IF($AG$4="Daily",VLOOKUP(D12,Hist_Cur_CNTS!BG:BL,6,FALSE),IF($AG$4="Peak Hour Two-Way",ROUND(VLOOKUP(D12,Hist_Cur_CNTS!BG:BL,6,FALSE) *BD12,0),ROUND(VLOOKUP(D12,Hist_Cur_CNTS!BG:BL,6,FALSE)*BD12*IF(Y12="1W",1,IF(P12="RDA",0.55,IF(OR(Q12="H",Q12="F"),VLOOKUP(P12&"_"&Q12,GSV_Database!AA:AB,2,FALSE),VLOOKUP(P12&"_"&Charlotte!W12&"_"&Charlotte!AQ12,GSV_Database!AA:AB,2,FALSE)))),0))) -> 28500 | AX12: =LOS($P12,$W12,$AT12,$Y12,AU12,AV12,AQ12,AW12,$AG$4,GSV_Database!C:V) -> B | AY12: =VLOOKUP(D12,Hist_Cur_CNTS!BG:BQ,11,FALSE) -> 29266 | AZ12: =VLOOKUP(D12,Hist_Cur_CNTS!BG:BQ,10,FALSE) -> 0.89 | BA12: =ROUND(AZ12*AY12,0) -> 26047 | BB12: =IF($AG$4="Daily",BA12,IF($AG$4="Peak Hour Two-Way",ROUND(BA12 *BD12,0),ROUND(BA12*BD12*IF(Y12="1W",1,IF(P12="RDA",0.55,IF(OR(Q12="H",Q12="F"),VLOOKUP(P12&"_"&Q12,GSV_Database!AA:AB,2,FALSE),VLOOKUP(P12&"_"&Charlotte!W12&"_"&Charlotte!AQ12,GSV_Database!AA:AB,2,FALSE)))),0))) -> 26047 | BC12: =LOS($P12,$W12,$AT12,$Y12,AU12,AV12,AQ12,BB12,$AG$4,GSV_Database!C:V) -> B | BD12: =VLOOKUP(D12,Hist_Cur_CNTS!BG:BO,7,FALSE)/100 -> 0.095 | BE12: =VLOOKUP(D12,Hist_Cur_CNTS!BG:BO,8,FALSE)/100 -> 0.514 | BF12: =VLOOKUP(D12,Hist_Cur_CNTS!BG:BO,9,FALSE)/100 -> 0.088 | BG12: UA_UFH_2W_4L_D_WL_WR | BH12: =IF($P12="U", VLOOKUP(Facility("TA",$W12,$X12,$Y12,$Z12,$AA12,$AB12),GSV_Database!C:X,22,FALSE),VLOOKUP(BG12,GSV_Database!C:X,22,FALSE)) -> 0 | BI12: =CONCATENATE(B12,"-",H12,"-",J12) -> 01010000-5.562-7.013 | BJ12: =BH12 -> 0 | BK12: 0
B13: 01010000 | D13: 10367 | E13: US 41 | F13: TAMIAMI TRAIL | G13: =I12 -> Tuckers Grade Blvd | H13: =J12 -> 7.013 | I13: CR 765A/Taylor Rd | J13: 8.583 | K13: 1.57 | L13: N | N13: Principal Arterial-other | O13: 60 | P13: UA | Q13: H | R13: D | S13: D | U13: 0 | V13: 0 | X13: D | Y13: 2W | Z13: WL | AA13: WR | AB13: 4 | AC13: =Service_Volume($P13,$W13,$X13,$Y13,Z13,AA13,AB13,R13,$AG$4,GSV_Database!C:V) -> 65600 | AD13: =IF($AG$4="Daily",VLOOKUP(D13,Hist_Cur_CNTS!BG:BL,2,FALSE),IF($AG$4="Peak Hour Two-Way",VLOOKUP(D13,Hist_Cur_CNTS!BG:BL,3,FALSE),VLOOKUP(D13,Hist_Cur_CNTS!BG:BL,4,FALSE))) -> 17582 | AE13: =LOS($P13,$W13,$X13,$Y13,Z13,AA13,AB13,AD13,$AG$4,GSV_Database!C:V) -> B | AH13: 26.80182927 | AI13: 4 | AJ13: D | AK13: =Service_Volume($P13,$W13,$AL13,$Y13,AM13,AN13,AI13,AJ13,$AG$4,GSV_Database!C:V) -> 65600 | AL13: D | AM13: WL | AN13: WR | AO13: =IF($AG$4="Daily",VLOOKUP(D13,Hist_Cur_CNTS!BG:BL,5,FALSE),IF($AG$4="Peak Hour Two-Way",ROUND(VLOOKUP(D13,Hist_Cur_CNTS!BG:BL,5,FALSE) *BD13,0),ROUND(VLOOKUP(D13,Hist_Cur_CNTS!BG:BL,5,FALSE)*BD13*IF(Y13="1W",1,IF(P13="RDA",0.55,IF(OR(Q13="H",Q13="F"),VLOOKUP(P13&"_"&Q13,GSV_Database!AA:AB,2,FALSE),VLOOKUP(P13&"_"&Charlotte!W13&"_"&Charlotte!AI13,GSV_Database!AA:AB,2,FALSE)))),0))) -> 20400 | AP13: =LOS($P13,$W13,$AL13,$Y13,AM13,AN13,AI13,AO13,$AG$4,GSV_Database!C:V) -> B | AQ13: 6 | AR13: D | AS13: =Service_Volume($P13,$W13,$AT13,$Y13,AU13,AV13,AQ13,AR13,$AG$4,GSV_Database!C:V) -> 98300 | AT13: D | AU13: WL | AV13: WR | AW13: =IF($AG$4="Daily",VLOOKUP(D13,Hist_Cur_CNTS!BG:BL,6,FALSE),IF($AG$4="Peak Hour Two-Way",ROUND(VLOOKUP(D13,Hist_Cur_CNTS!BG:BL,6,FALSE) *BD13,0),ROUND(VLOOKUP(D13,Hist_Cur_CNTS!BG:BL,6,FALSE)*BD13*IF(Y13="1W",1,IF(P13="RDA",0.55,IF(OR(Q13="H",Q13="F"),VLOOKUP(P13&"_"&Q13,GSV_Database!AA:AB,2,FALSE),VLOOKUP(P13&"_"&Charlotte!W13&"_"&Charlotte!AQ13,GSV_Database!AA:AB,2,FALSE)))),0))) -> 28500 | AX13: =LOS($P13,$W13,$AT13,$Y13,AU13,AV13,AQ13,AW13,$AG$4,GSV_Database!C:V) -> B | AY13: =VLOOKUP(D13,Hist_Cur_CNTS!BG:BQ,11,FALSE) -> 29266 | AZ13: =VLOOKUP(D13,Hist_Cur_CNTS!BG:BQ,10,FALSE) -> 0.89 | BA13: 26047 | BB13: =IF($AG$4="Daily",BA13,IF($AG$4="Peak Hour Two-Way",ROUND(BA13 *BD13,0),ROUND(BA13*BD13*IF(Y13="1W",1,IF(P13="RDA",0.55,IF(OR(Q13="H",Q13="F"),VLOOKUP(P13&"_"&Q13,GSV_Database!AA:AB,2,FALSE),VLOOKUP(P13&"_"&Charlotte!W13&"_"&Charlotte!AQ13,GSV_Database!AA:AB,2,FALSE)))),0))) -> 26047 | BC13: =LOS($P13,$W13,$AT13,$Y13,AU13,AV13,AQ13,BB13,$AG$4,GSV_Database!C:V) -> B | BD13: =VLOOKUP(D13,Hist_Cur_CNTS!BG:BO,7,FALSE)/100 -> 0.095 | BE13: =VLOOKUP(D13,Hist_Cur_CNTS!BG:BO,8,FALSE)/100 -> 0.514 | BF13: =VLOOKUP(D13,Hist_Cur_CNTS!BG:BO,9,FALSE)/100 -> 0.088 | BG13: UA_UFH_2W_4L_D_WL_WR | BH13: =IF($P13="U", VLOOKUP(Facility("TA",$W13,$X13,$Y13,$Z13,$AA13,$AB13),GSV_Database!C:X,22,FALSE),VLOOKUP(BG13,GSV_Database!C:X,22,FALSE)) -> 0 | BI13: 01010000-7.013-8.583 | BJ13: 0 | BK13: 0
B14: 01010000 | D14: 10021 | E14: US 41 | F14: TAMIAMI TRAIL | G14: =I13 -> CR 765A/Taylor Rd | H14: 8.583 | I14: CR 765/Burnt Store Rd | J14: 10.184 | K14: 1.601 | L14: N | N14: Principal Arterial-other | O14: 50 | P14: UA | Q14: A | R14: D | S14: D | T14: D | U14: 1 | V14: 0.624609619 | W14: 1 | X14: D | Y14: 2W | Z14: WL | AA14: WR | AB14: 4 | AC14: =Service_Volume($P14,$W14,$X14,$Y14,Z14,AA14,AB14,R14,$AG$4,GSV_Database!C:V) -> 41790 | AD14: =IF($AG$4="Daily",VLOOKUP(D14,Hist_Cur_CNTS!BG:BL,2,FALSE),IF($AG$4="Peak Hour Two-Way",VLOOKUP(D14,Hist_Cur_CNTS!BG:BL,3,FALSE),VLOOKUP(D14,Hist_Cur_CNTS!BG:BL,4,FALSE))) -> 15000 | AE14: =LOS($P14,$W14,$X14,$Y14,Z14,AA14,AB14,AD14,$AG$4,GSV_Database!C:V) -> C | AH14: 35.89375449 | AI14: 4 | AJ14: D | AK14: =Service_Volume($P14,$W14,$AL14,$Y14,AM14,AN14,AI14,AJ14,$AG$4,GSV_Database!C:V) -> 41790 | AL14: D | AM14: WL | AN14: WR | AO14: =IF($AG$4="Daily",VLOOKUP(D14,Hist_Cur_CNTS!BG:BL,5,FALSE),IF($AG$4="Peak Hour Two-Way",ROUND(VLOOKUP(D14,Hist_Cur_CNTS!BG:BL,5,FALSE) *BD14,0),ROUND(VLOOKUP(D14,Hist_Cur_CNTS!BG:BL,5,FALSE)*BD14*IF(Y14="1W",1,IF(P14="RDA",0.55,IF(OR(Q14="H",Q14="F"),VLOOKUP(P14&"_"&Q14,GSV_Database!AA:AB,2,FALSE),VLOOKUP(P14&"_"&Charlotte!W14&"_"&Charlotte!AI14,GSV_Database!AA:AB,2,FALSE)))),0))) -> 16800 | AP14: =LOS($P14,$W14,$AL14,$Y14,AM14,AN14,AI14,AO14,$AG$4,GSV_Database!C:V) -> C | AQ14: 6 | AR14: D | AS14: =Service_Volume($P14,$W14,$AT14,$Y14,AU14,AV14,AQ14,AR14,$AG$4,GSV_Database!C:V) -> 62895 | AT14: D | AU14: WL | AV14: WR | AW14: =IF($AG$4="Daily",VLOOKUP(D14,Hist_Cur_CNTS!BG:BL,6,FALSE),IF($AG$4="Peak Hour Two-Way",ROUND(VLOOKUP(D14,Hist_Cur_CNTS!BG:BL,6,FALSE) *BD14,0),ROUND(VLOOKUP(D14,Hist_Cur_CNTS!BG:BL,6,FALSE)*BD14*IF(Y14="1W",1,IF(P14="RDA",0.55,IF(OR(Q14="H",Q14="F"),VLOOKUP(P14&"_"&Q14,GSV_Database!AA:AB,2,FALSE),VLOOKUP(P14&"_"&Charlotte!W14&"_"&Charlotte!AQ14,GSV_Database!AA:AB,2,FALSE)))),0))) -> 21900 | AX14: =LOS($P14,$W14,$AT14,$Y14,AU14,AV14,AQ14,AW14,$AG$4,GSV_Database!C:V) -> C | AY14: =VLOOKUP(D14,Hist_Cur_CNTS!BG:BQ,11,FALSE) -> 21941 | AZ14: =VLOOKUP(D14,Hist_Cur_CNTS!BG:BQ,10,FALSE) -> 0.89 | BA14: 19527 | BB14: =IF($AG$4="Daily",BA14,IF($AG$4="Peak Hour Two-Way",ROUND(BA14 *BD14,0),ROUND(BA14*BD14*IF(Y14="1W",1,IF(P14="RDA",0.55,IF(OR(Q14="H",Q14="F"),VLOOKUP(P14&"_"&Q14,GSV_Database!AA:AB,2,FALSE),VLOOKUP(P14&"_"&Charlotte!W14&"_"&Charlotte!AQ14,GSV_Database!AA:AB,2,FALSE)))),0))) -> 19527 | BC14: =LOS($P14,$W14,$AT14,$Y14,AU14,AV14,AQ14,BB14,$AG$4,GSV_Database!C:V) -> C | BD14: =VLOOKUP(D14,Hist_Cur_CNTS!BG:BO,7,FALSE)/100 -> 0.09 | BE14: =VLOOKUP(D14,Hist_Cur_CNTS!BG:BO,8,FALSE)/100 -> 0.522 | BF14: =VLOOKUP(D14,Hist_Cur_CNTS!BG:BO,9,FALSE)/100 -> 0.069 | BG14: UA_S2WAC1_2W_4L_D_WL_WR | BH14: =IF($P14="U", VLOOKUP(Facility("TA",$W14,$X14,$Y14,$Z14,$AA14,$AB14),GSV_Database!C:X,22,FALSE),VLOOKUP(BG14,GSV_Database!C:X,22,FALSE)) -> 3 | BI14: 01010000-8.583-10.184 | BJ14: 3 | BK14: 0
B15: 01010000 | D15: 10016 | E15: US 41 | F15: TAMIAMI TRAIL | G15: =I14 -> CR 765/Burnt Store Rd | H15: 10.184 | I15: Airport Rd | J15: 12.489 | K15: 2.305 | L15: N | N15: Principal Arterial-other | O15: 50 | P15: UA | Q15: A | R15: D | S15: D | T15: D | U15: 3 | V15: 1.301518438 | W15: 1 | X15: D | Y15: 2W | Z15: WL | AA15: WR | AB15: 4 | AC15: =Service_Volume($P15,$W15,$X15,$Y15,Z15,AA15,AB15,R15,$AG$4,GSV_Database!C:V) -> 41790 | AD15: =IF($AG$4="Daily",VLOOKUP(D15,Hist_Cur_CNTS!BG:BL,2,FALSE),IF($AG$4="Peak Hour Two-Way",VLOOKUP(D15,Hist_Cur_CNTS!BG:BL,3,FALSE),VLOOKUP(D15,Hist_Cur_CNTS!BG:BL,4,FALSE))) -> 29500 | AE15: =LOS($P15,$W15,$X15,$Y15,Z15,AA15,AB15,AD15,$AG$4,GSV_Database!C:V) -> C | AH15: 70.59105049 | AI15: 4 | AJ15: D | AK15: =Service_Volume($P15,$W15,$AL15,$Y15,AM15,AN15,AI15,AJ15,$AG$4,GSV_Database!C:V) -> 41790 | AL15: D | AM15: WL | AN15: WR | AO15: =IF($AG$4="Daily",VLOOKUP(D15,Hist_Cur_CNTS!BG:BL,5,FALSE),IF($AG$4="Peak Hour Two-Way",ROUND(VLOOKUP(D15,Hist_Cur_CNTS!BG:BL,5,FALSE) *BD15,0),ROUND(VLOOKUP(D15,Hist_Cur_CNTS!BG:BL,5,FALSE)*BD15*IF(Y15="1W",1,IF(P15="RDA",0.55,IF(OR(Q15="H",Q15="F"),VLOOKUP(P15&"_"&Q15,GSV_Database!AA:AB,2,FALSE),VLOOKUP(P15&"_"&Charlotte!W15&"_"&Charlotte!AI15,GSV_Database!AA:AB,2,FALSE)))),0))) -> 33000 | AP15: =LOS($P15,$W15,$AL15,$Y15,AM15,AN15,AI15,AO15,$AG$4,GSV_Database!C:V) -> C | AQ15: 4 | AR15: D | AS15: =Service_Volume($P15,$W15,$AT15,$Y15,AU15,AV15,AQ15,AR15,$AG$4,GSV_Database!C:V) -> 41790 | AT15: D | AU15: WL | AV15: WR | AW15: =IF($AG$4="Daily",VLOOKUP(D15,Hist_Cur_CNTS!BG:BL,6,FALSE),IF($AG$4="Peak Hour Two-Way",ROUND(VLOOKUP(D15,Hist_Cur_CNTS!BG:BL,6,FALSE) *BD15,0),ROUND(VLOOKUP(D15,Hist_Cur_CNTS!BG:BL,6,FALSE)*BD15*IF(Y15="1W",1,IF(P15="RDA",0.55,IF(OR(Q15="H",Q15="F"),VLOOKUP(P15&"_"&Q15,GSV_Database!AA:AB,2,FALSE),VLOOKUP(P15&"_"&Charlotte!W15&"_"&Charlotte!AQ15,GSV_Database!AA:AB,2,FALSE)))),0))) -> 43100 | AX15: =LOS($P15,$W15,$AT15,$Y15,AU15,AV15,AQ15,AW15,$AG$4,GSV_Database!C:V) -> F | AY15: =VLOOKUP(D15,Hist_Cur_CNTS!BG:BQ,11,FALSE) -> 35698 | AZ15: =VLOOKUP(D15,Hist_Cur_CNTS!BG:BQ,10,FALSE) -> 0.89 | BA15: 31771 | BB15: =IF($AG$4="Daily",BA15,IF($AG$4="Peak Hour Two-Way",ROUND(BA15 *BD15,0),ROUND(BA15*BD15*IF(Y15="1W",1,IF(P15="RDA",0.55,IF(OR(Q15="H",Q15="F"),VLOOKUP(P15&"_"&Q15,GSV_Database!AA:AB,2,FALSE),VLOOKUP(P15&"_"&Charlotte!W15&"_"&Charlotte!AQ15,GSV_Database!AA:AB,2,FALSE)))),0))) -> 31771 | BC15: =LOS($P15,$W15,$AT15,$Y15,AU15,AV15,AQ15,BB15,$AG$4,GSV_Database!C:V) -> C | BD15: =VLOOKUP(D15,Hist_Cur_CNTS!BG:BO,7,FALSE)/100 -> 0.09 | BE15: =VLOOKUP(D15,Hist_Cur_CNTS!BG:BO,8,FALSE)/100 -> 0.522 | BF15: =VLOOKUP(D15,Hist_Cur_CNTS!BG:BO,9,FALSE)/100 -> 0.051 | BG15: UA_S2WAC1_2W_4L_D_WL_WR | BH15: =IF($P15="U", VLOOKUP(Facility("TA",$W15,$X15,$Y15,$Z15,$AA15,$AB15),GSV_Database!C:X,22,FALSE),VLOOKUP(BG15,GSV_Database!C:X,22,FALSE)) -> 3 | BI15: 01010000-10.184-12.489 | BJ15: 3 | BK15: 0
A16: ** | B16: 01010000 | D16: 15001 | E16: US 41 | F16: TAMIAMI TRAIL | G16: Airport Rd | H16: 12.489 | I16: US 41/Cross St | J16: 13.27 | K16: 0.781 | L16: N | N16: Principal Arterial-other | O16: 40 | P16: UA | Q16: A | R16: D | S16: D | T16: D | U16: 1 | V16: 1.280409731 | W16: 1 | X16: D | Y16: 2W | Z16: WL | AA16: WR | AB16: 4 | AC16: =Service_Volume($P16,$W16,$X16,$Y16,Z16,AA16,AB16,R16,$AG$4,GSV_Database!C:V) -> 41790 | AD16: =IF($AG$4="Daily",VLOOKUP(D16,Hist_Cur_CNTS!BG:BL,2,FALSE),IF($AG$4="Peak Hour Two-Way",VLOOKUP(D16,Hist_Cur_CNTS!BG:BL,3,FALSE),VLOOKUP(D16,Hist_Cur_CNTS!BG:BL,4,FALSE))) -> 30000 | AE16: =LOS($P16,$W16,$X16,$Y16,Z16,AA16,AB16,AD16,$AG$4,GSV_Database!C:V) -> C | AH16: 71.78750897 | AI16: 4 | AJ16: D | AK16: =Service_Volume($P16,$W16,$AL16,$Y16,AM16,AN16,AI16,AJ16,$AG$4,GSV_Database!C:V) -> 41790 | AL16: D | AM16: WL | AN16: WR | AO16: =IF($AG$4="Daily",VLOOKUP(D16,Hist_Cur_CNTS!BG:BL,5,FALSE),IF($AG$4="Peak Hour Two-Way",ROUND(VLOOKUP(D16,Hist_Cur_CNTS!BG:BL,5,FALSE) *BD16,0),ROUND(VLOOKUP(D16,Hist_Cur_CNTS!BG:BL,5,FALSE)*BD16*IF(Y16="1W",1,IF(P16="RDA",0.55,IF(OR(Q16="H",Q16="F"),VLOOKUP(P16&"_"&Q16,GSV_Database!AA:AB,2,FALSE),VLOOKUP(P16&"_"&Charlotte!W16&"_"&Charlotte!AI16,GSV_Database!AA:AB,2,FALSE)))),0))) -> 33600 | AP16: =LOS($P16,$W16,$AL16,$Y16,AM16,AN16,AI16,AO16,$AG$4,GSV_Database!C:V) -> C | AQ16: 4 | AR16: D | AS16: =Service_Volume($P16,$W16,$AT16,$Y16,AU16,AV16,AQ16,AR16,$AG$4,GSV_Database!C:V) -> 41790 | AT16: D | AU16: WL | AV16: WR | AW16: =IF($AG$4="Daily",VLOOKUP(D16,Hist_Cur_CNTS!BG:BL,6,FALSE),IF($AG$4="Peak Hour Two-Way",ROUND(VLOOKUP(D16,Hist_Cur_CNTS!BG:BL,6,FALSE) *BD16,0),ROUND(VLOOKUP(D16,Hist_Cur_CNTS!BG:BL,6,FALSE)*BD16*IF(Y16="1W",1,IF(P16="RDA",0.55,IF(OR(Q16="H",Q16="F"),VLOOKUP(P16&"_"&Q16,GSV_Database!AA:AB,2,FALSE),VLOOKUP(P16&"_"&Charlotte!W16&"_"&Charlotte!AQ16,GSV_Database!AA:AB,2,FALSE)))),0))) -> 43800 | AX16: =LOS($P16,$W16,$AT16,$Y16,AU16,AV16,AQ16,AW16,$AG$4,GSV_Database!C:V) -> F | AY16: =VLOOKUP(D16,Hist_Cur_CNTS!BG:BQ,11,FALSE) -> 28034 | AZ16: =VLOOKUP(D16,Hist_Cur_CNTS!BG:BQ,10,FALSE) -> 0.89 | BA16: 24950 | BB16: =IF($AG$4="Daily",BA16,IF($AG$4="Peak Hour Two-Way",ROUND(BA16 *BD16,0),ROUND(BA16*BD16*IF(Y16="1W",1,IF(P16="RDA",0.55,IF(OR(Q16="H",Q16="F"),VLOOKUP(P16&"_"&Q16,GSV_Database!AA:AB,2,FALSE),VLOOKUP(P16&"_"&Charlotte!W16&"_"&Charlotte!AQ16,GSV_Database!AA:AB,2,FALSE)))),0))) -> 24950 | BC16: =LOS($P16,$W16,$AT16,$Y16,AU16,AV16,AQ16,BB16,$AG$4,GSV_Database!C:V) -> C | BD16: =VLOOKUP(D16,Hist_Cur_CNTS!BG:BO,7,FALSE)/100 -> 0.09 | BE16: =VLOOKUP(D16,Hist_Cur_CNTS!BG:BO,8,FALSE)/100 -> 0.522 | BF16: =VLOOKUP(D16,Hist_Cur_CNTS!BG:BO,9,FALSE)/100 -> 0.046 | BG16: UA_S2WAC1_2W_4L_D_WL_WR | BH16: =IF($P16="U", VLOOKUP(Facility("TA",$W16,$X16,$Y16,$Z16,$AA16,$AB16),GSV_Database!C:X,22,FALSE),VLOOKUP(BG16,GSV_Database!C:X,22,FALSE)) -> 3 | BI16: 01010000-12.489-13.27 | BJ16: 3 | BK16: 0
B17: 01010000 | E17: US 41 | F17: TAMIAMI TRAIL | G17: =G15 -> CR 765/Burnt Store Rd | H17: 10.184 | I17: =I16 -> US 41/Cross St | J17: 13.27 | K17: 3.086 | L17: N | N17: Principal Arterial-other | O17: 40 | P17: UA | Q17: A | R17: D | S17: D | T17: D | U17: =SUM(U15:U16) -> 4 | V17: 1.29617628 | W17: 1 | X17: D | Y17: 2W | Z17: WL | AA17: WR | AB17: 4 | AC17: =Service_Volume($P17,$W17,$X17,$Y17,Z17,AA17,AB17,R17,$AG$4,GSV_Database!C:V) -> 41790 | AD17: =wtavg(AD15:AD16,K15:K16) -> 29626.53921 | AE17: =LOS($P17,$W17,$X17,$Y17,Z17,AA17,AB17,AD17,$AG$4,GSV_Database!C:V) -> C | AH17: 70.89384831 | AI17: 4 | AJ17: D | AK17: =Service_Volume($P17,$W17,$AL17,$Y17,AM17,AN17,AI17,AJ17,$AG$4,GSV_Database!C:V) -> 41790 | AL17: D | AM17: WL | AN17: WR | AO17: =wtavg(AO15:AO16,K15:K16) -> 33151.84705 | AP17: =LOS($P17,$W17,$AL17,$Y17,AM17,AN17,AI17,AO17,$AG$4,GSV_Database!C:V) -> C | AQ17: 4 | AR17: D | AS17: =Service_Volume($P17,$W17,$AT17,$Y17,AU17,AV17,AQ17,AR17,$AG$4,GSV_Database!C:V) -> 41790 | AT17: D | AU17: WL | AV17: WR | AW17: =wtavg(AW15:AW16,$K15:$K16) -> 43277.15489 | AX17: =LOS($P17,$W17,$AT17,$Y17,AU17,AV17,AQ17,AW17,$AG$4,GSV_Database!C:V) -> F | AY17: =wtavg(AY15:AY16,$K15:$K16) -> 33758.407 | AZ17: =wtavg(AZ15:AZ16,$K15:$K16) -> 0.89 | BA17: 30045 | BB17: =wtavg(BB15:BB16,$K15:$K16) -> 30044.75211 | BC17: =LOS($P17,$W17,$AT17,$Y17,AU17,AV17,AQ17,BB17,$AG$4,GSV_Database!C:V) -> C | BD17: =wtavg(BD15:BD16,$K15:$K16) -> 0.09 | BE17: =wtavg(BE15:BE16,$K15:$K16) -> 0.522 | BF17: =wtavg(BF15:BF16,$K15:$K16) -> 0.04973460791 | BG17: UA_S2WAC1_2W_4L_D_WL_WR | BH17: =IF($P17="U", VLOOKUP(Facility("TA",$W17,$X17,$Y17,$Z17,$AA17,$AB17),GSV_Database!C:X,22,FALSE),VLOOKUP(BG17,GSV_Database!C:X,22,FALSE)) -> 3 | BI17: 01010000-10.184-13.27 | BJ17: 3 | BK17: 0
A18: ** | B18: 01010000 | D18: 15027 | E18: US 41 | F18: TAMIAMI TRAIL | G18: =I17 -> US 41/Cross St | H18: 13.27 | I18: CR 765A/Taylor Rd | J18: 13.469 | K18: 0.199 | L18: N | N18: Principal Arterial-other | O18: 40 | P18: UA | Q18: A | R18: D | S18: D | T18: D | U18: 1 | V18: 5.025125628 | W18: 1 | X18: U | Y18: 1W | Z18: 0L | AA18: WR | AB18: 2 | AC18: =Service_Volume($P18,$W18,$X18,$Y18,Z18,AA18,AB18,R18,$AG$4,GSV_Database!C:V) -> 25074 | AD18: =IF($AG$4="Daily",VLOOKUP(D18,Hist_Cur_CNTS!BG:BL,2,FALSE),IF($AG$4="Peak Hour Two-Way",VLOOKUP(D18,Hist_Cur_CNTS!BG:BL,3,FALSE),VLOOKUP(D18,Hist_Cur_CNTS!BG:BL,4,FALSE))) -> 15000 | AE18: =LOS($P18,$W18,$X18,$Y18,Z18,AA18,AB18,AD18,$AG$4,GSV_Database!C:V) -> C | AH18: 59.82292414 | AI18: 2 | AJ18: D | AK18: =Service_Volume($P18,$W18,$AL18,$Y18,AM18,AN18,AI18,AJ18,$AG$4,GSV_Database!C:V) -> 25074 | AL18: U | AM18: 0L | AN18: WR | AO18: =IF($AG$4="Daily",VLOOKUP(D18,Hist_Cur_CNTS!BG:BL,5,FALSE),IF($AG$4="Peak Hour Two-Way",ROUND(VLOOKUP(D18,Hist_Cur_CNTS!BG:BL,5,FALSE) *BD18,0),ROUND(VLOOKUP(D18,Hist_Cur_CNTS!BG:BL,5,FALSE)*BD18*IF(Y18="1W",1,IF(P18="RDA",0.55,IF(OR(Q18="H",Q18="F"),VLOOKUP(P18&"_"&Q18,GSV_Database!AA:AB,2,FALSE),VLOOKUP(P18&"_"&Charlotte!W18&"_"&Charlotte!AI18,GSV_Database!AA:AB,2,FALSE)))),0))) -> 16800 | AP18: =LOS($P18,$W18,$AL18,$Y18,AM18,AN18,AI18,AO18,$AG$4,GSV_Database!C:V) -> C | AQ18: 2 | AR18: D | AS18: =Service_Volume($P18,$W18,$AT18,$Y18,AU18,AV18,AQ18,AR18,$AG$4,GSV_Database!C:V) -> 25074 | AT18: U | AU18: 0L | AV18: WR | AW18: =IF($AG$4="Daily",VLOOKUP(D18,Hist_Cur_CNTS!BG:BL,6,FALSE),IF($AG$4="Peak Hour Two-Way",ROUND(VLOOKUP(D18,Hist_Cur_CNTS!BG:BL,6,FALSE) *BD18,0),ROUND(VLOOKUP(D18,Hist_Cur_CNTS!BG:BL,6,FALSE)*BD18*IF(Y18="1W",1,IF(P18="RDA",0.55,IF(OR(Q18="H",Q18="F"),VLOOKUP(P18&"_"&Q18,GSV_Database!AA:AB,2,FALSE),VLOOKUP(P18&"_"&Charlotte!W18&"_"&Charlotte!AQ18,GSV_Database!AA:AB,2,FALSE)))),0))) -> 21900 | AX18: =LOS($P18,$W18,$AT18,$Y18,AU18,AV18,AQ18,AW18,$AG$4,GSV_Database!C:V) -> C | AY18: =VLOOKUP(D18,Hist_Cur_CNTS!BG:BQ,11,FALSE) -> 13665 | AZ18: =VLOOKUP(D18,Hist_Cur_CNTS!BG:BQ,10,FALSE) -> 0.89 | BA18: 12162 | BB18: =IF($AG$4="Daily",BA18,IF($AG$4="Peak Hour Two-Way",ROUND(BA18 *BD18,0),ROUND(BA18*BD18*IF(Y18="1W",1,IF(P18="RDA",0.55,IF(OR(Q18="H",Q18="F"),VLOOKUP(P18&"_"&Q18,GSV_Database!AA:AB,2,FALSE),VLOOKUP(P18&"_"&Charlotte!W18&"_"&Charlotte!AQ18,GSV_Database!AA:AB,2,FALSE)))),0))) -> 12162 | BC18: =LOS($P18,$W18,$AT18,$Y18,AU18,AV18,AQ18,BB18,$AG$4,GSV_Database!C:V) -> C | BD18: =VLOOKUP(D18,Hist_Cur_CNTS!BG:BO,7,FALSE)/100 -> 0.09 | BE18: =VLOOKUP(D18,Hist_Cur_CNTS!BG:BO,8,FALSE)/100 -> 0.999 | BF18: =VLOOKUP(D18,Hist_Cur_CNTS!BG:BO,9,FALSE)/100 -> 0.04 | BG18: UA_S2WAC1_1W_2L_U_0L_WR | BH18: =IF($P18="U", VLOOKUP(Facility("TA",$W18,$X18,$Y18,$Z18,$AA18,$AB18),GSV_Database!C:X,22,FALSE),VLOOKUP(BG18,GSV_Database!C:X,22,FALSE)) -> 1 | BI18: 01010000-13.27-13.469 | BJ18: 1 | BK18: 0
A19: ** | B19: 01010000 | D19: 15027 | E19: US 41 | F19: TAMIAMI TRAIL | G19: =I18 -> CR 765A/Taylor Rd | H19: 13.469 | I19: US17/SR 35(Marion Ave) | J19: 13.859 | K19: 0.39 | L19: N | N19: Principal Arterial-other | O19: 35 | P19: UA | Q19: A | R19: D | S19: D | T19: D | U19: 3 | V19: 7.692307692 | W19: 2 | X19: U | Y19: 1W | Z19: 0L | AA19: WR | AB19: 3 | AC19: =Service_Volume($P19,$W19,$X19,$Y19,Z19,AA19,AB19,R19,$AG$4,GSV_Database!C:V) -> 31500 | AD19: =IF($AG$4="Daily",VLOOKUP(D19,Hist_Cur_CNTS!BG:BL,2,FALSE),IF($AG$4="Peak Hour Two-Way",VLOOKUP(D19,Hist_Cur_CNTS!BG:BL,3,FALSE),VLOOKUP(D19,Hist_Cur_CNTS!BG:BL,4,FALSE))) -> 15000 | AE19: =LOS($P19,$W19,$X19,$Y19,Z19,AA19,AB19,AD19,$AG$4,GSV_Database!C:V) -> D | AH19: 47.61904762 | AI19: 3 | AJ19: D | AK19: =Service_Volume($P19,$W19,$AL19,$Y19,AM19,AN19,AI19,AJ19,$AG$4,GSV_Database!C:V) -> 31500 | AL19: U | AM19: 0L | AN19: WR | AO19: =IF($AG$4="Daily",VLOOKUP(D19,Hist_Cur_CNTS!BG:BL,5,FALSE),IF($AG$4="Peak Hour Two-Way",ROUND(VLOOKUP(D19,Hist_Cur_CNTS!BG:BL,5,FALSE) *BD19,0),ROUND(VLOOKUP(D19,Hist_Cur_CNTS!BG:BL,5,FALSE)*BD19*IF(Y19="1W",1,IF(P19="RDA",0.55,IF(OR(Q19="H",Q19="F"),VLOOKUP(P19&"_"&Q19,GSV_Database!AA:AB,2,FALSE),VLOOKUP(P19&"_"&Charlotte!W19&"_"&Charlotte!AI19,GSV_Database!AA:AB,2,FALSE)))),0))) -> 16800 | AP19: =LOS($P19,$W19,$AL19,$Y19,AM19,AN19,AI19,AO19,$AG$4,GSV_Database!C:V) -> D | AQ19: 3 | AR19: D | AS19: =Service_Volume($P19,$W19,$AT19,$Y19,AU19,AV19,AQ19,AR19,$AG$4,GSV_Database!C:V) -> 31500 | AT19: U | AU19: 0L | AV19: WR | AW19: =IF($AG$4="Daily",VLOOKUP(D19,Hist_Cur_CNTS!BG:BL,6,FALSE),IF($AG$4="Peak Hour Two-Way",ROUND(VLOOKUP(D19,Hist_Cur_CNTS!BG:BL,6,FALSE) *BD19,0),ROUND(VLOOKUP(D19,Hist_Cur_CNTS!BG:BL,6,FALSE)*BD19*IF(Y19="1W",1,IF(P19="RDA",0.55,IF(OR(Q19="H",Q19="F"),VLOOKUP(P19&"_"&Q19,GSV_Database!AA:AB,2,FALSE),VLOOKUP(P19&"_"&Charlotte!W19&"_"&Charlotte!AQ19,GSV_Database!AA:AB,2,FALSE)))),0))) -> 21900 | AX19: =LOS($P19,$W19,$AT19,$Y19,AU19,AV19,AQ19,AW19,$AG$4,GSV_Database!C:V) -> D | AY19: =VLOOKUP(D19,Hist_Cur_CNTS!BG:BQ,11,FALSE) -> 13665 | AZ19: =VLOOKUP(D19,Hist_Cur_CNTS!BG:BQ,10,FALSE) -> 0.89 | BA19: 12162 | BB19: =IF($AG$4="Daily",BA19,IF($AG$4="Peak Hour Two-Way",ROUND(BA19 *BD19,0),ROUND(BA19*BD19*IF(Y19="1W",1,IF(P19="RDA",0.55,IF(OR(Q19="H",Q19="F"),VLOOKUP(P19&"_"&Q19,GSV_Database!AA:AB,2,FALSE),VLOOKUP(P19&"_"&Charlotte!W19&"_"&Charlotte!AQ19,GSV_Database!AA:AB,2,FALSE)))),0))) -> 12162 | BC19: =LOS($P19,$W19,$AT19,$Y19,AU19,AV19,AQ19,BB19,$AG$4,GSV_Database!C:V) -> C | BD19: =VLOOKUP(D19,Hist_Cur_CNTS!BG:BO,7,FALSE)/100 -> 0.09 | BE19: =VLOOKUP(D19,Hist_Cur_CNTS!BG:BO,8,FALSE)/100 -> 0.999 | BF19: =VLOOKUP(D19,Hist_Cur_CNTS!BG:BO,9,FALSE)/100 -> 0.04 | BG19: UA_S2WAC2_1W_3L_U_0L_WR | BH19: =IF($P19="U", VLOOKUP(Facility("TA",$W19,$X19,$Y19,$Z19,$AA19,$AB19),GSV_Database!C:X,22,FALSE),VLOOKUP(BG19,GSV_Database!C:X,22,FALSE)) -> 1 | BI19: 01010000-13.469-13.859 | BJ19: 1 | BK19: 0
A20: ** | B20: 01010000 | D20: 10032 | E20: US 41 | F20: TAMIAMI TRAIL | G20: =I19 -> US17/SR 35(Marion Ave) | H20: 13.859 | I20: E Retta Esplanade | J20: 13.948 | K20: 0.089 | L20: N | N20: Principal Arterial-other | O20: 35 | P20: UA | Q20: A | R20: D | S20: D | T20: D | V20: 0 | W20: 2 | X20: U | Y20: 1W | Z20: 0L | AA20: 0R | AB20: 3 | AC20: =Service_Volume($P20,$W20,$X20,$Y20,Z20,AA20,AB20,R20,$AG$4,GSV_Database!C:V) -> 30000 | AD20: =IF($AG$4="Daily",VLOOKUP(D20,Hist_Cur_CNTS!BG:BL,2,FALSE),IF($AG$4="Peak Hour Two-Way",VLOOKUP(D20,Hist_Cur_CNTS!BG:BL,3,FALSE),VLOOKUP(D20,Hist_Cur_CNTS!BG:BL,4,FALSE))) -> 27000 | AE20: =LOS($P20,$W20,$X20,$Y20,Z20,AA20,AB20,AD20,$AG$4,GSV_Database!C:V) -> D | AF20: Near Capacity | AH20: 90 | AI20: 3 | AJ20: D | AK20: =Service_Volume($P20,$W20,$AL20,$Y20,AM20,AN20,AI20,AJ20,$AG$4,GSV_Database!C:V) -> 30000 | AL20: U | AM20: 0L | AN20: 0R | AO20: =IF($AG$4="Daily",VLOOKUP(D20,Hist_Cur_CNTS!BG:BL,5,FALSE),IF($AG$4="Peak Hour Two-Way",ROUND(VLOOKUP(D20,Hist_Cur_CNTS!BG:BL,5,FALSE) *BD20,0),ROUND(VLOOKUP(D20,Hist_Cur_CNTS!BG:BL,5,FALSE)*BD20*IF(Y20="1W",1,IF(P20="RDA",0.55,IF(OR(Q20="H",Q20="F"),VLOOKUP(P20&"_"&Q20,GSV_Database!AA:AB,2,FALSE),VLOOKUP(P20&"_"&Charlotte!W20&"_"&Charlotte!AI20,GSV_Database!AA:AB,2,FALSE)))),0))) -> 30200 | AP20: =LOS($P20,$W20,$AL20,$Y20,AM20,AN20,AI20,AO20,$AG$4,GSV_Database!C:V) -> E | AQ20: 3 | AR20: D | AS20: =Service_Volume($P20,$W20,$AT20,$Y20,AU20,AV20,AQ20,AR20,$AG$4,GSV_Database!C:V) -> 30000 | AT20: U | AU20: 0L | AV20: 0R | AW20: =IF($AG$4="Daily",VLOOKUP(D20,Hist_Cur_CNTS!BG:BL,6,FALSE),IF($AG$4="Peak Hour Two-Way",ROUND(VLOOKUP(D20,Hist_Cur_CNTS!BG:BL,6,FALSE) *BD20,0),ROUND(VLOOKUP(D20,Hist_Cur_CNTS!BG:BL,6,FALSE)*BD20*IF(Y20="1W",1,IF(P20="RDA",0.55,IF(OR(Q20="H",Q20="F"),VLOOKUP(P20&"_"&Q20,GSV_Database!AA:AB,2,FALSE),VLOOKUP(P20&"_"&Charlotte!W20&"_"&Charlotte!AQ20,GSV_Database!AA:AB,2,FALSE)))),0))) -> 39400 | AX20: =LOS($P20,$W20,$AT20,$Y20,AU20,AV20,AQ20,AW20,$AG$4,GSV_Database!C:V) -> F | AY20: =VLOOKUP(D20,Hist_Cur_CNTS!BG:BQ,11,FALSE) -> 27898 | AZ20: =VLOOKUP(D20,Hist_Cur_CNTS!BG:BQ,10,FALSE) -> 0.89 | BA20: 24829 | BB20: =IF($AG$4="Daily",BA20,IF($AG$4="Peak Hour Two-Way",ROUND(BA20 *BD20,0),ROUND(BA20*BD20*IF(Y20="1W",1,IF(P20="RDA",0.55,IF(OR(Q20="H",Q20="F"),VLOOKUP(P20&"_"&Q20,GSV_Database!AA:AB,2,FALSE),VLOOKUP(P20&"_"&Charlotte!W20&"_"&Charlotte!AQ20,GSV_Database!AA:AB,2,FALSE)))),0))) -> 24829 | BC20: =LOS($P20,$W20,$AT20,$Y20,AU20,AV20,AQ20,BB20,$AG$4,GSV_Database!C:V) -> D | BD20: =VLOOKUP(D20,Hist_Cur_CNTS!BG:BO,7,FALSE)/100 -> 0.09 | BE20: =VLOOKUP(D20,Hist_Cur_CNTS!BG:BO,8,FALSE)/100 -> 0.999 | BF20: =VLOOKUP(D20,Hist_Cur_CNTS!BG:BO,9,FALSE)/100 -> 0.039 | BG20: UA_S2WAC2_1W_3L_U_0L_0R | BH20: =IF($P20="U", VLOOKUP(Facility("TA",$W20,$X20,$Y20,$Z20,$AA20,$AB20),GSV_Database!C:X,22,FALSE),VLOOKUP(BG20,GSV_Database!C:X,22,FALSE)) -> 1 | BI20: 01010000-13.859-13.948 | BJ20: 1 | BK20: 0
A21: ** | B21: 01010000 | D21: 10032 | E21: US 41 | F21: TAMIAMI TRAIL | G21: E Retta Esplanade | H21: 13.948 | I21: US 41 (Cross St) | J21: 15.295 | K21: 1.347 | L21: N | N21: Principal Arterial-other | O21: 45 | P21: UA | Q21: A | R21: D | S21: D | T21: D | V21: 0 | W21: 1 | X21: U | Y21: 1W | Z21: WL | AA21: WR | AB21: 2 | AC21: =Service_Volume($P21,$W21,$X21,$Y21,Z21,AA21,AB21,R21,$AG$4,GSV_Database!C:V) -> 25074 | AD21: =IF($AG$4="Daily",VLOOKUP(D21,Hist_Cur_CNTS!BG:BL,2,FALSE),IF($AG$4="Peak Hour Two-Way",VLOOKUP(D21,Hist_Cur_CNTS!BG:BL,3,FALSE),VLOOKUP(D21,Hist_Cur_CNTS!BG:BL,4,FALSE))) -> 27000 | AE21: =LOS($P21,$W21,$X21,$Y21,Z21,AA21,AB21,AD21,$AG$4,GSV_Database!C:V) -> F | AF21: Over Capacity | AH21: 107.6812635 | AI21: 2 | AJ21: D | AK21: =Service_Volume($P21,$W21,$AL21,$Y21,AM21,AN21,AI21,AJ21,$AG$4,GSV_Database!C:V) -> 25074 | AL21: U | AM21: WL | AN21: WR | AO21: =IF($AG$4="Daily",VLOOKUP(D21,Hist_Cur_CNTS!BG:BL,5,FALSE),IF($AG$4="Peak Hour Two-Way",ROUND(VLOOKUP(D21,Hist_Cur_CNTS!BG:BL,5,FALSE) *BD21,0),ROUND(VLOOKUP(D21,Hist_Cur_CNTS!BG:BL,5,FALSE)*BD21*IF(Y21="1W",1,IF(P21="RDA",0.55,IF(OR(Q21="H",Q21="F"),VLOOKUP(P21&"_"&Q21,GSV_Database!AA:AB,2,FALSE),VLOOKUP(P21&"_"&Charlotte!W21&"_"&Charlotte!AI21,GSV_Database!AA:AB,2,FALSE)))),0))) -> 30200 | AP21: =LOS($P21,$W21,$AL21,$Y21,AM21,AN21,AI21,AO21,$AG$4,GSV_Database!C:V) -> F | AQ21: 2 | AR21: D | AS21: =Service_Volume($P21,$W21,$AT21,$Y21,AU21,AV21,AQ21,AR21,$AG$4,GSV_Database!C:V) -> 25074 | AT21: U | AU21: WL | AV21: WR | AW21: =IF($AG$4="Daily",VLOOKUP(D21,Hist_Cur_CNTS!BG:BL,6,FALSE),IF($AG$4="Peak Hour Two-Way",ROUND(VLOOKUP(D21,Hist_Cur_CNTS!BG:BL,6,FALSE) *BD21,0),ROUND(VLOOKUP(D21,Hist_Cur_CNTS!BG:BL,6,FALSE)*BD21*IF(Y21="1W",1,IF(P21="RDA",0.55,IF(OR(Q21="H",Q21="F"),VLOOKUP(P21&"_"&Q21,GSV_Database!AA:AB,2,FALSE),VLOOKUP(P21&"_"&Charlotte!W21&"_"&Charlotte!AQ21,GSV_Database!AA:AB,2,FALSE)))),0))) -> 39400 | AX21: =LOS($P21,$W21,$AT21,$Y21,AU21,AV21,AQ21,AW21,$AG$4,GSV_Database!C:V) -> F | AY21: =VLOOKUP(D21,Hist_Cur_CNTS!BG:BQ,11,FALSE) -> 27898 | AZ21: =VLOOKUP(D21,Hist_Cur_CNTS!BG:BQ,10,FALSE) -> 0.89 | BA21: 24829 | BB21: =IF($AG$4="Daily",BA21,IF($AG$4="Peak Hour Two-Way",ROUND(BA21 *BD21,0),ROUND(BA21*BD21*IF(Y21="1W",1,IF(P21="RDA",0.55,IF(OR(Q21="H",Q21="F"),VLOOKUP(P21&"_"&Q21,GSV_Database!AA:AB,2,FALSE),VLOOKUP(P21&"_"&Charlotte!W21&"_"&Charlotte!AQ21,GSV_Database!AA:AB,2,FALSE)))),0))) -> 24829 | BC21: =LOS($P21,$W21,$AT21,$Y21,AU21,AV21,AQ21,BB21,$AG$4,GSV_Database!C:V) -> D | BD21: =VLOOKUP(D21,Hist_Cur_CNTS!BG:BO,7,FALSE)/100 -> 0.09 | BE21: =VLOOKUP(D21,Hist_Cur_CNTS!BG:BO,8,FALSE)/100 -> 0.999 | BF21: =VLOOKUP(D21,Hist_Cur_CNTS!BG:BO,9,FALSE)/100 -> 0.039 | BG21: UA_S2WAC1_1W_2L_U_WL_WR | BH21: =IF($P21="U", VLOOKUP(Facility("TA",$W21,$X21,$Y21,$Z21,$AA21,$AB21),GSV_Database!C:X,22,FALSE),VLOOKUP(BG21,GSV_Database!C:X,22,FALSE)) -> 1 | BI21: 01010000-13.948-15.295 | BJ21: 1 | BK21: 0
A22: ** | B22: 01010000 | E22: US 41 | F22: TAMIAMI TRAIL | G22: =G18 -> US 41/Cross St | H22: =H18 -> 13.27 | I22: =I21 -> US 41 (Cross St) | J22: =J21 -> 15.295 | K22: 2.025 | L22: N | N22: Principal Arterial-other | O22: 45 | P22: UA | Q22: A | R22: D | S22: D | T22: D | U22: =SUM(U18:U21) -> 4 | V22: 1.975308642 | W22: 1 | X22: U | Y22: 1W | Z22: WL | AA22: WR | AB22: 2 | AC22: =Service_Volume($P22,$W22,$X22,$Y22,Z22,AA22,AB22,R22,$AG$4,GSV_Database!C:V) -> 25074 | AD22: =wtavg(AD18:AD21,K18:K21) -> 23509.62963 | AE22: =LOS($P22,$W22,$X22,$Y22,Z22,AA22,AB22,AD22,$AG$4,GSV_Database!C:V) -> C | AF22: Near Capacity | AH22: 93.760986 | AI22: 2 | AJ22: D | AK22: =Service_Volume($P22,$W22,$AL22,$Y22,AM22,AN22,AI22,AJ22,$AG$4,GSV_Database!C:V) -> 25074 | AL22: U | AM22: WL | AN22: WR | AO22: =wtavg(AO18:AO21,K18:K21) -> 26302.41975 | AP22: =LOS($P22,$W22,$AL22,$Y22,AM22,AN22,AI22,AO22,$AG$4,GSV_Database!C:V) -> F | AQ22: 2 | AR22: D | AS22: =Service_Volume($P22,$W22,$AT22,$Y22,AU22,AV22,AQ22,AR22,$AG$4,GSV_Database!C:V) -> 25074 | AT22: U | AU22: WL | AV22: WR | AW22: =wtavg(AW18:AW21,$K18:$K21) -> 34309.87654 | AX22: =LOS($P22,$W22,$AT22,$Y22,AU22,AV22,AQ22,AW22,$AG$4,GSV_Database!C:V) -> F | AY22: =wtavg(AY18:AY21,$K18:$K21) -> 23758.12988 | AZ22: =wtavg(AZ18:AZ21,$K18:$K21) -> 0.89 | BA22: 21145 | BB22: =wtavg(BB18:BB21,$K18:$K21) -> 21144.62321 | BC22: =LOS($P22,$W22,$AT22,$Y22,AU22,AV22,AQ22,BB22,$AG$4,GSV_Database!C:V) -> C | BD22: =wtavg(BD18:BD21,$K18:$K21) -> 0.09 | BE22: =wtavg(BE18:BE21,$K18:$K21) -> 0.999 | BF22: =wtavg(BF18:BF21,$K18:$K21) -> 0.0392908642 | BG22: UA_S2WAC1_1W_2L_U_WL_WR | BH22: =IF($P22="U", VLOOKUP(Facility("TA",$W22,$X22,$Y22,$Z22,$AA22,$AB22),GSV_Database!C:X,22,FALSE),VLOOKUP(BG22,GSV_Database!C:X,22,FALSE)) -> 1 | BI22: 01010000-13.27-15.295 | BJ22: 1 | BK22: 0
A23: ** | B23: 01010000 | D23: 15018 | E23: US 41 | F23: TAMIAMI TRAIL | G23: US 41 (Cross St) | H23: 15.295 | I23: Bayshore Rd | J23: 15.408 | K23: 0.113 | L23: N | N23: Principal Arterial-other | O23: 45 | P23: UA | Q23: A | R23: D | S23: D | V23: 0 | W23: 1 | X23: D | Y23: 2W | Z23: WL | AA23: WR | AB23: 5 | AC23: =Service_Volume($P23,$W23,$X23,$Y23,Z23,AA23,AB23,R23,$AG$4,GSV_Database!C:V) -> 52342 | AD23: =IF($AG$4="Daily",VLOOKUP(D23,Hist_Cur_CNTS!BG:BL,2,FALSE),IF($AG$4="Peak Hour Two-Way",VLOOKUP(D23,Hist_Cur_CNTS!BG:BL,3,FALSE),VLOOKUP(D23,Hist_Cur_CNTS!BG:BL,4,FALSE))) -> 45000 | AE23: =LOS($P23,$W23,$X23,$Y23,Z23,AA23,AB23,AD23,$AG$4,GSV_Database!C:V) -> C | AH23: 85.97302358 | AI23: 5 | AJ23: D | AK23: =Service_Volume($P23,$W23,$AL23,$Y23,AM23,AN23,AI23,AJ23,$AG$4,GSV_Database!C:V) -> 52342 | AL23: D | AM23: WL | AN23: WR | AO23: =IF($AG$4="Daily",VLOOKUP(D23,Hist_Cur_CNTS!BG:BL,5,FALSE),IF($AG$4="Peak Hour Two-Way",ROUND(VLOOKUP(D23,Hist_Cur_CNTS!BG:BL,5,FALSE) *BD23,0),ROUND(VLOOKUP(D23,Hist_Cur_CNTS!BG:BL,5,FALSE)*BD23*IF(Y23="1W",1,IF(P23="RDA",0.55,IF(OR(Q23="H",Q23="F"),VLOOKUP(P23&"_"&Q23,GSV_Database!AA:AB,2,FALSE),VLOOKUP(P23&"_"&Charlotte!W23&"_"&Charlotte!AI23,GSV_Database!AA:AB,2,FALSE)))),0))) -> 50400 | AP23: =LOS($P23,$W23,$AL23,$Y23,AM23,AN23,AI23,AO23,$AG$4,GSV_Database!C:V) -> C | AQ23: 5 | AR23: D | AS23: =Service_Volume($P23,$W23,$AT23,$Y23,AU23,AV23,AQ23,AR23,$AG$4,GSV_Database!C:V) -> 52342 | AT23: D | AU23: WL | AV23: WR | AW23: =IF($AG$4="Daily",VLOOKUP(D23,Hist_Cur_CNTS!BG:BL,6,FALSE),IF($AG$4="Peak Hour Two-Way",ROUND(VLOOKUP(D23,Hist_Cur_CNTS!BG:BL,6,FALSE) *BD23,0),ROUND(VLOOKUP(D23,Hist_Cur_CNTS!BG:BL,6,FALSE)*BD23*IF(Y23="1W",1,IF(P23="RDA",0.55,IF(OR(Q23="H",Q23="F"),VLOOKUP(P23&"_"&Q23,GSV_Database!AA:AB,2,FALSE),VLOOKUP(P23&"_"&Charlotte!W23&"_"&Charlotte!AQ23,GSV_Database!AA:AB,2,FALSE)))),0))) -> 65700 | AX23: =LOS($P23,$W23,$AT23,$Y23,AU23,AV23,AQ23,AW23,$AG$4,GSV_Database!C:V) -> F | AY23: =VLOOKUP(D23,Hist_Cur_CNTS!BG:BQ,11,FALSE) -> 50377 | AZ23: =VLOOKUP(D23,Hist_Cur_CNTS!BG:BQ,10,FALSE) -> 0.89 | BA23: 44836 | BB23: =IF($AG$4="Daily",BA23,IF($AG$4="Peak Hour Two-Way",ROUND(BA23 *BD23,0),ROUND(BA23*BD23*IF(Y23="1W",1,IF(P23="RDA",0.55,IF(OR(Q23="H",Q23="F"),VLOOKUP(P23&"_"&Q23,GSV_Database!AA:AB,2,FALSE),VLOOKUP(P23&"_"&Charlotte!W23&"_"&Charlotte!AQ23,GSV_Database!AA:AB,2,FALSE)))),0))) -> 44836 | BC23: =LOS($P23,$W23,$AT23,$Y23,AU23,AV23,AQ23,BB23,$AG$4,GSV_Database!C:V) -> C | BD23: =VLOOKUP(D23,Hist_Cur_CNTS!BG:BO,7,FALSE)/100 -> 0.09 | BE23: =VLOOKUP(D23,Hist_Cur_CNTS!BG:BO,8,FALSE)/100 -> 0.522 | BF23: =VLOOKUP(D23,Hist_Cur_CNTS!BG:BO,9,FALSE)/100 -> 0.042 | BG23: UA_S2WAC1_2W_5L_D_WL_WR | BH23: =IF($P23="U", VLOOKUP(Facility("TA",$W23,$X23,$Y23,$Z23,$AA23,$AB23),GSV_Database!C:X,22,FALSE),VLOOKUP(BG23,GSV_Database!C:X,22,FALSE)) -> 3 | BI23: 01010000-15.295-15.408 | BJ23: 3 | BK23: 0
A24: ** | B24: 01010000 | D24: 15018 | E24: US 41 | F24: TAMIAMI TRAIL | G24: Bayshore Rd | H24: 15.408 | I24: CR 776/Harbor View Rd | J24: 16.314 | K24: 0.906 | L24: N | N24: Principal Arterial-other | O24: 45 | P24: UA | Q24: A | R24: D | S24: D | U24: 2 | V24: 2.207505519 | W24: 1 | X24: D | Y24: 2W | Z24: WL | AA24: WR | AB24: 6 | AC24: =Service_Volume($P24,$W24,$X24,$Y24,Z24,AA24,AB24,R24,$AG$4,GSV_Database!C:V) -> 62895 | AD24: =IF($AG$4="Daily",VLOOKUP(D24,Hist_Cur_CNTS!BG:BL,2,FALSE),IF($AG$4="Peak Hour Two-Way",VLOOKUP(D24,Hist_Cur_CNTS!BG:BL,3,FALSE),VLOOKUP(D24,Hist_Cur_CNTS!BG:BL,4,FALSE))) -> 45000 | AE24: =LOS($P24,$W24,$X24,$Y24,Z24,AA24,AB24,AD24,$AG$4,GSV_Database!C:V) -> C | AH24: 71.54781779 | AI24: 6 | AJ24: D | AK24: =Service_Volume($P24,$W24,$AL24,$Y24,AM24,AN24,AI24,AJ24,$AG$4,GSV_Database!C:V) -> 62895 | AL24: D | AM24: WL | AN24: WR | AO24: =IF($AG$4="Daily",VLOOKUP(D24,Hist_Cur_CNTS!BG:BL,5,FALSE),IF($AG$4="Peak Hour Two-Way",ROUND(VLOOKUP(D24,Hist_Cur_CNTS!BG:BL,5,FALSE) *BD24,0),ROUND(VLOOKUP(D24,Hist_Cur_CNTS!BG:BL,5,FALSE)*BD24*IF(Y24="1W",1,IF(P24="RDA",0.55,IF(OR(Q24="H",Q24="F"),VLOOKUP(P24&"_"&Q24,GSV_Database!AA:AB,2,FALSE),VLOOKUP(P24&"_"&Charlotte!W24&"_"&Charlotte!AI24,GSV_Database!AA:AB,2,FALSE)))),0))) -> 50400 | AP24: =LOS($P24,$W24,$AL24,$Y24,AM24,AN24,AI24,AO24,$AG$4,GSV_Database!C:V) -> C | AQ24: 6 | AR24: D | AS24: =Service_Volume($P24,$W24,$AT24,$Y24,AU24,AV24,AQ24,AR24,$AG$4,GSV_Database!C:V) -> 62895 | AT24: D | AU24: WL | AV24: WR | AW24: =IF($AG$4="Daily",VLOOKUP(D24,Hist_Cur_CNTS!BG:BL,6,FALSE),IF($AG$4="Peak Hour Two-Way",ROUND(VLOOKUP(D24,Hist_Cur_CNTS!BG:BL,6,FALSE) *BD24,0),ROUND(VLOOKUP(D24,Hist_Cur_CNTS!BG:BL,6,FALSE)*BD24*IF(Y24="1W",1,IF(P24="RDA",0.55,IF(OR(Q24="H",Q24="F"),VLOOKUP(P24&"_"&Q24,GSV_Database!AA:AB,2,FALSE),VLOOKUP(P24&"_"&Charlotte!W24&"_"&Charlotte!AQ24,GSV_Database!AA:AB,2,FALSE)))),0))) -> 65700 | AX24: =LOS($P24,$W24,$AT24,$Y24,AU24,AV24,AQ24,AW24,$AG$4,GSV_Database!C:V) -> F | AY24: =VLOOKUP(D24,Hist_Cur_CNTS!BG:BQ,11,FALSE) -> 50377 | AZ24: =VLOOKUP(D24,Hist_Cur_CNTS!BG:BQ,10,FALSE) -> 0.89 | BA24: 44836 | BB24: =IF($AG$4="Daily",BA24,IF($AG$4="Peak Hour Two-Way",ROUND(BA24 *BD24,0),ROUND(BA24*BD24*IF(Y24="1W",1,IF(P24="RDA",0.55,IF(OR(Q24="H",Q24="F"),VLOOKUP(P24&"_"&Q24,GSV_Database!AA:AB,2,FALSE),VLOOKUP(P24&"_"&Charlotte!W24&"_"&Charlotte!AQ24,GSV_Database!AA:AB,2,FALSE)))),0))) -> 44836 | BC24: =LOS($P24,$W24,$AT24,$Y24,AU24,AV24,AQ24,BB24,$AG$4,GSV_Database!C:V) -> C | BD24: =VLOOKUP(D24,Hist_Cur_CNTS!BG:BO,7,FALSE)/100 -> 0.09 | BE24: =VLOOKUP(D24,Hist_Cur_CNTS!BG:BO,8,FALSE)/100 -> 0.522 | BF24: =VLOOKUP(D24,Hist_Cur_CNTS!BG:BO,9,FALSE)/100 -> 0.042 | BG24: UA_S2WAC1_2W_6L_D_WL_WR | BH24: =IF($P24="U", VLOOKUP(Facility("TA",$W24,$X24,$Y24,$Z24,$AA24,$AB24),GSV_Database!C:X,22,FALSE),VLOOKUP(BG24,GSV_Database!C:X,22,FALSE)) -> 3 | BI24: 01010000-15.408-16.314 | BJ24: 3 | BK24: 0
A25: ** | B25: 01010000 | E25: US 41 | F25: TAMIAMI TRAIL | G25: US 41 (Cross St) | H25: =H23 -> 15.295 | I25: =I24 -> CR 776/Harbor View Rd | J25: =J24 -> 16.314 | K25: 1.019 | L25: N | N25: Principal Arterial-other | O25: 45 | P25: UA | Q25: A | R25: D | S25: D | U25: =SUM(U23:U24) -> 2 | V25: 1.962708538 | W25: 1 | X25: D | Y25: 2W | Z25: WL | AA25: WR | AB25: 6 | AC25: =Service_Volume($P25,$W25,$X25,$Y25,Z25,AA25,AB25,R25,$AG$4,GSV_Database!C:V) -> 62895 | AD25: =wtavg(AD23:AD24,K23:K24) -> 45000 | AE25: =LOS($P25,$W25,$X25,$Y25,Z25,AA25,AB25,AD25,$AG$4,GSV_Database!C:V) -> C | AH25: 71.54781779 | AI25: 6 | AJ25: D | AK25: =Service_Volume($P25,$W25,$AL25,$Y25,AM25,AN25,AI25,AJ25,$AG$4,GSV_Database!C:V) -> 62895 | AL25: D | AM25: WL | AN25: WR | AO25: =wtavg(AO23:AO24,K23:K24) -> 50400 | AP25: =LOS($P25,$W25,$AL25,$Y25,AM25,AN25,AI25,AO25,$AG$4,GSV_Database!C:V) -> C | AQ25: 6 | AR25: D | AS25: =Service_Volume($P25,$W25,$AT25,$Y25,AU25,AV25,AQ25,AR25,$AG$4,GSV_Database!C:V) -> 62895 | AT25: D | AU25: WL | AV25: WR | AW25: =wtavg(AW23:AW24,$K23:$K24) -> 65700 | AX25: =LOS($P25,$W25,$AT25,$Y25,AU25,AV25,AQ25,AW25,$AG$4,GSV_Database!C:V) -> F | AY25: =wtavg(AY23:AY24,$K23:$K24) -> 50377 | AZ25: =wtavg(AZ23:AZ24,$K23:$K24) -> 0.89 | BA25: 44836 | BB25: =wtavg(BB23:BB24,$K23:$K24) -> 44836 | BC25: =LOS($P25,$W25,$AT25,$Y25,AU25,AV25,AQ25,BB25,$AG$4,GSV_Database!C:V) -> C | BD25: =wtavg(BD23:BD24,$K23:$K24) -> 0.09 | BE25: =wtavg(BE23:BE24,$K23:$K24) -> 0.522 | BF25: =wtavg(BF23:BF24,$K23:$K24) -> 0.042 | BG25: UA_S2WAC1_2W_6L_D_WL_WR | BH25: =IF($P25="U", VLOOKUP(Facility("TA",$W25,$X25,$Y25,$Z25,$AA25,$AB25),GSV_Database!C:X,22,FALSE),VLOOKUP(BG25,GSV_Database!C:X,22,FALSE)) -> 3 | BI25: 01010000-15.295-16.314 | BJ25: 3 | BK25: 0
A26: ** | B26: 01010000 | D26: 15018 | E26: US 41 | F26: TAMIAMI TRAIL | G26: =I25 -> CR 776/Harbor View Rd | H26: 16.314 | I26: Harbor Blvd | J26: 18.177 | K26: 1.863 | L26: N | N26: Principal Arterial-other | O26: 45 | P26: UA | Q26: A | R26: D | S26: D | U26: 5 | V26: 2.683843264 | W26: 1 | X26: D | Y26: 2W | Z26: WL | AA26: WR | AB26: 6 | AC26: =Service_Volume($P26,$W26,$X26,$Y26,Z26,AA26,AB26,R26,$AG$4,GSV_Database!C:V) -> 62895 | AD26: =IF($AG$4="Daily",VLOOKUP(D26,Hist_Cur_CNTS!BG:BL,2,FALSE),IF($AG$4="Peak Hour Two-Way",VLOOKUP(D26,Hist_Cur_CNTS!BG:BL,3,FALSE),VLOOKUP(D26,Hist_Cur_CNTS!BG:BL,4,FALSE))) -> 45000 | AE26: =LOS($P26,$W26,$X26,$Y26,Z26,AA26,AB26,AD26,$AG$4,GSV_Database!C:V) -> C | AH26: 71.54781779 | AI26: 6 | AJ26: D | AK26: =Service_Volume($P26,$W26,$AL26,$Y26,AM26,AN26,AI26,AJ26,$AG$4,GSV_Database!C:V) -> 62895 | AL26: D | AM26: WL | AN26: WR | AO26: =IF($AG$4="Daily",VLOOKUP(D26,Hist_Cur_CNTS!BG:BL,5,FALSE),IF($AG$4="Peak Hour Two-Way",ROUND(VLOOKUP(D26,Hist_Cur_CNTS!BG:BL,5,FALSE) *BD26,0),ROUND(VLOOKUP(D26,Hist_Cur_CNTS!BG:BL,5,FALSE)*BD26*IF(Y26="1W",1,IF(P26="RDA",0.55,IF(OR(Q26="H",Q26="F"),VLOOKUP(P26&"_"&Q26,GSV_Database!AA:AB,2,FALSE),VLOOKUP(P26&"_"&Charlotte!W26&"_"&Charlotte!AI26,GSV_Database!AA:AB,2,FALSE)))),0))) -> 50400 | AP26: =LOS($P26,$W26,$AL26,$Y26,AM26,AN26,AI26,AO26,$AG$4,GSV_Database!C:V) -> C | AQ26: 6 | AR26: D | AS26: =Service_Volume($P26,$W26,$AT26,$Y26,AU26,AV26,AQ26,AR26,$AG$4,GSV_Database!C:V) -> 62895 | AT26: D | AU26: WL | AV26: WR | AW26: =IF($AG$4="Daily",VLOOKUP(D26,Hist_Cur_CNTS!BG:BL,6,FALSE),IF($AG$4="Peak Hour Two-Way",ROUND(VLOOKUP(D26,Hist_Cur_CNTS!BG:BL,6,FALSE) *BD26,0),ROUND(VLOOKUP(D26,Hist_Cur_CNTS!BG:BL,6,FALSE)*BD26*IF(Y26="1W",1,IF(P26="RDA",0.55,IF(OR(Q26="H",Q26="F"),VLOOKUP(P26&"_"&Q26,GSV_Database!AA:AB,2,FALSE),VLOOKUP(P26&"_"&Charlotte!W26&"_"&Charlotte!AQ26,GSV_Database!AA:AB,2,FALSE)))),0))) -> 65700 | AX26: =LOS($P26,$W26,$AT26,$Y26,AU26,AV26,AQ26,AW26,$AG$4,GSV_Database!C:V) -> F | AY26: =VLOOKUP(D26,Hist_Cur_CNTS!BG:BQ,11,FALSE) -> 50377 | AZ26: =VLOOKUP(D26,Hist_Cur_CNTS!BG:BQ,10,FALSE) -> 0.89 | BA26: 44836 | BB26: =IF($AG$4="Daily",BA26,IF($AG$4="Peak Hour Two-Way",ROUND(BA26 *BD26,0),ROUND(BA26*BD26*IF(Y26="1W",1,IF(P26="RDA",0.55,IF(OR(Q26="H",Q26="F"),VLOOKUP(P26&"_"&Q26,GSV_Database!AA:AB,2,FALSE),VLOOKUP(P26&"_"&Charlotte!W26&"_"&Charlotte!AQ26,GSV_Database!AA:AB,2,FALSE)))),0))) -> 44836 | BC26: =LOS($P26,$W26,$AT26,$Y26,AU26,AV26,AQ26,BB26,$AG$4,GSV_Database!C:V) -> C | BD26: =VLOOKUP(D26,Hist_Cur_CNTS!BG:BO,7,FALSE)/100 -> 0.09 | BE26: =VLOOKUP(D26,Hist_Cur_CNTS!BG:BO,8,FALSE)/100 -> 0.522 | BF26: =VLOOKUP(D26,Hist_Cur_CNTS!BG:BO,9,FALSE)/100 -> 0.042 | BG26: UA_S2WAC1_2W_6L_D_WL_WR | BH26: =IF($P26="U", VLOOKUP(Facility("TA",$W26,$X26,$Y26,$Z26,$AA26,$AB26),GSV_Database!C:X,22,FALSE),VLOOKUP(BG26,GSV_Database!C:X,22,FALSE)) -> 3 | BI26: 01010000-16.314-18.177 | BJ26: 3 | BK26: 0
A27: ** | B27: 01010000 | D27: 10030 | E27: US 41 | F27: TAMIAMI TRAIL | G27: Harbor Blvd | H27: 18.177 | I27: Midway Blvd | J27: 19.668 | K27: 1.491 | L27: N | N27: Principal Arterial-other | O27: 45 | P27: UA | Q27: A | R27: D | S27: D | U27: 4 | V27: 2.682763246 | W27: 1 | X27: D | Y27: 2W | Z27: WL | AA27: WR | AB27: 6 | AC27: =Service_Volume($P27,$W27,$X27,$Y27,Z27,AA27,AB27,R27,$AG$4,GSV_Database!C:V) -> 62895 | AD27: =IF($AG$4="Daily",VLOOKUP(D27,Hist_Cur_CNTS!BG:BL,2,FALSE),IF($AG$4="Peak Hour Two-Way",VLOOKUP(D27,Hist_Cur_CNTS!BG:BL,3,FALSE),VLOOKUP(D27,Hist_Cur_CNTS!BG:BL,4,FALSE))) -> 52000 | AE27: =LOS($P27,$W27,$X27,$Y27,Z27,AA27,AB27,AD27,$AG$4,GSV_Database!C:V) -> C | AH27: 82.67747834 | AI27: 6 | AJ27: D | AK27: =Service_Volume($P27,$W27,$AL27,$Y27,AM27,AN27,AI27,AJ27,$AG$4,GSV_Database!C:V) -> 62895 | AL27: D | AM27: WL | AN27: WR | AO27: =IF($AG$4="Daily",VLOOKUP(D27,Hist_Cur_CNTS!BG:BL,5,FALSE),IF($AG$4="Peak Hour Two-Way",ROUND(VLOOKUP(D27,Hist_Cur_CNTS!BG:BL,5,FALSE) *BD27,0),ROUND(VLOOKUP(D27,Hist_Cur_CNTS!BG:BL,5,FALSE)*BD27*IF(Y27="1W",1,IF(P27="RDA",0.55,IF(OR(Q27="H",Q27="F"),VLOOKUP(P27&"_"&Q27,GSV_Database!AA:AB,2,FALSE),VLOOKUP(P27&"_"&Charlotte!W27&"_"&Charlotte!AI27,GSV_Database!AA:AB,2,FALSE)))),0))) -> 58200 | AP27: =LOS($P27,$W27,$AL27,$Y27,AM27,AN27,AI27,AO27,$AG$4,GSV_Database!C:V) -> C | AQ27: 6 | AR27: D | AS27: =Service_Volume($P27,$W27,$AT27,$Y27,AU27,AV27,AQ27,AR27,$AG$4,GSV_Database!C:V) -> 62895 | AT27: D | AU27: WL | AV27: WR | AW27: =IF($AG$4="Daily",VLOOKUP(D27,Hist_Cur_CNTS!BG:BL,6,FALSE),IF($AG$4="Peak Hour Two-Way",ROUND(VLOOKUP(D27,Hist_Cur_CNTS!BG:BL,6,FALSE) *BD27,0),ROUND(VLOOKUP(D27,Hist_Cur_CNTS!BG:BL,6,FALSE)*BD27*IF(Y27="1W",1,IF(P27="RDA",0.55,IF(OR(Q27="H",Q27="F"),VLOOKUP(P27&"_"&Q27,GSV_Database!AA:AB,2,FALSE),VLOOKUP(P27&"_"&Charlotte!W27&"_"&Charlotte!AQ27,GSV_Database!AA:AB,2,FALSE)))),0))) -> 75900 | AX27: =LOS($P27,$W27,$AT27,$Y27,AU27,AV27,AQ27,AW27,$AG$4,GSV_Database!C:V) -> F | AY27: =VLOOKUP(D27,Hist_Cur_CNTS!BG:BQ,11,FALSE) -> 52708 | AZ27: =VLOOKUP(D27,Hist_Cur_CNTS!BG:BQ,10,FALSE) -> 0.89 | BA27: 46910 | BB27: =IF($AG$4="Daily",BA27,IF($AG$4="Peak Hour Two-Way",ROUND(BA27 *BD27,0),ROUND(BA27*BD27*IF(Y27="1W",1,IF(P27="RDA",0.55,IF(OR(Q27="H",Q27="F"),VLOOKUP(P27&"_"&Q27,GSV_Database!AA:AB,2,FALSE),VLOOKUP(P27&"_"&Charlotte!W27&"_"&Charlotte!AQ27,GSV_Database!AA:AB,2,FALSE)))),0))) -> 46910 | BC27: =LOS($P27,$W27,$AT27,$Y27,AU27,AV27,AQ27,BB27,$AG$4,GSV_Database!C:V) -> C | BD27: =VLOOKUP(D27,Hist_Cur_CNTS!BG:BO,7,FALSE)/100 -> 0.09 | BE27: =VLOOKUP(D27,Hist_Cur_CNTS!BG:BO,8,FALSE)/100 -> 0.522 | BF27: =VLOOKUP(D27,Hist_Cur_CNTS!BG:BO,9,FALSE)/100 -> 0.032 | BG27: UA_S2WAC1_2W_6L_D_WL_WR | BH27: =IF($P27="U", VLOOKUP(Facility("TA",$W27,$X27,$Y27,$Z27,$AA27,$AB27),GSV_Database!C:X,22,FALSE),VLOOKUP(BG27,GSV_Database!C:X,22,FALSE)) -> 3 | BI27: 01010000-18.177-19.668 | BJ27: 3 | BK27: 0
B28: 01010000 | D28: 15042 | E28: US 41 | F28: TAMIAMI TRAIL | G28: Midway Blvd | H28: 19.668 | I28: Forest Nelson Blvd | J28: 20.221 | K28: =J28-H28 -> 0.553 | L28: N | N28: Principal Arterial-other | O28: 45 | P28: UA | Q28: A | R28: D | S28: D | U28: 1 | V28: 1.808318264 | W28: 1 | X28: D | Y28: 2W | Z28: WL | AA28: WR | AB28: 6 | AC28: =Service_Volume($P28,$W28,$X28,$Y28,Z28,AA28,AB28,R28,$AG$4,GSV_Database!C:V) -> 62895 | AD28: =IF($AG$4="Daily",VLOOKUP(D28,Hist_Cur_CNTS!BG:BL,2,FALSE),IF($AG$4="Peak Hour Two-Way",VLOOKUP(D28,Hist_Cur_CNTS!BG:BL,3,FALSE),VLOOKUP(D28,Hist_Cur_CNTS!BG:BL,4,FALSE))) -> 50000 | AE28: =LOS($P28,$W28,$X28,$Y28,Z28,AA28,AB28,AD28,$AG$4,GSV_Database!C:V) -> C | AH28: 79.49757532 | AI28: 6 | AJ28: D | AK28: =Service_Volume($P28,$W28,$AL28,$Y28,AM28,AN28,AI28,AJ28,$AG$4,GSV_Database!C:V) -> 62895 | AL28: D | AM28: WL | AN28: WR | AO28: =IF($AG$4="Daily",VLOOKUP(D28,Hist_Cur_CNTS!BG:BL,5,FALSE),IF($AG$4="Peak Hour Two-Way",ROUND(VLOOKUP(D28,Hist_Cur_CNTS!BG:BL,5,FALSE) *BD28,0),ROUND(VLOOKUP(D28,Hist_Cur_CNTS!BG:BL,5,FALSE)*BD28*IF(Y28="1W",1,IF(P28="RDA",0.55,IF(OR(Q28="H",Q28="F"),VLOOKUP(P28&"_"&Q28,GSV_Database!AA:AB,2,FALSE),VLOOKUP(P28&"_"&Charlotte!W28&"_"&Charlotte!AI28,GSV_Database!AA:AB,2,FALSE)))),0))) -> 56000 | AP28: =LOS($P28,$W28,$AL28,$Y28,AM28,AN28,AI28,AO28,$AG$4,GSV_Database!C:V) -> C | AQ28: 6 | AR28: D | AS28: =Service_Volume($P28,$W28,$AT28,$Y28,AU28,AV28,AQ28,AR28,$AG$4,GSV_Database!C:V) -> 62895 | AT28: D | AU28: WL | AV28: WR | AW28: =IF($AG$4="Daily",VLOOKUP(D28,Hist_Cur_CNTS!BG:BL,6,FALSE),IF($AG$4="Peak Hour Two-Way",ROUND(VLOOKUP(D28,Hist_Cur_CNTS!BG:BL,6,FALSE) *BD28,0),ROUND(VLOOKUP(D28,Hist_Cur_CNTS!BG:BL,6,FALSE)*BD28*IF(Y28="1W",1,IF(P28="RDA",0.55,IF(OR(Q28="H",Q28="F"),VLOOKUP(P28&"_"&Q28,GSV_Database!AA:AB,2,FALSE),VLOOKUP(P28&"_"&Charlotte!W28&"_"&Charlotte!AQ28,GSV_Database!AA:AB,2,FALSE)))),0))) -> 73000 | AX28: =LOS($P28,$W28,$AT28,$Y28,AU28,AV28,AQ28,AW28,$AG$4,GSV_Database!C:V) -> F | AY28: =VLOOKUP(D28,Hist_Cur_CNTS!BG:BQ,11,FALSE) -> 60006 | AZ28: =VLOOKUP(D28,Hist_Cur_CNTS!BG:BQ,10,FALSE) -> 0.89 | BA28: 53405 | BB28: =IF($AG$4="Daily",BA28,IF($AG$4="Peak Hour Two-Way",ROUND(BA28 *BD28,0),ROUND(BA28*BD28*IF(Y28="1W",1,IF(P28="RDA",0.55,IF(OR(Q28="H",Q28="F"),VLOOKUP(P28&"_"&Q28,GSV_Database!AA:AB,2,FALSE),VLOOKUP(P28&"_"&Charlotte!W28&"_"&Charlotte!AQ28,GSV_Database!AA:AB,2,FALSE)))),0))) -> 53405 | BC28: =LOS($P28,$W28,$AT28,$Y28,AU28,AV28,AQ28,BB28,$AG$4,GSV_Database!C:V) -> C | BD28: =VLOOKUP(D28,Hist_Cur_CNTS!BG:BO,7,FALSE)/100 -> 0.09 | BE28: =VLOOKUP(D28,Hist_Cur_CNTS!BG:BO,8,FALSE)/100 -> 0.522 | BF28: =VLOOKUP(D28,Hist_Cur_CNTS!BG:BO,9,FALSE)/100 -> 0.034 | BG28: UA_S2WAC1_2W_6L_D_WL_WR | BH28: =IF($P28="U", VLOOKUP(Facility("TA",$W28,$X28,$Y28,$Z28,$AA28,$AB28),GSV_Database!C:X,22,FALSE),VLOOKUP(BG28,GSV_Database!C:X,22,FALSE)) -> 3 | BI28: 01010000-19.668-20.221 | BJ28: 3 | BK28: 0
A29: ** | B29: 01010000 | E29: US 41 | F29: TAMIAMI TRAIL | G29: Harbor Blvd | H29: 18.177 | I29: Forest Nelson Blvd | J29: 20.221 | K29: 2.044 | L29: N | N29: Principal Arterial-other | O29: 45 | P29: UA | Q29: A | R29: D | S29: D | U29: =SUM(U27:U28) -> 5 | V29: 2.446183953 | W29: 1 | X29: D | Y29: 2W | Z29: WL | AA29: WR | AB29: 6 | AC29: =Service_Volume($P29,$W29,$X29,$Y29,Z29,AA29,AB29,R29,$AG$4,GSV_Database!C:V) -> 62895 | AD29: =wtavg(AD27:AD28,K27:K28) -> 51458.90411 | AE29: =LOS($P29,$W29,$X29,$Y29,Z29,AA29,AB29,AD29,$AG$4,GSV_Database!C:V) -> C | AH29: 81.81716211 | AI29: 6 | AJ29: D | AK29: =Service_Volume($P29,$W29,$AL29,$Y29,AM29,AN29,AI29,AJ29,$AG$4,GSV_Database!C:V) -> 62895 | AL29: D | AM29: WL | AN29: WR | AO29: =wtavg(AO27:AO28,K27:K28) -> 57604.79452 | AP29: =LOS($P29,$W29,$AL29,$Y29,AM29,AN29,AI29,AO29,$AG$4,GSV_Database!C:V) -> C | AQ29: 6 | AR29: D | AS29: =Service_Volume($P29,$W29,$AT29,$Y29,AU29,AV29,AQ29,AR29,$AG$4,GSV_Database!C:V) -> 62895 | AT29: D | AU29: WL | AV29: WR | AW29: =wtavg(AW27:AW28,K27:K28) -> 75115.41096 | AX29: =LOS($P29,$W29,$AT29,$Y29,AU29,AV29,AQ29,AW29,$AG$4,GSV_Database!C:V) -> F | AY29: =wtavg(AY27:AY28,$K27:$K28) -> 54682.4589 | AZ29: =wtavg(AZ27:AZ28,$K27:$K28) -> 0.89 | BA29: 48667 | BB29: =wtavg(BB27:BB28,K27:K28) -> 48667.2089 | BC29: =LOS($P29,$W29,$AT29,$Y29,AU29,AV29,AQ29,BB29,$AG$4,GSV_Database!C:V) -> C | BD29: =wtavg(BD27:BD28,$K27:$K28) -> 0.09 | BE29: =wtavg(BE27:BE28,$K27:$K28) -> 0.522 | BF29: =wtavg(BF27:BF28,$K27:$K28) -> 0.03254109589 | BG29: UA_S2WAC1_2W_6L_D_WL_WR | BH29: =IF($P29="U", VLOOKUP(Facility("TA",$W29,$X29,$Y29,$Z29,$AA29,$AB29),GSV_Database!C:X,22,FALSE),VLOOKUP(BG29,GSV_Database!C:X,22,FALSE)) -> 3 | BI29: 01010000-18.177-20.221 | BJ29: 3 | BK29: 0
B30: 1010000 | D30: 15042 | E30: US 41 | F30: TAMIAMI TRAIL | G30: Forest Nelson Blvd | H30: 20.221 | I30: Toledo Blade Blvd/Cochran Blvd | J30: 21.055 | K30: 0.834 | L30: N | N30: Principal Arterial-other | O30: 45 | P30: UA | Q30: A | R30: D | S30: D | U30: 2 | V30: 2.398081535 | W30: 1 | X30: D | Y30: 2W | Z30: WL | AA30: WR | AB30: 6 | AC30: =Service_Volume($P30,$W30,$X30,$Y30,Z30,AA30,AB30,R30,$AG$4,GSV_Database!C:V) -> 62895 | AD30: =IF($AG$4="Daily",VLOOKUP(D30,Hist_Cur_CNTS!BG:BL,2,FALSE),IF($AG$4="Peak Hour Two-Way",VLOOKUP(D30,Hist_Cur_CNTS!BG:BL,3,FALSE),VLOOKUP(D30,Hist_Cur_CNTS!BG:BL,4,FALSE))) -> 50000 | AE30: =LOS($P30,$W30,$X30,$Y30,Z30,AA30,AB30,AD30,$AG$4,GSV_Database!C:V) -> C | AF30: =IF(AND(AH30>=90,AH30<100),"Near Capacity",IF(AH30>100,"Over Capacity","")) ->  | AH30: 79.49757532 | AI30: 6 | AJ30: D | AK30: =Service_Volume($P30,$W30,$AL30,$Y30,AM30,AN30,AI30,AJ30,$AG$4,GSV_Database!C:V) -> 62895 | AL30: D | AM30: WL | AN30: WR | AO30: =IF($AG$4="Daily",VLOOKUP(D30,Hist_Cur_CNTS!BG:BL,5,FALSE),IF($AG$4="Peak Hour Two-Way",ROUND(VLOOKUP(D30,Hist_Cur_CNTS!BG:BL,5,FALSE) *BD30,0),ROUND(VLOOKUP(D30,Hist_Cur_CNTS!BG:BL,5,FALSE)*BD30*IF(Y30="1W",1,IF(P30="RDA",0.55,IF(OR(Q30="H",Q30="F"),VLOOKUP(P30&"_"&Q30,GSV_Database!AA:AB,2,FALSE),VLOOKUP(P30&"_"&Charlotte!W30&"_"&Charlotte!AI30,GSV_Database!AA:AB,2,FALSE)))),0))) -> 56000 | AP30: =LOS($P30,$W30,$AL30,$Y30,AM30,AN30,AI30,AO30,$AG$4,GSV_Database!C:V) -> C | AQ30: 6 | AR30: D | AS30: =Service_Volume($P30,$W30,$AT30,$Y30,AU30,AV30,AQ30,AR30,$AG$4,GSV_Database!C:V) -> 62895 | AT30: D | AU30: WL | AV30: WR | AW30: =IF($AG$4="Daily",VLOOKUP(D30,Hist_Cur_CNTS!BG:BL,6,FALSE),IF($AG$4="Peak Hour Two-Way",ROUND(VLOOKUP(D30,Hist_Cur_CNTS!BG:BL,6,FALSE) *BD30,0),ROUND(VLOOKUP(D30,Hist_Cur_CNTS!BG:BL,6,FALSE)*BD30*IF(Y30="1W",1,IF(P30="RDA",0.55,IF(OR(Q30="H",Q30="F"),VLOOKUP(P30&"_"&Q30,GSV_Database!AA:AB,2,FALSE),VLOOKUP(P30&"_"&Charlotte!W30&"_"&Charlotte!AQ30,GSV_Database!AA:AB,2,FALSE)))),0))) -> 73000 | AX30: =LOS($P30,$W30,$AT30,$Y30,AU30,AV30,AQ30,AW30,$AG$4,GSV_Database!C:V) -> F | AY30: =VLOOKUP(D30,Hist_Cur_CNTS!BG:BQ,11,FALSE) -> 60006 | AZ30: =VLOOKUP(D30,Hist_Cur_CNTS!BG:BQ,10,FALSE) -> 0.89 | BA30: 53405 | BB30: =IF($AG$4="Daily",BA30,IF($AG$4="Peak Hour Two-Way",ROUND(BA30 *BD30,0),ROUND(BA30*BD30*IF(Y30="1W",1,IF(P30="RDA",0.55,IF(OR(Q30="H",Q30="F"),VLOOKUP(P30&"_"&Q30,GSV_Database!AA:AB,2,FALSE),VLOOKUP(P30&"_"&Charlotte!W30&"_"&Charlotte!AQ30,GSV_Database!AA:AB,2,FALSE)))),0))) -> 53405 | BC30: =LOS($P30,$W30,$AT30,$Y30,AU30,AV30,AQ30,BB30,$AG$4,GSV_Database!C:V) -> C | BD30: =VLOOKUP(D30,Hist_Cur_CNTS!BG:BO,7,FALSE)/100 -> 0.09 | BE30: =VLOOKUP(D30,Hist_Cur_CNTS!BG:BO,8,FALSE)/100 -> 0.522 | BF30: =VLOOKUP(D30,Hist_Cur_CNTS!BG:BO,9,FALSE)/100 -> 0.034 | BG30: UA_S2WAC1_2W_6L_D_WL_WR | BH30: =IF($P30="U", VLOOKUP(Facility("TA",$W30,$X30,$Y30,$Z30,$AA30,$AB30),GSV_Database!C:X,22,FALSE),VLOOKUP(BG30,GSV_Database!C:X,22,FALSE)) -> 3 | BI30: 1010000-20.221-21.055 | BJ30: 3 | BK30: 0
B31: 01010000 | D31: 10050 | E31: US 41 | F31: TAMIAMI TRAIL | G31: =I30 -> Toledo Blade Blvd/Cochran Blvd | H31: 21.055 | I31: Murdock Circle | J31: 21.548 | K31: 0.493 | L31: N | N31: Principal Arterial-other | O31: 45 | P31: UA | Q31: A | R31: D | S31: D | U31: 1 | V31: 2.028397566 | W31: 1 | X31: D | Y31: 2W | Z31: WL | AA31: WR | AB31: 6 | AC31: =Service_Volume($P31,$W31,$X31,$Y31,Z31,AA31,AB31,R31,$AG$4,GSV_Database!C:V) -> 62895 | AD31: =IF($AG$4="Daily",VLOOKUP(D31,Hist_Cur_CNTS!BG:BL,2,FALSE),IF($AG$4="Peak Hour Two-Way",VLOOKUP(D31,Hist_Cur_CNTS!BG:BL,3,FALSE),VLOOKUP(D31,Hist_Cur_CNTS!BG:BL,4,FALSE))) -> 46000 | AE31: =LOS($P31,$W31,$X31,$Y31,Z31,AA31,AB31,AD31,$AG$4,GSV_Database!C:V) -> C | AH31: 73.1377693 | AI31: 6 | AJ31: D | AK31: =Service_Volume($P31,$W31,$AL31,$Y31,AM31,AN31,AI31,AJ31,$AG$4,GSV_Database!C:V) -> 62895 | AL31: D | AM31: WL | AN31: WR | AO31: =IF($AG$4="Daily",VLOOKUP(D31,Hist_Cur_CNTS!BG:BL,5,FALSE),IF($AG$4="Peak Hour Two-Way",ROUND(VLOOKUP(D31,Hist_Cur_CNTS!BG:BL,5,FALSE) *BD31,0),ROUND(VLOOKUP(D31,Hist_Cur_CNTS!BG:BL,5,FALSE)*BD31*IF(Y31="1W",1,IF(P31="RDA",0.55,IF(OR(Q31="H",Q31="F"),VLOOKUP(P31&"_"&Q31,GSV_Database!AA:AB,2,FALSE),VLOOKUP(P31&"_"&Charlotte!W31&"_"&Charlotte!AI31,GSV_Database!AA:AB,2,FALSE)))),0))) -> 51500 | AP31: =LOS($P31,$W31,$AL31,$Y31,AM31,AN31,AI31,AO31,$AG$4,GSV_Database!C:V) -> C | AQ31: 6 | AR31: D | AS31: =Service_Volume($P31,$W31,$AT31,$Y31,AU31,AV31,AQ31,AR31,$AG$4,GSV_Database!C:V) -> 62895 | AT31: D | AU31: WL | AV31: WR | AW31: =IF($AG$4="Daily",VLOOKUP(D31,Hist_Cur_CNTS!BG:BL,6,FALSE),IF($AG$4="Peak Hour Two-Way",ROUND(VLOOKUP(D31,Hist_Cur_CNTS!BG:BL,6,FALSE) *BD31,0),ROUND(VLOOKUP(D31,Hist_Cur_CNTS!BG:BL,6,FALSE)*BD31*IF(Y31="1W",1,IF(P31="RDA",0.55,IF(OR(Q31="H",Q31="F"),VLOOKUP(P31&"_"&Q31,GSV_Database!AA:AB,2,FALSE),VLOOKUP(P31&"_"&Charlotte!W31&"_"&Charlotte!AQ31,GSV_Database!AA:AB,2,FALSE)))),0))) -> 67200 | AX31: =LOS($P31,$W31,$AT31,$Y31,AU31,AV31,AQ31,AW31,$AG$4,GSV_Database!C:V) -> F | AY31: =VLOOKUP(D31,Hist_Cur_CNTS!BG:BQ,11,FALSE) -> 59693 | AZ31: =VLOOKUP(D31,Hist_Cur_CNTS!BG:BQ,10,FALSE) -> 0.89 | BA31: 53127 | BB31: =IF($AG$4="Daily",BA31,IF($AG$4="Peak Hour Two-Way",ROUND(BA31 *BD31,0),ROUND(BA31*BD31*IF(Y31="1W",1,IF(P31="RDA",0.55,IF(OR(Q31="H",Q31="F"),VLOOKUP(P31&"_"&Q31,GSV_Database!AA:AB,2,FALSE),VLOOKUP(P31&"_"&Charlotte!W31&"_"&Charlotte!AQ31,GSV_Database!AA:AB,2,FALSE)))),0))) -> 53127 | BC31: =LOS($P31,$W31,$AT31,$Y31,AU31,AV31,AQ31,BB31,$AG$4,GSV_Database!C:V) -> C | BD31: =VLOOKUP(D31,Hist_Cur_CNTS!BG:BO,7,FALSE)/100 -> 0.09 | BE31: =VLOOKUP(D31,Hist_Cur_CNTS!BG:BO,8,FALSE)/100 -> 0.522 | BF31: =VLOOKUP(D31,Hist_Cur_CNTS!BG:BO,9,FALSE)/100 -> 0.03 | BG31: UA_S2WAC1_2W_6L_D_WL_WR | BH31: =IF($P31="U", VLOOKUP(Facility("TA",$W31,$X31,$Y31,$Z31,$AA31,$AB31),GSV_Database!C:X,22,FALSE),VLOOKUP(BG31,GSV_Database!C:X,22,FALSE)) -> 3 | BI31: 01010000-21.055-21.548 | BJ31: 3 | BK31: 0
B32: 01010000 | E32: US 41 | F32: TAMIAMI TRAIL | G32: Forest Nelson Blvd | H32: 20.221 | I32: =I31 -> Murdock Circle | J32: 21.548 | K32: 1.327 | L32: N | N32: Principal Arterial-other | O32: 45 | P32: UA | Q32: A | R32: D | S32: D | U32: =SUM(U30:U31) -> 3 | V32: 2.260738508 | W32: 1 | X32: D | Y32: 2W | Z32: WL | AA32: WR | AB32: 6 | AC32: =Service_Volume($P32,$W32,$X32,$Y32,Z32,AA32,AB32,R32,$AG$4,GSV_Database!C:V) -> 62895 | AD32: =wtavg(AD30:AD31,K30:K31) -> 48513.94122 | AE32: =LOS($P32,$W32,$X32,$Y32,Z32,AA32,AB32,AD32,$AG$4,GSV_Database!C:V) -> C | AF32: =IF(AND(AH32>=90,AH32<100),"Near Capacity",IF(AH32>100,"Over Capacity","")) ->  | AH32: 77.13481393 | AI32: 6 | AJ32: D | AK32: =Service_Volume($P32,$W32,$AL32,$Y32,AM32,AN32,AI32,AJ32,$AG$4,GSV_Database!C:V) -> 62895 | AL32: D | AM32: WL | AN32: WR | AO32: =wtavg(AO30:AO31,K30:K31) -> 54328.18387 | AP32: =LOS($P32,$W32,$AL32,$Y32,AM32,AN32,AI32,AO32,$AG$4,GSV_Database!C:V) -> C | AQ32: 6 | AR32: D | AS32: =Service_Volume($P32,$W32,$AT32,$Y32,AU32,AV32,AQ32,AR32,$AG$4,GSV_Database!C:V) -> 62895 | AT32: D | AU32: WL | AV32: WR | AW32: =wtavg(AW30:AW31,$K30:$K31) -> 70845.21477 | AX32: =LOS($P32,$W32,$AT32,$Y32,AU32,AV32,AQ32,AW32,$AG$4,GSV_Database!C:V) -> F | AY32: =wtavg(AY30:AY31,$K30:$K31) -> 59889.7159 | AZ32: =wtavg(AZ30:AZ31,$K30:$K31) -> 0.89 | BA32: 53302 | BB32: =wtavg(BB30:BB31,$K30:$K31) -> 53301.71891 | BC32: =LOS($P32,$W32,$AT32,$Y32,AU32,AV32,AQ32,BB32,$AG$4,GSV_Database!C:V) -> C | BD32: =wtavg(BD30:BD31,$K30:$K31) -> 0.09 | BE32: =wtavg(BE30:BE31,$K30:$K31) -> 0.522 | BF32: =wtavg(BF30:BF31,$K30:$K31) -> 0.03251394122 | BG32: UA_S2WAC1_2W_6L_D_WL_WR | BH32: =IF($P32="U", VLOOKUP(Facility("TA",$W32,$X32,$Y32,$Z32,$AA32,$AB32),GSV_Database!C:X,22,FALSE),VLOOKUP(BG32,GSV_Database!C:X,22,FALSE)) -> 3 | BI32: 01010000-20.221-21.548 | BJ32: 3 | BK32: 0
B33: 01010000 | D33: 10007 | E33: US 41 | F33: TAMIAMI TRAIL | G33: =I32 -> Murdock Circle | H33: 21.548 | I33: SR 776 (Veterans Blvd) | J33: 21.899 | K33: 0.351 | L33: N | N33: Principal Arterial-other | O33: 45 | P33: UA | Q33: A | R33: D | S33: D | U33: 1 | V33: 2.849002849 | W33: 1 | X33: D | Y33: 2W | Z33: WL | AA33: WR | AB33: 6 | AC33: =Service_Volume($P33,$W33,$X33,$Y33,Z33,AA33,AB33,R33,$AG$4,GSV_Database!C:V) -> 62895 | AD33: =IF($AG$4="Daily",VLOOKUP(D33,Hist_Cur_CNTS!BG:BL,2,FALSE),IF($AG$4="Peak Hour Two-Way",VLOOKUP(D33,Hist_Cur_CNTS!BG:BL,3,FALSE),VLOOKUP(D33,Hist_Cur_CNTS!BG:BL,4,FALSE))) -> 34000 | AE33: =LOS($P33,$W33,$X33,$Y33,Z33,AA33,AB33,AD33,$AG$4,GSV_Database!C:V) -> C | AH33: 54.05835122 | AI33: 6 | AJ33: D | AK33: =Service_Volume($P33,$W33,$AL33,$Y33,AM33,AN33,AI33,AJ33,$AG$4,GSV_Database!C:V) -> 62895 | AL33: D | AM33: WL | AN33: WR | AO33: =IF($AG$4="Daily",VLOOKUP(D33,Hist_Cur_CNTS!BG:BL,5,FALSE),IF($AG$4="Peak Hour Two-Way",ROUND(VLOOKUP(D33,Hist_Cur_CNTS!BG:BL,5,FALSE) *BD33,0),ROUND(VLOOKUP(D33,Hist_Cur_CNTS!BG:BL,5,FALSE)*BD33*IF(Y33="1W",1,IF(P33="RDA",0.55,IF(OR(Q33="H",Q33="F"),VLOOKUP(P33&"_"&Q33,GSV_Database!AA:AB,2,FALSE),VLOOKUP(P33&"_"&Charlotte!W33&"_"&Charlotte!AI33,GSV_Database!AA:AB,2,FALSE)))),0))) -> 38100 | AP33: =LOS($P33,$W33,$AL33,$Y33,AM33,AN33,AI33,AO33,$AG$4,GSV_Database!C:V) -> C | AQ33: 6 | AR33: D | AS33: =Service_Volume($P33,$W33,$AT33,$Y33,AU33,AV33,AQ33,AR33,$AG$4,GSV_Database!C:V) -> 62895 | AT33: D | AU33: WL | AV33: WR | AW33: =IF($AG$4="Daily",VLOOKUP(D33,Hist_Cur_CNTS!BG:BL,6,FALSE),IF($AG$4="Peak Hour Two-Way",ROUND(VLOOKUP(D33,Hist_Cur_CNTS!BG:BL,6,FALSE) *BD33,0),ROUND(VLOOKUP(D33,Hist_Cur_CNTS!BG:BL,6,FALSE)*BD33*IF(Y33="1W",1,IF(P33="RDA",0.55,IF(OR(Q33="H",Q33="F"),VLOOKUP(P33&"_"&Q33,GSV_Database!AA:AB,2,FALSE),VLOOKUP(P33&"_"&Charlotte!W33&"_"&Charlotte!AQ33,GSV_Database!AA:AB,2,FALSE)))),0))) -> 49600 | AX33: =LOS($P33,$W33,$AT33,$Y33,AU33,AV33,AQ33,AW33,$AG$4,GSV_Database!C:V) -> C | AY33: =VLOOKUP(D33,Hist_Cur_CNTS!BG:BQ,11,FALSE) -> 46924 | AZ33: =VLOOKUP(D33,Hist_Cur_CNTS!BG:BQ,10,FALSE) -> 0.89 | BA33: 41762 | BB33: =IF($AG$4="Daily",BA33,IF($AG$4="Peak Hour Two-Way",ROUND(BA33 *BD33,0),ROUND(BA33*BD33*IF(Y33="1W",1,IF(P33="RDA",0.55,IF(OR(Q33="H",Q33="F"),VLOOKUP(P33&"_"&Q33,GSV_Database!AA:AB,2,FALSE),VLOOKUP(P33&"_"&Charlotte!W33&"_"&Charlotte!AQ33,GSV_Database!AA:AB,2,FALSE)))),0))) -> 41762 | BC33: =LOS($P33,$W33,$AT33,$Y33,AU33,AV33,AQ33,BB33,$AG$4,GSV_Database!C:V) -> C | BD33: =VLOOKUP(D33,Hist_Cur_CNTS!BG:BO,7,FALSE)/100 -> 0.09 | BE33: =VLOOKUP(D33,Hist_Cur_CNTS!BG:BO,8,FALSE)/100 -> 0.522 | BF33: =VLOOKUP(D33,Hist_Cur_CNTS!BG:BO,9,FALSE)/100 -> 0.035 | BG33: UA_S2WAC1_2W_6L_D_WL_WR | BH33: =IF($P33="U", VLOOKUP(Facility("TA",$W33,$X33,$Y33,$Z33,$AA33,$AB33),GSV_Database!C:X,22,FALSE),VLOOKUP(BG33,GSV_Database!C:X,22,FALSE)) -> 3 | BI33: 01010000-21.548-21.899 | BJ33: 3 | BK33: 0
B34: 01010000 | D34: 10049 | E34: US 41 | F34: TAMIAMI TRAIL | G34: =I33 -> SR 776 (Veterans Blvd) | H34: 21.899 | I34: Enterprise Dr | J34: 22.32 | K34: 0.421 | L34: N | N34: Principal Arterial-other | O34: 45 | P34: UA | Q34: A | R34: D | S34: D | U34: 1 | V34: 2.375296912 | W34: 1 | X34: D | Y34: 2W | Z34: WL | AA34: WR | AB34: 6 | AC34: =Service_Volume($P34,$W34,$X34,$Y34,Z34,AA34,AB34,R34,$AG$4,GSV_Database!C:V) -> 62895 | AD34: =IF($AG$4="Daily",VLOOKUP(D34,Hist_Cur_CNTS!BG:BL,2,FALSE),IF($AG$4="Peak Hour Two-Way",VLOOKUP(D34,Hist_Cur_CNTS!BG:BL,3,FALSE),VLOOKUP(D34,Hist_Cur_CNTS!BG:BL,4,FALSE))) -> 30000 | AE34: =LOS($P34,$W34,$X34,$Y34,Z34,AA34,AB34,AD34,$AG$4,GSV_Database!C:V) -> C | AH34: 47.69854519 | AI34: 6 | AJ34: D | AK34: =Service_Volume($P34,$W34,$AL34,$Y34,AM34,AN34,AI34,AJ34,$AG$4,GSV_Database!C:V) -> 62895 | AL34: D | AM34: WL | AN34: WR | AO34: =IF($AG$4="Daily",VLOOKUP(D34,Hist_Cur_CNTS!BG:BL,5,FALSE),IF($AG$4="Peak Hour Two-Way",ROUND(VLOOKUP(D34,Hist_Cur_CNTS!BG:BL,5,FALSE) *BD34,0),ROUND(VLOOKUP(D34,Hist_Cur_CNTS!BG:BL,5,FALSE)*BD34*IF(Y34="1W",1,IF(P34="RDA",0.55,IF(OR(Q34="H",Q34="F"),VLOOKUP(P34&"_"&Q34,GSV_Database!AA:AB,2,FALSE),VLOOKUP(P34&"_"&Charlotte!W34&"_"&Charlotte!AI34,GSV_Database!AA:AB,2,FALSE)))),0))) -> 33600 | AP34: =LOS($P34,$W34,$AL34,$Y34,AM34,AN34,AI34,AO34,$AG$4,GSV_Database!C:V) -> C | AQ34: 6 | AR34: D | AS34: =Service_Volume($P34,$W34,$AT34,$Y34,AU34,AV34,AQ34,AR34,$AG$4,GSV_Database!C:V) -> 62895 | AT34: D | AU34: WL | AV34: WR | AW34: =IF($AG$4="Daily",VLOOKUP(D34,Hist_Cur_CNTS!BG:BL,6,FALSE),IF($AG$4="Peak Hour Two-Way",ROUND(VLOOKUP(D34,Hist_Cur_CNTS!BG:BL,6,FALSE) *BD34,0),ROUND(VLOOKUP(D34,Hist_Cur_CNTS!BG:BL,6,FALSE)*BD34*IF(Y34="1W",1,IF(P34="RDA",0.55,IF(OR(Q34="H",Q34="F"),VLOOKUP(P34&"_"&Q34,GSV_Database!AA:AB,2,FALSE),VLOOKUP(P34&"_"&Charlotte!W34&"_"&Charlotte!AQ34,GSV_Database!AA:AB,2,FALSE)))),0))) -> 43800 | AX34: =LOS($P34,$W34,$AT34,$Y34,AU34,AV34,AQ34,AW34,$AG$4,GSV_Database!C:V) -> C | AY34: =VLOOKUP(D34,Hist_Cur_CNTS!BG:BQ,11,FALSE) -> 54163 | AZ34: =VLOOKUP(D34,Hist_Cur_CNTS!BG:BQ,10,FALSE) -> 0.89 | BA34: 48205 | BB34: =IF($AG$4="Daily",BA34,IF($AG$4="Peak Hour Two-Way",ROUND(BA34 *BD34,0),ROUND(BA34*BD34*IF(Y34="1W",1,IF(P34="RDA",0.55,IF(OR(Q34="H",Q34="F"),VLOOKUP(P34&"_"&Q34,GSV_Database!AA:AB,2,FALSE),VLOOKUP(P34&"_"&Charlotte!W34&"_"&Charlotte!AQ34,GSV_Database!AA:AB,2,FALSE)))),0))) -> 48205 | BC34: =LOS($P34,$W34,$AT34,$Y34,AU34,AV34,AQ34,BB34,$AG$4,GSV_Database!C:V) -> C | BD34: =VLOOKUP(D34,Hist_Cur_CNTS!BG:BO,7,FALSE)/100 -> 0.09 | BE34: =VLOOKUP(D34,Hist_Cur_CNTS!BG:BO,8,FALSE)/100 -> 0.522 | BF34: =VLOOKUP(D34,Hist_Cur_CNTS!BG:BO,9,FALSE)/100 -> 0.044 | BG34: UA_S2WAC1_2W_6L_D_WL_WR | BH34: =IF($P34="U", VLOOKUP(Facility("TA",$W34,$X34,$Y34,$Z34,$AA34,$AB34),GSV_Database!C:X,22,FALSE),VLOOKUP(BG34,GSV_Database!C:X,22,FALSE)) -> 3 | BI34: 01010000-21.899-22.32 | BJ34: 3 | BK34: 0
B35: 01010000 | D35: 10049 | E35: US 41 | F35: TAMIAMI TRAIL | G35: Murdock Rd | H35: 21.548 | I35: Enterprise Dr | J35: 22.32 | K35: 0.772 | L35: N | N35: Principal Arterial-other | O35: 45 | P35: UA | Q35: A | R35: D | S35: D | U35: =SUM(U33:U34) -> 2 | V35: 2.590673575 | W35: 1 | X35: D | Y35: 2W | Z35: WL | AA35: WR | AB35: 6 | AC35: =Service_Volume($P35,$W35,$X35,$Y35,Z35,AA35,AB35,R35,$AG$4,GSV_Database!C:V) -> 62895 | AD35: =wtavg(AD33:AD34,K33:K34) -> 31818.65285 | AE35: =LOS($P35,$W35,$X35,$Y35,Z35,AA35,AB35,AD35,$AG$4,GSV_Database!C:V) -> C | AH35: 50.59011503 | AI35: 6 | AJ35: D | AK35: =Service_Volume($P35,$W35,$AL35,$Y35,AM35,AN35,AI35,AJ35,$AG$4,GSV_Database!C:V) -> 62895 | AL35: D | AM35: WL | AN35: WR | AO35: =wtavg(AO33:AO34,K33:K34) -> 35645.98446 | AP35: =LOS($P35,$W35,$AL35,$Y35,AM35,AN35,AI35,AO35,$AG$4,GSV_Database!C:V) -> C | AQ35: 6 | AR35: D | AS35: =Service_Volume($P35,$W35,$AT35,$Y35,AU35,AV35,AQ35,AR35,$AG$4,GSV_Database!C:V) -> 62895 | AT35: D | AU35: WL | AV35: WR | AW35: =wtavg(AW33:AW34,$K33:$K34) -> 46437.04663 | AX35: =LOS($P35,$W35,$AT35,$Y35,AU35,AV35,AQ35,AW35,$AG$4,GSV_Database!C:V) -> C | AY35: =wtavg(AY33:AY34,$K33:$K34) -> 50871.69301 | AZ35: =wtavg(AZ33:AZ34,$K33:$K34) -> 0.89 | BA35: 45276 | BB35: =wtavg(BB33:BB34,$K33:$K34) -> 45275.60492 | BC35: =LOS($P35,$W35,$AT35,$Y35,AU35,AV35,AQ35,BB35,$AG$4,GSV_Database!C:V) -> C | BD35: =wtavg(BD33:BD34,$K33:$K34) -> 0.09 | BE35: =wtavg(BE33:BE34,$K33:$K34) -> 0.522 | BF35: =wtavg(BF33:BF34,$K33:$K34) -> 0.03990803109 | BG35: UA_S2WAC1_2W_6L_D_WL_WR | BH35: =IF($P35="U", VLOOKUP(Facility("TA",$W35,$X35,$Y35,$Z35,$AA35,$AB35),GSV_Database!C:X,22,FALSE),VLOOKUP(BG35,GSV_Database!C:X,22,FALSE)) -> 3 | BI35: 01010000-21.548-22.32 | BJ35: 3 | BK35: 0
B36: 01010000 | D36: 10049 | E36: US 41 | F36: TAMIAMI TRAIL | G36: Enterprise Dr | H36: 22.32 | I36: Toledo Blade Blvd | J36: 23.081 | K36: 0.761 | L36: N | N36: Principal Arterial-other | O36: 45 | P36: UA | Q36: A | R36: D | S36: D | U36: 1 | V36: 1.314060447 | W36: 1 | X36: D | Y36: 2W | Z36: WL | AA36: WR | AB36: 6 | AC36: =Service_Volume($P36,$W36,$X36,$Y36,Z36,AA36,AB36,R36,$AG$4,GSV_Database!C:V) -> 62895 | AD36: =IF($AG$4="Daily",VLOOKUP(D36,Hist_Cur_CNTS!BG:BL,2,FALSE),IF($AG$4="Peak Hour Two-Way",VLOOKUP(D36,Hist_Cur_CNTS!BG:BL,3,FALSE),VLOOKUP(D36,Hist_Cur_CNTS!BG:BL,4,FALSE))) -> 30000 | AE36: =LOS($P36,$W36,$X36,$Y36,Z36,AA36,AB36,AD36,$AG$4,GSV_Database!C:V) -> C | AH36: 47.69854519 | AI36: 6 | AJ36: D | AK36: =Service_Volume($P36,$W36,$AL36,$Y36,AM36,AN36,AI36,AJ36,$AG$4,GSV_Database!C:V) -> 62895 | AL36: D | AM36: WL | AN36: WR | AO36: =IF($AG$4="Daily",VLOOKUP(D36,Hist_Cur_CNTS!BG:BL,5,FALSE),IF($AG$4="Peak Hour Two-Way",ROUND(VLOOKUP(D36,Hist_Cur_CNTS!BG:BL,5,FALSE) *BD36,0),ROUND(VLOOKUP(D36,Hist_Cur_CNTS!BG:BL,5,FALSE)*BD36*IF(Y36="1W",1,IF(P36="RDA",0.55,IF(OR(Q36="H",Q36="F"),VLOOKUP(P36&"_"&Q36,GSV_Database!AA:AB,2,FALSE),VLOOKUP(P36&"_"&Charlotte!W36&"_"&Charlotte!AI36,GSV_Database!AA:AB,2,FALSE)))),0))) -> 33600 | AP36: =LOS($P36,$W36,$AL36,$Y36,AM36,AN36,AI36,AO36,$AG$4,GSV_Database!C:V) -> C | AQ36: 6 | AR36: D | AS36: =Service_Volume($P36,$W36,$AT36,$Y36,AU36,AV36,AQ36,AR36,$AG$4,GSV_Database!C:V) -> 62895 | AT36: D | AU36: WL | AV36: WR | AW36: =IF($AG$4="Daily",VLOOKUP(D36,Hist_Cur_CNTS!BG:BL,6,FALSE),IF($AG$4="Peak Hour Two-Way",ROUND(VLOOKUP(D36,Hist_Cur_CNTS!BG:BL,6,FALSE) *BD36,0),ROUND(VLOOKUP(D36,Hist_Cur_CNTS!BG:BL,6,FALSE)*BD36*IF(Y36="1W",1,IF(P36="RDA",0.55,IF(OR(Q36="H",Q36="F"),VLOOKUP(P36&"_"&Q36,GSV_Database!AA:AB,2,FALSE),VLOOKUP(P36&"_"&Charlotte!W36&"_"&Charlotte!AQ36,GSV_Database!AA:AB,2,FALSE)))),0))) -> 43800 | AX36: =LOS($P36,$W36,$AT36,$Y36,AU36,AV36,AQ36,AW36,$AG$4,GSV_Database!C:V) -> C | AY36: =VLOOKUP(D36,Hist_Cur_CNTS!BG:BQ,11,FALSE) -> 54163 | AZ36: =VLOOKUP(D36,Hist_Cur_CNTS!BG:BQ,10,FALSE) -> 0.89 | BA36: 48205 | BB36: =IF($AG$4="Daily",BA36,IF($AG$4="Peak Hour Two-Way",ROUND(BA36 *BD36,0),ROUND(BA36*BD36*IF(Y36="1W",1,IF(P36="RDA",0.55,IF(OR(Q36="H",Q36="F"),VLOOKUP(P36&"_"&Q36,GSV_Database!AA:AB,2,FALSE),VLOOKUP(P36&"_"&Charlotte!W36&"_"&Charlotte!AQ36,GSV_Database!AA:AB,2,FALSE)))),0))) -> 48205 | BC36: =LOS($P36,$W36,$AT36,$Y36,AU36,AV36,AQ36,BB36,$AG$4,GSV_Database!C:V) -> C | BD36: =VLOOKUP(D36,Hist_Cur_CNTS!BG:BO,7,FALSE)/100 -> 0.09 | BE36: =VLOOKUP(D36,Hist_Cur_CNTS!BG:BO,8,FALSE)/100 -> 0.522 | BF36: =VLOOKUP(D36,Hist_Cur_CNTS!BG:BO,9,FALSE)/100 -> 0.044 | BG36: UA_S2WAC1_2W_6L_D_WL_WR | BH36: =IF($P36="U", VLOOKUP(Facility("TA",$W36,$X36,$Y36,$Z36,$AA36,$AB36),GSV_Database!C:X,22,FALSE),VLOOKUP(BG36,GSV_Database!C:X,22,FALSE)) -> 3 | BI36: 01010000-22.32-23.081 | BJ36: 3 | BK36: 0
B37: 01010000 | D37: 10048 | E37: US 41 | F37: TAMIAMI TRAIL | G37: Toledo Blade Blvd | H37: 23.081 | I37: Sarasota County Line | J37: 25.946 | K37: 2.865 | L37: N | N37: Principal Arterial-other | O37: 55 | P37: UA | Q37: A | R37: D | S37: D | U37: 1 | V37: 0.3490401396 | W37: 1 | X37: D | Y37: 2W | Z37: WL | AA37: WR | AB37: 6 | AC37: =Service_Volume($P37,$W37,$X37,$Y37,Z37,AA37,AB37,R37,$AG$4,GSV_Database!C:V) -> 62895 | AD37: =IF($AG$4="Daily",VLOOKUP(D37,Hist_Cur_CNTS!BG:BL,2,FALSE),IF($AG$4="Peak Hour Two-Way",VLOOKUP(D37,Hist_Cur_CNTS!BG:BL,3,FALSE),VLOOKUP(D37,Hist_Cur_CNTS!BG:BL,4,FALSE))) -> 31500 | AE37: =LOS($P37,$W37,$X37,$Y37,Z37,AA37,AB37,AD37,$AG$4,GSV_Database!C:V) -> C | AH37: 50.08347245 | AI37: 6 | AJ37: D | AK37: =Service_Volume($P37,$W37,$AL37,$Y37,AM37,AN37,AI37,AJ37,$AG$4,GSV_Database!C:V) -> 62895 | AL37: D | AM37: WL | AN37: WR | AO37: =IF($AG$4="Daily",VLOOKUP(D37,Hist_Cur_CNTS!BG:BL,5,FALSE),IF($AG$4="Peak Hour Two-Way",ROUND(VLOOKUP(D37,Hist_Cur_CNTS!BG:BL,5,FALSE) *BD37,0),ROUND(VLOOKUP(D37,Hist_Cur_CNTS!BG:BL,5,FALSE)*BD37*IF(Y37="1W",1,IF(P37="RDA",0.55,IF(OR(Q37="H",Q37="F"),VLOOKUP(P37&"_"&Q37,GSV_Database!AA:AB,2,FALSE),VLOOKUP(P37&"_"&Charlotte!W37&"_"&Charlotte!AI37,GSV_Database!AA:AB,2,FALSE)))),0))) -> 35300 | AP37: =LOS($P37,$W37,$AL37,$Y37,AM37,AN37,AI37,AO37,$AG$4,GSV_Database!C:V) -> C | AQ37: 6 | AR37: D | AS37: =Service_Volume($P37,$W37,$AT37,$Y37,AU37,AV37,AQ37,AR37,$AG$4,GSV_Database!C:V) -> 62895 | AT37: D | AU37: WL | AV37: WR | AW37: =IF($AG$4="Daily",VLOOKUP(D37,Hist_Cur_CNTS!BG:BL,6,FALSE),IF($AG$4="Peak Hour Two-Way",ROUND(VLOOKUP(D37,Hist_Cur_CNTS!BG:BL,6,FALSE) *BD37,0),ROUND(VLOOKUP(D37,Hist_Cur_CNTS!BG:BL,6,FALSE)*BD37*IF(Y37="1W",1,IF(P37="RDA",0.55,IF(OR(Q37="H",Q37="F"),VLOOKUP(P37&"_"&Q37,GSV_Database!AA:AB,2,FALSE),VLOOKUP(P37&"_"&Charlotte!W37&"_"&Charlotte!AQ37,GSV_Database!AA:AB,2,FALSE)))),0))) -> 46000 | AX37: =LOS($P37,$W37,$AT37,$Y37,AU37,AV37,AQ37,AW37,$AG$4,GSV_Database!C:V) -> C | AY37: =VLOOKUP(D37,Hist_Cur_CNTS!BG:BQ,11,FALSE) -> 65439 | AZ37: =VLOOKUP(D37,Hist_Cur_CNTS!BG:BQ,10,FALSE) -> 0.89 | BA37: 58241 | BB37: =IF($AG$4="Daily",BA37,IF($AG$4="Peak Hour Two-Way",ROUND(BA37 *BD37,0),ROUND(BA37*BD37*IF(Y37="1W",1,IF(P37="RDA",0.55,IF(OR(Q37="H",Q37="F"),VLOOKUP(P37&"_"&Q37,GSV_Database!AA:AB,2,FALSE),VLOOKUP(P37&"_"&Charlotte!W37&"_"&Charlotte!AQ37,GSV_Database!AA:AB,2,FALSE)))),0))) -> 58241 | BC37: =LOS($P37,$W37,$AT37,$Y37,AU37,AV37,AQ37,BB37,$AG$4,GSV_Database!C:V) -> C | BD37: =VLOOKUP(D37,Hist_Cur_CNTS!BG:BO,7,FALSE)/100 -> 0.09 | BE37: =VLOOKUP(D37,Hist_Cur_CNTS!BG:BO,8,FALSE)/100 -> 0.522 | BF37: =VLOOKUP(D37,Hist_Cur_CNTS!BG:BO,9,FALSE)/100 -> 0.039 | BG37: UA_S2WAC1_2W_6L_D_WL_WR | BH37: =IF($P37="U", VLOOKUP(Facility("TA",$W37,$X37,$Y37,$Z37,$AA37,$AB37),GSV_Database!C:X,22,FALSE),VLOOKUP(BG37,GSV_Database!C:X,22,FALSE)) -> 3 | BI37: 01010000-23.081-25.946 | BJ37: 3 | BK37: 0
B38: 01010000 | E38: US 41 | F38: TAMIAMI TRAIL | G38: Enterprise Dr | H38: 22.32 | I38: Sarasota County Line | J38: 25.946 | K38: =J38-H38 -> 3.626 | L38: N | N38: Principal Arterial-other | O38: 55 | P38: UA | Q38: A | R38: D | S38: D | U38: =SUM(U36:U37) -> 2 | V38: 0.5515719801 | W38: 1 | X38: D | Y38: 2W | Z38: WL | AA38: WR | AB38: 6 | AC38: =Service_Volume($P38,$W38,$X38,$Y38,Z38,AA38,AB38,R38,$AG$4,GSV_Database!C:V) -> 62895 | AD38: =wtavg(AD36:AD37,K36:K37) -> 31185.19029 | AE38: =LOS($P38,$W38,$X38,$Y38,Z38,AA38,AB38,AD38,$AG$4,GSV_Database!C:V) -> C | AF38: =IF(AND(AH38>=90,AH38<100),"Near Capacity",IF(AH38>=100,"Over Capacity","")) ->  | AH38: 49.58294029 | AI38: 6 | AJ38: D | AK38: =Service_Volume($P38,$W38,$AL38,$Y38,AM38,AN38,AI38,AJ38,$AG$4,GSV_Database!C:V) -> 62895 | AL38: D | AM38: WL | AN38: WR | AO38: =wtavg(AO36:AO37,K36:K37) -> 34943.21566 | AP38: =LOS($P38,$W38,$AL38,$Y38,AM38,AN38,AI38,AO38,$AG$4,GSV_Database!C:V) -> C | AQ38: 6 | AR38: D | AS38: =Service_Volume($P38,$W38,$AT38,$Y38,AU38,AV38,AQ38,AR38,$AG$4,GSV_Database!C:V) -> 62895 | AT38: D | AU38: WL | AV38: WR | AW38: =wtavg(AW36:AW37,$K36:$K37) -> 45538.2791 | AX38: =LOS($P38,$W38,$AT38,$Y38,AU38,AV38,AQ38,AW38,$AG$4,GSV_Database!C:V) -> C | AY38: =wtavg(AY36:AY37,$K36:$K37) -> 63072.47049 | AZ38: =wtavg(AZ36:AZ37,$K36:$K37) -> 0.89 | BA38: 56134 | BB38: =wtavg(BB36:BB37,$K36:$K37) -> 56134.71318 | BC38: =LOS($P38,$W38,$AT38,$Y38,AU38,AV38,AQ38,BB38,$AG$4,GSV_Database!C:V) -> C | BD38: =wtavg(BD36:BD37,$K36:$K37) -> 0.09 | BE38: =wtavg(BE36:BE37,$K36:$K37) -> 0.522 | BF38: =wtavg(BF36:BF37,$K36:$K37) -> 0.04004936569 | BG38: UA_S2WAC1_2W_6L_D_WL_WR | BH38: =IF($P38="U", VLOOKUP(Facility("TA",$W38,$X38,$Y38,$Z38,$AA38,$AB38),GSV_Database!C:X,22,FALSE),VLOOKUP(BG38,GSV_Database!C:X,22,FALSE)) -> 3 | BI38: 01010000-22.32-25.946 | BJ38: 3 | BK38: 0
A39: ** | B39: 01010101 | D39: 10033 | E39: US 41 | F39: CROSS ST US 41 SB | G39: US 41 (Tamiami Trail) | H39: 0 | I39: W Retta Esplanade | J39: 1.435 | K39: 1.435 | L39: N | N39: Principal Arterial-other | O39: 45 | P39: UA | Q39: A | R39: D | S39: D | V39: 0 | W39: 1 | X39: U | Y39: 1W | Z39: 0L | AA39: WR | AB39: 2 | AC39: =Service_Volume($P39,$W39,$X39,$Y39,Z39,AA39,AB39,R39,$AG$4,GSV_Database!C:V) -> 25074 | AD39: =IF($AG$4="Daily",VLOOKUP(D39,Hist_Cur_CNTS!BG:BL,2,FALSE),IF($AG$4="Peak Hour Two-Way",VLOOKUP(D39,Hist_Cur_CNTS!BG:BL,3,FALSE),VLOOKUP(D39,Hist_Cur_CNTS!BG:BL,4,FALSE))) -> 25500 | AE39: =LOS($P39,$W39,$X39,$Y39,Z39,AA39,AB39,AD39,$AG$4,GSV_Database!C:V) -> F | AF39: Over Capacity | AH39: 101.698971 | AI39: 2 | AJ39: D | AK39: =Service_Volume($P39,$W39,$AL39,$Y39,AM39,AN39,AI39,AJ39,$AG$4,GSV_Database!C:V) -> 25074 | AL39: U | AM39: 0L | AN39: WR | AO39: =IF($AG$4="Daily",VLOOKUP(D39,Hist_Cur_CNTS!BG:BL,5,FALSE),IF($AG$4="Peak Hour Two-Way",ROUND(VLOOKUP(D39,Hist_Cur_CNTS!BG:BL,5,FALSE) *BD39,0),ROUND(VLOOKUP(D39,Hist_Cur_CNTS!BG:BL,5,FALSE)*BD39*IF(Y39="1W",1,IF(P39="RDA",0.55,IF(OR(Q39="H",Q39="F"),VLOOKUP(P39&"_"&Q39,GSV_Database!AA:AB,2,FALSE),VLOOKUP(P39&"_"&Charlotte!W39&"_"&Charlotte!AI39,GSV_Database!AA:AB,2,FALSE)))),0))) -> 28600 | AP39: =LOS($P39,$W39,$AL39,$Y39,AM39,AN39,AI39,AO39,$AG$4,GSV_Database!C:V) -> F | AQ39: 2 | AR39: D | AS39: =Service_Volume($P39,$W39,$AT39,$Y39,AU39,AV39,AQ39,AR39,$AG$4,GSV_Database!C:V) -> 25074 | AT39: U | AU39: 0L | AV39: WR | AW39: =IF($AG$4="Daily",VLOOKUP(D39,Hist_Cur_CNTS!BG:BL,6,FALSE),IF($AG$4="Peak Hour Two-Way",ROUND(VLOOKUP(D39,Hist_Cur_CNTS!BG:BL,6,FALSE) *BD39,0),ROUND(VLOOKUP(D39,Hist_Cur_CNTS!BG:BL,6,FALSE)*BD39*IF(Y39="1W",1,IF(P39="RDA",0.55,IF(OR(Q39="H",Q39="F"),VLOOKUP(P39&"_"&Q39,GSV_Database!AA:AB,2,FALSE),VLOOKUP(P39&"_"&Charlotte!W39&"_"&Charlotte!AQ39,GSV_Database!AA:AB,2,FALSE)))),0))) -> 37200 | AX39: =LOS($P39,$W39,$AT39,$Y39,AU39,AV39,AQ39,AW39,$AG$4,GSV_Database!C:V) -> F | AY39: =VLOOKUP(D39,Hist_Cur_CNTS!BG:BQ,11,FALSE) -> 26245 | AZ39: =VLOOKUP(D39,Hist_Cur_CNTS!BG:BQ,10,FALSE) -> 0.89 | BA39: 23358 | BB39: =IF($AG$4="Daily",BA39,IF($AG$4="Peak Hour Two-Way",ROUND(BA39 *BD39,0),ROUND(BA39*BD39*IF(Y39="1W",1,IF(P39="RDA",0.55,IF(OR(Q39="H",Q39="F"),VLOOKUP(P39&"_"&Q39,GSV_Database!AA:AB,2,FALSE),VLOOKUP(P39&"_"&Charlotte!W39&"_"&Charlotte!AQ39,GSV_Database!AA:AB,2,FALSE)))),0))) -> 23358 | BC39: =LOS($P39,$W39,$AT39,$Y39,AU39,AV39,AQ39,BB39,$AG$4,GSV_Database!C:V) -> C | BD39: =VLOOKUP(D39,Hist_Cur_CNTS!BG:BO,7,FALSE)/100 -> 0.09 | BE39: =VLOOKUP(D39,Hist_Cur_CNTS!BG:BO,8,FALSE)/100 -> 0.999 | BF39: =VLOOKUP(D39,Hist_Cur_CNTS!BG:BO,9,FALSE)/100 -> 0.039 | BG39: UA_S2WAC1_1W_2L_U_0L_WR | BH39: =IF($P39="U", VLOOKUP(Facility("TA",$W39,$X39,$Y39,$Z39,$AA39,$AB39),GSV_Database!C:X,22,FALSE),VLOOKUP(BG39,GSV_Database!C:X,22,FALSE)) -> 1 | BI39: 01010101-0-1.435 | BJ39: 1 | BK39: 0
A40: ** | B40: 01010101 | D40: 10033 | E40: US 41 | F40: CROSS ST US 41 SB | G40: W Retta Esplanade | H40: 1.435 | I40: Olympia Ave | J40: 1.617 | K40: 0.182 | L40: N | N40: Principal Arterial-other | O40: 30 | P40: UA | Q40: A | R40: D | S40: D | T40: D | U40: 2 | V40: 10.98901099 | W40: 2 | X40: U | Y40: 1W | Z40: 0L | AA40: 0R | AB40: 3 | AC40: =Service_Volume($P40,$W40,$X40,$Y40,Z40,AA40,AB40,R40,$AG$4,GSV_Database!C:V) -> 30000 | AD40: =IF($AG$4="Daily",VLOOKUP(D40,Hist_Cur_CNTS!BG:BL,2,FALSE),IF($AG$4="Peak Hour Two-Way",VLOOKUP(D40,Hist_Cur_CNTS!BG:BL,3,FALSE),VLOOKUP(D40,Hist_Cur_CNTS!BG:BL,4,FALSE))) -> 25500 | AE40: =LOS($P40,$W40,$X40,$Y40,Z40,AA40,AB40,AD40,$AG$4,GSV_Database!C:V) -> D | AH40: 85 | AI40: 3 | AJ40: D | AK40: =Service_Volume($P40,$W40,$AL40,$Y40,AM40,AN40,AI40,AJ40,$AG$4,GSV_Database!C:V) -> 30000 | AL40: U | AM40: 0L | AN40: 0R | AO40: =IF($AG$4="Daily",VLOOKUP(D40,Hist_Cur_CNTS!BG:BL,5,FALSE),IF($AG$4="Peak Hour Two-Way",ROUND(VLOOKUP(D40,Hist_Cur_CNTS!BG:BL,5,FALSE) *BD40,0),ROUND(VLOOKUP(D40,Hist_Cur_CNTS!BG:BL,5,FALSE)*BD40*IF(Y40="1W",1,IF(P40="RDA",0.55,IF(OR(Q40="H",Q40="F"),VLOOKUP(P40&"_"&Q40,GSV_Database!AA:AB,2,FALSE),VLOOKUP(P40&"_"&Charlotte!W40&"_"&Charlotte!AI40,GSV_Database!AA:AB,2,FALSE)))),0))) -> 28600 | AP40: =LOS($P40,$W40,$AL40,$Y40,AM40,AN40,AI40,AO40,$AG$4,GSV_Database!C:V) -> D | AQ40: 3 | AR40: D | AS40: =Service_Volume($P40,$W40,$AT40,$Y40,AU40,AV40,AQ40,AR40,$AG$4,GSV_Database!C:V) -> 30000 | AT40: U | AU40: 0L | AV40: 0R | AW40: =IF($AG$4="Daily",VLOOKUP(D40,Hist_Cur_CNTS!BG:BL,6,FALSE),IF($AG$4="Peak Hour Two-Way",ROUND(VLOOKUP(D40,Hist_Cur_CNTS!BG:BL,6,FALSE) *BD40,0),ROUND(VLOOKUP(D40,Hist_Cur_CNTS!BG:BL,6,FALSE)*BD40*IF(Y40="1W",1,IF(P40="RDA",0.55,IF(OR(Q40="H",Q40="F"),VLOOKUP(P40&"_"&Q40,GSV_Database!AA:AB,2,FALSE),VLOOKUP(P40&"_"&Charlotte!W40&"_"&Charlotte!AQ40,GSV_Database!AA:AB,2,FALSE)))),0))) -> 37200 | AX40: =LOS($P40,$W40,$AT40,$Y40,AU40,AV40,AQ40,AW40,$AG$4,GSV_Database!C:V) -> F | AY40: =VLOOKUP(D40,Hist_Cur_CNTS!BG:BQ,11,FALSE) -> 26245 | AZ40: =VLOOKUP(D40,Hist_Cur_CNTS!BG:BQ,10,FALSE) -> 0.89 | BA40: 23358 | BB40: =IF($AG$4="Daily",BA40,IF($AG$4="Peak Hour Two-Way",ROUND(BA40 *BD40,0),ROUND(BA40*BD40*IF(Y40="1W",1,IF(P40="RDA",0.55,IF(OR(Q40="H",Q40="F"),VLOOKUP(P40&"_"&Q40,GSV_Database!AA:AB,2,FALSE),VLOOKUP(P40&"_"&Charlotte!W40&"_"&Charlotte!AQ40,GSV_Database!AA:AB,2,FALSE)))),0))) -> 23358 | BC40: =LOS($P40,$W40,$AT40,$Y40,AU40,AV40,AQ40,BB40,$AG$4,GSV_Database!C:V) -> D | BD40: =VLOOKUP(D40,Hist_Cur_CNTS!BG:BO,7,FALSE)/100 -> 0.09 | BE40: =VLOOKUP(D40,Hist_Cur_CNTS!BG:BO,8,FALSE)/100 -> 0.999 | BF40: =VLOOKUP(D40,Hist_Cur_CNTS!BG:BO,9,FALSE)/100 -> 0.039 | BG40: UA_S2WAC2_1W_3L_U_0L_0R | BH40: =IF($P40="U", VLOOKUP(Facility("TA",$W40,$X40,$Y40,$Z40,$AA40,$AB40),GSV_Database!C:X,22,FALSE),VLOOKUP(BG40,GSV_Database!C:X,22,FALSE)) -> 1 | BI40: 01010101-1.435-1.617 | BJ40: 1 | BK40: 0
A41: ** | B41: 01010101 | E41: US 41 | F41: CROSS ST US 41 SB | G41: US 41 (Tamiami Trail) | H41: 0 | I41: Olympia Ave | J41: 1.617 | K41: 1.617 | L41: N | N41: Principal Arterial-other | O41: 45 | P41: UA | Q41: A | R41: D | S41: D | U41: =SUM(U39:U40) -> 2 | V41: 1.23685838 | W41: 1 | X41: U | Y41: 1W | Z41: 0L | AA41: WR | AB41: 2 | AC41: =Service_Volume($P41,$W41,$X41,$Y41,Z41,AA41,AB41,R41,$AG$4,GSV_Database!C:V) -> 25074 | AD41: =wtavg(AD39:AD40,K39:K40) -> 25500 | AE41: =LOS($P41,$W41,$X41,$Y41,Z41,AA41,AB41,AD41,$AG$4,GSV_Database!C:V) -> F | AF41: Over Capacity | AH41: 101.698971 | AI41: 2 | AJ41: D | AK41: =Service_Volume($P41,$W41,$AL41,$Y41,AM41,AN41,AI41,AJ41,$AG$4,GSV_Database!C:V) -> 25074 | AL41: U | AM41: 0L | AN41: WR | AO41: =wtavg(AO39:AO40,K39:K40) -> 28600 | AP41: =LOS($P41,$W41,$AL41,$Y41,AM41,AN41,AI41,AO41,$AG$4,GSV_Database!C:V) -> F | AQ41: 2 | AR41: D | AS41: =Service_Volume($P41,$W41,$AT41,$Y41,AU41,AV41,AQ41,AR41,$AG$4,GSV_Database!C:V) -> 25074 | AT41: U | AU41: 0L | AV41: WR | AW41: =wtavg(AW39:AW40,$K39:$K40) -> 37200 | AX41: =LOS($P41,$W41,$AT41,$Y41,AU41,AV41,AQ41,AW41,$AG$4,GSV_Database!C:V) -> F | AY41: =wtavg(AY39:AY40,$K39:$K40) -> 26245 | AZ41: =wtavg(AZ39:AZ40,$K39:$K40) -> 0.89 | BA41: 23358 | BB41: =wtavg(BB39:BB40,$K39:$K40) -> 23358 | BC41: =LOS($P41,$W41,$AT41,$Y41,AU41,AV41,AQ41,BB41,$AG$4,GSV_Database!C:V) -> C | BD41: =wtavg(BD39:BD40,$K39:$K40) -> 0.09 | BE41: =wtavg(BE39:BE40,$K39:$K40) -> 0.999 | BF41: =wtavg(BF39:BF40,$K39:$K40) -> 0.039 | BG41: UA_S2WAC1_1W_2L_U_0L_WR | BH41: =IF($P41="U", VLOOKUP(Facility("TA",$W41,$X41,$Y41,$Z41,$AA41,$AB41),GSV_Database!C:X,22,FALSE),VLOOKUP(BG41,GSV_Database!C:X,22,FALSE)) -> 1 | BI41: 01010101-0-1.617 | BJ41: 1 | BK41: 0
A42: ** | B42: 01010101 | D42: 15023 | E42: US 41 | F42: CROSS ST US 41 SB | G42: Olympia Ave | H42: 1.617 | I42: S. of Charlotte Ave | J42: 1.876 | K42: 0.259 | L42: N | N42: Principal Arterial-other | O42: 30 | P42: UA | Q42: A | R42: D | S42: D | T42: D | U42: 1 | V42: =U42/K42 -> 3.861003861 | W42: 2 | X42: U | Y42: 1W | Z42: 0L | AA42: 0R | AB42: 3 | AC42: =Service_Volume($P42,$W42,$X42,$Y42,Z42,AA42,AB42,R42,$AG$4,GSV_Database!C:V) -> 30000 | AD42: =IF($AG$4="Daily",VLOOKUP(D42,Hist_Cur_CNTS!BG:BL,2,FALSE),IF($AG$4="Peak Hour Two-Way",VLOOKUP(D42,Hist_Cur_CNTS!BG:BL,3,FALSE),VLOOKUP(D42,Hist_Cur_CNTS!BG:BL,4,FALSE))) -> 15000 | AE42: =LOS($P42,$W42,$X42,$Y42,Z42,AA42,AB42,AD42,$AG$4,GSV_Database!C:V) -> D | AH42: 50 | AI42: 3 | AJ42: D | AK42: =Service_Volume($P42,$W42,$AL42,$Y42,AM42,AN42,AI42,AJ42,$AG$4,GSV_Database!C:V) -> 30000 | AL42: U | AM42: 0L | AN42: 0R | AO42: =IF($AG$4="Daily",VLOOKUP(D42,Hist_Cur_CNTS!BG:BL,5,FALSE),IF($AG$4="Peak Hour Two-Way",ROUND(VLOOKUP(D42,Hist_Cur_CNTS!BG:BL,5,FALSE) *BD42,0),ROUND(VLOOKUP(D42,Hist_Cur_CNTS!BG:BL,5,FALSE)*BD42*IF(Y42="1W",1,IF(P42="RDA",0.55,IF(OR(Q42="H",Q42="F"),VLOOKUP(P42&"_"&Q42,GSV_Database!AA:AB,2,FALSE),VLOOKUP(P42&"_"&Charlotte!W42&"_"&Charlotte!AI42,GSV_Database!AA:AB,2,FALSE)))),0))) -> 16800 | AP42: =LOS($P42,$W42,$AL42,$Y42,AM42,AN42,AI42,AO42,$AG$4,GSV_Database!C:V) -> D | AQ42: 3 | AR42: D | AS42: =Service_Volume($P42,$W42,$AT42,$Y42,AU42,AV42,AQ42,AR42,$AG$4,GSV_Database!C:V) -> 30000 | AT42: U | AU42: 0L | AV42: 0R | AW42: =IF($AG$4="Daily",VLOOKUP(D42,Hist_Cur_CNTS!BG:BL,6,FALSE),IF($AG$4="Peak Hour Two-Way",ROUND(VLOOKUP(D42,Hist_Cur_CNTS!BG:BL,6,FALSE) *BD42,0),ROUND(VLOOKUP(D42,Hist_Cur_CNTS!BG:BL,6,FALSE)*BD42*IF(Y42="1W",1,IF(P42="RDA",0.55,IF(OR(Q42="H",Q42="F"),VLOOKUP(P42&"_"&Q42,GSV_Database!AA:AB,2,FALSE),VLOOKUP(P42&"_"&Charlotte!W42&"_"&Charlotte!AQ42,GSV_Database!AA:AB,2,FALSE)))),0))) -> 21900 | AX42: =LOS($P42,$W42,$AT42,$Y42,AU42,AV42,AQ42,AW42,$AG$4,GSV_Database!C:V) -> D | AY42: =VLOOKUP(D42,Hist_Cur_CNTS!BG:BQ,11,FALSE) -> 15585 | AZ42: =VLOOKUP(D42,Hist_Cur_CNTS!BG:BQ,10,FALSE) -> 0.89 | BA42: 13871 | BB42: =IF($AG$4="Daily",BA42,IF($AG$4="Peak Hour Two-Way",ROUND(BA42 *BD42,0),ROUND(BA42*BD42*IF(Y42="1W",1,IF(P42="RDA",0.55,IF(OR(Q42="H",Q42="F"),VLOOKUP(P42&"_"&Q42,GSV_Database!AA:AB,2,FALSE),VLOOKUP(P42&"_"&Charlotte!W42&"_"&Charlotte!AQ42,GSV_Database!AA:AB,2,FALSE)))),0))) -> 13871 | BC42: =LOS($P42,$W42,$AT42,$Y42,AU42,AV42,AQ42,BB42,$AG$4,GSV_Database!C:V) -> C | BD42: =VLOOKUP(D42,Hist_Cur_CNTS!BG:BO,7,FALSE)/100 -> 0.09 | BE42: =VLOOKUP(D42,Hist_Cur_CNTS!BG:BO,8,FALSE)/100 -> 0.999 | BF42: =VLOOKUP(D42,Hist_Cur_CNTS!BG:BO,9,FALSE)/100 -> 0.035 | BG42: UA_S2WAC2_1W_3L_U_0L_0R | BH42: =IF($P42="U", VLOOKUP(Facility("TA",$W42,$X42,$Y42,$Z42,$AA42,$AB42),GSV_Database!C:X,22,FALSE),VLOOKUP(BG42,GSV_Database!C:X,22,FALSE)) -> 1 | BI42: 01010101-1.617-1.876 | BJ42: 1 | BK42: 0
A43: ** | B43: 01010101 | D43: 15023 | E43: US 41 | F43: CROSS ST US 41 SB | G43: S. of Charlotte Ave | H43: 1.876 | I43: US 41 (Tamiami Trail) | J43: 2.042 | K43: 0.166 | L43: N | N43: Principal Arterial-other | O43: 35 | P43: UA | Q43: A | R43: D | S43: D | T43: D | V43: 0 | W43: 2 | X43: U | Y43: 1W | Z43: WL | AA43: 0R | AB43: 2 | AC43: =Service_Volume($P43,$W43,$X43,$Y43,Z43,AA43,AB43,R43,$AG$4,GSV_Database!C:V) -> 19440 | AD43: =IF($AG$4="Daily",VLOOKUP(D43,Hist_Cur_CNTS!BG:BL,2,FALSE),IF($AG$4="Peak Hour Two-Way",VLOOKUP(D43,Hist_Cur_CNTS!BG:BL,3,FALSE),VLOOKUP(D43,Hist_Cur_CNTS!BG:BL,4,FALSE))) -> 15000 | AE43: =LOS($P43,$W43,$X43,$Y43,Z43,AA43,AB43,AD43,$AG$4,GSV_Database!C:V) -> D | AH43: 77.16049383 | AI43: 2 | AJ43: D | AK43: =Service_Volume($P43,$W43,$AL43,$Y43,AM43,AN43,AI43,AJ43,$AG$4,GSV_Database!C:V) -> 19440 | AL43: U | AM43: WL | AN43: 0R | AO43: =IF($AG$4="Daily",VLOOKUP(D43,Hist_Cur_CNTS!BG:BL,5,FALSE),IF($AG$4="Peak Hour Two-Way",ROUND(VLOOKUP(D43,Hist_Cur_CNTS!BG:BL,5,FALSE) *BD43,0),ROUND(VLOOKUP(D43,Hist_Cur_CNTS!BG:BL,5,FALSE)*BD43*IF(Y43="1W",1,IF(P43="RDA",0.55,IF(OR(Q43="H",Q43="F"),VLOOKUP(P43&"_"&Q43,GSV_Database!AA:AB,2,FALSE),VLOOKUP(P43&"_"&Charlotte!W43&"_"&Charlotte!AI43,GSV_Database!AA:AB,2,FALSE)))),0))) -> 16800 | AP43: =LOS($P43,$W43,$AL43,$Y43,AM43,AN43,AI43,AO43,$AG$4,GSV_Database!C:V) -> D | AQ43: 3 | AR43: D | AS43: =Service_Volume($P43,$W43,$AT43,$Y43,AU43,AV43,AQ43,AR43,$AG$4,GSV_Database!C:V) -> 30000 | AT43: U | AU43: WL | AV43: 0R | AW43: =IF($AG$4="Daily",VLOOKUP(D43,Hist_Cur_CNTS!BG:BL,6,FALSE),IF($AG$4="Peak Hour Two-Way",ROUND(VLOOKUP(D43,Hist_Cur_CNTS!BG:BL,6,FALSE) *BD43,0),ROUND(VLOOKUP(D43,Hist_Cur_CNTS!BG:BL,6,FALSE)*BD43*IF(Y43="1W",1,IF(P43="RDA",0.55,IF(OR(Q43="H",Q43="F"),VLOOKUP(P43&"_"&Q43,GSV_Database!AA:AB,2,FALSE),VLOOKUP(P43&"_"&Charlotte!W43&"_"&Charlotte!AQ43,GSV_Database!AA:AB,2,FALSE)))),0))) -> 21900 | AX43: =LOS($P43,$W43,$AT43,$Y43,AU43,AV43,AQ43,AW43,$AG$4,GSV_Database!C:V) -> D | AY43: =VLOOKUP(D43,Hist_Cur_CNTS!BG:BQ,11,FALSE) -> 15585 | AZ43: =VLOOKUP(D43,Hist_Cur_CNTS!BG:BQ,10,FALSE) -> 0.89 | BA43: 13871 | BB43: =IF($AG$4="Daily",BA43,IF($AG$4="Peak Hour Two-Way",ROUND(BA43 *BD43,0),ROUND(BA43*BD43*IF(Y43="1W",1,IF(P43="RDA",0.55,IF(OR(Q43="H",Q43="F"),VLOOKUP(P43&"_"&Q43,GSV_Database!AA:AB,2,FALSE),VLOOKUP(P43&"_"&Charlotte!W43&"_"&Charlotte!AQ43,GSV_Database!AA:AB,2,FALSE)))),0))) -> 13871 | BC43: =LOS($P43,$W43,$AT43,$Y43,AU43,AV43,AQ43,BB43,$AG$4,GSV_Database!C:V) -> C | BD43: =VLOOKUP(D43,Hist_Cur_CNTS!BG:BO,7,FALSE)/100 -> 0.09 | BE43: =VLOOKUP(D43,Hist_Cur_CNTS!BG:BO,8,FALSE)/100 -> 0.999 | BF43: =VLOOKUP(D43,Hist_Cur_CNTS!BG:BO,9,FALSE)/100 -> 0.035 | BG43: UA_S2WAC2_1W_2L_U_WL_0R | BH43: =IF($P43="U", VLOOKUP(Facility("TA",$W43,$X43,$Y43,$Z43,$AA43,$AB43),GSV_Database!C:X,22,FALSE),VLOOKUP(BG43,GSV_Database!C:X,22,FALSE)) -> 1 | BI43: 01010101-1.876-2.042 | BJ43: 1 | BK43: 0
A44: ** | B44: 01010101 | E44: US 41 | F44: CROSS ST US 41 SB | G44: Olympia Ave | H44: 1.617 | I44: US 41 (Tamiami Trail) | J44: 2.042 | K44: 0.425 | L44: N | N44: Principal Arterial-other | O44: 35 | P44: UA | Q44: A | R44: D | S44: D | T44: D | U44: =SUM(U42:U43) -> 1 | V44: 2.352941176 | W44: 2 | X44: U | Y44: 1W | Z44: WL | AA44: 0R | AB44: 3 | AC44: =Service_Volume($P44,$W44,$X44,$Y44,Z44,AA44,AB44,R44,$AG$4,GSV_Database!C:V) -> 30000 | AD44: =wtavg(AD42:AD43,K42:K43) -> 15000 | AE44: =LOS($P44,$W44,$X44,$Y44,Z44,AA44,AB44,AD44,$AG$4,GSV_Database!C:V) -> D | AH44: 50 | AI44: 3 | AJ44: D | AK44: =Service_Volume($P44,$W44,$AL44,$Y44,AM44,AN44,AI44,AJ44,$AG$4,GSV_Database!C:V) -> 30000 | AL44: U | AM44: WL | AN44: 0R | AO44: =wtavg(AO42:AO43,K42:K43) -> 16800 | AP44: =LOS($P44,$W44,$AL44,$Y44,AM44,AN44,AI44,AO44,$AG$4,GSV_Database!C:V) -> D | AQ44: 3 | AR44: D | AS44: =Service_Volume($P44,$W44,$AT44,$Y44,AU44,AV44,AQ44,AR44,$AG$4,GSV_Database!C:V) -> 30000 | AT44: U | AU44: WL | AV44: 0R | AW44: =wtavg(AW42:AW43,$K42:$K43) -> 21900 | AX44: =LOS($P44,$W44,$AT44,$Y44,AU44,AV44,AQ44,AW44,$AG$4,GSV_Database!C:V) -> D | AY44: =wtavg(AY42:AY43,$K42:$K43) -> 15585 | AZ44: =wtavg(AZ42:AZ43,$K42:$K43) -> 0.89 | BA44: 13871 | BB44: =wtavg(BB42:BB43,$K42:$K43) -> 13871 | BC44: =LOS($P44,$W44,$AT44,$Y44,AU44,AV44,AQ44,BB44,$AG$4,GSV_Database!C:V) -> C | BD44: =wtavg(BD42:BD43,$K42:$K43) -> 0.09 | BE44: =wtavg(BE42:BE43,$K42:$K43) -> 0.999 | BF44: =wtavg(BF42:BF43,$K42:$K43) -> 0.035 | BG44: UA_S2WAC2_1W_3L_U_WL_0R | BH44: =IF($P44="U", VLOOKUP(Facility("TA",$W44,$X44,$Y44,$Z44,$AA44,$AB44),GSV_Database!C:X,22,FALSE),VLOOKUP(BG44,GSV_Database!C:X,22,FALSE)) -> 1 | BI44: 01010101-1.617-2.042 | BJ44: 1 | BK44: 0
B45: 01030000 | C45: 10039 | D45: 120273 | E45: SR 31 | F45: SR 31 | G45: Lee County Line | H45: 0 | I45: Cook Brown Rd | J45: 2.009 | K45: 2.009 | L45: N | M45: ES | N45: Minor Arterial | O45: 60 | P45: TA | Q45: H | R45: C | V45: 0 | X45: U | Y45: =IF(X45="1w",X45,"2W") -> 2W | Z45: WL | AA45: WR | AB45: 2 | AC45: =Service_Volume($P45,$W45,$X45,$Y45,Z45,AA45,AB45,R45,$AG$4,GSV_Database!C:V) -> 17300 | AD45: =IF($AG$4="Daily",VLOOKUP(D45,Hist_Cur_CNTS!BG:BL,2,FALSE),IF($AG$4="Peak Hour Two-Way",VLOOKUP(D45,Hist_Cur_CNTS!BG:BL,3,FALSE),VLOOKUP(D45,Hist_Cur_CNTS!BG:BL,4,FALSE))) -> 7337 | AE45: =LOS($P45,$W45,$X45,$Y45,Z45,AA45,AB45,AD45,$AG$4,GSV_Database!C:V) -> B | AH45: 42.41040462 | AI45: 2 | AJ45: C | AK45: =Service_Volume($P45,$W45,$AL45,$Y45,AM45,AN45,AI45,AJ45,$AG$4,GSV_Database!C:V) -> 17300 | AL45: U | AM45: WL | AN45: WR | AO45: =IF($AG$4="Daily",VLOOKUP(D45,Hist_Cur_CNTS!BG:BL,5,FALSE),IF($AG$4="Peak Hour Two-Way",ROUND(VLOOKUP(D45,Hist_Cur_CNTS!BG:BL,5,FALSE) *BD45,0),ROUND(VLOOKUP(D45,Hist_Cur_CNTS!BG:BL,5,FALSE)*BD45*IF(Y45="1W",1,IF(P45="RDA",0.55,IF(OR(Q45="H",Q45="F"),VLOOKUP(P45&"_"&Q45,GSV_Database!AA:AB,2,FALSE),VLOOKUP(P45&"_"&Charlotte!W45&"_"&Charlotte!AI45,GSV_Database!AA:AB,2,FALSE)))),0))) -> 8200 | AP45: =LOS($P45,$W45,$AL45,$Y45,AM45,AN45,AI45,AO45,$AG$4,GSV_Database!C:V) -> B | AQ45: 2 | AR45: C | AS45: =Service_Volume($P45,$W45,$AT45,$Y45,AU45,AV45,AQ45,AR45,$AG$4,GSV_Database!C:V) -> 17300 | AT45: U | AU45: WL | AV45: WR | AW45: =IF($AG$4="Daily",VLOOKUP(D45,Hist_Cur_CNTS!BG:BL,6,FALSE),IF($AG$4="Peak Hour Two-Way",ROUND(VLOOKUP(D45,Hist_Cur_CNTS!BG:BL,6,FALSE) *BD45,0),ROUND(VLOOKUP(D45,Hist_Cur_CNTS!BG:BL,6,FALSE)*BD45*IF(Y45="1W",1,IF(P45="RDA",0.55,IF(OR(Q45="H",Q45="F"),VLOOKUP(P45&"_"&Q45,GSV_Database!AA:AB,2,FALSE),VLOOKUP(P45&"_"&Charlotte!W45&"_"&Charlotte!AQ45,GSV_Database!AA:AB,2,FALSE)))),0))) -> 10700 | AX45: =LOS($P45,$W45,$AT45,$Y45,AU45,AV45,AQ45,AW45,$AG$4,GSV_Database!C:V) -> C | AY45: =VLOOKUP(D45,Hist_Cur_CNTS!BG:BQ,11,FALSE) -> 35254 | AZ45: =VLOOKUP(D45,Hist_Cur_CNTS!BG:BQ,10,FALSE) -> 0.91 | BA45: 32081 | BB45: =IF($AG$4="Daily",BA45,IF($AG$4="Peak Hour Two-Way",ROUND(BA45 *BD45,0),ROUND(BA45*BD45*IF(Y45="1W",1,IF(P45="RDA",0.55,IF(OR(Q45="H",Q45="F"),VLOOKUP(P45&"_"&Q45,GSV_Database!AA:AB,2,FALSE),VLOOKUP(P45&"_"&Charlotte!W45&"_"&Charlotte!AQ45,GSV_Database!AA:AB,2,FALSE)))),0))) -> 32081 | BC45: =LOS($P45,$W45,$AT45,$Y45,AU45,AV45,AQ45,BB45,$AG$4,GSV_Database!C:V) -> E | BD45: =VLOOKUP(D45,Hist_Cur_CNTS!BG:BO,7,FALSE)/100 -> 0.095 | BE45: =VLOOKUP(D45,Hist_Cur_CNTS!BG:BO,8,FALSE)/100 -> 0.534 | BF45: =VLOOKUP(D45,Hist_Cur_CNTS!BG:BO,9,FALSE)/100 -> 0.282 | BG45: TA_UFH_2W_2L_U_WL_WR | BH45: =IF($P45="U", VLOOKUP(Facility("TA",$W45,$X45,$Y45,$Z45,$AA45,$AB45),GSV_Database!C:X,22,FALSE),VLOOKUP(BG45,GSV_Database!C:X,22,FALSE)) -> 0 | BI45: 01030000-0-2.009 | BJ45: 0 | BK45: 0
B46: 01030000 | D46: 10039 | E46: SR 31 | F46: SR 31 | G46: =I45 -> Cook Brown Rd | H46: =J45 -> 2.009 | I46: CR 74 | J46: 12.126 | K46: =J46-H46 -> 10.117 | L46: N | M46: ES | N46: Minor Arterial | O46: 60 | P46: RDA | Q46: H | R46: =IF(P46="UA","D","C") -> C | V46: =U46/K46 -> 0 | W46: =IF(Q46="F",Q46,IF(Q46="H","",IF(O46>=40,1,2))) ->  | X46: U | Y46: =IF(X46="1w",X46,"2W") -> 2W | Z46: 0L | AA46: WR | AB46: 2 | AC46: =Service_Volume($P46,$W46,$X46,$Y46,Z46,AA46,AB46,R46,$AG$4,GSV_Database!C:V) -> 16400 | AD46: =IF($AG$4="Daily",VLOOKUP(D46,Hist_Cur_CNTS!BG:BL,2,FALSE),IF($AG$4="Peak Hour Two-Way",VLOOKUP(D46,Hist_Cur_CNTS!BG:BL,3,FALSE),VLOOKUP(D46,Hist_Cur_CNTS!BG:BL,4,FALSE))) -> 5600 | AE46: =LOS($P46,$W46,$X46,$Y46,Z46,AA46,AB46,AD46,$AG$4,GSV_Database!C:V) -> B | AF46: =IF(AND(AH46>=90,AH46<100),"Near Capacity",IF(AH46>=100,"Over Capacity","")) ->  | AH46: =AD46*100/AC46 -> 34.14634146 | AI46: 2 | AJ46: =R46 -> C | AK46: =Service_Volume($P46,$W46,$AL46,$Y46,AM46,AN46,AI46,AJ46,$AG$4,GSV_Database!C:V) -> 16400 | AL46: U | AM46: =Z46 -> 0L | AN46: =AA46 -> WR | AO46: =IF($AG$4="Daily",VLOOKUP(D46,Hist_Cur_CNTS!BG:BL,5,FALSE),IF($AG$4="Peak Hour Two-Way",ROUND(VLOOKUP(D46,Hist_Cur_CNTS!BG:BL,5,FALSE) *BD46,0),ROUND(VLOOKUP(D46,Hist_Cur_CNTS!BG:BL,5,FALSE)*BD46*IF(Y46="1W",1,IF(P46="RDA",0.55,IF(OR(Q46="H",Q46="F"),VLOOKUP(P46&"_"&Q46,GSV_Database!AA:AB,2,FALSE),VLOOKUP(P46&"_"&Charlotte!W46&"_"&Charlotte!AI46,GSV_Database!AA:AB,2,FALSE)))),0))) -> 6300 | AP46: =LOS($P46,$W46,$AL46,$Y46,AM46,AN46,AI46,AO46,$AG$4,GSV_Database!C:V) -> B | AQ46: 2 | AR46: =AJ46 -> C | AS46: =Service_Volume($P46,$W46,$AT46,$Y46,AU46,AV46,AQ46,AR46,$AG$4,GSV_Database!C:V) -> 16400 | AT46: U | AU46: =AM46 -> 0L | AV46: =AN46 -> WR | AW46: =IF($AG$4="Daily",VLOOKUP(D46,Hist_Cur_CNTS!BG:BL,6,FALSE),IF($AG$4="Peak Hour Two-Way",ROUND(VLOOKUP(D46,Hist_Cur_CNTS!BG:BL,6,FALSE) *BD46,0),ROUND(VLOOKUP(D46,Hist_Cur_CNTS!BG:BL,6,FALSE)*BD46*IF(Y46="1W",1,IF(P46="RDA",0.55,IF(OR(Q46="H",Q46="F"),VLOOKUP(P46&"_"&Q46,GSV_Database!AA:AB,2,FALSE),VLOOKUP(P46&"_"&Charlotte!W46&"_"&Charlotte!AQ46,GSV_Database!AA:AB,2,FALSE)))),0))) -> 8200 | AX46: =LOS($P46,$W46,$AT46,$Y46,AU46,AV46,AQ46,AW46,$AG$4,GSV_Database!C:V) -> B | AY46: =VLOOKUP(D46,Hist_Cur_CNTS!BG:BQ,11,FALSE) -> 35254 | AZ46: =VLOOKUP(D46,Hist_Cur_CNTS!BG:BQ,10,FALSE) -> 0.91 | BA46: =ROUND(AZ46*AY46,0) -> 32081 | BB46: =IF($AG$4="Daily",BA46,IF($AG$4="Peak Hour Two-Way",ROUND(BA46 *BD46,0),ROUND(BA46*BD46*IF(Y46="1W",1,IF(P46="RDA",0.55,IF(OR(Q46="H",Q46="F"),VLOOKUP(P46&"_"&Q46,GSV_Database!AA:AB,2,FALSE),VLOOKUP(P46&"_"&Charlotte!W46&"_"&Charlotte!AQ46,GSV_Database!AA:AB,2,FALSE)))),0))) -> 32081 | BC46: =LOS($P46,$W46,$AT46,$Y46,AU46,AV46,AQ46,BB46,$AG$4,GSV_Database!C:V) -> F | BD46: =VLOOKUP(D46,Hist_Cur_CNTS!BG:BO,7,FALSE)/100 -> 0.095 | BE46: =VLOOKUP(D46,Hist_Cur_CNTS!BG:BO,8,FALSE)/100 -> 0.544 | BF46: =VLOOKUP(D46,Hist_Cur_CNTS!BG:BO,9,FALSE)/100 -> 0.395 | BG46: RDA_UFH_2W_2L_U_0L_WR | BH46: =IF($P46="U", VLOOKUP(Facility("TA",$W46,$X46,$Y46,$Z46,$AA46,$AB46),GSV_Database!C:X,22,FALSE),VLOOKUP(BG46,GSV_Database!C:X,22,FALSE)) -> 0 | BI46: 01030000-2.009-12.126 | BJ46: 0 | BK46: 0
B47: 01030000 | D47: 10041 | E47: SR 31 | F47: SR 31 | G47: CR 74 | H47: 12.126 | I47: DeSoto County Line | J47: 18.337 | K47: 6.211 | L47: N | M47: ES | N47: Minor Arterial | O47: 60 | P47: RDA | Q47: H | R47: C | V47: 0 | X47: U | Y47: 2W | Z47: 0L | AA47: WR | AB47: 2 | AC47: =Service_Volume($P47,$W47,$X47,$Y47,Z47,AA47,AB47,R47,$AG$4,GSV_Database!C:V) -> 16400 | AD47: =IF($AG$4="Daily",VLOOKUP(D47,Hist_Cur_CNTS!BG:BL,2,FALSE),IF($AG$4="Peak Hour Two-Way",VLOOKUP(D47,Hist_Cur_CNTS!BG:BL,3,FALSE),VLOOKUP(D47,Hist_Cur_CNTS!BG:BL,4,FALSE))) -> 5700 | AE47: =LOS($P47,$W47,$X47,$Y47,Z47,AA47,AB47,AD47,$AG$4,GSV_Database!C:V) -> B | AH47: 34.75609756 | AI47: 2 | AJ47: C | AK47: =Service_Volume($P47,$W47,$AL47,$Y47,AM47,AN47,AI47,AJ47,$AG$4,GSV_Database!C:V) -> 16400 | AL47: U | AM47: 0L | AN47: WR | AO47: =IF($AG$4="Daily",VLOOKUP(D47,Hist_Cur_CNTS!BG:BL,5,FALSE),IF($AG$4="Peak Hour Two-Way",ROUND(VLOOKUP(D47,Hist_Cur_CNTS!BG:BL,5,FALSE) *BD47,0),ROUND(VLOOKUP(D47,Hist_Cur_CNTS!BG:BL,5,FALSE)*BD47*IF(Y47="1W",1,IF(P47="RDA",0.55,IF(OR(Q47="H",Q47="F"),VLOOKUP(P47&"_"&Q47,GSV_Database!AA:AB,2,FALSE),VLOOKUP(P47&"_"&Charlotte!W47&"_"&Charlotte!AI47,GSV_Database!AA:AB,2,FALSE)))),0))) -> 6400 | AP47: =LOS($P47,$W47,$AL47,$Y47,AM47,AN47,AI47,AO47,$AG$4,GSV_Database!C:V) -> B | AQ47: 2 | AR47: C | AS47: =Service_Volume($P47,$W47,$AT47,$Y47,AU47,AV47,AQ47,AR47,$AG$4,GSV_Database!C:V) -> 16400 | AT47: U | AU47: 0L | AV47: WR | AW47: =IF($AG$4="Daily",VLOOKUP(D47,Hist_Cur_CNTS!BG:BL,6,FALSE),IF($AG$4="Peak Hour Two-Way",ROUND(VLOOKUP(D47,Hist_Cur_CNTS!BG:BL,6,FALSE) *BD47,0),ROUND(VLOOKUP(D47,Hist_Cur_CNTS!BG:BL,6,FALSE)*BD47*IF(Y47="1W",1,IF(P47="RDA",0.55,IF(OR(Q47="H",Q47="F"),VLOOKUP(P47&"_"&Q47,GSV_Database!AA:AB,2,FALSE),VLOOKUP(P47&"_"&Charlotte!W47&"_"&Charlotte!AQ47,GSV_Database!AA:AB,2,FALSE)))),0))) -> 8300 | AX47: =LOS($P47,$W47,$AT47,$Y47,AU47,AV47,AQ47,AW47,$AG$4,GSV_Database!C:V) -> B | AY47: =VLOOKUP(D47,Hist_Cur_CNTS!BG:BQ,11,FALSE) -> 13618 | AZ47: =VLOOKUP(D47,Hist_Cur_CNTS!BG:BQ,10,FALSE) -> 0.91 | BA47: 12392 | BB47: =IF($AG$4="Daily",BA47,IF($AG$4="Peak Hour Two-Way",ROUND(BA47 *BD47,0),ROUND(BA47*BD47*IF(Y47="1W",1,IF(P47="RDA",0.55,IF(OR(Q47="H",Q47="F"),VLOOKUP(P47&"_"&Q47,GSV_Database!AA:AB,2,FALSE),VLOOKUP(P47&"_"&Charlotte!W47&"_"&Charlotte!AQ47,GSV_Database!AA:AB,2,FALSE)))),0))) -> 12392 | BC47: =LOS($P47,$W47,$AT47,$Y47,AU47,AV47,AQ47,BB47,$AG$4,GSV_Database!C:V) -> C | BD47: =VLOOKUP(D47,Hist_Cur_CNTS!BG:BO,7,FALSE)/100 -> 0.095 | BE47: =VLOOKUP(D47,Hist_Cur_CNTS!BG:BO,8,FALSE)/100 -> 0.544 | BF47: =VLOOKUP(D47,Hist_Cur_CNTS!BG:BO,9,FALSE)/100 -> 0.396 | BG47: RDA_UFH_2W_2L_U_0L_WR | BH47: =IF($P47="U", VLOOKUP(Facility("TA",$W47,$X47,$Y47,$Z47,$AA47,$AB47),GSV_Database!C:X,22,FALSE),VLOOKUP(BG47,GSV_Database!C:X,22,FALSE)) -> 0 | BI47: 01030000-12.126-18.337 | BJ47: 0 | BK47: 0
B48: 01040000 | D48: 15038 | E48: US 17 | F48: OLYMPIA AVE | G48: US 41 ( Cross St) | H48: 0 | I48: Taylor St | J48: 0.09 | K48: 0.09 | L48: N | N48: Principal Arterial-other | O48: 30 | P48: UA | Q48: A | R48: D | S48: D | T48: D | U48: 2 | V48: 22.22222222 | W48: 2 | X48: U | Y48: 1W | Z48: 0L | AA48: 0R | AB48: 2 | AC48: =Service_Volume($P48,$W48,$X48,$Y48,Z48,AA48,AB48,R48,$AG$4,GSV_Database!C:V) -> 19440 | AD48: =IF($AG$4="Daily",VLOOKUP(D48,Hist_Cur_CNTS!BG:BL,2,FALSE),IF($AG$4="Peak Hour Two-Way",VLOOKUP(D48,Hist_Cur_CNTS!BG:BL,3,FALSE),VLOOKUP(D48,Hist_Cur_CNTS!BG:BL,4,FALSE))) -> 11000 | AE48: =LOS($P48,$W48,$X48,$Y48,Z48,AA48,AB48,AD48,$AG$4,GSV_Database!C:V) -> D | AH48: 56.58436214 | AI48: 2 | AJ48: D | AK48: =Service_Volume($P48,$W48,$AL48,$Y48,AM48,AN48,AI48,AJ48,$AG$4,GSV_Database!C:V) -> 19440 | AL48: U | AM48: 0L | AN48: 0R | AO48: =IF($AG$4="Daily",VLOOKUP(D48,Hist_Cur_CNTS!BG:BL,5,FALSE),IF($AG$4="Peak Hour Two-Way",ROUND(VLOOKUP(D48,Hist_Cur_CNTS!BG:BL,5,FALSE) *BD48,0),ROUND(VLOOKUP(D48,Hist_Cur_CNTS!BG:BL,5,FALSE)*BD48*IF(Y48="1W",1,IF(P48="RDA",0.55,IF(OR(Q48="H",Q48="F"),VLOOKUP(P48&"_"&Q48,GSV_Database!AA:AB,2,FALSE),VLOOKUP(P48&"_"&Charlotte!W48&"_"&Charlotte!AI48,GSV_Database!AA:AB,2,FALSE)))),0))) -> 12300 | AP48: =LOS($P48,$W48,$AL48,$Y48,AM48,AN48,AI48,AO48,$AG$4,GSV_Database!C:V) -> D | AQ48: 2 | AR48: D | AS48: =Service_Volume($P48,$W48,$AT48,$Y48,AU48,AV48,AQ48,AR48,$AG$4,GSV_Database!C:V) -> 19440 | AT48: U | AU48: 0L | AV48: 0R | AW48: =IF($AG$4="Daily",VLOOKUP(D48,Hist_Cur_CNTS!BG:BL,6,FALSE),IF($AG$4="Peak Hour Two-Way",ROUND(VLOOKUP(D48,Hist_Cur_CNTS!BG:BL,6,FALSE) *BD48,0),ROUND(VLOOKUP(D48,Hist_Cur_CNTS!BG:BL,6,FALSE)*BD48*IF(Y48="1W",1,IF(P48="RDA",0.55,IF(OR(Q48="H",Q48="F"),VLOOKUP(P48&"_"&Q48,GSV_Database!AA:AB,2,FALSE),VLOOKUP(P48&"_"&Charlotte!W48&"_"&Charlotte!AQ48,GSV_Database!AA:AB,2,FALSE)))),0))) -> 16100 | AX48: =LOS($P48,$W48,$AT48,$Y48,AU48,AV48,AQ48,AW48,$AG$4,GSV_Database!C:V) -> D | AY48: =VLOOKUP(D48,Hist_Cur_CNTS!BG:BQ,11,FALSE) -> 15182 | AZ48: =VLOOKUP(D48,Hist_Cur_CNTS!BG:BQ,10,FALSE) -> 0.89 | BA48: 13512 | BB48: =IF($AG$4="Daily",BA48,IF($AG$4="Peak Hour Two-Way",ROUND(BA48 *BD48,0),ROUND(BA48*BD48*IF(Y48="1W",1,IF(P48="RDA",0.55,IF(OR(Q48="H",Q48="F"),VLOOKUP(P48&"_"&Q48,GSV_Database!AA:AB,2,FALSE),VLOOKUP(P48&"_"&Charlotte!W48&"_"&Charlotte!AQ48,GSV_Database!AA:AB,2,FALSE)))),0))) -> 13512 | BC48: =LOS($P48,$W48,$AT48,$Y48,AU48,AV48,AQ48,BB48,$AG$4,GSV_Database!C:V) -> D | BD48: =VLOOKUP(D48,Hist_Cur_CNTS!BG:BO,7,FALSE)/100 -> 0.09 | BE48: =VLOOKUP(D48,Hist_Cur_CNTS!BG:BO,8,FALSE)/100 -> 0.999 | BF48: =VLOOKUP(D48,Hist_Cur_CNTS!BG:BO,9,FALSE)/100 -> 0.035 | BG48: UA_S2WAC2_1W_2L_U_0L_0R | BH48: =IF($P48="U", VLOOKUP(Facility("TA",$W48,$X48,$Y48,$Z48,$AA48,$AB48),GSV_Database!C:X,22,FALSE),VLOOKUP(BG48,GSV_Database!C:X,22,FALSE)) -> 1 | BI48: 01040000-0-0.09 | BJ48: 1 | BK48: 0
B49: 01040000 | D49: 15038 | E49: US 17 | F49: OLYMPIA AVE | G49: Taylor St | H49: 0.09 | I49: US 41 (Tamiami Trail) | J49: 0.184 | K49: 0.094 | L49: N | N49: Principal Arterial-other | O49: 30 | P49: UA | Q49: A | R49: D | S49: D | T49: D | U49: 1 | V49: 10.63829787 | W49: 2 | X49: U | Y49: 1W | Z49: WL | AA49: 0R | AB49: 2 | AC49: =Service_Volume($P49,$W49,$X49,$Y49,Z49,AA49,AB49,R49,$AG$4,GSV_Database!C:V) -> 19440 | AD49: =IF($AG$4="Daily",VLOOKUP(D49,Hist_Cur_CNTS!BG:BL,2,FALSE),IF($AG$4="Peak Hour Two-Way",VLOOKUP(D49,Hist_Cur_CNTS!BG:BL,3,FALSE),VLOOKUP(D49,Hist_Cur_CNTS!BG:BL,4,FALSE))) -> 11000 | AE49: =LOS($P49,$W49,$X49,$Y49,Z49,AA49,AB49,AD49,$AG$4,GSV_Database!C:V) -> D | AH49: 56.58436214 | AI49: 2 | AJ49: D | AK49: =Service_Volume($P49,$W49,$AL49,$Y49,AM49,AN49,AI49,AJ49,$AG$4,GSV_Database!C:V) -> 19440 | AL49: U | AM49: WL | AN49: 0R | AO49: =IF($AG$4="Daily",VLOOKUP(D49,Hist_Cur_CNTS!BG:BL,5,FALSE),IF($AG$4="Peak Hour Two-Way",ROUND(VLOOKUP(D49,Hist_Cur_CNTS!BG:BL,5,FALSE) *BD49,0),ROUND(VLOOKUP(D49,Hist_Cur_CNTS!BG:BL,5,FALSE)*BD49*IF(Y49="1W",1,IF(P49="RDA",0.55,IF(OR(Q49="H",Q49="F"),VLOOKUP(P49&"_"&Q49,GSV_Database!AA:AB,2,FALSE),VLOOKUP(P49&"_"&Charlotte!W49&"_"&Charlotte!AI49,GSV_Database!AA:AB,2,FALSE)))),0))) -> 12300 | AP49: =LOS($P49,$W49,$AL49,$Y49,AM49,AN49,AI49,AO49,$AG$4,GSV_Database!C:V) -> D | AQ49: 2 | AR49: D | AS49: =Service_Volume($P49,$W49,$AT49,$Y49,AU49,AV49,AQ49,AR49,$AG$4,GSV_Database!C:V) -> 19440 | AT49: U | AU49: WL | AV49: 0R | AW49: =IF($AG$4="Daily",VLOOKUP(D49,Hist_Cur_CNTS!BG:BL,6,FALSE),IF($AG$4="Peak Hour Two-Way",ROUND(VLOOKUP(D49,Hist_Cur_CNTS!BG:BL,6,FALSE) *BD49,0),ROUND(VLOOKUP(D49,Hist_Cur_CNTS!BG:BL,6,FALSE)*BD49*IF(Y49="1W",1,IF(P49="RDA",0.55,IF(OR(Q49="H",Q49="F"),VLOOKUP(P49&"_"&Q49,GSV_Database!AA:AB,2,FALSE),VLOOKUP(P49&"_"&Charlotte!W49&"_"&Charlotte!AQ49,GSV_Database!AA:AB,2,FALSE)))),0))) -> 16100 | AX49: =LOS($P49,$W49,$AT49,$Y49,AU49,AV49,AQ49,AW49,$AG$4,GSV_Database!C:V) -> D | AY49: =VLOOKUP(D49,Hist_Cur_CNTS!BG:BQ,11,FALSE) -> 15182 | AZ49: =VLOOKUP(D49,Hist_Cur_CNTS!BG:BQ,10,FALSE) -> 0.89 | BA49: 13512 | BB49: =IF($AG$4="Daily",BA49,IF($AG$4="Peak Hour Two-Way",ROUND(BA49 *BD49,0),ROUND(BA49*BD49*IF(Y49="1W",1,IF(P49="RDA",0.55,IF(OR(Q49="H",Q49="F"),VLOOKUP(P49&"_"&Q49,GSV_Database!AA:AB,2,FALSE),VLOOKUP(P49&"_"&Charlotte!W49&"_"&Charlotte!AQ49,GSV_Database!AA:AB,2,FALSE)))),0))) -> 13512 | BC49: =LOS($P49,$W49,$AT49,$Y49,AU49,AV49,AQ49,BB49,$AG$4,GSV_Database!C:V) -> D | BD49: =VLOOKUP(D49,Hist_Cur_CNTS!BG:BO,7,FALSE)/100 -> 0.09 | BE49: =VLOOKUP(D49,Hist_Cur_CNTS!BG:BO,8,FALSE)/100 -> 0.999 | BF49: =VLOOKUP(D49,Hist_Cur_CNTS!BG:BO,9,FALSE)/100 -> 0.035 | BG49: UA_S2WAC2_1W_2L_U_WL_0R | BH49: =IF($P49="U", VLOOKUP(Facility("TA",$W49,$X49,$Y49,$Z49,$AA49,$AB49),GSV_Database!C:X,22,FALSE),VLOOKUP(BG49,GSV_Database!C:X,22,FALSE)) -> 1 | BI49: 01040000-0.09-0.184 | BJ49: 1 | BK49: 0
A50: ** | B50: 01040000 | D50: 15025 | E50: US 17 | F50: OLYMPIA AVE | G50: US 41 (Tamiami Trail) | H50: 0.184 | I50: Cooper St | J50: 0.882 | K50: 0.698 | L50: N | N50: Principal Arterial-other | O50: 35 | P50: UA | Q50: A | R50: D | S50: D | T50: D | U50: 2 | V50: 2.865329513 | W50: 2 | X50: U | Y50: 1W | Z50: 0L | AA50: 0R | AB50: 3 | AC50: =Service_Volume($P50,$W50,$X50,$Y50,Z50,AA50,AB50,R50,$AG$4,GSV_Database!C:V) -> 30000 | AD50: =IF($AG$4="Daily",VLOOKUP(D50,Hist_Cur_CNTS!BG:BL,2,FALSE),IF($AG$4="Peak Hour Two-Way",VLOOKUP(D50,Hist_Cur_CNTS!BG:BL,3,FALSE),VLOOKUP(D50,Hist_Cur_CNTS!BG:BL,4,FALSE))) -> 9800 | AE50: =LOS($P50,$W50,$X50,$Y50,Z50,AA50,AB50,AD50,$AG$4,GSV_Database!C:V) -> C | AH50: 32.66666667 | AI50: 3 | AJ50: D | AK50: =Service_Volume($P50,$W50,$AL50,$Y50,AM50,AN50,AI50,AJ50,$AG$4,GSV_Database!C:V) -> 30000 | AL50: U | AM50: 0L | AN50: 0R | AO50: =IF($AG$4="Daily",VLOOKUP(D50,Hist_Cur_CNTS!BG:BL,5,FALSE),IF($AG$4="Peak Hour Two-Way",ROUND(VLOOKUP(D50,Hist_Cur_CNTS!BG:BL,5,FALSE) *BD50,0),ROUND(VLOOKUP(D50,Hist_Cur_CNTS!BG:BL,5,FALSE)*BD50*IF(Y50="1W",1,IF(P50="RDA",0.55,IF(OR(Q50="H",Q50="F"),VLOOKUP(P50&"_"&Q50,GSV_Database!AA:AB,2,FALSE),VLOOKUP(P50&"_"&Charlotte!W50&"_"&Charlotte!AI50,GSV_Database!AA:AB,2,FALSE)))),0))) -> 11000 | AP50: =LOS($P50,$W50,$AL50,$Y50,AM50,AN50,AI50,AO50,$AG$4,GSV_Database!C:V) -> C | AQ50: 3 | AR50: D | AS50: =Service_Volume($P50,$W50,$AT50,$Y50,AU50,AV50,AQ50,AR50,$AG$4,GSV_Database!C:V) -> 30000 | AT50: U | AU50: 0L | AV50: 0R | AW50: =IF($AG$4="Daily",VLOOKUP(D50,Hist_Cur_CNTS!BG:BL,6,FALSE),IF($AG$4="Peak Hour Two-Way",ROUND(VLOOKUP(D50,Hist_Cur_CNTS!BG:BL,6,FALSE) *BD50,0),ROUND(VLOOKUP(D50,Hist_Cur_CNTS!BG:BL,6,FALSE)*BD50*IF(Y50="1W",1,IF(P50="RDA",0.55,IF(OR(Q50="H",Q50="F"),VLOOKUP(P50&"_"&Q50,GSV_Database!AA:AB,2,FALSE),VLOOKUP(P50&"_"&Charlotte!W50&"_"&Charlotte!AQ50,GSV_Database!AA:AB,2,FALSE)))),0))) -> 14300 | AX50: =LOS($P50,$W50,$AT50,$Y50,AU50,AV50,AQ50,AW50,$AG$4,GSV_Database!C:V) -> D | AY50: =VLOOKUP(D50,Hist_Cur_CNTS!BG:BQ,11,FALSE) -> 7635 | AZ50: =VLOOKUP(D50,Hist_Cur_CNTS!BG:BQ,10,FALSE) -> 0.89 | BA50: 6795 | BB50: =IF($AG$4="Daily",BA50,IF($AG$4="Peak Hour Two-Way",ROUND(BA50 *BD50,0),ROUND(BA50*BD50*IF(Y50="1W",1,IF(P50="RDA",0.55,IF(OR(Q50="H",Q50="F"),VLOOKUP(P50&"_"&Q50,GSV_Database!AA:AB,2,FALSE),VLOOKUP(P50&"_"&Charlotte!W50&"_"&Charlotte!AQ50,GSV_Database!AA:AB,2,FALSE)))),0))) -> 6795 | BC50: =LOS($P50,$W50,$AT50,$Y50,AU50,AV50,AQ50,BB50,$AG$4,GSV_Database!C:V) -> C | BD50: =VLOOKUP(D50,Hist_Cur_CNTS!BG:BO,7,FALSE)/100 -> 0.09 | BE50: =VLOOKUP(D50,Hist_Cur_CNTS!BG:BO,8,FALSE)/100 -> 0.999 | BF50: =VLOOKUP(D50,Hist_Cur_CNTS!BG:BO,9,FALSE)/100 -> 0.049 | BG50: UA_S2WAC2_1W_3L_U_0L_0R | BH50: =IF($P50="U", VLOOKUP(Facility("TA",$W50,$X50,$Y50,$Z50,$AA50,$AB50),GSV_Database!C:X,22,FALSE),VLOOKUP(BG50,GSV_Database!C:X,22,FALSE)) -> 1 | BI50: 01040000-0.184-0.882 | BJ50: 1 | BK50: 0
A51: ** | B51: 01040000 | D51: 15036 | E51: US 17 | F51: OLYMPIA AVE | G51: Cooper St | H51: 0.882 | I51: SR 35/US 17 (Marion Ave) | J51: 1.532 | K51: 0.65 | L51: N | N51: Principal Arterial-other | O51: 45 | P51: UA | Q51: A | R51: D | S51: D | T51: D | V51: 0 | W51: 1 | X51: U | Y51: 1W | Z51: 0L | AA51: 0R | AB51: 3 | AC51: =Service_Volume($P51,$W51,$X51,$Y51,Z51,AA51,AB51,R51,$AG$4,GSV_Database!C:V) -> 35940 | AD51: =IF($AG$4="Daily",VLOOKUP(D51,Hist_Cur_CNTS!BG:BL,2,FALSE),IF($AG$4="Peak Hour Two-Way",VLOOKUP(D51,Hist_Cur_CNTS!BG:BL,3,FALSE),VLOOKUP(D51,Hist_Cur_CNTS!BG:BL,4,FALSE))) -> 11000 | AE51: =LOS($P51,$W51,$X51,$Y51,Z51,AA51,AB51,AD51,$AG$4,GSV_Database!C:V) -> C | AH51: 30.6065665 | AI51: 3 | AJ51: D | AK51: =Service_Volume($P51,$W51,$AL51,$Y51,AM51,AN51,AI51,AJ51,$AG$4,GSV_Database!C:V) -> 35940 | AL51: U | AM51: 0L | AN51: 0R | AO51: =IF($AG$4="Daily",VLOOKUP(D51,Hist_Cur_CNTS!BG:BL,5,FALSE),IF($AG$4="Peak Hour Two-Way",ROUND(VLOOKUP(D51,Hist_Cur_CNTS!BG:BL,5,FALSE) *BD51,0),ROUND(VLOOKUP(D51,Hist_Cur_CNTS!BG:BL,5,FALSE)*BD51*IF(Y51="1W",1,IF(P51="RDA",0.55,IF(OR(Q51="H",Q51="F"),VLOOKUP(P51&"_"&Q51,GSV_Database!AA:AB,2,FALSE),VLOOKUP(P51&"_"&Charlotte!W51&"_"&Charlotte!AI51,GSV_Database!AA:AB,2,FALSE)))),0))) -> 12300 | AP51: =LOS($P51,$W51,$AL51,$Y51,AM51,AN51,AI51,AO51,$AG$4,GSV_Database!C:V) -> C | AQ51: 3 | AR51: D | AS51: =Service_Volume($P51,$W51,$AT51,$Y51,AU51,AV51,AQ51,AR51,$AG$4,GSV_Database!C:V) -> 35940 | AT51: U | AU51: 0L | AV51: 0R | AW51: =IF($AG$4="Daily",VLOOKUP(D51,Hist_Cur_CNTS!BG:BL,6,FALSE),IF($AG$4="Peak Hour Two-Way",ROUND(VLOOKUP(D51,Hist_Cur_CNTS!BG:BL,6,FALSE) *BD51,0),ROUND(VLOOKUP(D51,Hist_Cur_CNTS!BG:BL,6,FALSE)*BD51*IF(Y51="1W",1,IF(P51="RDA",0.55,IF(OR(Q51="H",Q51="F"),VLOOKUP(P51&"_"&Q51,GSV_Database!AA:AB,2,FALSE),VLOOKUP(P51&"_"&Charlotte!W51&"_"&Charlotte!AQ51,GSV_Database!AA:AB,2,FALSE)))),0))) -> 16100 | AX51: =LOS($P51,$W51,$AT51,$Y51,AU51,AV51,AQ51,AW51,$AG$4,GSV_Database!C:V) -> C | AY51: =VLOOKUP(D51,Hist_Cur_CNTS!BG:BQ,11,FALSE) -> 8805 | AZ51: =VLOOKUP(D51,Hist_Cur_CNTS!BG:BQ,10,FALSE) -> 0.89 | BA51: 7836 | BB51: =IF($AG$4="Daily",BA51,IF($AG$4="Peak Hour Two-Way",ROUND(BA51 *BD51,0),ROUND(BA51*BD51*IF(Y51="1W",1,IF(P51="RDA",0.55,IF(OR(Q51="H",Q51="F"),VLOOKUP(P51&"_"&Q51,GSV_Database!AA:AB,2,FALSE),VLOOKUP(P51&"_"&Charlotte!W51&"_"&Charlotte!AQ51,GSV_Database!AA:AB,2,FALSE)))),0))) -> 7836 | BC51: =LOS($P51,$W51,$AT51,$Y51,AU51,AV51,AQ51,BB51,$AG$4,GSV_Database!C:V) -> C | BD51: =VLOOKUP(D51,Hist_Cur_CNTS!BG:BO,7,FALSE)/100 -> 0.09 | BE51: =VLOOKUP(D51,Hist_Cur_CNTS!BG:BO,8,FALSE)/100 -> 0.999 | BF51: =VLOOKUP(D51,Hist_Cur_CNTS!BG:BO,9,FALSE)/100 -> 0.049 | BG51: UA_S2WAC1_1W_3L_U_0L_0R | BH51: =IF($P51="U", VLOOKUP(Facility("TA",$W51,$X51,$Y51,$Z51,$AA51,$AB51),GSV_Database!C:X,22,FALSE),VLOOKUP(BG51,GSV_Database!C:X,22,FALSE)) -> 1 | BI51: 01040000-0.882-1.532 | BJ51: 1 | BK51: 0
A52: ** | B52: 01040000 | E52: US 17 | F52: OLYMPIA AVE | G52: US 41 ( Cross St) | H52: 0 | I52: =I51 -> SR 35/US 17 (Marion Ave) | J52: 1.532 | K52: 1.532 | L52: N | N52: Principal Arterial-other | O52: 35 | P52: UA | Q52: A | R52: D | S52: D | T52: D | U52: =SUM(U48:U51) -> 5 | V52: 3.263707572 | W52: 2 | X52: U | Y52: 1W | Z52: WL | AA52: 0R | AB52: 3 | AC52: =Service_Volume($P52,$W52,$X52,$Y52,Z52,AA52,AB52,R52,$AG$4,GSV_Database!C:V) -> 30000 | AD52: =wtavg(AD48:AD51,K48:K51) -> 10453.26371 | AE52: =LOS($P52,$W52,$X52,$Y52,Z52,AA52,AB52,AD52,$AG$4,GSV_Database!C:V) -> C | AH52: 34.84421236 | AI52: 3 | AJ52: D | AK52: =Service_Volume($P52,$W52,$AL52,$Y52,AM52,AN52,AI52,AJ52,$AG$4,GSV_Database!C:V) -> 30000 | AL52: U | AM52: WL | AN52: 0R | AO52: =wtavg(AO48:AO51,K48:K51) -> 11707.70235 | AP52: =LOS($P52,$W52,$AL52,$Y52,AM52,AN52,AI52,AO52,$AG$4,GSV_Database!C:V) -> C | AQ52: 3 | AR52: D | AS52: =Service_Volume($P52,$W52,$AT52,$Y52,AU52,AV52,AQ52,AR52,$AG$4,GSV_Database!C:V) -> 30000 | AT52: U | AU52: WL | AV52: 0R | AW52: =wtavg(AW48:AW51,$K48:$K51) -> 15279.89556 | AX52: =LOS($P52,$W52,$AT52,$Y52,AU52,AV52,AQ52,AW52,$AG$4,GSV_Database!C:V) -> D | AY52: =wtavg(AY48:AY51,$K48:$K51) -> 9037.83812 | AZ52: =wtavg(AZ48:AZ51,$K48:$K51) -> 0.89 | BA52: 8044 | BB52: =wtavg(BB48:BB51,$K48:$K51) -> 8043.41906 | BC52: =LOS($P52,$W52,$AT52,$Y52,AU52,AV52,AQ52,BB52,$AG$4,GSV_Database!C:V) -> C | BD52: =wtavg(BD48:BD51,$K48:$K51) -> 0.09 | BE52: =wtavg(BE48:BE51,$K48:$K51) -> 0.999 | BF52: =wtavg(BF48:BF51,$K48:$K51) -> 0.04731853786 | BG52: UA_S2WAC2_1W_3L_U_WL_0R | BH52: =IF($P52="U", VLOOKUP(Facility("TA",$W52,$X52,$Y52,$Z52,$AA52,$AB52),GSV_Database!C:X,22,FALSE),VLOOKUP(BG52,GSV_Database!C:X,22,FALSE)) -> 1 | BI52: 01040000-0-1.532 | BJ52: 1 | BK52: 0
B53: 01040000 | D53: 15024 | E53: US 17 | G53: =I52 -> SR 35/US 17 (Marion Ave) | H53: 1.532 | I53: I - 75 | J53: 2.275 | K53: 0.743 | L53: N | N53: Principal Arterial-other | O53: 55 | P53: UA | Q53: A | R53: D | S53: D | U53: 1 | V53: 1.34589502 | W53: 1 | X53: D | Y53: 2W | Z53: WL | AA53: WR | AB53: 6 | AC53: =Service_Volume($P53,$W53,$X53,$Y53,Z53,AA53,AB53,R53,$AG$4,GSV_Database!C:V) -> 62895 | AD53: =IF($AG$4="Daily",VLOOKUP(D53,Hist_Cur_CNTS!BG:BL,2,FALSE),IF($AG$4="Peak Hour Two-Way",VLOOKUP(D53,Hist_Cur_CNTS!BG:BL,3,FALSE),VLOOKUP(D53,Hist_Cur_CNTS!BG:BL,4,FALSE))) -> 20500 | AE53: =LOS($P53,$W53,$X53,$Y53,Z53,AA53,AB53,AD53,$AG$4,GSV_Database!C:V) -> C | AH53: 32.59400588 | AI53: 6 | AJ53: D | AK53: =Service_Volume($P53,$W53,$AL53,$Y53,AM53,AN53,AI53,AJ53,$AG$4,GSV_Database!C:V) -> 62895 | AL53: D | AM53: WL | AN53: WR | AO53: =IF($AG$4="Daily",VLOOKUP(D53,Hist_Cur_CNTS!BG:BL,5,FALSE),IF($AG$4="Peak Hour Two-Way",ROUND(VLOOKUP(D53,Hist_Cur_CNTS!BG:BL,5,FALSE) *BD53,0),ROUND(VLOOKUP(D53,Hist_Cur_CNTS!BG:BL,5,FALSE)*BD53*IF(Y53="1W",1,IF(P53="RDA",0.55,IF(OR(Q53="H",Q53="F"),VLOOKUP(P53&"_"&Q53,GSV_Database!AA:AB,2,FALSE),VLOOKUP(P53&"_"&Charlotte!W53&"_"&Charlotte!AI53,GSV_Database!AA:AB,2,FALSE)))),0))) -> 23000 | AP53: =LOS($P53,$W53,$AL53,$Y53,AM53,AN53,AI53,AO53,$AG$4,GSV_Database!C:V) -> C | AQ53: 6 | AR53: D | AS53: =Service_Volume($P53,$W53,$AT53,$Y53,AU53,AV53,AQ53,AR53,$AG$4,GSV_Database!C:V) -> 62895 | AT53: D | AU53: WL | AV53: WR | AW53: =IF($AG$4="Daily",VLOOKUP(D53,Hist_Cur_CNTS!BG:BL,6,FALSE),IF($AG$4="Peak Hour Two-Way",ROUND(VLOOKUP(D53,Hist_Cur_CNTS!BG:BL,6,FALSE) *BD53,0),ROUND(VLOOKUP(D53,Hist_Cur_CNTS!BG:BL,6,FALSE)*BD53*IF(Y53="1W",1,IF(P53="RDA",0.55,IF(OR(Q53="H",Q53="F"),VLOOKUP(P53&"_"&Q53,GSV_Database!AA:AB,2,FALSE),VLOOKUP(P53&"_"&Charlotte!W53&"_"&Charlotte!AQ53,GSV_Database!AA:AB,2,FALSE)))),0))) -> 29900 | AX53: =LOS($P53,$W53,$AT53,$Y53,AU53,AV53,AQ53,AW53,$AG$4,GSV_Database!C:V) -> C | AY53: =VLOOKUP(D53,Hist_Cur_CNTS!BG:BQ,11,FALSE) -> 23515 | AZ53: =VLOOKUP(D53,Hist_Cur_CNTS!BG:BQ,10,FALSE) -> 0.89 | BA53: 20928 | BB53: =IF($AG$4="Daily",BA53,IF($AG$4="Peak Hour Two-Way",ROUND(BA53 *BD53,0),ROUND(BA53*BD53*IF(Y53="1W",1,IF(P53="RDA",0.55,IF(OR(Q53="H",Q53="F"),VLOOKUP(P53&"_"&Q53,GSV_Database!AA:AB,2,FALSE),VLOOKUP(P53&"_"&Charlotte!W53&"_"&Charlotte!AQ53,GSV_Database!AA:AB,2,FALSE)))),0))) -> 20928 | BC53: =LOS($P53,$W53,$AT53,$Y53,AU53,AV53,AQ53,BB53,$AG$4,GSV_Database!C:V) -> C | BD53: =VLOOKUP(D53,Hist_Cur_CNTS!BG:BO,7,FALSE)/100 -> 0.09 | BE53: =VLOOKUP(D53,Hist_Cur_CNTS!BG:BO,8,FALSE)/100 -> 0.522 | BF53: =VLOOKUP(D53,Hist_Cur_CNTS!BG:BO,9,FALSE)/100 -> 0.054 | BG53: UA_S2WAC1_2W_6L_D_WL_WR | BH53: =IF($P53="U", VLOOKUP(Facility("TA",$W53,$X53,$Y53,$Z53,$AA53,$AB53),GSV_Database!C:X,22,FALSE),VLOOKUP(BG53,GSV_Database!C:X,22,FALSE)) -> 3 | BI53: 01040000-1.532-2.275 | BJ53: 3 | BK53: 0
B54: 01040000 | D54: 15024 | E54: US 17 | G54: I - 75 | H54: 2.275 | I54: Copeley Ave | J54: 2.558 | K54: 0.283 | L54: Y | M54: SIS | N54: Principal Arterial-other | O54: 55 | P54: UA | Q54: A | R54: D | S54: D | U54: 1 | V54: 3.533568905 | W54: 1 | X54: D | Y54: 2W | Z54: WL | AA54: 0R | AB54: 6 | AC54: =Service_Volume($P54,$W54,$X54,$Y54,Z54,AA54,AB54,R54,$AG$4,GSV_Database!C:V) -> 59900 | AD54: =IF($AG$4="Daily",VLOOKUP(D54,Hist_Cur_CNTS!BG:BL,2,FALSE),IF($AG$4="Peak Hour Two-Way",VLOOKUP(D54,Hist_Cur_CNTS!BG:BL,3,FALSE),VLOOKUP(D54,Hist_Cur_CNTS!BG:BL,4,FALSE))) -> 20500 | AE54: =LOS($P54,$W54,$X54,$Y54,Z54,AA54,AB54,AD54,$AG$4,GSV_Database!C:V) -> C | AH54: 34.22370618 | AI54: 6 | AJ54: D | AK54: =Service_Volume($P54,$W54,$AL54,$Y54,AM54,AN54,AI54,AJ54,$AG$4,GSV_Database!C:V) -> 59900 | AL54: D | AM54: WL | AN54: 0R | AO54: =IF($AG$4="Daily",VLOOKUP(D54,Hist_Cur_CNTS!BG:BL,5,FALSE),IF($AG$4="Peak Hour Two-Way",ROUND(VLOOKUP(D54,Hist_Cur_CNTS!BG:BL,5,FALSE) *BD54,0),ROUND(VLOOKUP(D54,Hist_Cur_CNTS!BG:BL,5,FALSE)*BD54*IF(Y54="1W",1,IF(P54="RDA",0.55,IF(OR(Q54="H",Q54="F"),VLOOKUP(P54&"_"&Q54,GSV_Database!AA:AB,2,FALSE),VLOOKUP(P54&"_"&Charlotte!W54&"_"&Charlotte!AI54,GSV_Database!AA:AB,2,FALSE)))),0))) -> 23000 | AP54: =LOS($P54,$W54,$AL54,$Y54,AM54,AN54,AI54,AO54,$AG$4,GSV_Database!C:V) -> C | AQ54: 6 | AR54: D | AS54: =Service_Volume($P54,$W54,$AT54,$Y54,AU54,AV54,AQ54,AR54,$AG$4,GSV_Database!C:V) -> 59900 | AT54: D | AU54: WL | AV54: 0R | AW54: =IF($AG$4="Daily",VLOOKUP(D54,Hist_Cur_CNTS!BG:BL,6,FALSE),IF($AG$4="Peak Hour Two-Way",ROUND(VLOOKUP(D54,Hist_Cur_CNTS!BG:BL,6,FALSE) *BD54,0),ROUND(VLOOKUP(D54,Hist_Cur_CNTS!BG:BL,6,FALSE)*BD54*IF(Y54="1W",1,IF(P54="RDA",0.55,IF(OR(Q54="H",Q54="F"),VLOOKUP(P54&"_"&Q54,GSV_Database!AA:AB,2,FALSE),VLOOKUP(P54&"_"&Charlotte!W54&"_"&Charlotte!AQ54,GSV_Database!AA:AB,2,FALSE)))),0))) -> 29900 | AX54: =LOS($P54,$W54,$AT54,$Y54,AU54,AV54,AQ54,AW54,$AG$4,GSV_Database!C:V) -> C | AY54: =VLOOKUP(D54,Hist_Cur_CNTS!BG:BQ,11,FALSE) -> 23515 | AZ54: =VLOOKUP(D54,Hist_Cur_CNTS!BG:BQ,10,FALSE) -> 0.89 | BA54: 20928 | BB54: =IF($AG$4="Daily",BA54,IF($AG$4="Peak Hour Two-Way",ROUND(BA54 *BD54,0),ROUND(BA54*BD54*IF(Y54="1W",1,IF(P54="RDA",0.55,IF(OR(Q54="H",Q54="F"),VLOOKUP(P54&"_"&Q54,GSV_Database!AA:AB,2,FALSE),VLOOKUP(P54&"_"&Charlotte!W54&"_"&Charlotte!AQ54,GSV_Database!AA:AB,2,FALSE)))),0))) -> 20928 | BC54: =LOS($P54,$W54,$AT54,$Y54,AU54,AV54,AQ54,BB54,$AG$4,GSV_Database!C:V) -> C | BD54: =VLOOKUP(D54,Hist_Cur_CNTS!BG:BO,7,FALSE)/100 -> 0.09 | BE54: =VLOOKUP(D54,Hist_Cur_CNTS!BG:BO,8,FALSE)/100 -> 0.522 | BF54: =VLOOKUP(D54,Hist_Cur_CNTS!BG:BO,9,FALSE)/100 -> 0.054 | BG54: UA_S2WAC1_2W_6L_D_WL_0R | BH54: =IF($P54="U", VLOOKUP(Facility("TA",$W54,$X54,$Y54,$Z54,$AA54,$AB54),GSV_Database!C:X,22,FALSE),VLOOKUP(BG54,GSV_Database!C:X,22,FALSE)) -> 0 | BI54: 01040000-2.275-2.558 | BJ54: 0 | BK54: 0
B55: 01040000 | D55: 15015 | E55: US 17 | G55: Copeley Ave | H55: 2.558 | I55: CR 74 (Bermont Rd) | J55: 3.436 | K55: 0.878 | L55: Y | M55: SIS | N55: Principal Arterial-other | O55: 55 | P55: UA | Q55: A | R55: D | S55: D | U55: 2 | V55: 2.277904328 | W55: 1 | X55: D | Y55: 2W | Z55: WL | AA55: WR | AB55: 4 | AC55: =Service_Volume($P55,$W55,$X55,$Y55,Z55,AA55,AB55,R55,$AG$4,GSV_Database!C:V) -> 41790 | AD55: =IF($AG$4="Daily",VLOOKUP(D55,Hist_Cur_CNTS!BG:BL,2,FALSE),IF($AG$4="Peak Hour Two-Way",VLOOKUP(D55,Hist_Cur_CNTS!BG:BL,3,FALSE),VLOOKUP(D55,Hist_Cur_CNTS!BG:BL,4,FALSE))) -> 22000 | AE55: =LOS($P55,$W55,$X55,$Y55,Z55,AA55,AB55,AD55,$AG$4,GSV_Database!C:V) -> C | AH55: 52.64417325 | AI55: 4 | AJ55: D | AK55: =Service_Volume($P55,$W55,$AL55,$Y55,AM55,AN55,AI55,AJ55,$AG$4,GSV_Database!C:V) -> 41790 | AL55: D | AM55: WL | AN55: WR | AO55: =IF($AG$4="Daily",VLOOKUP(D55,Hist_Cur_CNTS!BG:BL,5,FALSE),IF($AG$4="Peak Hour Two-Way",ROUND(VLOOKUP(D55,Hist_Cur_CNTS!BG:BL,5,FALSE) *BD55,0),ROUND(VLOOKUP(D55,Hist_Cur_CNTS!BG:BL,5,FALSE)*BD55*IF(Y55="1W",1,IF(P55="RDA",0.55,IF(OR(Q55="H",Q55="F"),VLOOKUP(P55&"_"&Q55,GSV_Database!AA:AB,2,FALSE),VLOOKUP(P55&"_"&Charlotte!W55&"_"&Charlotte!AI55,GSV_Database!AA:AB,2,FALSE)))),0))) -> 24600 | AP55: =LOS($P55,$W55,$AL55,$Y55,AM55,AN55,AI55,AO55,$AG$4,GSV_Database!C:V) -> C | AQ55: 6 | AR55: D | AS55: =Service_Volume($P55,$W55,$AT55,$Y55,AU55,AV55,AQ55,AR55,$AG$4,GSV_Database!C:V) -> 62895 | AT55: D | AU55: WL | AV55: WR | AW55: =IF($AG$4="Daily",VLOOKUP(D55,Hist_Cur_CNTS!BG:BL,6,FALSE),IF($AG$4="Peak Hour Two-Way",ROUND(VLOOKUP(D55,Hist_Cur_CNTS!BG:BL,6,FALSE) *BD55,0),ROUND(VLOOKUP(D55,Hist_Cur_CNTS!BG:BL,6,FALSE)*BD55*IF(Y55="1W",1,IF(P55="RDA",0.55,IF(OR(Q55="H",Q55="F"),VLOOKUP(P55&"_"&Q55,GSV_Database!AA:AB,2,FALSE),VLOOKUP(P55&"_"&Charlotte!W55&"_"&Charlotte!AQ55,GSV_Database!AA:AB,2,FALSE)))),0))) -> 32100 | AX55: =LOS($P55,$W55,$AT55,$Y55,AU55,AV55,AQ55,AW55,$AG$4,GSV_Database!C:V) -> C | AY55: =VLOOKUP(D55,Hist_Cur_CNTS!BG:BQ,11,FALSE) -> 29135 | AZ55: =VLOOKUP(D55,Hist_Cur_CNTS!BG:BQ,10,FALSE) -> 0.9 | BA55: 26222 | BB55: =IF($AG$4="Daily",BA55,IF($AG$4="Peak Hour Two-Way",ROUND(BA55 *BD55,0),ROUND(BA55*BD55*IF(Y55="1W",1,IF(P55="RDA",0.55,IF(OR(Q55="H",Q55="F"),VLOOKUP(P55&"_"&Q55,GSV_Database!AA:AB,2,FALSE),VLOOKUP(P55&"_"&Charlotte!W55&"_"&Charlotte!AQ55,GSV_Database!AA:AB,2,FALSE)))),0))) -> 26222 | BC55: =LOS($P55,$W55,$AT55,$Y55,AU55,AV55,AQ55,BB55,$AG$4,GSV_Database!C:V) -> C | BD55: =VLOOKUP(D55,Hist_Cur_CNTS!BG:BO,7,FALSE)/100 -> 0.09 | BE55: =VLOOKUP(D55,Hist_Cur_CNTS!BG:BO,8,FALSE)/100 -> 0.514 | BF55: =VLOOKUP(D55,Hist_Cur_CNTS!BG:BO,9,FALSE)/100 -> 0.151 | BG55: UA_S2WAC1_2W_4L_D_WL_WR | BH55: =IF($P55="U", VLOOKUP(Facility("TA",$W55,$X55,$Y55,$Z55,$AA55,$AB55),GSV_Database!C:X,22,FALSE),VLOOKUP(BG55,GSV_Database!C:X,22,FALSE)) -> 3 | BI55: 01040000-2.558-3.436 | BJ55: 3 | BK55: 0
B56: 01040000 | D56: 10010 | E56: US 17 | G56: CR 74 (Bermont Rd) | H56: 3.436 | I56: CR 764 (Washington Loop Rd) | J56: 6.425 | K56: 2.989 | L56: Y | M56: SIS | N56: Principal Arterial-other | O56: 55 | P56: UA | Q56: H | R56: D | S56: D | V56: =U56/K56 -> 0 | X56: D | Y56: 2W | Z56: WL | AA56: WR | AB56: 4 | AC56: =Service_Volume($P56,$W56,$X56,$Y56,Z56,AA56,AB56,R56,$AG$4,GSV_Database!C:V) -> 65600 | AD56: =IF($AG$4="Daily",VLOOKUP(D56,Hist_Cur_CNTS!BG:BL,2,FALSE),IF($AG$4="Peak Hour Two-Way",VLOOKUP(D56,Hist_Cur_CNTS!BG:BL,3,FALSE),VLOOKUP(D56,Hist_Cur_CNTS!BG:BL,4,FALSE))) -> 17300 | AE56: =LOS($P56,$W56,$X56,$Y56,Z56,AA56,AB56,AD56,$AG$4,GSV_Database!C:V) -> B | AH56: 26.37195122 | AI56: 4 | AJ56: D | AK56: =Service_Volume($P56,$W56,$AL56,$Y56,AM56,AN56,AI56,AJ56,$AG$4,GSV_Database!C:V) -> 65600 | AL56: D | AM56: WL | AN56: WR | AO56: =IF($AG$4="Daily",VLOOKUP(D56,Hist_Cur_CNTS!BG:BL,5,FALSE),IF($AG$4="Peak Hour Two-Way",ROUND(VLOOKUP(D56,Hist_Cur_CNTS!BG:BL,5,FALSE) *BD56,0),ROUND(VLOOKUP(D56,Hist_Cur_CNTS!BG:BL,5,FALSE)*BD56*IF(Y56="1W",1,IF(P56="RDA",0.55,IF(OR(Q56="H",Q56="F"),VLOOKUP(P56&"_"&Q56,GSV_Database!AA:AB,2,FALSE),VLOOKUP(P56&"_"&Charlotte!W56&"_"&Charlotte!AI56,GSV_Database!AA:AB,2,FALSE)))),0))) -> 19400 | AP56: =LOS($P56,$W56,$AL56,$Y56,AM56,AN56,AI56,AO56,$AG$4,GSV_Database!C:V) -> B | AQ56: 4 | AR56: D | AS56: =Service_Volume($P56,$W56,$AT56,$Y56,AU56,AV56,AQ56,AR56,$AG$4,GSV_Database!C:V) -> 65600 | AT56: D | AU56: WL | AV56: WR | AW56: =IF($AG$4="Daily",VLOOKUP(D56,Hist_Cur_CNTS!BG:BL,6,FALSE),IF($AG$4="Peak Hour Two-Way",ROUND(VLOOKUP(D56,Hist_Cur_CNTS!BG:BL,6,FALSE) *BD56,0),ROUND(VLOOKUP(D56,Hist_Cur_CNTS!BG:BL,6,FALSE)*BD56*IF(Y56="1W",1,IF(P56="RDA",0.55,IF(OR(Q56="H",Q56="F"),VLOOKUP(P56&"_"&Q56,GSV_Database!AA:AB,2,FALSE),VLOOKUP(P56&"_"&Charlotte!W56&"_"&Charlotte!AQ56,GSV_Database!AA:AB,2,FALSE)))),0))) -> 25300 | AX56: =LOS($P56,$W56,$AT56,$Y56,AU56,AV56,AQ56,AW56,$AG$4,GSV_Database!C:V) -> B | AY56: =VLOOKUP(D56,Hist_Cur_CNTS!BG:BQ,11,FALSE) -> 20878 | AZ56: =VLOOKUP(D56,Hist_Cur_CNTS!BG:BQ,10,FALSE) -> 0.9 | BA56: 18790 | BB56: =IF($AG$4="Daily",BA56,IF($AG$4="Peak Hour Two-Way",ROUND(BA56 *BD56,0),ROUND(BA56*BD56*IF(Y56="1W",1,IF(P56="RDA",0.55,IF(OR(Q56="H",Q56="F"),VLOOKUP(P56&"_"&Q56,GSV_Database!AA:AB,2,FALSE),VLOOKUP(P56&"_"&Charlotte!W56&"_"&Charlotte!AQ56,GSV_Database!AA:AB,2,FALSE)))),0))) -> 18790 | BC56: =LOS($P56,$W56,$AT56,$Y56,AU56,AV56,AQ56,BB56,$AG$4,GSV_Database!C:V) -> B | BD56: =VLOOKUP(D56,Hist_Cur_CNTS!BG:BO,7,FALSE)/100 -> 0.09 | BE56: =VLOOKUP(D56,Hist_Cur_CNTS!BG:BO,8,FALSE)/100 -> 0.514 | BF56: =VLOOKUP(D56,Hist_Cur_CNTS!BG:BO,9,FALSE)/100 -> 0.14 | BG56: UA_UFH_2W_4L_D_WL_WR | BH56: =IF($P56="U", VLOOKUP(Facility("TA",$W56,$X56,$Y56,$Z56,$AA56,$AB56),GSV_Database!C:X,22,FALSE),VLOOKUP(BG56,GSV_Database!C:X,22,FALSE)) -> 0 | BI56: 01040000-3.436-6.425 | BJ56: 0 | BK56: 0
A57: ** | B57: 01040101 | D57: 15037 | E57: US 17 | F57: MARION AV/SR35/US17W | G57: SR 35/US 17 | H57: 0 | I57: Cooper St | J57: 0.708 | K57: 0.708 | L57: N | N57: Principal Arterial-other | O57: 45 | P57: UA | Q57: A | R57: D | S57: D | T57: D | U57: 1 | V57: 1.412429379 | W57: 1 | X57: U | Y57: 1W | Z57: 0L | AA57: 0R | AB57: 3 | AC57: =Service_Volume($P57,$W57,$X57,$Y57,Z57,AA57,AB57,R57,$AG$4,GSV_Database!C:V) -> 35940 | AD57: =IF($AG$4="Daily",VLOOKUP(D57,Hist_Cur_CNTS!BG:BL,2,FALSE),IF($AG$4="Peak Hour Two-Way",VLOOKUP(D57,Hist_Cur_CNTS!BG:BL,3,FALSE),VLOOKUP(D57,Hist_Cur_CNTS!BG:BL,4,FALSE))) -> 12000 | AE57: =LOS($P57,$W57,$X57,$Y57,Z57,AA57,AB57,AD57,$AG$4,GSV_Database!C:V) -> C | AH57: 33.38898164 | AI57: 3 | AJ57: D | AK57: =Service_Volume($P57,$W57,$AL57,$Y57,AM57,AN57,AI57,AJ57,$AG$4,GSV_Database!C:V) -> 35940 | AL57: U | AM57: 0L | AN57: 0R | AO57: =IF($AG$4="Daily",VLOOKUP(D57,Hist_Cur_CNTS!BG:BL,5,FALSE),IF($AG$4="Peak Hour Two-Way",ROUND(VLOOKUP(D57,Hist_Cur_CNTS!BG:BL,5,FALSE) *BD57,0),ROUND(VLOOKUP(D57,Hist_Cur_CNTS!BG:BL,5,FALSE)*BD57*IF(Y57="1W",1,IF(P57="RDA",0.55,IF(OR(Q57="H",Q57="F"),VLOOKUP(P57&"_"&Q57,GSV_Database!AA:AB,2,FALSE),VLOOKUP(P57&"_"&Charlotte!W57&"_"&Charlotte!AI57,GSV_Database!AA:AB,2,FALSE)))),0))) -> 13400 | AP57: =LOS($P57,$W57,$AL57,$Y57,AM57,AN57,AI57,AO57,$AG$4,GSV_Database!C:V) -> C | AQ57: 3 | AR57: D | AS57: =Service_Volume($P57,$W57,$AT57,$Y57,AU57,AV57,AQ57,AR57,$AG$4,GSV_Database!C:V) -> 35940 | AT57: U | AU57: 0L | AV57: 0R | AW57: =IF($AG$4="Daily",VLOOKUP(D57,Hist_Cur_CNTS!BG:BL,6,FALSE),IF($AG$4="Peak Hour Two-Way",ROUND(VLOOKUP(D57,Hist_Cur_CNTS!BG:BL,6,FALSE) *BD57,0),ROUND(VLOOKUP(D57,Hist_Cur_CNTS!BG:BL,6,FALSE)*BD57*IF(Y57="1W",1,IF(P57="RDA",0.55,IF(OR(Q57="H",Q57="F"),VLOOKUP(P57&"_"&Q57,GSV_Database!AA:AB,2,FALSE),VLOOKUP(P57&"_"&Charlotte!W57&"_"&Charlotte!AQ57,GSV_Database!AA:AB,2,FALSE)))),0))) -> 17500 | AX57: =LOS($P57,$W57,$AT57,$Y57,AU57,AV57,AQ57,AW57,$AG$4,GSV_Database!C:V) -> C | AY57: =VLOOKUP(D57,Hist_Cur_CNTS!BG:BQ,11,FALSE) -> 9884 | AZ57: =VLOOKUP(D57,Hist_Cur_CNTS!BG:BQ,10,FALSE) -> 0.89 | BA57: 8797 | BB57: =IF($AG$4="Daily",BA57,IF($AG$4="Peak Hour Two-Way",ROUND(BA57 *BD57,0),ROUND(BA57*BD57*IF(Y57="1W",1,IF(P57="RDA",0.55,IF(OR(Q57="H",Q57="F"),VLOOKUP(P57&"_"&Q57,GSV_Database!AA:AB,2,FALSE),VLOOKUP(P57&"_"&Charlotte!W57&"_"&Charlotte!AQ57,GSV_Database!AA:AB,2,FALSE)))),0))) -> 8797 | BC57: =LOS($P57,$W57,$AT57,$Y57,AU57,AV57,AQ57,BB57,$AG$4,GSV_Database!C:V) -> C | BD57: =VLOOKUP(D57,Hist_Cur_CNTS!BG:BO,7,FALSE)/100 -> 0.09 | BE57: =VLOOKUP(D57,Hist_Cur_CNTS!BG:BO,8,FALSE)/100 -> 0.999 | BF57: =VLOOKUP(D57,Hist_Cur_CNTS!BG:BO,9,FALSE)/100 -> 0.05 | BG57: UA_S2WAC1_1W_3L_U_0L_0R | BH57: =IF($P57="U", VLOOKUP(Facility("TA",$W57,$X57,$Y57,$Z57,$AA57,$AB57),GSV_Database!C:X,22,FALSE),VLOOKUP(BG57,GSV_Database!C:X,22,FALSE)) -> 1 | BI57: 01040101-0-0.708 | BJ57: 1 | BK57: 0
A58: ** | B58: 01040101 | D58: 10015 | E58: US 17 | F58: MARION AV/SR35/US17W | G58: Cooper St | H58: 0.708 | I58: US 41 (Tamiami Trail) | J58: 1.484 | K58: 0.776 | L58: N | N58: Principal Arterial-other | O58: 35 | P58: UA | Q58: A | R58: D | S58: D | T58: D | U58: 2 | V58: 2.577319588 | W58: 2 | X58: U | Y58: 1W | Z58: 0L | AA58: WR | AB58: 3 | AC58: =Service_Volume($P58,$W58,$X58,$Y58,Z58,AA58,AB58,R58,$AG$4,GSV_Database!C:V) -> 31500 | AD58: =IF($AG$4="Daily",VLOOKUP(D58,Hist_Cur_CNTS!BG:BL,2,FALSE),IF($AG$4="Peak Hour Two-Way",VLOOKUP(D58,Hist_Cur_CNTS!BG:BL,3,FALSE),VLOOKUP(D58,Hist_Cur_CNTS!BG:BL,4,FALSE))) -> 10500 | AE58: =LOS($P58,$W58,$X58,$Y58,Z58,AA58,AB58,AD58,$AG$4,GSV_Database!C:V) -> C | AH58: 33.33333333 | AI58: 3 | AJ58: D | AK58: =Service_Volume($P58,$W58,$AL58,$Y58,AM58,AN58,AI58,AJ58,$AG$4,GSV_Database!C:V) -> 31500 | AL58: U | AM58: 0L | AN58: WR | AO58: =IF($AG$4="Daily",VLOOKUP(D58,Hist_Cur_CNTS!BG:BL,5,FALSE),IF($AG$4="Peak Hour Two-Way",ROUND(VLOOKUP(D58,Hist_Cur_CNTS!BG:BL,5,FALSE) *BD58,0),ROUND(VLOOKUP(D58,Hist_Cur_CNTS!BG:BL,5,FALSE)*BD58*IF(Y58="1W",1,IF(P58="RDA",0.55,IF(OR(Q58="H",Q58="F"),VLOOKUP(P58&"_"&Q58,GSV_Database!AA:AB,2,FALSE),VLOOKUP(P58&"_"&Charlotte!W58&"_"&Charlotte!AI58,GSV_Database!AA:AB,2,FALSE)))),0))) -> 11800 | AP58: =LOS($P58,$W58,$AL58,$Y58,AM58,AN58,AI58,AO58,$AG$4,GSV_Database!C:V) -> C | AQ58: 3 | AR58: D | AS58: =Service_Volume($P58,$W58,$AT58,$Y58,AU58,AV58,AQ58,AR58,$AG$4,GSV_Database!C:V) -> 31500 | AT58: U | AU58: 0L | AV58: WR | AW58: =IF($AG$4="Daily",VLOOKUP(D58,Hist_Cur_CNTS!BG:BL,6,FALSE),IF($AG$4="Peak Hour Two-Way",ROUND(VLOOKUP(D58,Hist_Cur_CNTS!BG:BL,6,FALSE) *BD58,0),ROUND(VLOOKUP(D58,Hist_Cur_CNTS!BG:BL,6,FALSE)*BD58*IF(Y58="1W",1,IF(P58="RDA",0.55,IF(OR(Q58="H",Q58="F"),VLOOKUP(P58&"_"&Q58,GSV_Database!AA:AB,2,FALSE),VLOOKUP(P58&"_"&Charlotte!W58&"_"&Charlotte!AQ58,GSV_Database!AA:AB,2,FALSE)))),0))) -> 15300 | AX58: =LOS($P58,$W58,$AT58,$Y58,AU58,AV58,AQ58,AW58,$AG$4,GSV_Database!C:V) -> D | AY58: =VLOOKUP(D58,Hist_Cur_CNTS!BG:BQ,11,FALSE) -> 7776 | AZ58: =VLOOKUP(D58,Hist_Cur_CNTS!BG:BQ,10,FALSE) -> 0.89 | BA58: 6921 | BB58: =IF($AG$4="Daily",BA58,IF($AG$4="Peak Hour Two-Way",ROUND(BA58 *BD58,0),ROUND(BA58*BD58*IF(Y58="1W",1,IF(P58="RDA",0.55,IF(OR(Q58="H",Q58="F"),VLOOKUP(P58&"_"&Q58,GSV_Database!AA:AB,2,FALSE),VLOOKUP(P58&"_"&Charlotte!W58&"_"&Charlotte!AQ58,GSV_Database!AA:AB,2,FALSE)))),0))) -> 6921 | BC58: =LOS($P58,$W58,$AT58,$Y58,AU58,AV58,AQ58,BB58,$AG$4,GSV_Database!C:V) -> C | BD58: =VLOOKUP(D58,Hist_Cur_CNTS!BG:BO,7,FALSE)/100 -> 0.09 | BE58: =VLOOKUP(D58,Hist_Cur_CNTS!BG:BO,8,FALSE)/100 -> 0.999 | BF58: =VLOOKUP(D58,Hist_Cur_CNTS!BG:BO,9,FALSE)/100 -> 0.04 | BG58: UA_S2WAC2_1W_3L_U_0L_WR | BH58: =IF($P58="U", VLOOKUP(Facility("TA",$W58,$X58,$Y58,$Z58,$AA58,$AB58),GSV_Database!C:X,22,FALSE),VLOOKUP(BG58,GSV_Database!C:X,22,FALSE)) -> 1 | BI58: 01040101-0.708-1.484 | BJ58: 1 | BK58: 0
A59: ** | B59: 01040101 | D59: 15039 | E59: US 17 | F59: MARION AV/SR35/US17W | G59: US 41 (Tamiami Trail) | H59: 1.484 | I59: US 41 (Cross St) | J59: 1.668 | K59: 0.184 | L59: N | N59: Principal Arterial-other | O59: 30 | P59: UA | Q59: A | R59: D | S59: D | T59: D | U59: 2 | V59: 10.86956522 | W59: 2 | X59: U | Y59: 1W | Z59: 0L | AA59: 0R | AB59: 2 | AC59: =Service_Volume($P59,$W59,$X59,$Y59,Z59,AA59,AB59,R59,$AG$4,GSV_Database!C:V) -> 19440 | AD59: =IF($AG$4="Daily",VLOOKUP(D59,Hist_Cur_CNTS!BG:BL,2,FALSE),IF($AG$4="Peak Hour Two-Way",VLOOKUP(D59,Hist_Cur_CNTS!BG:BL,3,FALSE),VLOOKUP(D59,Hist_Cur_CNTS!BG:BL,4,FALSE))) -> 8100 | AE59: =LOS($P59,$W59,$X59,$Y59,Z59,AA59,AB59,AD59,$AG$4,GSV_Database!C:V) -> C | AH59: 41.66666667 | AI59: 2 | AJ59: D | AK59: =Service_Volume($P59,$W59,$AL59,$Y59,AM59,AN59,AI59,AJ59,$AG$4,GSV_Database!C:V) -> 19440 | AL59: U | AM59: 0L | AN59: 0R | AO59: =IF($AG$4="Daily",VLOOKUP(D59,Hist_Cur_CNTS!BG:BL,5,FALSE),IF($AG$4="Peak Hour Two-Way",ROUND(VLOOKUP(D59,Hist_Cur_CNTS!BG:BL,5,FALSE) *BD59,0),ROUND(VLOOKUP(D59,Hist_Cur_CNTS!BG:BL,5,FALSE)*BD59*IF(Y59="1W",1,IF(P59="RDA",0.55,IF(OR(Q59="H",Q59="F"),VLOOKUP(P59&"_"&Q59,GSV_Database!AA:AB,2,FALSE),VLOOKUP(P59&"_"&Charlotte!W59&"_"&Charlotte!AI59,GSV_Database!AA:AB,2,FALSE)))),0))) -> 9100 | AP59: =LOS($P59,$W59,$AL59,$Y59,AM59,AN59,AI59,AO59,$AG$4,GSV_Database!C:V) -> D | AQ59: 2 | AR59: D | AS59: =Service_Volume($P59,$W59,$AT59,$Y59,AU59,AV59,AQ59,AR59,$AG$4,GSV_Database!C:V) -> 19440 | AT59: U | AU59: 0L | AV59: 0R | AW59: =IF($AG$4="Daily",VLOOKUP(D59,Hist_Cur_CNTS!BG:BL,6,FALSE),IF($AG$4="Peak Hour Two-Way",ROUND(VLOOKUP(D59,Hist_Cur_CNTS!BG:BL,6,FALSE) *BD59,0),ROUND(VLOOKUP(D59,Hist_Cur_CNTS!BG:BL,6,FALSE)*BD59*IF(Y59="1W",1,IF(P59="RDA",0.55,IF(OR(Q59="H",Q59="F"),VLOOKUP(P59&"_"&Q59,GSV_Database!AA:AB,2,FALSE),VLOOKUP(P59&"_"&Charlotte!W59&"_"&Charlotte!AQ59,GSV_Database!AA:AB,2,FALSE)))),0))) -> 11800 | AX59: =LOS($P59,$W59,$AT59,$Y59,AU59,AV59,AQ59,AW59,$AG$4,GSV_Database!C:V) -> D | AY59: =VLOOKUP(D59,Hist_Cur_CNTS!BG:BQ,11,FALSE) -> 4147 | AZ59: =VLOOKUP(D59,Hist_Cur_CNTS!BG:BQ,10,FALSE) -> 0.89 | BA59: 3691 | BB59: =IF($AG$4="Daily",BA59,IF($AG$4="Peak Hour Two-Way",ROUND(BA59 *BD59,0),ROUND(BA59*BD59*IF(Y59="1W",1,IF(P59="RDA",0.55,IF(OR(Q59="H",Q59="F"),VLOOKUP(P59&"_"&Q59,GSV_Database!AA:AB,2,FALSE),VLOOKUP(P59&"_"&Charlotte!W59&"_"&Charlotte!AQ59,GSV_Database!AA:AB,2,FALSE)))),0))) -> 3691 | BC59: =LOS($P59,$W59,$AT59,$Y59,AU59,AV59,AQ59,BB59,$AG$4,GSV_Database!C:V) -> C | BD59: =VLOOKUP(D59,Hist_Cur_CNTS!BG:BO,7,FALSE)/100 -> 0.09 | BE59: =VLOOKUP(D59,Hist_Cur_CNTS!BG:BO,8,FALSE)/100 -> 0.999 | BF59: =VLOOKUP(D59,Hist_Cur_CNTS!BG:BO,9,FALSE)/100 -> 0.029 | BG59: UA_S2WAC2_1W_2L_U_0L_0R | BH59: =IF($P59="U", VLOOKUP(Facility("TA",$W59,$X59,$Y59,$Z59,$AA59,$AB59),GSV_Database!C:X,22,FALSE),VLOOKUP(BG59,GSV_Database!C:X,22,FALSE)) -> 1 | BI59: 01040101-1.484-1.668 | BJ59: 1 | BK59: 0
A60: ** | B60: 01040101 | E60: US 17 | F60: MARION AV/SR35/US17W | G60: SR 35/US 17 | H60: 0 | I60: US 41 (Cross St) | J60: 1.668 | K60: 1.668 | L60: N | N60: Principal Arterial-other | O60: 35 | P60: UA | Q60: A | R60: D | S60: D | T60: D | U60: =SUM(U57:U59) -> 5 | V60: 2.997601918 | W60: 2 | X60: U | Y60: 1W | Z60: 0L | AA60: WR | AB60: 3 | AC60: =Service_Volume($P60,$W60,$X60,$Y60,Z60,AA60,AB60,R60,$AG$4,GSV_Database!C:V) -> 31500 | AD60: =wtavg(AD57:AD59,K57:K59) -> 10871.94245 | AE60: =LOS($P60,$W60,$X60,$Y60,Z60,AA60,AB60,AD60,$AG$4,GSV_Database!C:V) -> C | AH60: 34.514103 | AI60: 3 | AJ60: D | AK60: =Service_Volume($P60,$W60,$AL60,$Y60,AM60,AN60,AI60,AJ60,$AG$4,GSV_Database!C:V) -> 31500 | AL60: U | AM60: 0L | AN60: WR | AO60: =wtavg(AO57:AO59,K57:K59) -> 12181.29496 | AP60: =LOS($P60,$W60,$AL60,$Y60,AM60,AN60,AI60,AO60,$AG$4,GSV_Database!C:V) -> C | AQ60: 3 | AR60: D | AS60: =Service_Volume($P60,$W60,$AT60,$Y60,AU60,AV60,AQ60,AR60,$AG$4,GSV_Database!C:V) -> 31500 | AT60: U | AU60: 0L | AV60: WR | AW60: =wtavg(AW57:AW59,$K57:$K59) -> 15847.72182 | AX60: =LOS($P60,$W60,$AT60,$Y60,AU60,AV60,AQ60,AW60,$AG$4,GSV_Database!C:V) -> D | AY60: =wtavg(AY57:AY59,$K57:$K59) -> 8270.441247 | AZ60: =wtavg(AZ57:AZ59,$K57:$K59) -> 0.89 | BA60: 7361 | BB60: =wtavg(BB57:BB59,$K57:$K59) -> 7360.980815 | BC60: =LOS($P60,$W60,$AT60,$Y60,AU60,AV60,AQ60,BB60,$AG$4,GSV_Database!C:V) -> C | BD60: =wtavg(BD57:BD59,$K57:$K59) -> 0.09 | BE60: =wtavg(BE57:BE59,$K57:$K59) -> 0.999 | BF60: =wtavg(BF57:BF59,$K57:$K59) -> 0.04303117506 | BG60: UA_S2WAC2_1W_3L_U_0L_WR | BH60: =IF($P60="U", VLOOKUP(Facility("TA",$W60,$X60,$Y60,$Z60,$AA60,$AB60),GSV_Database!C:X,22,FALSE),VLOOKUP(BG60,GSV_Database!C:X,22,FALSE)) -> 1 | BI60: 01040101-0-1.668 | BJ60: 1 | BK60: 0
A61: ** | B61: 01040201 | D61: 10008 | E61: US 17 | F61: US 17/SR 35 | G61: CR 764 (Washington Loop Rd) | H61: 0 | I61: Taralane Dr | J61: 1.043 | K61: 1.043 | L61: Y | M61: SIS | N61: Principal Arterial-other | O61: 55 | P61: UA | Q61: H | R61: D | S61: C | V61: 0 | X61: D | Y61: 2W | Z61: WL | AA61: 0R | AB61: 4 | AC61: =Service_Volume($P61,$W61,$X61,$Y61,Z61,AA61,AB61,R61,$AG$4,GSV_Database!C:V) -> 65600 | AD61: =IF($AG$4="Daily",VLOOKUP(D61,Hist_Cur_CNTS!BG:BL,2,FALSE),IF($AG$4="Peak Hour Two-Way",VLOOKUP(D61,Hist_Cur_CNTS!BG:BL,3,FALSE),VLOOKUP(D61,Hist_Cur_CNTS!BG:BL,4,FALSE))) -> 11000 | AE61: =LOS($P61,$W61,$X61,$Y61,Z61,AA61,AB61,AD61,$AG$4,GSV_Database!C:V) -> B | AH61: 16.76829268 | AI61: 4 | AJ61: D | AK61: =Service_Volume($P61,$W61,$AL61,$Y61,AM61,AN61,AI61,AJ61,$AG$4,GSV_Database!C:V) -> 65600 | AL61: D | AM61: WL | AN61: 0R | AO61: =IF($AG$4="Daily",VLOOKUP(D61,Hist_Cur_CNTS!BG:BL,5,FALSE),IF($AG$4="Peak Hour Two-Way",ROUND(VLOOKUP(D61,Hist_Cur_CNTS!BG:BL,5,FALSE) *BD61,0),ROUND(VLOOKUP(D61,Hist_Cur_CNTS!BG:BL,5,FALSE)*BD61*IF(Y61="1W",1,IF(P61="RDA",0.55,IF(OR(Q61="H",Q61="F"),VLOOKUP(P61&"_"&Q61,GSV_Database!AA:AB,2,FALSE),VLOOKUP(P61&"_"&Charlotte!W61&"_"&Charlotte!AI61,GSV_Database!AA:AB,2,FALSE)))),0))) -> 12300 | AP61: =LOS($P61,$W61,$AL61,$Y61,AM61,AN61,AI61,AO61,$AG$4,GSV_Database!C:V) -> B | AQ61: 4 | AR61: D | AS61: =Service_Volume($P61,$W61,$AT61,$Y61,AU61,AV61,AQ61,AR61,$AG$4,GSV_Database!C:V) -> 65600 | AT61: D | AU61: WL | AV61: 0R | AW61: =IF($AG$4="Daily",VLOOKUP(D61,Hist_Cur_CNTS!BG:BL,6,FALSE),IF($AG$4="Peak Hour Two-Way",ROUND(VLOOKUP(D61,Hist_Cur_CNTS!BG:BL,6,FALSE) *BD61,0),ROUND(VLOOKUP(D61,Hist_Cur_CNTS!BG:BL,6,FALSE)*BD61*IF(Y61="1W",1,IF(P61="RDA",0.55,IF(OR(Q61="H",Q61="F"),VLOOKUP(P61&"_"&Q61,GSV_Database!AA:AB,2,FALSE),VLOOKUP(P61&"_"&Charlotte!W61&"_"&Charlotte!AQ61,GSV_Database!AA:AB,2,FALSE)))),0))) -> 16100 | AX61: =LOS($P61,$W61,$AT61,$Y61,AU61,AV61,AQ61,AW61,$AG$4,GSV_Database!C:V) -> B | AY61: =VLOOKUP(D61,Hist_Cur_CNTS!BG:BQ,11,FALSE) -> 11268 | AZ61: =VLOOKUP(D61,Hist_Cur_CNTS!BG:BQ,10,FALSE) -> 0.9 | BA61: 10141 | BB61: =IF($AG$4="Daily",BA61,IF($AG$4="Peak Hour Two-Way",ROUND(BA61 *BD61,0),ROUND(BA61*BD61*IF(Y61="1W",1,IF(P61="RDA",0.55,IF(OR(Q61="H",Q61="F"),VLOOKUP(P61&"_"&Q61,GSV_Database!AA:AB,2,FALSE),VLOOKUP(P61&"_"&Charlotte!W61&"_"&Charlotte!AQ61,GSV_Database!AA:AB,2,FALSE)))),0))) -> 10141 | BC61: =LOS($P61,$W61,$AT61,$Y61,AU61,AV61,AQ61,BB61,$AG$4,GSV_Database!C:V) -> B | BD61: =VLOOKUP(D61,Hist_Cur_CNTS!BG:BO,7,FALSE)/100 -> 0.09 | BE61: =VLOOKUP(D61,Hist_Cur_CNTS!BG:BO,8,FALSE)/100 -> 0.514 | BF61: =VLOOKUP(D61,Hist_Cur_CNTS!BG:BO,9,FALSE)/100 -> 0.155 | BG61: UA_UFH_2W_4L_D_WL_0R | BH61: =IF($P61="U", VLOOKUP(Facility("TA",$W61,$X61,$Y61,$Z61,$AA61,$AB61),GSV_Database!C:X,22,FALSE),VLOOKUP(BG61,GSV_Database!C:X,22,FALSE)) -> 0 | BI61: 01040201-0-1.043 | BJ61: 0 | BK61: 0
A62: ** | B62: 01040201 | D62: 10008 | E62: US 17 | F62: US 17/SR 35 | G62: Taralane Dr | H62: 1.043 | I62: CR 764 (Washington Loop Rd) | J62: 1.673 | K62: 0.63 | L62: Y | M62: SIS | N62: Principal Arterial-other | O62: 55 | P62: UA | Q62: H | R62: D | S62: C | V62: 0 | X62: D | Y62: 2W | Z62: WL | AA62: WR | AB62: 4 | AC62: =Service_Volume($P62,$W62,$X62,$Y62,Z62,AA62,AB62,R62,$AG$4,GSV_Database!C:V) -> 65600 | AD62: =IF($AG$4="Daily",VLOOKUP(D62,Hist_Cur_CNTS!BG:BL,2,FALSE),IF($AG$4="Peak Hour Two-Way",VLOOKUP(D62,Hist_Cur_CNTS!BG:BL,3,FALSE),VLOOKUP(D62,Hist_Cur_CNTS!BG:BL,4,FALSE))) -> 11000 | AE62: =LOS($P62,$W62,$X62,$Y62,Z62,AA62,AB62,AD62,$AG$4,GSV_Database!C:V) -> B | AH62: 16.76829268 | AI62: 4 | AJ62: D | AK62: =Service_Volume($P62,$W62,$AL62,$Y62,AM62,AN62,AI62,AJ62,$AG$4,GSV_Database!C:V) -> 65600 | AL62: D | AM62: WL | AN62: WR | AO62: =IF($AG$4="Daily",VLOOKUP(D62,Hist_Cur_CNTS!BG:BL,5,FALSE),IF($AG$4="Peak Hour Two-Way",ROUND(VLOOKUP(D62,Hist_Cur_CNTS!BG:BL,5,FALSE) *BD62,0),ROUND(VLOOKUP(D62,Hist_Cur_CNTS!BG:BL,5,FALSE)*BD62*IF(Y62="1W",1,IF(P62="RDA",0.55,IF(OR(Q62="H",Q62="F"),VLOOKUP(P62&"_"&Q62,GSV_Database!AA:AB,2,FALSE),VLOOKUP(P62&"_"&Charlotte!W62&"_"&Charlotte!AI62,GSV_Database!AA:AB,2,FALSE)))),0))) -> 12300 | AP62: =LOS($P62,$W62,$AL62,$Y62,AM62,AN62,AI62,AO62,$AG$4,GSV_Database!C:V) -> B | AQ62: 4 | AR62: D | AS62: =Service_Volume($P62,$W62,$AT62,$Y62,AU62,AV62,AQ62,AR62,$AG$4,GSV_Database!C:V) -> 65600 | AT62: D | AU62: WL | AV62: WR | AW62: =IF($AG$4="Daily",VLOOKUP(D62,Hist_Cur_CNTS!BG:BL,6,FALSE),IF($AG$4="Peak Hour Two-Way",ROUND(VLOOKUP(D62,Hist_Cur_CNTS!BG:BL,6,FALSE) *BD62,0),ROUND(VLOOKUP(D62,Hist_Cur_CNTS!BG:BL,6,FALSE)*BD62*IF(Y62="1W",1,IF(P62="RDA",0.55,IF(OR(Q62="H",Q62="F"),VLOOKUP(P62&"_"&Q62,GSV_Database!AA:AB,2,FALSE),VLOOKUP(P62&"_"&Charlotte!W62&"_"&Charlotte!AQ62,GSV_Database!AA:AB,2,FALSE)))),0))) -> 16100 | AX62: =LOS($P62,$W62,$AT62,$Y62,AU62,AV62,AQ62,AW62,$AG$4,GSV_Database!C:V) -> B | AY62: =VLOOKUP(D62,Hist_Cur_CNTS!BG:BQ,11,FALSE) -> 11268 | AZ62: =VLOOKUP(D62,Hist_Cur_CNTS!BG:BQ,10,FALSE) -> 0.9 | BA62: 10141 | BB62: =IF($AG$4="Daily",BA62,IF($AG$4="Peak Hour Two-Way",ROUND(BA62 *BD62,0),ROUND(BA62*BD62*IF(Y62="1W",1,IF(P62="RDA",0.55,IF(OR(Q62="H",Q62="F"),VLOOKUP(P62&"_"&Q62,GSV_Database!AA:AB,2,FALSE),VLOOKUP(P62&"_"&Charlotte!W62&"_"&Charlotte!AQ62,GSV_Database!AA:AB,2,FALSE)))),0))) -> 10141 | BC62: =LOS($P62,$W62,$AT62,$Y62,AU62,AV62,AQ62,BB62,$AG$4,GSV_Database!C:V) -> B | BD62: =VLOOKUP(D62,Hist_Cur_CNTS!BG:BO,7,FALSE)/100 -> 0.09 | BE62: =VLOOKUP(D62,Hist_Cur_CNTS!BG:BO,8,FALSE)/100 -> 0.514 | BF62: =VLOOKUP(D62,Hist_Cur_CNTS!BG:BO,9,FALSE)/100 -> 0.155 | BG62: UA_UFH_2W_4L_D_WL_WR | BH62: =IF($P62="U", VLOOKUP(Facility("TA",$W62,$X62,$Y62,$Z62,$AA62,$AB62),GSV_Database!C:X,22,FALSE),VLOOKUP(BG62,GSV_Database!C:X,22,FALSE)) -> 0 | BI62: 01040201-1.043-1.673 | BJ62: 0 | BK62: 0
A63: ** | B63: 01040201 | D63: 10023 | E63: US 17 | F63: US 17/SR 35 | G63: =I62 -> CR 764 (Washington Loop Rd) | H63: =J62 -> 1.673 | I63: Peace River Shore Blvd | J63: 3.928 | K63: 2.255 | L63: Y | M63: SIS | N63: Principal Arterial-other | O63: 60 | P63: TA | Q63: H | R63: C | S63: C | V63: 0 | X63: D | Y63: 2W | Z63: WL | AA63: WR | AB63: 4 | AC63: =Service_Volume($P63,$W63,$X63,$Y63,Z63,AA63,AB63,R63,$AG$4,GSV_Database!C:V) -> 49600 | AD63: =IF($AG$4="Daily",VLOOKUP(D63,Hist_Cur_CNTS!BG:BL,2,FALSE),IF($AG$4="Peak Hour Two-Way",VLOOKUP(D63,Hist_Cur_CNTS!BG:BL,3,FALSE),VLOOKUP(D63,Hist_Cur_CNTS!BG:BL,4,FALSE))) -> 9100 | AE63: =LOS($P63,$W63,$X63,$Y63,Z63,AA63,AB63,AD63,$AG$4,GSV_Database!C:V) -> B | AH63: 18.34677419 | AI63: 4 | AJ63: C | AK63: =Service_Volume($P63,$W63,$AL63,$Y63,AM63,AN63,AI63,AJ63,$AG$4,GSV_Database!C:V) -> 49600 | AL63: D | AM63: WL | AN63: WR | AO63: =IF($AG$4="Daily",VLOOKUP(D63,Hist_Cur_CNTS!BG:BL,5,FALSE),IF($AG$4="Peak Hour Two-Way",ROUND(VLOOKUP(D63,Hist_Cur_CNTS!BG:BL,5,FALSE) *BD63,0),ROUND(VLOOKUP(D63,Hist_Cur_CNTS!BG:BL,5,FALSE)*BD63*IF(Y63="1W",1,IF(P63="RDA",0.55,IF(OR(Q63="H",Q63="F"),VLOOKUP(P63&"_"&Q63,GSV_Database!AA:AB,2,FALSE),VLOOKUP(P63&"_"&Charlotte!W63&"_"&Charlotte!AI63,GSV_Database!AA:AB,2,FALSE)))),0))) -> 10200 | AP63: =LOS($P63,$W63,$AL63,$Y63,AM63,AN63,AI63,AO63,$AG$4,GSV_Database!C:V) -> B | AQ63: 4 | AR63: C | AS63: =Service_Volume($P63,$W63,$AT63,$Y63,AU63,AV63,AQ63,AR63,$AG$4,GSV_Database!C:V) -> 49600 | AT63: D | AU63: WL | AV63: WR | AW63: =IF($AG$4="Daily",VLOOKUP(D63,Hist_Cur_CNTS!BG:BL,6,FALSE),IF($AG$4="Peak Hour Two-Way",ROUND(VLOOKUP(D63,Hist_Cur_CNTS!BG:BL,6,FALSE) *BD63,0),ROUND(VLOOKUP(D63,Hist_Cur_CNTS!BG:BL,6,FALSE)*BD63*IF(Y63="1W",1,IF(P63="RDA",0.55,IF(OR(Q63="H",Q63="F"),VLOOKUP(P63&"_"&Q63,GSV_Database!AA:AB,2,FALSE),VLOOKUP(P63&"_"&Charlotte!W63&"_"&Charlotte!AQ63,GSV_Database!AA:AB,2,FALSE)))),0))) -> 13300 | AX63: =LOS($P63,$W63,$AT63,$Y63,AU63,AV63,AQ63,AW63,$AG$4,GSV_Database!C:V) -> B | AY63: =VLOOKUP(D63,Hist_Cur_CNTS!BG:BQ,11,FALSE) -> 9659 | AZ63: =VLOOKUP(D63,Hist_Cur_CNTS!BG:BQ,10,FALSE) -> 0.9 | BA63: 8693 | BB63: =IF($AG$4="Daily",BA63,IF($AG$4="Peak Hour Two-Way",ROUND(BA63 *BD63,0),ROUND(BA63*BD63*IF(Y63="1W",1,IF(P63="RDA",0.55,IF(OR(Q63="H",Q63="F"),VLOOKUP(P63&"_"&Q63,GSV_Database!AA:AB,2,FALSE),VLOOKUP(P63&"_"&Charlotte!W63&"_"&Charlotte!AQ63,GSV_Database!AA:AB,2,FALSE)))),0))) -> 8693 | BC63: =LOS($P63,$W63,$AT63,$Y63,AU63,AV63,AQ63,BB63,$AG$4,GSV_Database!C:V) -> B | BD63: =VLOOKUP(D63,Hist_Cur_CNTS!BG:BO,7,FALSE)/100 -> 0.095 | BE63: =VLOOKUP(D63,Hist_Cur_CNTS!BG:BO,8,FALSE)/100 -> 0.514 | BF63: =VLOOKUP(D63,Hist_Cur_CNTS!BG:BO,9,FALSE)/100 -> 0.141 | BG63: TA_UFH_2W_4L_D_WL_WR | BH63: =IF($P63="U", VLOOKUP(Facility("TA",$W63,$X63,$Y63,$Z63,$AA63,$AB63),GSV_Database!C:X,22,FALSE),VLOOKUP(BG63,GSV_Database!C:X,22,FALSE)) -> 0 | BI63: 01040201-1.673-3.928 | BJ63: 0 | BK63: 0
A64: ** | B64: 01040201 | D64: 10023 | E64: US 17 | F64: US 17/SR 35 | G64: Peace River Shore Blvd | H64: 3.928 | I64: Foxtail Lane | J64: 4.182 | K64: 0.254 | L64: Y | M64: SIS | N64: Principal Arterial-other | O64: 60 | P64: TA | Q64: H | R64: C | S64: C | V64: 0 | X64: D | Y64: 2W | Z64: WL | AA64: WR | AB64: 4 | AC64: =Service_Volume($P64,$W64,$X64,$Y64,Z64,AA64,AB64,R64,$AG$4,GSV_Database!C:V) -> 49600 | AD64: =IF($AG$4="Daily",VLOOKUP(D64,Hist_Cur_CNTS!BG:BL,2,FALSE),IF($AG$4="Peak Hour Two-Way",VLOOKUP(D64,Hist_Cur_CNTS!BG:BL,3,FALSE),VLOOKUP(D64,Hist_Cur_CNTS!BG:BL,4,FALSE))) -> 9100 | AE64: =LOS($P64,$W64,$X64,$Y64,Z64,AA64,AB64,AD64,$AG$4,GSV_Database!C:V) -> B | AH64: 18.34677419 | AI64: 4 | AJ64: C | AK64: =Service_Volume($P64,$W64,$AL64,$Y64,AM64,AN64,AI64,AJ64,$AG$4,GSV_Database!C:V) -> 49600 | AL64: D | AM64: WL | AN64: WR | AO64: =IF($AG$4="Daily",VLOOKUP(D64,Hist_Cur_CNTS!BG:BL,5,FALSE),IF($AG$4="Peak Hour Two-Way",ROUND(VLOOKUP(D64,Hist_Cur_CNTS!BG:BL,5,FALSE) *BD64,0),ROUND(VLOOKUP(D64,Hist_Cur_CNTS!BG:BL,5,FALSE)*BD64*IF(Y64="1W",1,IF(P64="RDA",0.55,IF(OR(Q64="H",Q64="F"),VLOOKUP(P64&"_"&Q64,GSV_Database!AA:AB,2,FALSE),VLOOKUP(P64&"_"&Charlotte!W64&"_"&Charlotte!AI64,GSV_Database!AA:AB,2,FALSE)))),0))) -> 10200 | AP64: =LOS($P64,$W64,$AL64,$Y64,AM64,AN64,AI64,AO64,$AG$4,GSV_Database!C:V) -> B | AQ64: 4 | AR64: C | AS64: =Service_Volume($P64,$W64,$AT64,$Y64,AU64,AV64,AQ64,AR64,$AG$4,GSV_Database!C:V) -> 49600 | AT64: D | AU64: WL | AV64: WR | AW64: =IF($AG$4="Daily",VLOOKUP(D64,Hist_Cur_CNTS!BG:BL,6,FALSE),IF($AG$4="Peak Hour Two-Way",ROUND(VLOOKUP(D64,Hist_Cur_CNTS!BG:BL,6,FALSE) *BD64,0),ROUND(VLOOKUP(D64,Hist_Cur_CNTS!BG:BL,6,FALSE)*BD64*IF(Y64="1W",1,IF(P64="RDA",0.55,IF(OR(Q64="H",Q64="F"),VLOOKUP(P64&"_"&Q64,GSV_Database!AA:AB,2,FALSE),VLOOKUP(P64&"_"&Charlotte!W64&"_"&Charlotte!AQ64,GSV_Database!AA:AB,2,FALSE)))),0))) -> 13300 | AX64: =LOS($P64,$W64,$AT64,$Y64,AU64,AV64,AQ64,AW64,$AG$4,GSV_Database!C:V) -> B | AY64: =VLOOKUP(D64,Hist_Cur_CNTS!BG:BQ,11,FALSE) -> 9659 | AZ64: =VLOOKUP(D64,Hist_Cur_CNTS!BG:BQ,10,FALSE) -> 0.9 | BA64: 8693 | BB64: =IF($AG$4="Daily",BA64,IF($AG$4="Peak Hour Two-Way",ROUND(BA64 *BD64,0),ROUND(BA64*BD64*IF(Y64="1W",1,IF(P64="RDA",0.55,IF(OR(Q64="H",Q64="F"),VLOOKUP(P64&"_"&Q64,GSV_Database!AA:AB,2,FALSE),VLOOKUP(P64&"_"&Charlotte!W64&"_"&Charlotte!AQ64,GSV_Database!AA:AB,2,FALSE)))),0))) -> 8693 | BC64: =LOS($P64,$W64,$AT64,$Y64,AU64,AV64,AQ64,BB64,$AG$4,GSV_Database!C:V) -> B | BD64: =VLOOKUP(D64,Hist_Cur_CNTS!BG:BO,7,FALSE)/100 -> 0.095 | BE64: =VLOOKUP(D64,Hist_Cur_CNTS!BG:BO,8,FALSE)/100 -> 0.514 | BF64: =VLOOKUP(D64,Hist_Cur_CNTS!BG:BO,9,FALSE)/100 -> 0.141 | BG64: TA_UFH_2W_4L_D_WL_WR | BH64: =IF($P64="U", VLOOKUP(Facility("TA",$W64,$X64,$Y64,$Z64,$AA64,$AB64),GSV_Database!C:X,22,FALSE),VLOOKUP(BG64,GSV_Database!C:X,22,FALSE)) -> 0 | BI64: 01040201-3.928-4.182 | BJ64: 0 | BK64: 0
A65: ** | B65: 01040201 | D65: 10023 | E65: US 17 | F65: US 17/SR 35 | G65: Foxtail Lane | H65: 4.182 | I65: DeSoto County Line | J65: 4.425 | K65: 0.243 | L65: Y | M65: SIS | N65: Principal Arterial-other | O65: 60 | P65: TA | Q65: H | R65: C | S65: C | V65: 0 | X65: D | Y65: 2W | Z65: WL | AA65: 0R | AB65: 4 | AC65: =Service_Volume($P65,$W65,$X65,$Y65,Z65,AA65,AB65,R65,$AG$4,GSV_Database!C:V) -> 49600 | AD65: =IF($AG$4="Daily",VLOOKUP(D65,Hist_Cur_CNTS!BG:BL,2,FALSE),IF($AG$4="Peak Hour Two-Way",VLOOKUP(D65,Hist_Cur_CNTS!BG:BL,3,FALSE),VLOOKUP(D65,Hist_Cur_CNTS!BG:BL,4,FALSE))) -> 9100 | AE65: =LOS($P65,$W65,$X65,$Y65,Z65,AA65,AB65,AD65,$AG$4,GSV_Database!C:V) -> B | AH65: 18.34677419 | AI65: 4 | AJ65: C | AK65: =Service_Volume($P65,$W65,$AL65,$Y65,AM65,AN65,AI65,AJ65,$AG$4,GSV_Database!C:V) -> 49600 | AL65: D | AM65: WL | AN65: 0R | AO65: =IF($AG$4="Daily",VLOOKUP(D65,Hist_Cur_CNTS!BG:BL,5,FALSE),IF($AG$4="Peak Hour Two-Way",ROUND(VLOOKUP(D65,Hist_Cur_CNTS!BG:BL,5,FALSE) *BD65,0),ROUND(VLOOKUP(D65,Hist_Cur_CNTS!BG:BL,5,FALSE)*BD65*IF(Y65="1W",1,IF(P65="RDA",0.55,IF(OR(Q65="H",Q65="F"),VLOOKUP(P65&"_"&Q65,GSV_Database!AA:AB,2,FALSE),VLOOKUP(P65&"_"&Charlotte!W65&"_"&Charlotte!AI65,GSV_Database!AA:AB,2,FALSE)))),0))) -> 10200 | AP65: =LOS($P65,$W65,$AL65,$Y65,AM65,AN65,AI65,AO65,$AG$4,GSV_Database!C:V) -> B | AQ65: 4 | AR65: C | AS65: =Service_Volume($P65,$W65,$AT65,$Y65,AU65,AV65,AQ65,AR65,$AG$4,GSV_Database!C:V) -> 49600 | AT65: D | AU65: WL | AV65: 0R | AW65: =IF($AG$4="Daily",VLOOKUP(D65,Hist_Cur_CNTS!BG:BL,6,FALSE),IF($AG$4="Peak Hour Two-Way",ROUND(VLOOKUP(D65,Hist_Cur_CNTS!BG:BL,6,FALSE) *BD65,0),ROUND(VLOOKUP(D65,Hist_Cur_CNTS!BG:BL,6,FALSE)*BD65*IF(Y65="1W",1,IF(P65="RDA",0.55,IF(OR(Q65="H",Q65="F"),VLOOKUP(P65&"_"&Q65,GSV_Database!AA:AB,2,FALSE),VLOOKUP(P65&"_"&Charlotte!W65&"_"&Charlotte!AQ65,GSV_Database!AA:AB,2,FALSE)))),0))) -> 13300 | AX65: =LOS($P65,$W65,$AT65,$Y65,AU65,AV65,AQ65,AW65,$AG$4,GSV_Database!C:V) -> B | AY65: =VLOOKUP(D65,Hist_Cur_CNTS!BG:BQ,11,FALSE) -> 9659 | AZ65: =VLOOKUP(D65,Hist_Cur_CNTS!BG:BQ,10,FALSE) -> 0.9 | BA65: 8693 | BB65: =IF($AG$4="Daily",BA65,IF($AG$4="Peak Hour Two-Way",ROUND(BA65 *BD65,0),ROUND(BA65*BD65*IF(Y65="1W",1,IF(P65="RDA",0.55,IF(OR(Q65="H",Q65="F"),VLOOKUP(P65&"_"&Q65,GSV_Database!AA:AB,2,FALSE),VLOOKUP(P65&"_"&Charlotte!W65&"_"&Charlotte!AQ65,GSV_Database!AA:AB,2,FALSE)))),0))) -> 8693 | BC65: =LOS($P65,$W65,$AT65,$Y65,AU65,AV65,AQ65,BB65,$AG$4,GSV_Database!C:V) -> B | BD65: =VLOOKUP(D65,Hist_Cur_CNTS!BG:BO,7,FALSE)/100 -> 0.095 | BE65: =VLOOKUP(D65,Hist_Cur_CNTS!BG:BO,8,FALSE)/100 -> 0.514 | BF65: =VLOOKUP(D65,Hist_Cur_CNTS!BG:BO,9,FALSE)/100 -> 0.141 | BG65: TA_UFH_2W_4L_D_WL_0R | BH65: =IF($P65="U", VLOOKUP(Facility("TA",$W65,$X65,$Y65,$Z65,$AA65,$AB65),GSV_Database!C:X,22,FALSE),VLOOKUP(BG65,GSV_Database!C:X,22,FALSE)) -> 0 | BI65: 01040201-4.182-4.425 | BJ65: 0 | BK65: 0
A66: =IF(BB66<AD66,"**","") -> ** | B66: 01040201 | E66: US 17 | F66: US 17/SR 35 | G66: =G63 -> CR 764 (Washington Loop Rd) | H66: =H63 -> 1.673 | I66: DeSoto County Line | J66: 4.425 | K66: 2.752 | L66: Y | M66: SIS | N66: Principal Arterial-other | O66: 60 | P66: TA | Q66: H | R66: C | S66: C | V66: 0 | X66: D | Y66: 2W | Z66: WL | AA66: WR | AB66: 4 | AC66: =Service_Volume($P66,$W66,$X66,$Y66,Z66,AA66,AB66,R66,$AG$4,GSV_Database!C:V) -> 49600 | AD66: =wtavg(AD63:AD65,K63:K65) -> 9100 | AE66: =LOS($P66,$W66,$X66,$Y66,Z66,AA66,AB66,AD66,$AG$4,GSV_Database!C:V) -> B | AH66: 18.34677419 | AI66: 4 | AJ66: C | AK66: =Service_Volume($P66,$W66,$AL66,$Y66,AM66,AN66,AI66,AJ66,$AG$4,GSV_Database!C:V) -> 49600 | AL66: D | AM66: WL | AN66: WR | AO66: =wtavg(AO63:AO65,K63:K65) -> 10200 | AP66: =LOS($P66,$W66,$AL66,$Y66,AM66,AN66,AI66,AO66,$AG$4,GSV_Database!C:V) -> B | AQ66: 4 | AR66: C | AS66: =Service_Volume($P66,$W66,$AT66,$Y66,AU66,AV66,AQ66,AR66,$AG$4,GSV_Database!C:V) -> 49600 | AT66: D | AU66: WL | AV66: WR | AW66: =wtavg(AW63:AW65,$K63:$K65) -> 13300 | AX66: =LOS($P66,$W66,$AT66,$Y66,AU66,AV66,AQ66,AW66,$AG$4,GSV_Database!C:V) -> B | AY66: =wtavg(AY63:AY65,$K63:$K65) -> 9659 | AZ66: =wtavg(AZ63:AZ65,$K63:$K65) -> 0.9 | BA66: 8693 | BB66: =wtavg(BB63:BB65,$K63:$K65) -> 8693 | BC66: =LOS($P66,$W66,$AT66,$Y66,AU66,AV66,AQ66,BB66,$AG$4,GSV_Database!C:V) -> B | BD66: =wtavg(BD63:BD65,$K63:$K65) -> 0.095 | BE66: =wtavg(BE63:BE65,$K63:$K65) -> 0.514 | BF66: =wtavg(BF63:BF65,$K63:$K65) -> 0.141 | BG66: TA_UFH_2W_4L_D_WL_WR | BH66: =IF($P66="U", VLOOKUP(Facility("TA",$W66,$X66,$Y66,$Z66,$AA66,$AB66),GSV_Database!C:X,22,FALSE),VLOOKUP(BG66,GSV_Database!C:X,22,FALSE)) -> 0 | BI66: 01040201-1.673-4.425 | BJ66: 0 | BK66: 0
B67: 01050000 | D67: 10001 | E67: SR 776 | F67: MCCALL RD/SR 776 | G67: Pine St | H67: 2.237 | I67: San Casa Dr | J67: 3.799 | K67: 1.562 | L67: N | N67: Minor Arterial | O67: 45 | P67: UA | Q67: A | R67: D | S67: D | U67: 2 | V67: 1.280409731 | W67: 1 | X67: D | Y67: 2W | Z67: WL | AA67: WR | AB67: 4 | AC67: =Service_Volume($P67,$W67,$X67,$Y67,Z67,AA67,AB67,R67,$AG$4,GSV_Database!C:V) -> 41790 | AD67: =IF($AG$4="Daily",VLOOKUP(D67,Hist_Cur_CNTS!BG:BL,2,FALSE),IF($AG$4="Peak Hour Two-Way",VLOOKUP(D67,Hist_Cur_CNTS!BG:BL,3,FALSE),VLOOKUP(D67,Hist_Cur_CNTS!BG:BL,4,FALSE))) -> 32000 | AE67: =LOS($P67,$W67,$X67,$Y67,Z67,AA67,AB67,AD67,$AG$4,GSV_Database!C:V) -> C | AH67: 76.57334291 | AI67: 4 | AJ67: D | AK67: =Service_Volume($P67,$W67,$AL67,$Y67,AM67,AN67,AI67,AJ67,$AG$4,GSV_Database!C:V) -> 41790 | AL67: D | AM67: WL | AN67: WR | AO67: =IF($AG$4="Daily",VLOOKUP(D67,Hist_Cur_CNTS!BG:BL,5,FALSE),IF($AG$4="Peak Hour Two-Way",ROUND(VLOOKUP(D67,Hist_Cur_CNTS!BG:BL,5,FALSE) *BD67,0),ROUND(VLOOKUP(D67,Hist_Cur_CNTS!BG:BL,5,FALSE)*BD67*IF(Y67="1W",1,IF(P67="RDA",0.55,IF(OR(Q67="H",Q67="F"),VLOOKUP(P67&"_"&Q67,GSV_Database!AA:AB,2,FALSE),VLOOKUP(P67&"_"&Charlotte!W67&"_"&Charlotte!AI67,GSV_Database!AA:AB,2,FALSE)))),0))) -> 35800 | AP67: =LOS($P67,$W67,$AL67,$Y67,AM67,AN67,AI67,AO67,$AG$4,GSV_Database!C:V) -> C | AQ67: 4 | AR67: D | AS67: =Service_Volume($P67,$W67,$AT67,$Y67,AU67,AV67,AQ67,AR67,$AG$4,GSV_Database!C:V) -> 41790 | AT67: D | AU67: WL | AV67: WR | AW67: =IF($AG$4="Daily",VLOOKUP(D67,Hist_Cur_CNTS!BG:BL,6,FALSE),IF($AG$4="Peak Hour Two-Way",ROUND(VLOOKUP(D67,Hist_Cur_CNTS!BG:BL,6,FALSE) *BD67,0),ROUND(VLOOKUP(D67,Hist_Cur_CNTS!BG:BL,6,FALSE)*BD67*IF(Y67="1W",1,IF(P67="RDA",0.55,IF(OR(Q67="H",Q67="F"),VLOOKUP(P67&"_"&Q67,GSV_Database!AA:AB,2,FALSE),VLOOKUP(P67&"_"&Charlotte!W67&"_"&Charlotte!AQ67,GSV_Database!AA:AB,2,FALSE)))),0))) -> 46700 | AX67: =LOS($P67,$W67,$AT67,$Y67,AU67,AV67,AQ67,AW67,$AG$4,GSV_Database!C:V) -> F | AY67: =VLOOKUP(D67,Hist_Cur_CNTS!BG:BQ,11,FALSE) -> 37333 | AZ67: =VLOOKUP(D67,Hist_Cur_CNTS!BG:BQ,10,FALSE) -> 0.89 | BA67: 33226 | BB67: =IF($AG$4="Daily",BA67,IF($AG$4="Peak Hour Two-Way",ROUND(BA67 *BD67,0),ROUND(BA67*BD67*IF(Y67="1W",1,IF(P67="RDA",0.55,IF(OR(Q67="H",Q67="F"),VLOOKUP(P67&"_"&Q67,GSV_Database!AA:AB,2,FALSE),VLOOKUP(P67&"_"&Charlotte!W67&"_"&Charlotte!AQ67,GSV_Database!AA:AB,2,FALSE)))),0))) -> 33226 | BC67: =LOS($P67,$W67,$AT67,$Y67,AU67,AV67,AQ67,BB67,$AG$4,GSV_Database!C:V) -> C | BD67: =VLOOKUP(D67,Hist_Cur_CNTS!BG:BO,7,FALSE)/100 -> 0.09 | BE67: =VLOOKUP(D67,Hist_Cur_CNTS!BG:BO,8,FALSE)/100 -> 0.519 | BF67: =VLOOKUP(D67,Hist_Cur_CNTS!BG:BO,9,FALSE)/100 -> 0.035 | BG67: UA_S2WAC1_2W_4L_D_WL_WR | BH67: =IF($P67="U", VLOOKUP(Facility("TA",$W67,$X67,$Y67,$Z67,$AA67,$AB67),GSV_Database!C:X,22,FALSE),VLOOKUP(BG67,GSV_Database!C:X,22,FALSE)) -> 3 | BI67: 01050000-2.237-3.799 | BJ67: 3 | BK67: 0
B68: 01050000 | D68: 10042 | E68: SR 776 | F68: MCCALL RD/SR 776 | G68: San Casa Dr | H68: 3.799 | I68: Gulfstream Blvd | J68: 4.484 | K68: 0.685 | L68: N | N68: Minor Arterial | O68: 45 | P68: UA | Q68: A | R68: D | S68: D | U68: 3 | V68: 4.379562044 | W68: 1 | X68: D | Y68: 2W | Z68: WL | AA68: WR | AB68: 4 | AC68: =Service_Volume($P68,$W68,$X68,$Y68,Z68,AA68,AB68,R68,$AG$4,GSV_Database!C:V) -> 41790 | AD68: =IF($AG$4="Daily",VLOOKUP(D68,Hist_Cur_CNTS!BG:BL,2,FALSE),IF($AG$4="Peak Hour Two-Way",VLOOKUP(D68,Hist_Cur_CNTS!BG:BL,3,FALSE),VLOOKUP(D68,Hist_Cur_CNTS!BG:BL,4,FALSE))) -> 32500 | AE68: =LOS($P68,$W68,$X68,$Y68,Z68,AA68,AB68,AD68,$AG$4,GSV_Database!C:V) -> C | AH68: 77.76980139 | AI68: 4 | AJ68: D | AK68: =Service_Volume($P68,$W68,$AL68,$Y68,AM68,AN68,AI68,AJ68,$AG$4,GSV_Database!C:V) -> 41790 | AL68: D | AM68: WL | AN68: WR | AO68: =IF($AG$4="Daily",VLOOKUP(D68,Hist_Cur_CNTS!BG:BL,5,FALSE),IF($AG$4="Peak Hour Two-Way",ROUND(VLOOKUP(D68,Hist_Cur_CNTS!BG:BL,5,FALSE) *BD68,0),ROUND(VLOOKUP(D68,Hist_Cur_CNTS!BG:BL,5,FALSE)*BD68*IF(Y68="1W",1,IF(P68="RDA",0.55,IF(OR(Q68="H",Q68="F"),VLOOKUP(P68&"_"&Q68,GSV_Database!AA:AB,2,FALSE),VLOOKUP(P68&"_"&Charlotte!W68&"_"&Charlotte!AI68,GSV_Database!AA:AB,2,FALSE)))),0))) -> 36400 | AP68: =LOS($P68,$W68,$AL68,$Y68,AM68,AN68,AI68,AO68,$AG$4,GSV_Database!C:V) -> C | AQ68: 4 | AR68: D | AS68: =Service_Volume($P68,$W68,$AT68,$Y68,AU68,AV68,AQ68,AR68,$AG$4,GSV_Database!C:V) -> 41790 | AT68: D | AU68: WL | AV68: WR | AW68: =IF($AG$4="Daily",VLOOKUP(D68,Hist_Cur_CNTS!BG:BL,6,FALSE),IF($AG$4="Peak Hour Two-Way",ROUND(VLOOKUP(D68,Hist_Cur_CNTS!BG:BL,6,FALSE) *BD68,0),ROUND(VLOOKUP(D68,Hist_Cur_CNTS!BG:BL,6,FALSE)*BD68*IF(Y68="1W",1,IF(P68="RDA",0.55,IF(OR(Q68="H",Q68="F"),VLOOKUP(P68&"_"&Q68,GSV_Database!AA:AB,2,FALSE),VLOOKUP(P68&"_"&Charlotte!W68&"_"&Charlotte!AQ68,GSV_Database!AA:AB,2,FALSE)))),0))) -> 47500 | AX68: =LOS($P68,$W68,$AT68,$Y68,AU68,AV68,AQ68,AW68,$AG$4,GSV_Database!C:V) -> F | AY68: =VLOOKUP(D68,Hist_Cur_CNTS!BG:BQ,11,FALSE) -> 43563 | AZ68: =VLOOKUP(D68,Hist_Cur_CNTS!BG:BQ,10,FALSE) -> 0.89 | BA68: 38771 | BB68: =IF($AG$4="Daily",BA68,IF($AG$4="Peak Hour Two-Way",ROUND(BA68 *BD68,0),ROUND(BA68*BD68*IF(Y68="1W",1,IF(P68="RDA",0.55,IF(OR(Q68="H",Q68="F"),VLOOKUP(P68&"_"&Q68,GSV_Database!AA:AB,2,FALSE),VLOOKUP(P68&"_"&Charlotte!W68&"_"&Charlotte!AQ68,GSV_Database!AA:AB,2,FALSE)))),0))) -> 38771 | BC68: =LOS($P68,$W68,$AT68,$Y68,AU68,AV68,AQ68,BB68,$AG$4,GSV_Database!C:V) -> C | BD68: =VLOOKUP(D68,Hist_Cur_CNTS!BG:BO,7,FALSE)/100 -> 0.09 | BE68: =VLOOKUP(D68,Hist_Cur_CNTS!BG:BO,8,FALSE)/100 -> 0.519 | BF68: =VLOOKUP(D68,Hist_Cur_CNTS!BG:BO,9,FALSE)/100 -> 0.04 | BG68: UA_S2WAC1_2W_4L_D_WL_WR | BH68: =IF($P68="U", VLOOKUP(Facility("TA",$W68,$X68,$Y68,$Z68,$AA68,$AB68),GSV_Database!C:X,22,FALSE),VLOOKUP(BG68,GSV_Database!C:X,22,FALSE)) -> 3 | BI68: 01050000-3.799-4.484 | BJ68: 3 | BK68: 0
B69: 01050000 | E69: SR 776 | F69: MCCALL RD/SR 776 | G69: Pine St | H69: 2.237 | I69: Gulfstream Blvd | J69: 4.484 | K69: 2.247 | L69: N | N69: Minor Arterial | O69: 45 | P69: UA | Q69: A | R69: D | S69: D | U69: =SUM(U67:U68) -> 5 | V69: 2.225189141 | W69: 1 | X69: D | Y69: 2W | Z69: WL | AA69: WR | AB69: 4 | AC69: =Service_Volume($P69,$W69,$X69,$Y69,Z69,AA69,AB69,R69,$AG$4,GSV_Database!C:V) -> 41790 | AD69: =wtavg(AD67:AD68,K67:K68) -> 32152.42546 | AE69: =LOS($P69,$W69,$X69,$Y69,Z69,AA69,AB69,AD69,$AG$4,GSV_Database!C:V) -> C | AH69: 76.93808437 | AI69: 4 | AJ69: D | AK69: =Service_Volume($P69,$W69,$AL69,$Y69,AM69,AN69,AI69,AJ69,$AG$4,GSV_Database!C:V) -> 41790 | AL69: D | AM69: WL | AN69: WR | AO69: =wtavg(AO67:AO68,K67:K68) -> 35982.91055 | AP69: =LOS($P69,$W69,$AL69,$Y69,AM69,AN69,AI69,AO69,$AG$4,GSV_Database!C:V) -> C | AQ69: 4 | AR69: D | AS69: =Service_Volume($P69,$W69,$AT69,$Y69,AU69,AV69,AQ69,AR69,$AG$4,GSV_Database!C:V) -> 41790 | AT69: D | AU69: WL | AV69: WR | AW69: =wtavg(AW67:AW68,$K67:$K68) -> 46943.88073 | AX69: =LOS($P69,$W69,$AT69,$Y69,AU69,AV69,AQ69,AW69,$AG$4,GSV_Database!C:V) -> F | AY69: =wtavg(AY67:AY68,$K67:$K68) -> 39232.22118 | AZ69: =wtavg(AZ67:AZ68,$K67:$K68) -> 0.89 | BA69: 34917 | BB69: =wtavg(BB67:BB68,$K67:$K68) -> 34916.39831 | BC69: =LOS($P69,$W69,$AT69,$Y69,AU69,AV69,AQ69,BB69,$AG$4,GSV_Database!C:V) -> C | BD69: =wtavg(BD67:BD68,$K67:$K68) -> 0.09 | BE69: =wtavg(BE67:BE68,$K67:$K68) -> 0.519 | BF69: =wtavg(BF67:BF68,$K67:$K68) -> 0.03652425456 | BG69: UA_S2WAC1_2W_4L_D_WL_WR | BH69: =IF($P69="U", VLOOKUP(Facility("TA",$W69,$X69,$Y69,$Z69,$AA69,$AB69),GSV_Database!C:X,22,FALSE),VLOOKUP(BG69,GSV_Database!C:X,22,FALSE)) -> 3 | BI69: 01050000-2.237-4.484 | BJ69: 3 | BK69: 0
B70: 01050000 | D70: 10051 | E70: SR 776 | F70: MCCALL RD/SR 776 | G70: Gulfstream Blvd | H70: 4.484 | I70: Spinaker Blvd | J70: 5.32 | K70: =J70-H70 -> 0.836 | L70: N | N70: Minor Arterial | O70: 55 | P70: UA | Q70: A | R70: D | S70: D | U70: 1 | V70: 1.196172249 | W70: 1 | X70: D | Y70: 2W | Z70: WL | AA70: 0R | AB70: 4 | AC70: =Service_Volume($P70,$W70,$X70,$Y70,Z70,AA70,AB70,R70,$AG$4,GSV_Database!C:V) -> 39800 | AD70: =IF($AG$4="Daily",VLOOKUP(D70,Hist_Cur_CNTS!BG:BL,2,FALSE),IF($AG$4="Peak Hour Two-Way",VLOOKUP(D70,Hist_Cur_CNTS!BG:BL,3,FALSE),VLOOKUP(D70,Hist_Cur_CNTS!BG:BL,4,FALSE))) -> 28000 | AE70: =LOS($P70,$W70,$X70,$Y70,Z70,AA70,AB70,AD70,$AG$4,GSV_Database!C:V) -> C | AF70: =IF(AND(AH70>=90,AH70<100),"Near Capacity",IF(AH70>=100,"Over Capacity","")) ->  | AH70: 70.35175879 | AI70: 4 | AJ70: D | AK70: =Service_Volume($P70,$W70,$AL70,$Y70,AM70,AN70,AI70,AJ70,$AG$4,GSV_Database!C:V) -> 39800 | AL70: D | AM70: WL | AN70: 0R | AO70: =IF($AG$4="Daily",VLOOKUP(D70,Hist_Cur_CNTS!BG:BL,5,FALSE),IF($AG$4="Peak Hour Two-Way",ROUND(VLOOKUP(D70,Hist_Cur_CNTS!BG:BL,5,FALSE) *BD70,0),ROUND(VLOOKUP(D70,Hist_Cur_CNTS!BG:BL,5,FALSE)*BD70*IF(Y70="1W",1,IF(P70="RDA",0.55,IF(OR(Q70="H",Q70="F"),VLOOKUP(P70&"_"&Q70,GSV_Database!AA:AB,2,FALSE),VLOOKUP(P70&"_"&Charlotte!W70&"_"&Charlotte!AI70,GSV_Database!AA:AB,2,FALSE)))),0))) -> 31400 | AP70: =LOS($P70,$W70,$AL70,$Y70,AM70,AN70,AI70,AO70,$AG$4,GSV_Database!C:V) -> C | AQ70: 4 | AR70: D | AS70: =Service_Volume($P70,$W70,$AT70,$Y70,AU70,AV70,AQ70,AR70,$AG$4,GSV_Database!C:V) -> 39800 | AT70: D | AU70: WL | AV70: 0R | AW70: =IF($AG$4="Daily",VLOOKUP(D70,Hist_Cur_CNTS!BG:BL,6,FALSE),IF($AG$4="Peak Hour Two-Way",ROUND(VLOOKUP(D70,Hist_Cur_CNTS!BG:BL,6,FALSE) *BD70,0),ROUND(VLOOKUP(D70,Hist_Cur_CNTS!BG:BL,6,FALSE)*BD70*IF(Y70="1W",1,IF(P70="RDA",0.55,IF(OR(Q70="H",Q70="F"),VLOOKUP(P70&"_"&Q70,GSV_Database!AA:AB,2,FALSE),VLOOKUP(P70&"_"&Charlotte!W70&"_"&Charlotte!AQ70,GSV_Database!AA:AB,2,FALSE)))),0))) -> 40900 | AX70: =LOS($P70,$W70,$AT70,$Y70,AU70,AV70,AQ70,AW70,$AG$4,GSV_Database!C:V) -> F | AY70: =VLOOKUP(D70,Hist_Cur_CNTS!BG:BQ,11,FALSE) -> 33198 | AZ70: =VLOOKUP(D70,Hist_Cur_CNTS!BG:BQ,10,FALSE) -> 0.89 | BA70: 29546 | BB70: =IF($AG$4="Daily",BA70,IF($AG$4="Peak Hour Two-Way",ROUND(BA70 *BD70,0),ROUND(BA70*BD70*IF(Y70="1W",1,IF(P70="RDA",0.55,IF(OR(Q70="H",Q70="F"),VLOOKUP(P70&"_"&Q70,GSV_Database!AA:AB,2,FALSE),VLOOKUP(P70&"_"&Charlotte!W70&"_"&Charlotte!AQ70,GSV_Database!AA:AB,2,FALSE)))),0))) -> 29546 | BC70: =LOS($P70,$W70,$AT70,$Y70,AU70,AV70,AQ70,BB70,$AG$4,GSV_Database!C:V) -> C | BD70: =VLOOKUP(D70,Hist_Cur_CNTS!BG:BO,7,FALSE)/100 -> 0.09 | BE70: =VLOOKUP(D70,Hist_Cur_CNTS!BG:BO,8,FALSE)/100 -> 0.519 | BF70: =VLOOKUP(D70,Hist_Cur_CNTS!BG:BO,9,FALSE)/100 -> 0.052 | BG70: UA_S2WAC1_2W_4L_D_WL_0R | BH70: =IF($P70="U", VLOOKUP(Facility("TA",$W70,$X70,$Y70,$Z70,$AA70,$AB70),GSV_Database!C:X,22,FALSE),VLOOKUP(BG70,GSV_Database!C:X,22,FALSE)) -> 0 | BI70: 01050000-4.484-5.32 | BJ70: 0 | BK70: 0
A71: ** | B71: 01050000 | D71: 10044 | E71: SR 776 | F71: MCCALL RD/SR 776 | G71: Spinaker Blvd | H71: 5.32 | I71: Sunnybrook Blvd | J71: 6.333 | K71: 1.013 | L71: N | N71: Minor Arterial | O71: 55 | P71: UA | Q71: A | R71: D | S71: D | U71: 1 | V71: 0.9871668312 | W71: 1 | X71: D | Y71: 2W | Z71: WL | AA71: 0R | AB71: 4 | AC71: =Service_Volume($P71,$W71,$X71,$Y71,Z71,AA71,AB71,R71,$AG$4,GSV_Database!C:V) -> 39800 | AD71: =IF($AG$4="Daily",VLOOKUP(D71,Hist_Cur_CNTS!BG:BL,2,FALSE),IF($AG$4="Peak Hour Two-Way",VLOOKUP(D71,Hist_Cur_CNTS!BG:BL,3,FALSE),VLOOKUP(D71,Hist_Cur_CNTS!BG:BL,4,FALSE))) -> 27500 | AE71: =LOS($P71,$W71,$X71,$Y71,Z71,AA71,AB71,AD71,$AG$4,GSV_Database!C:V) -> C | AH71: 69.09547739 | AI71: 4 | AJ71: D | AK71: =Service_Volume($P71,$W71,$AL71,$Y71,AM71,AN71,AI71,AJ71,$AG$4,GSV_Database!C:V) -> 39800 | AL71: D | AM71: WL | AN71: 0R | AO71: =IF($AG$4="Daily",VLOOKUP(D71,Hist_Cur_CNTS!BG:BL,5,FALSE),IF($AG$4="Peak Hour Two-Way",ROUND(VLOOKUP(D71,Hist_Cur_CNTS!BG:BL,5,FALSE) *BD71,0),ROUND(VLOOKUP(D71,Hist_Cur_CNTS!BG:BL,5,FALSE)*BD71*IF(Y71="1W",1,IF(P71="RDA",0.55,IF(OR(Q71="H",Q71="F"),VLOOKUP(P71&"_"&Q71,GSV_Database!AA:AB,2,FALSE),VLOOKUP(P71&"_"&Charlotte!W71&"_"&Charlotte!AI71,GSV_Database!AA:AB,2,FALSE)))),0))) -> 30800 | AP71: =LOS($P71,$W71,$AL71,$Y71,AM71,AN71,AI71,AO71,$AG$4,GSV_Database!C:V) -> C | AQ71: 4 | AR71: D | AS71: =Service_Volume($P71,$W71,$AT71,$Y71,AU71,AV71,AQ71,AR71,$AG$4,GSV_Database!C:V) -> 39800 | AT71: D | AU71: WL | AV71: 0R | AW71: =IF($AG$4="Daily",VLOOKUP(D71,Hist_Cur_CNTS!BG:BL,6,FALSE),IF($AG$4="Peak Hour Two-Way",ROUND(VLOOKUP(D71,Hist_Cur_CNTS!BG:BL,6,FALSE) *BD71,0),ROUND(VLOOKUP(D71,Hist_Cur_CNTS!BG:BL,6,FALSE)*BD71*IF(Y71="1W",1,IF(P71="RDA",0.55,IF(OR(Q71="H",Q71="F"),VLOOKUP(P71&"_"&Q71,GSV_Database!AA:AB,2,FALSE),VLOOKUP(P71&"_"&Charlotte!W71&"_"&Charlotte!AQ71,GSV_Database!AA:AB,2,FALSE)))),0))) -> 40200 | AX71: =LOS($P71,$W71,$AT71,$Y71,AU71,AV71,AQ71,AW71,$AG$4,GSV_Database!C:V) -> F | AY71: =VLOOKUP(D71,Hist_Cur_CNTS!BG:BQ,11,FALSE) -> 28992 | AZ71: =VLOOKUP(D71,Hist_Cur_CNTS!BG:BQ,10,FALSE) -> 0.89 | BA71: 25803 | BB71: =IF($AG$4="Daily",BA71,IF($AG$4="Peak Hour Two-Way",ROUND(BA71 *BD71,0),ROUND(BA71*BD71*IF(Y71="1W",1,IF(P71="RDA",0.55,IF(OR(Q71="H",Q71="F"),VLOOKUP(P71&"_"&Q71,GSV_Database!AA:AB,2,FALSE),VLOOKUP(P71&"_"&Charlotte!W71&"_"&Charlotte!AQ71,GSV_Database!AA:AB,2,FALSE)))),0))) -> 25803 | BC71: =LOS($P71,$W71,$AT71,$Y71,AU71,AV71,AQ71,BB71,$AG$4,GSV_Database!C:V) -> C | BD71: =VLOOKUP(D71,Hist_Cur_CNTS!BG:BO,7,FALSE)/100 -> 0.09 | BE71: =VLOOKUP(D71,Hist_Cur_CNTS!BG:BO,8,FALSE)/100 -> 0.519 | BF71: =VLOOKUP(D71,Hist_Cur_CNTS!BG:BO,9,FALSE)/100 -> 0.057 | BG71: UA_S2WAC1_2W_4L_D_WL_0R | BH71: =IF($P71="U", VLOOKUP(Facility("TA",$W71,$X71,$Y71,$Z71,$AA71,$AB71),GSV_Database!C:X,22,FALSE),VLOOKUP(BG71,GSV_Database!C:X,22,FALSE)) -> 0 | BI71: 01050000-5.32-6.333 | BJ71: 0 | BK71: 0
B72: 01050000 | D72: 10052 | E72: SR 776 | F72: MCCALL RD/SR 776 | G72: Sunnybrook Blvd | H72: 6.333 | I72: Sea Mist Dr | J72: 7.268 | K72: 0.935 | L72: N | N72: Minor Arterial | O72: 55 | P72: UA | Q72: A | R72: D | S72: D | V72: 0 | W72: 1 | X72: D | Y72: 2W | Z72: WL | AA72: 0R | AB72: 4 | AC72: =Service_Volume($P72,$W72,$X72,$Y72,Z72,AA72,AB72,R72,$AG$4,GSV_Database!C:V) -> 39800 | AD72: =IF($AG$4="Daily",VLOOKUP(D72,Hist_Cur_CNTS!BG:BL,2,FALSE),IF($AG$4="Peak Hour Two-Way",VLOOKUP(D72,Hist_Cur_CNTS!BG:BL,3,FALSE),VLOOKUP(D72,Hist_Cur_CNTS!BG:BL,4,FALSE))) -> 25500 | AE72: =LOS($P72,$W72,$X72,$Y72,Z72,AA72,AB72,AD72,$AG$4,GSV_Database!C:V) -> C | AH72: 64.07035176 | AI72: 4 | AJ72: D | AK72: =Service_Volume($P72,$W72,$AL72,$Y72,AM72,AN72,AI72,AJ72,$AG$4,GSV_Database!C:V) -> 39800 | AL72: D | AM72: WL | AN72: 0R | AO72: =IF($AG$4="Daily",VLOOKUP(D72,Hist_Cur_CNTS!BG:BL,5,FALSE),IF($AG$4="Peak Hour Two-Way",ROUND(VLOOKUP(D72,Hist_Cur_CNTS!BG:BL,5,FALSE) *BD72,0),ROUND(VLOOKUP(D72,Hist_Cur_CNTS!BG:BL,5,FALSE)*BD72*IF(Y72="1W",1,IF(P72="RDA",0.55,IF(OR(Q72="H",Q72="F"),VLOOKUP(P72&"_"&Q72,GSV_Database!AA:AB,2,FALSE),VLOOKUP(P72&"_"&Charlotte!W72&"_"&Charlotte!AI72,GSV_Database!AA:AB,2,FALSE)))),0))) -> 28600 | AP72: =LOS($P72,$W72,$AL72,$Y72,AM72,AN72,AI72,AO72,$AG$4,GSV_Database!C:V) -> C | AQ72: 4 | AR72: D | AS72: =Service_Volume($P72,$W72,$AT72,$Y72,AU72,AV72,AQ72,AR72,$AG$4,GSV_Database!C:V) -> 39800 | AT72: D | AU72: WL | AV72: 0R | AW72: =IF($AG$4="Daily",VLOOKUP(D72,Hist_Cur_CNTS!BG:BL,6,FALSE),IF($AG$4="Peak Hour Two-Way",ROUND(VLOOKUP(D72,Hist_Cur_CNTS!BG:BL,6,FALSE) *BD72,0),ROUND(VLOOKUP(D72,Hist_Cur_CNTS!BG:BL,6,FALSE)*BD72*IF(Y72="1W",1,IF(P72="RDA",0.55,IF(OR(Q72="H",Q72="F"),VLOOKUP(P72&"_"&Q72,GSV_Database!AA:AB,2,FALSE),VLOOKUP(P72&"_"&Charlotte!W72&"_"&Charlotte!AQ72,GSV_Database!AA:AB,2,FALSE)))),0))) -> 37200 | AX72: =LOS($P72,$W72,$AT72,$Y72,AU72,AV72,AQ72,AW72,$AG$4,GSV_Database!C:V) -> C | AY72: =VLOOKUP(D72,Hist_Cur_CNTS!BG:BQ,11,FALSE) -> 31935 | AZ72: =VLOOKUP(D72,Hist_Cur_CNTS!BG:BQ,10,FALSE) -> 0.89 | BA72: 28422 | BB72: =IF($AG$4="Daily",BA72,IF($AG$4="Peak Hour Two-Way",ROUND(BA72 *BD72,0),ROUND(BA72*BD72*IF(Y72="1W",1,IF(P72="RDA",0.55,IF(OR(Q72="H",Q72="F"),VLOOKUP(P72&"_"&Q72,GSV_Database!AA:AB,2,FALSE),VLOOKUP(P72&"_"&Charlotte!W72&"_"&Charlotte!AQ72,GSV_Database!AA:AB,2,FALSE)))),0))) -> 28422 | BC72: =LOS($P72,$W72,$AT72,$Y72,AU72,AV72,AQ72,BB72,$AG$4,GSV_Database!C:V) -> C | BD72: =VLOOKUP(D72,Hist_Cur_CNTS!BG:BO,7,FALSE)/100 -> 0.09 | BE72: =VLOOKUP(D72,Hist_Cur_CNTS!BG:BO,8,FALSE)/100 -> 0.519 | BF72: =VLOOKUP(D72,Hist_Cur_CNTS!BG:BO,9,FALSE)/100 -> 0.061 | BG72: UA_S2WAC1_2W_4L_D_WL_0R | BH72: =IF($P72="U", VLOOKUP(Facility("TA",$W72,$X72,$Y72,$Z72,$AA72,$AB72),GSV_Database!C:X,22,FALSE),VLOOKUP(BG72,GSV_Database!C:X,22,FALSE)) -> 0 | BI72: 01050000-6.333-7.268 | BJ72: 0 | BK72: 0
B73: 01050000 | E73: SR 776 | F73: MCCALL RD/SR 776 | G73: Gulfstream Blvd | H73: 4.484 | I73: Sea Mist Dr | J73: 7.268 | K73: 2.784 | L73: N | N73: Minor Arterial | O73: 55 | P73: UA | Q73: A | R73: D | S73: D | U73: =SUM(U70:U72) -> 2 | V73: 0.7183908046 | W73: 1 | X73: D | Y73: 2W | Z73: WL | AA73: 0R | AB73: 4 | AC73: =Service_Volume($P73,$W73,$X73,$Y73,Z73,AA73,AB73,R73,$AG$4,GSV_Database!C:V) -> 39800 | AD73: =wtavg(AD70:AD72,K70:K72) -> 26978.44828 | AE73: =LOS($P73,$W73,$X73,$Y73,Z73,AA73,AB73,AD73,$AG$4,GSV_Database!C:V) -> C | AH73: 67.78504592 | AI73: 4 | AJ73: D | AK73: =Service_Volume($P73,$W73,$AL73,$Y73,AM73,AN73,AI73,AJ73,$AG$4,GSV_Database!C:V) -> 39800 | AL73: D | AM73: WL | AN73: 0R | AO73: =wtavg(AO70:AO72,K70:K72) -> 30241.30747 | AP73: =LOS($P73,$W73,$AL73,$Y73,AM73,AN73,AI73,AO73,$AG$4,GSV_Database!C:V) -> C | AQ73: 4 | AR73: D | AS73: =Service_Volume($P73,$W73,$AT73,$Y73,AU73,AV73,AQ73,AR73,$AG$4,GSV_Database!C:V) -> 39800 | AT73: D | AU73: WL | AV73: 0R | AW73: =wtavg(AW70:AW72,$K70:$K72) -> 39402.65805 | AX73: =LOS($P73,$W73,$AT73,$Y73,AU73,AV73,AQ73,AW73,$AG$4,GSV_Database!C:V) -> D | AY73: =wtavg(AY70:AY72,$K70:$K72) -> 31243.40841 | AZ73: =wtavg(AZ70:AZ72,$K70:$K72) -> 0.89 | BA73: 27807 | BB73: =wtavg(BB70:BB72,$K70:$K72) -> 27806.5607 | BC73: =LOS($P73,$W73,$AT73,$Y73,AU73,AV73,AQ73,BB73,$AG$4,GSV_Database!C:V) -> C | BD73: =wtavg(BD70:BD72,$K70:$K72) -> 0.09 | BE73: =wtavg(BE70:BE72,$K70:$K72) -> 0.519 | BF73: =wtavg(BF70:BF72,$K70:$K72) -> 0.05684195402 | BG73: UA_S2WAC1_2W_4L_D_WL_0R | BH73: =IF($P73="U", VLOOKUP(Facility("TA",$W73,$X73,$Y73,$Z73,$AA73,$AB73),GSV_Database!C:X,22,FALSE),VLOOKUP(BG73,GSV_Database!C:X,22,FALSE)) -> 0 | BI73: 01050000-4.484-7.268 | BJ73: 0 | BK73: 0
B74: 01050000 | D74: 10052 | E74: SR 776 | F74: MCCALL RD/SR 776 | G74: Sea Mist Dr | H74: 7.268 | I74: Willmington Blvd | J74: 8.529 | K74: 1.261 | L74: N | N74: Minor Arterial | O74: 55 | P74: UA | Q74: A | R74: D | S74: D | V74: =U74/K74 -> 0 | W74: 1 | X74: D | Y74: =IF(X74="1w",X74,"2W") -> 2W | Z74: WL | AA74: WR | AB74: 4 | AC74: =Service_Volume($P74,$W74,$X74,$Y74,Z74,AA74,AB74,R74,$AG$4,GSV_Database!C:V) -> 41790 | AD74: =IF($AG$4="Daily",VLOOKUP(D74,Hist_Cur_CNTS!BG:BL,2,FALSE),IF($AG$4="Peak Hour Two-Way",VLOOKUP(D74,Hist_Cur_CNTS!BG:BL,3,FALSE),VLOOKUP(D74,Hist_Cur_CNTS!BG:BL,4,FALSE))) -> 25500 | AE74: =LOS($P74,$W74,$X74,$Y74,Z74,AA74,AB74,AD74,$AG$4,GSV_Database!C:V) -> C | AH74: 61.01938263 | AI74: 4 | AJ74: D | AK74: =Service_Volume($P74,$W74,$AL74,$Y74,AM74,AN74,AI74,AJ74,$AG$4,GSV_Database!C:V) -> 41790 | AL74: D | AM74: WL | AN74: WR | AO74: =IF($AG$4="Daily",VLOOKUP(D74,Hist_Cur_CNTS!BG:BL,5,FALSE),IF($AG$4="Peak Hour Two-Way",ROUND(VLOOKUP(D74,Hist_Cur_CNTS!BG:BL,5,FALSE) *BD74,0),ROUND(VLOOKUP(D74,Hist_Cur_CNTS!BG:BL,5,FALSE)*BD74*IF(Y74="1W",1,IF(P74="RDA",0.55,IF(OR(Q74="H",Q74="F"),VLOOKUP(P74&"_"&Q74,GSV_Database!AA:AB,2,FALSE),VLOOKUP(P74&"_"&Charlotte!W74&"_"&Charlotte!AI74,GSV_Database!AA:AB,2,FALSE)))),0))) -> 28600 | AP74: =LOS($P74,$W74,$AL74,$Y74,AM74,AN74,AI74,AO74,$AG$4,GSV_Database!C:V) -> C | AQ74: 4 | AR74: D | AS74: =Service_Volume($P74,$W74,$AT74,$Y74,AU74,AV74,AQ74,AR74,$AG$4,GSV_Database!C:V) -> 41790 | AT74: D | AU74: WL | AV74: WR | AW74: =IF($AG$4="Daily",VLOOKUP(D74,Hist_Cur_CNTS!BG:BL,6,FALSE),IF($AG$4="Peak Hour Two-Way",ROUND(VLOOKUP(D74,Hist_Cur_CNTS!BG:BL,6,FALSE) *BD74,0),ROUND(VLOOKUP(D74,Hist_Cur_CNTS!BG:BL,6,FALSE)*BD74*IF(Y74="1W",1,IF(P74="RDA",0.55,IF(OR(Q74="H",Q74="F"),VLOOKUP(P74&"_"&Q74,GSV_Database!AA:AB,2,FALSE),VLOOKUP(P74&"_"&Charlotte!W74&"_"&Charlotte!AQ74,GSV_Database!AA:AB,2,FALSE)))),0))) -> 37200 | AX74: =LOS($P74,$W74,$AT74,$Y74,AU74,AV74,AQ74,AW74,$AG$4,GSV_Database!C:V) -> C | AY74: =VLOOKUP(D74,Hist_Cur_CNTS!BG:BQ,11,FALSE) -> 31935 | AZ74: =VLOOKUP(D74,Hist_Cur_CNTS!BG:BQ,10,FALSE) -> 0.89 | BA74: 28422 | BB74: =IF($AG$4="Daily",BA74,IF($AG$4="Peak Hour Two-Way",ROUND(BA74 *BD74,0),ROUND(BA74*BD74*IF(Y74="1W",1,IF(P74="RDA",0.55,IF(OR(Q74="H",Q74="F"),VLOOKUP(P74&"_"&Q74,GSV_Database!AA:AB,2,FALSE),VLOOKUP(P74&"_"&Charlotte!W74&"_"&Charlotte!AQ74,GSV_Database!AA:AB,2,FALSE)))),0))) -> 28422 | BC74: =LOS($P74,$W74,$AT74,$Y74,AU74,AV74,AQ74,BB74,$AG$4,GSV_Database!C:V) -> C | BD74: =VLOOKUP(D74,Hist_Cur_CNTS!BG:BO,7,FALSE)/100 -> 0.09 | BE74: =VLOOKUP(D74,Hist_Cur_CNTS!BG:BO,8,FALSE)/100 -> 0.519 | BF74: =VLOOKUP(D74,Hist_Cur_CNTS!BG:BO,9,FALSE)/100 -> 0.061 | BG74: UA_S2WAC1_2W_4L_D_WL_WR | BH74: =IF($P74="U", VLOOKUP(Facility("TA",$W74,$X74,$Y74,$Z74,$AA74,$AB74),GSV_Database!C:X,22,FALSE),VLOOKUP(BG74,GSV_Database!C:X,22,FALSE)) -> 3 | BI74: 01050000-7.268-8.529 | BJ74: 3 | BK74: 0
A75: ** | B75: 01050000 | D75: 10029 | E75: SR 776 | F75: MCCALL RD/SR 776 | G75: Willmington Blvd | H75: 8.529 | I75: CR 771 (Gasparilla Rd) | J75: 9.403 | K75: 0.874 | L75: N | N75: Minor Arterial | O75: 55 | P75: UA | Q75: A | R75: D | S75: D | U75: 2 | V75: 2.288329519 | W75: 1 | X75: D | Y75: 2W | Z75: WL | AA75: WR | AB75: 4 | AC75: =Service_Volume($P75,$W75,$X75,$Y75,Z75,AA75,AB75,R75,$AG$4,GSV_Database!C:V) -> 41790 | AD75: =IF($AG$4="Daily",VLOOKUP(D75,Hist_Cur_CNTS!BG:BL,2,FALSE),IF($AG$4="Peak Hour Two-Way",VLOOKUP(D75,Hist_Cur_CNTS!BG:BL,3,FALSE),VLOOKUP(D75,Hist_Cur_CNTS!BG:BL,4,FALSE))) -> 26000 | AE75: =LOS($P75,$W75,$X75,$Y75,Z75,AA75,AB75,AD75,$AG$4,GSV_Database!C:V) -> C | AH75: =AD75*100/AC75 -> 62.21584111 | AI75: 4 | AJ75: D | AK75: =Service_Volume($P75,$W75,$AL75,$Y75,AM75,AN75,AI75,AJ75,$AG$4,GSV_Database!C:V) -> 41790 | AL75: D | AM75: WL | AN75: WR | AO75: =IF($AG$4="Daily",VLOOKUP(D75,Hist_Cur_CNTS!BG:BL,5,FALSE),IF($AG$4="Peak Hour Two-Way",ROUND(VLOOKUP(D75,Hist_Cur_CNTS!BG:BL,5,FALSE) *BD75,0),ROUND(VLOOKUP(D75,Hist_Cur_CNTS!BG:BL,5,FALSE)*BD75*IF(Y75="1W",1,IF(P75="RDA",0.55,IF(OR(Q75="H",Q75="F"),VLOOKUP(P75&"_"&Q75,GSV_Database!AA:AB,2,FALSE),VLOOKUP(P75&"_"&Charlotte!W75&"_"&Charlotte!AI75,GSV_Database!AA:AB,2,FALSE)))),0))) -> 29100 | AP75: =LOS($P75,$W75,$AL75,$Y75,AM75,AN75,AI75,AO75,$AG$4,GSV_Database!C:V) -> C | AQ75: 4 | AR75: D | AS75: =Service_Volume($P75,$W75,$AT75,$Y75,AU75,AV75,AQ75,AR75,$AG$4,GSV_Database!C:V) -> 41790 | AT75: D | AU75: WL | AV75: WR | AW75: =IF($AG$4="Daily",VLOOKUP(D75,Hist_Cur_CNTS!BG:BL,6,FALSE),IF($AG$4="Peak Hour Two-Way",ROUND(VLOOKUP(D75,Hist_Cur_CNTS!BG:BL,6,FALSE) *BD75,0),ROUND(VLOOKUP(D75,Hist_Cur_CNTS!BG:BL,6,FALSE)*BD75*IF(Y75="1W",1,IF(P75="RDA",0.55,IF(OR(Q75="H",Q75="F"),VLOOKUP(P75&"_"&Q75,GSV_Database!AA:AB,2,FALSE),VLOOKUP(P75&"_"&Charlotte!W75&"_"&Charlotte!AQ75,GSV_Database!AA:AB,2,FALSE)))),0))) -> 38000 | AX75: =LOS($P75,$W75,$AT75,$Y75,AU75,AV75,AQ75,AW75,$AG$4,GSV_Database!C:V) -> C | AY75: =VLOOKUP(D75,Hist_Cur_CNTS!BG:BQ,11,FALSE) -> 21563 | AZ75: =VLOOKUP(D75,Hist_Cur_CNTS!BG:BQ,10,FALSE) -> 0.89 | BA75: 19191 | BB75: =IF($AG$4="Daily",BA75,IF($AG$4="Peak Hour Two-Way",ROUND(BA75 *BD75,0),ROUND(BA75*BD75*IF(Y75="1W",1,IF(P75="RDA",0.55,IF(OR(Q75="H",Q75="F"),VLOOKUP(P75&"_"&Q75,GSV_Database!AA:AB,2,FALSE),VLOOKUP(P75&"_"&Charlotte!W75&"_"&Charlotte!AQ75,GSV_Database!AA:AB,2,FALSE)))),0))) -> 19191 | BC75: =LOS($P75,$W75,$AT75,$Y75,AU75,AV75,AQ75,BB75,$AG$4,GSV_Database!C:V) -> C | BD75: =VLOOKUP(D75,Hist_Cur_CNTS!BG:BO,7,FALSE)/100 -> 0.09 | BE75: =VLOOKUP(D75,Hist_Cur_CNTS!BG:BO,8,FALSE)/100 -> 0.519 | BF75: =VLOOKUP(D75,Hist_Cur_CNTS!BG:BO,9,FALSE)/100 -> 0.062 | BG75: UA_S2WAC1_2W_4L_D_WL_WR | BH75: =IF($P75="U", VLOOKUP(Facility("TA",$W75,$X75,$Y75,$Z75,$AA75,$AB75),GSV_Database!C:X,22,FALSE),VLOOKUP(BG75,GSV_Database!C:X,22,FALSE)) -> 3 | BI75: 01050000-8.529-9.403 | BJ75: 3 | BK75: =AI75-AB75 -> 0
A76: =IF(BB76<AD76,"**","") -> ** | B76: 01050000 | E76: SR 776 | F76: MCCALL RD/SR 776 | G76: Sea Mist Dr | H76: 7.268 | I76: =I75 -> CR 771 (Gasparilla Rd) | J76: 9.403 | K76: 2.135 | L76: N | N76: Minor Arterial | O76: 55 | P76: UA | Q76: A | R76: =IF(P76="UA","D","C") -> D | S76: D | U76: =SUM(U74:U75) -> 2 | V76: 0.9367681499 | W76: =IF(Q76="F",Q76,IF(Q76="H","",IF(O76>=40,1,2))) -> 1 | X76: D | Y76: 2W | Z76: WL | AA76: WR | AB76: 4 | AC76: =Service_Volume($P76,$W76,$X76,$Y76,Z76,AA76,AB76,R76,$AG$4,GSV_Database!C:V) -> 41790 | AD76: =wtavg(AD74:AD75,K74:K75) -> 25704.68384 | AE76: =LOS($P76,$W76,$X76,$Y76,Z76,AA76,AB76,AD76,$AG$4,GSV_Database!C:V) -> C | AH76: 61.50917406 | AI76: 4 | AJ76: =R76 -> D | AK76: =Service_Volume($P76,$W76,$AL76,$Y76,AM76,AN76,AI76,AJ76,$AG$4,GSV_Database!C:V) -> 41790 | AL76: D | AM76: =Z76 -> WL | AN76: =AA76 -> WR | AO76: =wtavg(AO74:AO75,K74:K75) -> 28804.68384 | AP76: =LOS($P76,$W76,$AL76,$Y76,AM76,AN76,AI76,AO76,$AG$4,GSV_Database!C:V) -> C | AQ76: 4 | AR76: =AJ76 -> D | AS76: =Service_Volume($P76,$W76,$AT76,$Y76,AU76,AV76,AQ76,AR76,$AG$4,GSV_Database!C:V) -> 41790 | AT76: D | AU76: =AM76 -> WL | AV76: =AN76 -> WR | AW76: =wtavg(AW74:AW75,$K74:$K75) -> 37527.49415 | AX76: =LOS($P76,$W76,$AT76,$Y76,AU76,AV76,AQ76,AW76,$AG$4,GSV_Database!C:V) -> C | AY76: =wtavg(AY74:AY75,$K74:$K75) -> 27689.03841 | AZ76: =wtavg(AZ74:AZ75,$K74:$K75) -> 0.89 | BA76: =ROUND(AZ76*AY76,0) -> 24643 | BB76: =wtavg(BB74:BB75,$K74:$K75) -> 24643.12693 | BC76: =LOS($P76,$W76,$AT76,$Y76,AU76,AV76,AQ76,BB76,$AG$4,GSV_Database!C:V) -> C | BD76: =wtavg(BD74:BD75,$K74:$K75) -> 0.09 | BE76: =wtavg(BE74:BE75,$K74:$K75) -> 0.519 | BF76: =wtavg(BF74:BF75,$K74:$K75) -> 0.06140936768 | BG76: =Facility($P76,$W76,$X76,$Y76,$Z76,$AA76,$AB76) -> UA_S2WAC1_2W_4L_D_WL_WR | BH76: =IF($P76="U", VLOOKUP(Facility("TA",$W76,$X76,$Y76,$Z76,$AA76,$AB76),GSV_Database!C:X,22,FALSE),VLOOKUP(BG76,GSV_Database!C:X,22,FALSE)) -> 3 | BI76: =CONCATENATE(B76,"-",H76,"-",J76) -> 01050000-7.268-9.403 | BJ76: =BH76 -> 3 | BK76: 0
B77: 01050000 | D77: 10228 | E77: SR 776 | F77: EL JOBEAN RD/MCCALL RD/SR 776 | G77: =I76 -> CR 771 (Gasparilla Rd) | H77: 9.403 | I77: Willow Bend Dr | J77: 13.167 | K77: 3.764 | L77: N | N77: Minor Arterial | O77: 55 | P77: UA | Q77: A | R77: D | S77: D | U77: 1 | V77: 0.265674814 | W77: 1 | X77: D | Y77: 2W | Z77: WL | AA77: WR | AB77: 4 | AC77: =Service_Volume($P77,$W77,$X77,$Y77,Z77,AA77,AB77,R77,$AG$4,GSV_Database!C:V) -> 41790 | AD77: =IF($AG$4="Daily",VLOOKUP(D77,Hist_Cur_CNTS!BG:BL,2,FALSE),IF($AG$4="Peak Hour Two-Way",VLOOKUP(D77,Hist_Cur_CNTS!BG:BL,3,FALSE),VLOOKUP(D77,Hist_Cur_CNTS!BG:BL,4,FALSE))) -> 28601 | AE77: =LOS($P77,$W77,$X77,$Y77,Z77,AA77,AB77,AD77,$AG$4,GSV_Database!C:V) -> C | AH77: 68.43981814 | AI77: 4 | AJ77: D | AK77: =Service_Volume($P77,$W77,$AL77,$Y77,AM77,AN77,AI77,AJ77,$AG$4,GSV_Database!C:V) -> 41790 | AL77: D | AM77: WL | AN77: WR | AO77: =IF($AG$4="Daily",VLOOKUP(D77,Hist_Cur_CNTS!BG:BL,5,FALSE),IF($AG$4="Peak Hour Two-Way",ROUND(VLOOKUP(D77,Hist_Cur_CNTS!BG:BL,5,FALSE) *BD77,0),ROUND(VLOOKUP(D77,Hist_Cur_CNTS!BG:BL,5,FALSE)*BD77*IF(Y77="1W",1,IF(P77="RDA",0.55,IF(OR(Q77="H",Q77="F"),VLOOKUP(P77&"_"&Q77,GSV_Database!AA:AB,2,FALSE),VLOOKUP(P77&"_"&Charlotte!W77&"_"&Charlotte!AI77,GSV_Database!AA:AB,2,FALSE)))),0))) -> 32000 | AP77: =LOS($P77,$W77,$AL77,$Y77,AM77,AN77,AI77,AO77,$AG$4,GSV_Database!C:V) -> C | AQ77: 6 | AR77: D | AS77: =Service_Volume($P77,$W77,$AT77,$Y77,AU77,AV77,AQ77,AR77,$AG$4,GSV_Database!C:V) -> 62895 | AT77: D | AU77: WL | AV77: WR | AW77: =IF($AG$4="Daily",VLOOKUP(D77,Hist_Cur_CNTS!BG:BL,6,FALSE),IF($AG$4="Peak Hour Two-Way",ROUND(VLOOKUP(D77,Hist_Cur_CNTS!BG:BL,6,FALSE) *BD77,0),ROUND(VLOOKUP(D77,Hist_Cur_CNTS!BG:BL,6,FALSE)*BD77*IF(Y77="1W",1,IF(P77="RDA",0.55,IF(OR(Q77="H",Q77="F"),VLOOKUP(P77&"_"&Q77,GSV_Database!AA:AB,2,FALSE),VLOOKUP(P77&"_"&Charlotte!W77&"_"&Charlotte!AQ77,GSV_Database!AA:AB,2,FALSE)))),0))) -> 41800 | AX77: =LOS($P77,$W77,$AT77,$Y77,AU77,AV77,AQ77,AW77,$AG$4,GSV_Database!C:V) -> C | AY77: =VLOOKUP(D77,Hist_Cur_CNTS!BG:BQ,11,FALSE) -> 37170 | AZ77: =VLOOKUP(D77,Hist_Cur_CNTS!BG:BQ,10,FALSE) -> 0.89 | BA77: 33081 | BB77: =IF($AG$4="Daily",BA77,IF($AG$4="Peak Hour Two-Way",ROUND(BA77 *BD77,0),ROUND(BA77*BD77*IF(Y77="1W",1,IF(P77="RDA",0.55,IF(OR(Q77="H",Q77="F"),VLOOKUP(P77&"_"&Q77,GSV_Database!AA:AB,2,FALSE),VLOOKUP(P77&"_"&Charlotte!W77&"_"&Charlotte!AQ77,GSV_Database!AA:AB,2,FALSE)))),0))) -> 33081 | BC77: =LOS($P77,$W77,$AT77,$Y77,AU77,AV77,AQ77,BB77,$AG$4,GSV_Database!C:V) -> C | BD77: =VLOOKUP(D77,Hist_Cur_CNTS!BG:BO,7,FALSE)/100 -> 0.09 | BE77: =VLOOKUP(D77,Hist_Cur_CNTS!BG:BO,8,FALSE)/100 -> 0.524 | BF77: =VLOOKUP(D77,Hist_Cur_CNTS!BG:BO,9,FALSE)/100 -> 0.059 | BG77: UA_S2WAC1_2W_4L_D_WL_WR | BH77: =IF($P77="U", VLOOKUP(Facility("TA",$W77,$X77,$Y77,$Z77,$AA77,$AB77),GSV_Database!C:X,22,FALSE),VLOOKUP(BG77,GSV_Database!C:X,22,FALSE)) -> 3 | BI77: 01050000-9.403-13.167 | BJ77: 3 | BK77: 0
B78: 01050000 | D78: 10228 | E78: SR 776 | F78: EL JOBEAN RD | G78: Willow Bend Dr | H78: 13.167 | I78: Cornelius Blvd | J78: 14.033 | K78: 0.866 | L78: N | N78: Minor Arterial | O78: 55 | P78: UA | Q78: A | R78: D | S78: D | V78: 0 | W78: 1 | X78: D | Y78: 2W | Z78: WL | AA78: WR | AB78: 4 | AC78: =Service_Volume($P78,$W78,$X78,$Y78,Z78,AA78,AB78,R78,$AG$4,GSV_Database!C:V) -> 41790 | AD78: =IF($AG$4="Daily",VLOOKUP(D78,Hist_Cur_CNTS!BG:BL,2,FALSE),IF($AG$4="Peak Hour Two-Way",VLOOKUP(D78,Hist_Cur_CNTS!BG:BL,3,FALSE),VLOOKUP(D78,Hist_Cur_CNTS!BG:BL,4,FALSE))) -> 28601 | AE78: =LOS($P78,$W78,$X78,$Y78,Z78,AA78,AB78,AD78,$AG$4,GSV_Database!C:V) -> C | AH78: 68.43981814 | AI78: 4 | AJ78: D | AK78: =Service_Volume($P78,$W78,$AL78,$Y78,AM78,AN78,AI78,AJ78,$AG$4,GSV_Database!C:V) -> 41790 | AL78: D | AM78: WL | AN78: WR | AO78: =IF($AG$4="Daily",VLOOKUP(D78,Hist_Cur_CNTS!BG:BL,5,FALSE),IF($AG$4="Peak Hour Two-Way",ROUND(VLOOKUP(D78,Hist_Cur_CNTS!BG:BL,5,FALSE) *BD78,0),ROUND(VLOOKUP(D78,Hist_Cur_CNTS!BG:BL,5,FALSE)*BD78*IF(Y78="1W",1,IF(P78="RDA",0.55,IF(OR(Q78="H",Q78="F"),VLOOKUP(P78&"_"&Q78,GSV_Database!AA:AB,2,FALSE),VLOOKUP(P78&"_"&Charlotte!W78&"_"&Charlotte!AI78,GSV_Database!AA:AB,2,FALSE)))),0))) -> 32000 | AP78: =LOS($P78,$W78,$AL78,$Y78,AM78,AN78,AI78,AO78,$AG$4,GSV_Database!C:V) -> C | AQ78: 6 | AR78: D | AS78: =Service_Volume($P78,$W78,$AT78,$Y78,AU78,AV78,AQ78,AR78,$AG$4,GSV_Database!C:V) -> 62895 | AT78: D | AU78: WL | AV78: WR | AW78: =IF($AG$4="Daily",VLOOKUP(D78,Hist_Cur_CNTS!BG:BL,6,FALSE),IF($AG$4="Peak Hour Two-Way",ROUND(VLOOKUP(D78,Hist_Cur_CNTS!BG:BL,6,FALSE) *BD78,0),ROUND(VLOOKUP(D78,Hist_Cur_CNTS!BG:BL,6,FALSE)*BD78*IF(Y78="1W",1,IF(P78="RDA",0.55,IF(OR(Q78="H",Q78="F"),VLOOKUP(P78&"_"&Q78,GSV_Database!AA:AB,2,FALSE),VLOOKUP(P78&"_"&Charlotte!W78&"_"&Charlotte!AQ78,GSV_Database!AA:AB,2,FALSE)))),0))) -> 41800 | AX78: =LOS($P78,$W78,$AT78,$Y78,AU78,AV78,AQ78,AW78,$AG$4,GSV_Database!C:V) -> C | AY78: =VLOOKUP(D78,Hist_Cur_CNTS!BG:BQ,11,FALSE) -> 37170 | AZ78: =VLOOKUP(D78,Hist_Cur_CNTS!BG:BQ,10,FALSE) -> 0.89 | BA78: 33081 | BB78: =IF($AG$4="Daily",BA78,IF($AG$4="Peak Hour Two-Way",ROUND(BA78 *BD78,0),ROUND(BA78*BD78*IF(Y78="1W",1,IF(P78="RDA",0.55,IF(OR(Q78="H",Q78="F"),VLOOKUP(P78&"_"&Q78,GSV_Database!AA:AB,2,FALSE),VLOOKUP(P78&"_"&Charlotte!W78&"_"&Charlotte!AQ78,GSV_Database!AA:AB,2,FALSE)))),0))) -> 33081 | BC78: =LOS($P78,$W78,$AT78,$Y78,AU78,AV78,AQ78,BB78,$AG$4,GSV_Database!C:V) -> C | BD78: =VLOOKUP(D78,Hist_Cur_CNTS!BG:BO,7,FALSE)/100 -> 0.09 | BE78: =VLOOKUP(D78,Hist_Cur_CNTS!BG:BO,8,FALSE)/100 -> 0.524 | BF78: =VLOOKUP(D78,Hist_Cur_CNTS!BG:BO,9,FALSE)/100 -> 0.059 | BG78: UA_S2WAC1_2W_4L_D_WL_WR | BH78: =IF($P78="U", VLOOKUP(Facility("TA",$W78,$X78,$Y78,$Z78,$AA78,$AB78),GSV_Database!C:X,22,FALSE),VLOOKUP(BG78,GSV_Database!C:X,22,FALSE)) -> 3 | BI78: 01050000-13.167-14.033 | BJ78: 3 | BK78: 0
B79: 01050000 | E79: SR 776 | F79: EL JOBEAN RD | G79: =G77 -> CR 771 (Gasparilla Rd) | H79: 9.403 | I79: Cornelius Blvd | J79: 14.033 | K79: 4.63 | L79: N | N79: Minor Arterial | O79: 55 | P79: UA | Q79: A | R79: D | S79: D | U79: =SUM(U77:U78) -> 1 | V79: 0.2159827214 | W79: 1 | X79: D | Y79: 2W | Z79: WL | AA79: WR | AB79: 4 | AC79: =Service_Volume($P79,$W79,$X79,$Y79,Z79,AA79,AB79,R79,$AG$4,GSV_Database!C:V) -> 41790 | AD79: =wtavg(AD77:AD78,K77:K78) -> 28601 | AE79: =LOS($P79,$W79,$X79,$Y79,Z79,AA79,AB79,AD79,$AG$4,GSV_Database!C:V) -> C | AH79: 68.43981814 | AI79: 4 | AJ79: D | AK79: =Service_Volume($P79,$W79,$AL79,$Y79,AM79,AN79,AI79,AJ79,$AG$4,GSV_Database!C:V) -> 41790 | AL79: D | AM79: WL | AN79: WR | AO79: =wtavg(AO77:AO78,K77:K78) -> 32000 | AP79: =LOS($P79,$W79,$AL79,$Y79,AM79,AN79,AI79,AO79,$AG$4,GSV_Database!C:V) -> C | AQ79: 6 | AR79: D | AS79: =Service_Volume($P79,$W79,$AT79,$Y79,AU79,AV79,AQ79,AR79,$AG$4,GSV_Database!C:V) -> 62895 | AT79: D | AU79: WL | AV79: WR | AW79: =wtavg(AW77:AW78,$K77:$K78) -> 41800 | AX79: =LOS($P79,$W79,$AT79,$Y79,AU79,AV79,AQ79,AW79,$AG$4,GSV_Database!C:V) -> C | AY79: =wtavg(AY77:AY78,$K77:$K78) -> 37170 | AZ79: =wtavg(AZ77:AZ78,$K77:$K78) -> 0.89 | BA79: 33081 | BB79: =wtavg(BB77:BB78,$K77:$K78) -> 33081 | BC79: =LOS($P79,$W79,$AT79,$Y79,AU79,AV79,AQ79,BB79,$AG$4,GSV_Database!C:V) -> C | BD79: =wtavg(BD77:BD78,$K77:$K78) -> 0.09 | BE79: =wtavg(BE77:BE78,$K77:$K78) -> 0.524 | BF79: =wtavg(BF77:BF78,$K77:$K78) -> 0.059 | BG79: UA_S2WAC1_2W_4L_D_WL_WR | BH79: =IF($P79="U", VLOOKUP(Facility("TA",$W79,$X79,$Y79,$Z79,$AA79,$AB79),GSV_Database!C:X,22,FALSE),VLOOKUP(BG79,GSV_Database!C:X,22,FALSE)) -> 3 | BI79: 01050000-9.403-14.033 | BJ79: 3 | BK79: 0
A80: ** | B80: 01050000 | D80: 10045 | E80: SR 776 | F80: EL JOBEAN RD | G80: Cornelius Blvd | H80: 14.033 | I80: Toledo Blade Blvd | J80: 16.468 | K80: 2.435 | L80: N | N80: Minor Arterial | O80: 55 | P80: UA | Q80: A | R80: D | S80: D | U80: 2 | V80: 0.8213552361 | W80: 1 | X80: D | Y80: 2W | Z80: WL | AA80: 0R | AB80: 4 | AC80: =Service_Volume($P80,$W80,$X80,$Y80,Z80,AA80,AB80,R80,$AG$4,GSV_Database!C:V) -> 39800 | AD80: =IF($AG$4="Daily",VLOOKUP(D80,Hist_Cur_CNTS!BG:BL,2,FALSE),IF($AG$4="Peak Hour Two-Way",VLOOKUP(D80,Hist_Cur_CNTS!BG:BL,3,FALSE),VLOOKUP(D80,Hist_Cur_CNTS!BG:BL,4,FALSE))) -> 29500 | AE80: =LOS($P80,$W80,$X80,$Y80,Z80,AA80,AB80,AD80,$AG$4,GSV_Database!C:V) -> C | AH80: 74.12060302 | AI80: 4 | AJ80: D | AK80: =Service_Volume($P80,$W80,$AL80,$Y80,AM80,AN80,AI80,AJ80,$AG$4,GSV_Database!C:V) -> 39800 | AL80: D | AM80: WL | AN80: 0R | AO80: =IF($AG$4="Daily",VLOOKUP(D80,Hist_Cur_CNTS!BG:BL,5,FALSE),IF($AG$4="Peak Hour Two-Way",ROUND(VLOOKUP(D80,Hist_Cur_CNTS!BG:BL,5,FALSE) *BD80,0),ROUND(VLOOKUP(D80,Hist_Cur_CNTS!BG:BL,5,FALSE)*BD80*IF(Y80="1W",1,IF(P80="RDA",0.55,IF(OR(Q80="H",Q80="F"),VLOOKUP(P80&"_"&Q80,GSV_Database!AA:AB,2,FALSE),VLOOKUP(P80&"_"&Charlotte!W80&"_"&Charlotte!AI80,GSV_Database!AA:AB,2,FALSE)))),0))) -> 33000 | AP80: =LOS($P80,$W80,$AL80,$Y80,AM80,AN80,AI80,AO80,$AG$4,GSV_Database!C:V) -> C | AQ80: 6 | AR80: D | AS80: =Service_Volume($P80,$W80,$AT80,$Y80,AU80,AV80,AQ80,AR80,$AG$4,GSV_Database!C:V) -> 59900 | AT80: D | AU80: WL | AV80: 0R | AW80: =IF($AG$4="Daily",VLOOKUP(D80,Hist_Cur_CNTS!BG:BL,6,FALSE),IF($AG$4="Peak Hour Two-Way",ROUND(VLOOKUP(D80,Hist_Cur_CNTS!BG:BL,6,FALSE) *BD80,0),ROUND(VLOOKUP(D80,Hist_Cur_CNTS!BG:BL,6,FALSE)*BD80*IF(Y80="1W",1,IF(P80="RDA",0.55,IF(OR(Q80="H",Q80="F"),VLOOKUP(P80&"_"&Q80,GSV_Database!AA:AB,2,FALSE),VLOOKUP(P80&"_"&Charlotte!W80&"_"&Charlotte!AQ80,GSV_Database!AA:AB,2,FALSE)))),0))) -> 43100 | AX80: =LOS($P80,$W80,$AT80,$Y80,AU80,AV80,AQ80,AW80,$AG$4,GSV_Database!C:V) -> C | AY80: =VLOOKUP(D80,Hist_Cur_CNTS!BG:BQ,11,FALSE) -> 31755 | AZ80: =VLOOKUP(D80,Hist_Cur_CNTS!BG:BQ,10,FALSE) -> 0.89 | BA80: 28262 | BB80: =IF($AG$4="Daily",BA80,IF($AG$4="Peak Hour Two-Way",ROUND(BA80 *BD80,0),ROUND(BA80*BD80*IF(Y80="1W",1,IF(P80="RDA",0.55,IF(OR(Q80="H",Q80="F"),VLOOKUP(P80&"_"&Q80,GSV_Database!AA:AB,2,FALSE),VLOOKUP(P80&"_"&Charlotte!W80&"_"&Charlotte!AQ80,GSV_Database!AA:AB,2,FALSE)))),0))) -> 28262 | BC80: =LOS($P80,$W80,$AT80,$Y80,AU80,AV80,AQ80,BB80,$AG$4,GSV_Database!C:V) -> C | BD80: =VLOOKUP(D80,Hist_Cur_CNTS!BG:BO,7,FALSE)/100 -> 0.09 | BE80: =VLOOKUP(D80,Hist_Cur_CNTS!BG:BO,8,FALSE)/100 -> 0.519 | BF80: =VLOOKUP(D80,Hist_Cur_CNTS!BG:BO,9,FALSE)/100 -> 0.081 | BG80: UA_S2WAC1_2W_4L_D_WL_0R | BH80: =IF($P80="U", VLOOKUP(Facility("TA",$W80,$X80,$Y80,$Z80,$AA80,$AB80),GSV_Database!C:X,22,FALSE),VLOOKUP(BG80,GSV_Database!C:X,22,FALSE)) -> 0 | BI80: 01050000-14.033-16.468 | BJ80: 0 | BK80: 0
A81: ** | B81: 01050000 | D81: 10004 | E81: SR 776 | F81: EL JOBEAN RD | G81: Toledo Blade Blvd | H81: 16.468 | I81: US 41 | J81: 17.549 | K81: 1.081 | L81: N | N81: Minor Arterial | O81: 50 | P81: UA | Q81: A | R81: D | S81: D | U81: 2 | V81: 1.85013876 | W81: 1 | X81: D | Y81: 2W | Z81: WL | AA81: WR | AB81: 4 | AC81: =Service_Volume($P81,$W81,$X81,$Y81,Z81,AA81,AB81,R81,$AG$4,GSV_Database!C:V) -> 41790 | AD81: =IF($AG$4="Daily",VLOOKUP(D81,Hist_Cur_CNTS!BG:BL,2,FALSE),IF($AG$4="Peak Hour Two-Way",VLOOKUP(D81,Hist_Cur_CNTS!BG:BL,3,FALSE),VLOOKUP(D81,Hist_Cur_CNTS!BG:BL,4,FALSE))) -> 26500 | AE81: =LOS($P81,$W81,$X81,$Y81,Z81,AA81,AB81,AD81,$AG$4,GSV_Database!C:V) -> C | AH81: 63.41229959 | AI81: 4 | AJ81: D | AK81: =Service_Volume($P81,$W81,$AL81,$Y81,AM81,AN81,AI81,AJ81,$AG$4,GSV_Database!C:V) -> 41790 | AL81: D | AM81: WL | AN81: WR | AO81: =IF($AG$4="Daily",VLOOKUP(D81,Hist_Cur_CNTS!BG:BL,5,FALSE),IF($AG$4="Peak Hour Two-Way",ROUND(VLOOKUP(D81,Hist_Cur_CNTS!BG:BL,5,FALSE) *BD81,0),ROUND(VLOOKUP(D81,Hist_Cur_CNTS!BG:BL,5,FALSE)*BD81*IF(Y81="1W",1,IF(P81="RDA",0.55,IF(OR(Q81="H",Q81="F"),VLOOKUP(P81&"_"&Q81,GSV_Database!AA:AB,2,FALSE),VLOOKUP(P81&"_"&Charlotte!W81&"_"&Charlotte!AI81,GSV_Database!AA:AB,2,FALSE)))),0))) -> 30900 | AP81: =LOS($P81,$W81,$AL81,$Y81,AM81,AN81,AI81,AO81,$AG$4,GSV_Database!C:V) -> C | AQ81: 4 | AR81: D | AS81: =Service_Volume($P81,$W81,$AT81,$Y81,AU81,AV81,AQ81,AR81,$AG$4,GSV_Database!C:V) -> 41790 | AT81: D | AU81: WL | AV81: WR | AW81: =IF($AG$4="Daily",VLOOKUP(D81,Hist_Cur_CNTS!BG:BL,6,FALSE),IF($AG$4="Peak Hour Two-Way",ROUND(VLOOKUP(D81,Hist_Cur_CNTS!BG:BL,6,FALSE) *BD81,0),ROUND(VLOOKUP(D81,Hist_Cur_CNTS!BG:BL,6,FALSE)*BD81*IF(Y81="1W",1,IF(P81="RDA",0.55,IF(OR(Q81="H",Q81="F"),VLOOKUP(P81&"_"&Q81,GSV_Database!AA:AB,2,FALSE),VLOOKUP(P81&"_"&Charlotte!W81&"_"&Charlotte!AQ81,GSV_Database!AA:AB,2,FALSE)))),0))) -> 43300 | AX81: =LOS($P81,$W81,$AT81,$Y81,AU81,AV81,AQ81,AW81,$AG$4,GSV_Database!C:V) -> F | AY81: =VLOOKUP(D81,Hist_Cur_CNTS!BG:BQ,11,FALSE) -> 28409 | AZ81: =VLOOKUP(D81,Hist_Cur_CNTS!BG:BQ,10,FALSE) -> 0.89 | BA81: 25284 | BB81: =IF($AG$4="Daily",BA81,IF($AG$4="Peak Hour Two-Way",ROUND(BA81 *BD81,0),ROUND(BA81*BD81*IF(Y81="1W",1,IF(P81="RDA",0.55,IF(OR(Q81="H",Q81="F"),VLOOKUP(P81&"_"&Q81,GSV_Database!AA:AB,2,FALSE),VLOOKUP(P81&"_"&Charlotte!W81&"_"&Charlotte!AQ81,GSV_Database!AA:AB,2,FALSE)))),0))) -> 25284 | BC81: =LOS($P81,$W81,$AT81,$Y81,AU81,AV81,AQ81,BB81,$AG$4,GSV_Database!C:V) -> C | BD81: =VLOOKUP(D81,Hist_Cur_CNTS!BG:BO,7,FALSE)/100 -> 0.09 | BE81: =VLOOKUP(D81,Hist_Cur_CNTS!BG:BO,8,FALSE)/100 -> 0.519 | BF81: =VLOOKUP(D81,Hist_Cur_CNTS!BG:BO,9,FALSE)/100 -> 0.073 | BG81: UA_S2WAC1_2W_4L_D_WL_WR | BH81: =IF($P81="U", VLOOKUP(Facility("TA",$W81,$X81,$Y81,$Z81,$AA81,$AB81),GSV_Database!C:X,22,FALSE),VLOOKUP(BG81,GSV_Database!C:X,22,FALSE)) -> 3 | BI81: 01050000-16.468-17.549 | BJ81: 3 | BK81: 0
B82: 01060000 | D82: 10040 | E82: SR 776 | F82: S MCCALL RD/SR 776 | G82: CR 775 (Pine St) | H82: 9.23 | I82: Beach Rd | J82: 10.024 | K82: 0.794 | L82: N | N82: Minor Arterial | O82: 45 | P82: UA | Q82: A | R82: D | S82: D | U82: 2 | V82: 2.518891688 | W82: 1 | X82: D | Y82: 2W | Z82: WL | AA82: WR | AB82: 4 | AC82: =Service_Volume($P82,$W82,$X82,$Y82,Z82,AA82,AB82,R82,$AG$4,GSV_Database!C:V) -> 41790 | AD82: =IF($AG$4="Daily",VLOOKUP(D82,Hist_Cur_CNTS!BG:BL,2,FALSE),IF($AG$4="Peak Hour Two-Way",VLOOKUP(D82,Hist_Cur_CNTS!BG:BL,3,FALSE),VLOOKUP(D82,Hist_Cur_CNTS!BG:BL,4,FALSE))) -> 28500 | AE82: =LOS($P82,$W82,$X82,$Y82,Z82,AA82,AB82,AD82,$AG$4,GSV_Database!C:V) -> C | AH82: 68.19813352 | AI82: 4 | AJ82: D | AK82: =Service_Volume($P82,$W82,$AL82,$Y82,AM82,AN82,AI82,AJ82,$AG$4,GSV_Database!C:V) -> 41790 | AL82: D | AM82: WL | AN82: WR | AO82: =IF($AG$4="Daily",VLOOKUP(D82,Hist_Cur_CNTS!BG:BL,5,FALSE),IF($AG$4="Peak Hour Two-Way",ROUND(VLOOKUP(D82,Hist_Cur_CNTS!BG:BL,5,FALSE) *BD82,0),ROUND(VLOOKUP(D82,Hist_Cur_CNTS!BG:BL,5,FALSE)*BD82*IF(Y82="1W",1,IF(P82="RDA",0.55,IF(OR(Q82="H",Q82="F"),VLOOKUP(P82&"_"&Q82,GSV_Database!AA:AB,2,FALSE),VLOOKUP(P82&"_"&Charlotte!W82&"_"&Charlotte!AI82,GSV_Database!AA:AB,2,FALSE)))),0))) -> 31900 | AP82: =LOS($P82,$W82,$AL82,$Y82,AM82,AN82,AI82,AO82,$AG$4,GSV_Database!C:V) -> C | AQ82: 4 | AR82: D | AS82: =Service_Volume($P82,$W82,$AT82,$Y82,AU82,AV82,AQ82,AR82,$AG$4,GSV_Database!C:V) -> 41790 | AT82: D | AU82: WL | AV82: WR | AW82: =IF($AG$4="Daily",VLOOKUP(D82,Hist_Cur_CNTS!BG:BL,6,FALSE),IF($AG$4="Peak Hour Two-Way",ROUND(VLOOKUP(D82,Hist_Cur_CNTS!BG:BL,6,FALSE) *BD82,0),ROUND(VLOOKUP(D82,Hist_Cur_CNTS!BG:BL,6,FALSE)*BD82*IF(Y82="1W",1,IF(P82="RDA",0.55,IF(OR(Q82="H",Q82="F"),VLOOKUP(P82&"_"&Q82,GSV_Database!AA:AB,2,FALSE),VLOOKUP(P82&"_"&Charlotte!W82&"_"&Charlotte!AQ82,GSV_Database!AA:AB,2,FALSE)))),0))) -> 41600 | AX82: =LOS($P82,$W82,$AT82,$Y82,AU82,AV82,AQ82,AW82,$AG$4,GSV_Database!C:V) -> D | AY82: =VLOOKUP(D82,Hist_Cur_CNTS!BG:BQ,11,FALSE) -> 37402 | AZ82: =VLOOKUP(D82,Hist_Cur_CNTS!BG:BQ,10,FALSE) -> 0.89 | BA82: 33288 | BB82: =IF($AG$4="Daily",BA82,IF($AG$4="Peak Hour Two-Way",ROUND(BA82 *BD82,0),ROUND(BA82*BD82*IF(Y82="1W",1,IF(P82="RDA",0.55,IF(OR(Q82="H",Q82="F"),VLOOKUP(P82&"_"&Q82,GSV_Database!AA:AB,2,FALSE),VLOOKUP(P82&"_"&Charlotte!W82&"_"&Charlotte!AQ82,GSV_Database!AA:AB,2,FALSE)))),0))) -> 33288 | BC82: =LOS($P82,$W82,$AT82,$Y82,AU82,AV82,AQ82,BB82,$AG$4,GSV_Database!C:V) -> C | BD82: =VLOOKUP(D82,Hist_Cur_CNTS!BG:BO,7,FALSE)/100 -> 0.09 | BE82: =VLOOKUP(D82,Hist_Cur_CNTS!BG:BO,8,FALSE)/100 -> 0.519 | BF82: =VLOOKUP(D82,Hist_Cur_CNTS!BG:BO,9,FALSE)/100 -> 0.028 | BG82: UA_S2WAC1_2W_4L_D_WL_WR | BH82: =IF($P82="U", VLOOKUP(Facility("TA",$W82,$X82,$Y82,$Z82,$AA82,$AB82),GSV_Database!C:X,22,FALSE),VLOOKUP(BG82,GSV_Database!C:X,22,FALSE)) -> 3 | BI82: 01060000-9.23-10.024 | BJ82: 3 | BK82: 0
B83: 01060000 | D83: 19233 | E83: SR 776 | F83: S MCCALL RD/SR 776 | G83: Beach Rd | H83: 10.024 | I83: Sarasota County Line | J83: 10.385 | K83: 0.361 | L83: N | N83: Minor Arterial | O83: 45 | P83: UA | Q83: A | R83: D | S83: D | U83: 1 | V83: 2.770083102 | W83: 1 | X83: D | Y83: 2W | Z83: WL | AA83: WR | AB83: 4 | AC83: =Service_Volume($P83,$W83,$X83,$Y83,Z83,AA83,AB83,R83,$AG$4,GSV_Database!C:V) -> 41790 | AD83: =IF($AG$4="Daily",VLOOKUP(D83,Hist_Cur_CNTS!BG:BL,2,FALSE),IF($AG$4="Peak Hour Two-Way",VLOOKUP(D83,Hist_Cur_CNTS!BG:BL,3,FALSE),VLOOKUP(D83,Hist_Cur_CNTS!BG:BL,4,FALSE))) -> 25000 | AE83: =LOS($P83,$W83,$X83,$Y83,Z83,AA83,AB83,AD83,$AG$4,GSV_Database!C:V) -> C | AH83: 59.82292414 | AI83: 4 | AJ83: D | AK83: =Service_Volume($P83,$W83,$AL83,$Y83,AM83,AN83,AI83,AJ83,$AG$4,GSV_Database!C:V) -> 41790 | AL83: D | AM83: WL | AN83: WR | AO83: =IF($AG$4="Daily",VLOOKUP(D83,Hist_Cur_CNTS!BG:BL,5,FALSE),IF($AG$4="Peak Hour Two-Way",ROUND(VLOOKUP(D83,Hist_Cur_CNTS!BG:BL,5,FALSE) *BD83,0),ROUND(VLOOKUP(D83,Hist_Cur_CNTS!BG:BL,5,FALSE)*BD83*IF(Y83="1W",1,IF(P83="RDA",0.55,IF(OR(Q83="H",Q83="F"),VLOOKUP(P83&"_"&Q83,GSV_Database!AA:AB,2,FALSE),VLOOKUP(P83&"_"&Charlotte!W83&"_"&Charlotte!AI83,GSV_Database!AA:AB,2,FALSE)))),0))) -> 28000 | AP83: =LOS($P83,$W83,$AL83,$Y83,AM83,AN83,AI83,AO83,$AG$4,GSV_Database!C:V) -> C | AQ83: 4 | AR83: D | AS83: =Service_Volume($P83,$W83,$AT83,$Y83,AU83,AV83,AQ83,AR83,$AG$4,GSV_Database!C:V) -> 41790 | AT83: D | AU83: WL | AV83: WR | AW83: =IF($AG$4="Daily",VLOOKUP(D83,Hist_Cur_CNTS!BG:BL,6,FALSE),IF($AG$4="Peak Hour Two-Way",ROUND(VLOOKUP(D83,Hist_Cur_CNTS!BG:BL,6,FALSE) *BD83,0),ROUND(VLOOKUP(D83,Hist_Cur_CNTS!BG:BL,6,FALSE)*BD83*IF(Y83="1W",1,IF(P83="RDA",0.55,IF(OR(Q83="H",Q83="F"),VLOOKUP(P83&"_"&Q83,GSV_Database!AA:AB,2,FALSE),VLOOKUP(P83&"_"&Charlotte!W83&"_"&Charlotte!AQ83,GSV_Database!AA:AB,2,FALSE)))),0))) -> 36500 | AX83: =LOS($P83,$W83,$AT83,$Y83,AU83,AV83,AQ83,AW83,$AG$4,GSV_Database!C:V) -> C | AY83: =VLOOKUP(D83,Hist_Cur_CNTS!BG:BQ,11,FALSE) -> 36001 | AZ83: =VLOOKUP(D83,Hist_Cur_CNTS!BG:BQ,10,FALSE) -> 0.89 | BA83: 32041 | BB83: =IF($AG$4="Daily",BA83,IF($AG$4="Peak Hour Two-Way",ROUND(BA83 *BD83,0),ROUND(BA83*BD83*IF(Y83="1W",1,IF(P83="RDA",0.55,IF(OR(Q83="H",Q83="F"),VLOOKUP(P83&"_"&Q83,GSV_Database!AA:AB,2,FALSE),VLOOKUP(P83&"_"&Charlotte!W83&"_"&Charlotte!AQ83,GSV_Database!AA:AB,2,FALSE)))),0))) -> 32041 | BC83: =LOS($P83,$W83,$AT83,$Y83,AU83,AV83,AQ83,BB83,$AG$4,GSV_Database!C:V) -> C | BD83: =VLOOKUP(D83,Hist_Cur_CNTS!BG:BO,7,FALSE)/100 -> 0.09 | BE83: =VLOOKUP(D83,Hist_Cur_CNTS!BG:BO,8,FALSE)/100 -> 0.519 | BF83: =VLOOKUP(D83,Hist_Cur_CNTS!BG:BO,9,FALSE)/100 -> 0.03 | BG83: UA_S2WAC1_2W_4L_D_WL_WR | BH83: =IF($P83="U", VLOOKUP(Facility("TA",$W83,$X83,$Y83,$Z83,$AA83,$AB83),GSV_Database!C:X,22,FALSE),VLOOKUP(BG83,GSV_Database!C:X,22,FALSE)) -> 3 | BI83: 01060000-10.024-10.385 | BJ83: 3 | BK83: 0
B84: 01060000 | E84: SR 776 | F84: S MCCALL RD/SR 776 | G84: CR 775 (Pine St) | H84: 9.23 | I84: Sarasota County Line | J84: 10.385 | K84: 1.155 | L84: N | N84: Minor Arterial | O84: 45 | P84: UA | Q84: A | R84: D | S84: D | U84: =SUM(U82:U83) -> 3 | V84: 2.597402597 | W84: 1 | X84: D | Y84: 2W | Z84: WL | AA84: WR | AB84: 4 | AC84: =Service_Volume($P84,$W84,$X84,$Y84,Z84,AA84,AB84,R84,$AG$4,GSV_Database!C:V) -> 41790 | AD84: =wtavg(AD82:AD83,K82:K83) -> 27406.06061 | AE84: =LOS($P84,$W84,$X84,$Y84,Z84,AA84,AB84,AD84,$AG$4,GSV_Database!C:V) -> C | AH84: 65.58042739 | AI84: 4 | AJ84: D | AK84: =Service_Volume($P84,$W84,$AL84,$Y84,AM84,AN84,AI84,AJ84,$AG$4,GSV_Database!C:V) -> 41790 | AL84: D | AM84: WL | AN84: WR | AO84: =wtavg(AO82:AO83,K82:K83) -> 30681.03896 | AP84: =LOS($P84,$W84,$AL84,$Y84,AM84,AN84,AI84,AO84,$AG$4,GSV_Database!C:V) -> C | AQ84: 4 | AR84: D | AS84: =Service_Volume($P84,$W84,$AT84,$Y84,AU84,AV84,AQ84,AR84,$AG$4,GSV_Database!C:V) -> 41790 | AT84: D | AU84: WL | AV84: WR | AW84: =wtavg(AW82:AW83,$K82:$K83) -> 40005.97403 | AX84: =LOS($P84,$W84,$AT84,$Y84,AU84,AV84,AQ84,AW84,$AG$4,GSV_Database!C:V) -> D | AY84: =wtavg(AY82:AY83,$K82:$K83) -> 36964.11169 | AZ84: =wtavg(AZ82:AZ83,$K82:$K83) -> 0.89 | BA84: 32898 | BB84: =wtavg(BB82:BB83,$K82:$K83) -> 32898.24502 | BC84: =LOS($P84,$W84,$AT84,$Y84,AU84,AV84,AQ84,BB84,$AG$4,GSV_Database!C:V) -> C | BD84: =wtavg(BD82:BD83,$K82:$K83) -> 0.09 | BE84: =wtavg(BE82:BE83,$K82:$K83) -> 0.519 | BF84: =wtavg(BF82:BF83,$K82:$K83) -> 0.02862510823 | BG84: UA_S2WAC1_2W_4L_D_WL_WR | BH84: =IF($P84="U", VLOOKUP(Facility("TA",$W84,$X84,$Y84,$Z84,$AA84,$AB84),GSV_Database!C:X,22,FALSE),VLOOKUP(BG84,GSV_Database!C:X,22,FALSE)) -> 3 | BI84: 01060000-9.23-10.385 | BJ84: 3 | BK84: 0
B85: 01075000 | D85: 10055 | E85: I-75 | F85: SR 93/I-75 | G85: Lee County Line | H85: 0 | I85: CR 762 (Tuckers Grade) | J85: 8.543 | K85: 8.543 | L85: Y | M85: SIS | N85: Principal Arterial-Interstate | O85: 70 | P85: RDA | Q85: F | R85: C | V85: 0 | W85: F | X85: D | Y85: 2W | AA85: 0A | AB85: 6 | AC85: =Service_Volume($P85,$W85,$X85,$Y85,Z85,AA85,AB85,R85,$AG$4,GSV_Database!C:V) -> 64000 | AD85: =IF($AG$4="Daily",VLOOKUP(D85,Hist_Cur_CNTS!BG:BL,2,FALSE),IF($AG$4="Peak Hour Two-Way",VLOOKUP(D85,Hist_Cur_CNTS!BG:BL,3,FALSE),VLOOKUP(D85,Hist_Cur_CNTS!BG:BL,4,FALSE))) -> 45500 | AE85: =LOS($P85,$W85,$X85,$Y85,Z85,AA85,AB85,AD85,$AG$4,GSV_Database!C:V) -> C | AH85: 71.09375 | AI85: 6 | AJ85: C | AK85: =Service_Volume($P85,$W85,$AL85,$Y85,AM85,AN85,AI85,AJ85,$AG$4,GSV_Database!C:V) -> 64000 | AL85: D | AM85: =Z85 -> 0 | AN85: 0A | AO85: =IF($AG$4="Daily",VLOOKUP(D85,Hist_Cur_CNTS!BG:BL,5,FALSE),IF($AG$4="Peak Hour Two-Way",ROUND(VLOOKUP(D85,Hist_Cur_CNTS!BG:BL,5,FALSE) *BD85,0),ROUND(VLOOKUP(D85,Hist_Cur_CNTS!BG:BL,5,FALSE)*BD85*IF(Y85="1W",1,IF(P85="RDA",0.55,IF(OR(Q85="H",Q85="F"),VLOOKUP(P85&"_"&Q85,GSV_Database!AA:AB,2,FALSE),VLOOKUP(P85&"_"&Charlotte!W85&"_"&Charlotte!AI85,GSV_Database!AA:AB,2,FALSE)))),0))) -> 51000 | AP85: =LOS($P85,$W85,$AL85,$Y85,AM85,AN85,AI85,AO85,$AG$4,GSV_Database!C:V) -> C | AQ85: 6 | AR85: C | AS85: =Service_Volume($P85,$W85,$AT85,$Y85,AU85,AV85,AQ85,AR85,$AG$4,GSV_Database!C:V) -> 64000 | AT85: D | AU85: 0 | AV85: 0A | AW85: =IF($AG$4="Daily",VLOOKUP(D85,Hist_Cur_CNTS!BG:BL,6,FALSE),IF($AG$4="Peak Hour Two-Way",ROUND(VLOOKUP(D85,Hist_Cur_CNTS!BG:BL,6,FALSE) *BD85,0),ROUND(VLOOKUP(D85,Hist_Cur_CNTS!BG:BL,6,FALSE)*BD85*IF(Y85="1W",1,IF(P85="RDA",0.55,IF(OR(Q85="H",Q85="F"),VLOOKUP(P85&"_"&Q85,GSV_Database!AA:AB,2,FALSE),VLOOKUP(P85&"_"&Charlotte!W85&"_"&Charlotte!AQ85,GSV_Database!AA:AB,2,FALSE)))),0))) -> 66400 | AX85: =LOS($P85,$W85,$AT85,$Y85,AU85,AV85,AQ85,AW85,$AG$4,GSV_Database!C:V) -> D | AY85: =VLOOKUP(D85,Hist_Cur_CNTS!BG:BQ,11,FALSE) -> 63492 | AZ85: =VLOOKUP(D85,Hist_Cur_CNTS!BG:BQ,10,FALSE) -> 0.93 | BA85: 59048 | BB85: =IF($AG$4="Daily",BA85,IF($AG$4="Peak Hour Two-Way",ROUND(BA85 *BD85,0),ROUND(BA85*BD85*IF(Y85="1W",1,IF(P85="RDA",0.55,IF(OR(Q85="H",Q85="F"),VLOOKUP(P85&"_"&Q85,GSV_Database!AA:AB,2,FALSE),VLOOKUP(P85&"_"&Charlotte!W85&"_"&Charlotte!AQ85,GSV_Database!AA:AB,2,FALSE)))),0))) -> 59048 | BC85: =LOS($P85,$W85,$AT85,$Y85,AU85,AV85,AQ85,BB85,$AG$4,GSV_Database!C:V) -> C | BD85: =VLOOKUP(D85,Hist_Cur_CNTS!BG:BO,7,FALSE)/100 -> 0.095 | BE85: =VLOOKUP(D85,Hist_Cur_CNTS!BG:BO,8,FALSE)/100 -> 0.552 | BF85: =VLOOKUP(D85,Hist_Cur_CNTS!BG:BO,9,FALSE)/100 -> 0.16 | BG85: RDA_FW_6L_0A | BH85: =IF($P85="U", VLOOKUP(Facility("TA",$W85,$X85,$Y85,$Z85,$AA85,$AB85),GSV_Database!C:X,22,FALSE),VLOOKUP(BG85,GSV_Database!C:X,22,FALSE)) -> 0 | BI85: 01075000-0-8.543 | BJ85: 0 | BK85: 0
B86: 01075000 | D86: 10034 | E86: I-75 | F86: SR 93/I-75 | G86: CR 762 (Tuckers Grade) | H86: 8.543 | I86: N Jones Loop Rd | J86: 11.812 | K86: 3.269 | L86: Y | M86: SIS | N86: Principal Arterial-Interstate | O86: 70 | P86: TA | Q86: F | R86: C | V86: 0 | W86: F | X86: D | Y86: 2W | AA86: 0A | AB86: 6 | AC86: =Service_Volume($P86,$W86,$X86,$Y86,Z86,AA86,AB86,R86,$AG$4,GSV_Database!C:V) -> 85600 | AD86: =IF($AG$4="Daily",VLOOKUP(D86,Hist_Cur_CNTS!BG:BL,2,FALSE),IF($AG$4="Peak Hour Two-Way",VLOOKUP(D86,Hist_Cur_CNTS!BG:BL,3,FALSE),VLOOKUP(D86,Hist_Cur_CNTS!BG:BL,4,FALSE))) -> 51500 | AE86: =LOS($P86,$W86,$X86,$Y86,Z86,AA86,AB86,AD86,$AG$4,GSV_Database!C:V) -> B | AH86: 60.1635514 | AI86: 6 | AJ86: C | AK86: =Service_Volume($P86,$W86,$AL86,$Y86,AM86,AN86,AI86,AJ86,$AG$4,GSV_Database!C:V) -> 85600 | AL86: D | AM86: 0 | AN86: 0A | AO86: =IF($AG$4="Daily",VLOOKUP(D86,Hist_Cur_CNTS!BG:BL,5,FALSE),IF($AG$4="Peak Hour Two-Way",ROUND(VLOOKUP(D86,Hist_Cur_CNTS!BG:BL,5,FALSE) *BD86,0),ROUND(VLOOKUP(D86,Hist_Cur_CNTS!BG:BL,5,FALSE)*BD86*IF(Y86="1W",1,IF(P86="RDA",0.55,IF(OR(Q86="H",Q86="F"),VLOOKUP(P86&"_"&Q86,GSV_Database!AA:AB,2,FALSE),VLOOKUP(P86&"_"&Charlotte!W86&"_"&Charlotte!AI86,GSV_Database!AA:AB,2,FALSE)))),0))) -> 57700 | AP86: =LOS($P86,$W86,$AL86,$Y86,AM86,AN86,AI86,AO86,$AG$4,GSV_Database!C:V) -> B | AQ86: 6 | AR86: C | AS86: =Service_Volume($P86,$W86,$AT86,$Y86,AU86,AV86,AQ86,AR86,$AG$4,GSV_Database!C:V) -> 85600 | AT86: D | AU86: 0 | AV86: 0A | AW86: =IF($AG$4="Daily",VLOOKUP(D86,Hist_Cur_CNTS!BG:BL,6,FALSE),IF($AG$4="Peak Hour Two-Way",ROUND(VLOOKUP(D86,Hist_Cur_CNTS!BG:BL,6,FALSE) *BD86,0),ROUND(VLOOKUP(D86,Hist_Cur_CNTS!BG:BL,6,FALSE)*BD86*IF(Y86="1W",1,IF(P86="RDA",0.55,IF(OR(Q86="H",Q86="F"),VLOOKUP(P86&"_"&Q86,GSV_Database!AA:AB,2,FALSE),VLOOKUP(P86&"_"&Charlotte!W86&"_"&Charlotte!AQ86,GSV_Database!AA:AB,2,FALSE)))),0))) -> 75200 | AX86: =LOS($P86,$W86,$AT86,$Y86,AU86,AV86,AQ86,AW86,$AG$4,GSV_Database!C:V) -> C | AY86: =VLOOKUP(D86,Hist_Cur_CNTS!BG:BQ,11,FALSE) -> 70892 | AZ86: =VLOOKUP(D86,Hist_Cur_CNTS!BG:BQ,10,FALSE) -> 0.93 | BA86: 65930 | BB86: =IF($AG$4="Daily",BA86,IF($AG$4="Peak Hour Two-Way",ROUND(BA86 *BD86,0),ROUND(BA86*BD86*IF(Y86="1W",1,IF(P86="RDA",0.55,IF(OR(Q86="H",Q86="F"),VLOOKUP(P86&"_"&Q86,GSV_Database!AA:AB,2,FALSE),VLOOKUP(P86&"_"&Charlotte!W86&"_"&Charlotte!AQ86,GSV_Database!AA:AB,2,FALSE)))),0))) -> 65930 | BC86: =LOS($P86,$W86,$AT86,$Y86,AU86,AV86,AQ86,BB86,$AG$4,GSV_Database!C:V) -> C | BD86: =VLOOKUP(D86,Hist_Cur_CNTS!BG:BO,7,FALSE)/100 -> 0.095 | BE86: =VLOOKUP(D86,Hist_Cur_CNTS!BG:BO,8,FALSE)/100 -> 0.552 | BF86: =VLOOKUP(D86,Hist_Cur_CNTS!BG:BO,9,FALSE)/100 -> 0.178 | BG86: TA_FW_6L_0A | BH86: =IF($P86="U", VLOOKUP(Facility("TA",$W86,$X86,$Y86,$Z86,$AA86,$AB86),GSV_Database!C:X,22,FALSE),VLOOKUP(BG86,GSV_Database!C:X,22,FALSE)) -> 0 | BI86: 01075000-8.543-11.812 | BJ86: 0 | BK86: 0
B87: 01075000 | D87: 10350 | E87: I-75 | F87: SR 93/I-75 | G87: N Jones Loop Rd | H87: 11.812 | I87: US 17 | J87: 15.1 | K87: 3.288 | L87: Y | M87: SIS | N87: Principal Arterial-Interstate | O87: 70 | P87: UA | Q87: F | R87: D | V87: 0 | W87: F | X87: D | Y87: 2W | AA87: 0A | AB87: 4 | AC87: =Service_Volume($P87,$W87,$X87,$Y87,Z87,AA87,AB87,R87,$AG$4,GSV_Database!C:V) -> 74400 | AD87: =IF($AG$4="Daily",VLOOKUP(D87,Hist_Cur_CNTS!BG:BL,2,FALSE),IF($AG$4="Peak Hour Two-Way",VLOOKUP(D87,Hist_Cur_CNTS!BG:BL,3,FALSE),VLOOKUP(D87,Hist_Cur_CNTS!BG:BL,4,FALSE))) -> 60120 | AE87: =LOS($P87,$W87,$X87,$Y87,Z87,AA87,AB87,AD87,$AG$4,GSV_Database!C:V) -> C | AF87: =IF(AND(AH87>=90,AH87<100),"Near Capacity",IF(AH87>=100,"Over Capacity","")) ->  | AH87: 80.80645161 | AI87: 6 | AJ87: D | AK87: =Service_Volume($P87,$W87,$AL87,$Y87,AM87,AN87,AI87,AJ87,$AG$4,GSV_Database!C:V) -> 111800 | AL87: D | AM87: 0 | AN87: 0A | AO87: =IF($AG$4="Daily",VLOOKUP(D87,Hist_Cur_CNTS!BG:BL,5,FALSE),IF($AG$4="Peak Hour Two-Way",ROUND(VLOOKUP(D87,Hist_Cur_CNTS!BG:BL,5,FALSE) *BD87,0),ROUND(VLOOKUP(D87,Hist_Cur_CNTS!BG:BL,5,FALSE)*BD87*IF(Y87="1W",1,IF(P87="RDA",0.55,IF(OR(Q87="H",Q87="F"),VLOOKUP(P87&"_"&Q87,GSV_Database!AA:AB,2,FALSE),VLOOKUP(P87&"_"&Charlotte!W87&"_"&Charlotte!AI87,GSV_Database!AA:AB,2,FALSE)))),0))) -> 67300 | AP87: =LOS($P87,$W87,$AL87,$Y87,AM87,AN87,AI87,AO87,$AG$4,GSV_Database!C:V) -> B | AQ87: 6 | AR87: D | AS87: =Service_Volume($P87,$W87,$AT87,$Y87,AU87,AV87,AQ87,AR87,$AG$4,GSV_Database!C:V) -> 111800 | AT87: D | AU87: 0 | AV87: 0A | AW87: =IF($AG$4="Daily",VLOOKUP(D87,Hist_Cur_CNTS!BG:BL,6,FALSE),IF($AG$4="Peak Hour Two-Way",ROUND(VLOOKUP(D87,Hist_Cur_CNTS!BG:BL,6,FALSE) *BD87,0),ROUND(VLOOKUP(D87,Hist_Cur_CNTS!BG:BL,6,FALSE)*BD87*IF(Y87="1W",1,IF(P87="RDA",0.55,IF(OR(Q87="H",Q87="F"),VLOOKUP(P87&"_"&Q87,GSV_Database!AA:AB,2,FALSE),VLOOKUP(P87&"_"&Charlotte!W87&"_"&Charlotte!AQ87,GSV_Database!AA:AB,2,FALSE)))),0))) -> 87800 | AX87: =LOS($P87,$W87,$AT87,$Y87,AU87,AV87,AQ87,AW87,$AG$4,GSV_Database!C:V) -> C | AY87: =VLOOKUP(D87,Hist_Cur_CNTS!BG:BQ,11,FALSE) -> 75378 | AZ87: =VLOOKUP(D87,Hist_Cur_CNTS!BG:BQ,10,FALSE) -> 0.93 | BA87: 70102 | BB87: =IF($AG$4="Daily",BA87,IF($AG$4="Peak Hour Two-Way",ROUND(BA87 *BD87,0),ROUND(BA87*BD87*IF(Y87="1W",1,IF(P87="RDA",0.55,IF(OR(Q87="H",Q87="F"),VLOOKUP(P87&"_"&Q87,GSV_Database!AA:AB,2,FALSE),VLOOKUP(P87&"_"&Charlotte!W87&"_"&Charlotte!AQ87,GSV_Database!AA:AB,2,FALSE)))),0))) -> 70102 | BC87: =LOS($P87,$W87,$AT87,$Y87,AU87,AV87,AQ87,BB87,$AG$4,GSV_Database!C:V) -> C | BD87: =VLOOKUP(D87,Hist_Cur_CNTS!BG:BO,7,FALSE)/100 -> 0.095 | BE87: =VLOOKUP(D87,Hist_Cur_CNTS!BG:BO,8,FALSE)/100 -> 0.515 | BF87: =VLOOKUP(D87,Hist_Cur_CNTS!BG:BO,9,FALSE)/100 -> 0.131 | BG87: UA_FW_4L_0A | BH87: =IF($P87="U", VLOOKUP(Facility("TA",$W87,$X87,$Y87,$Z87,$AA87,$AB87),GSV_Database!C:X,22,FALSE),VLOOKUP(BG87,GSV_Database!C:X,22,FALSE)) -> 0 | BI87: 01075000-11.812-15.1 | BJ87: 0 | BK87: 2
B88: 01075000 | D88: 10036 | E88: I-75 | F88: SR 93/I-75 | G88: US 17 | H88: 15.1 | I88: CR 776 (Harbor View Rd) | J88: 17.912 | K88: 2.812 | L88: Y | M88: SIS | N88: Principal Arterial-Interstate | O88: 70 | P88: UA | Q88: F | R88: D | V88: 0 | W88: F | X88: D | Y88: 2W | AA88: 0A | AB88: 6 | AC88: =Service_Volume($P88,$W88,$X88,$Y88,Z88,AA88,AB88,R88,$AG$4,GSV_Database!C:V) -> 111800 | AD88: =IF($AG$4="Daily",VLOOKUP(D88,Hist_Cur_CNTS!BG:BL,2,FALSE),IF($AG$4="Peak Hour Two-Way",VLOOKUP(D88,Hist_Cur_CNTS!BG:BL,3,FALSE),VLOOKUP(D88,Hist_Cur_CNTS!BG:BL,4,FALSE))) -> 62000 | AE88: =LOS($P88,$W88,$X88,$Y88,Z88,AA88,AB88,AD88,$AG$4,GSV_Database!C:V) -> B | AH88: 55.45617174 | AI88: 6 | AJ88: D | AK88: =Service_Volume($P88,$W88,$AL88,$Y88,AM88,AN88,AI88,AJ88,$AG$4,GSV_Database!C:V) -> 111800 | AL88: D | AM88: 0 | AN88: 0A | AO88: =IF($AG$4="Daily",VLOOKUP(D88,Hist_Cur_CNTS!BG:BL,5,FALSE),IF($AG$4="Peak Hour Two-Way",ROUND(VLOOKUP(D88,Hist_Cur_CNTS!BG:BL,5,FALSE) *BD88,0),ROUND(VLOOKUP(D88,Hist_Cur_CNTS!BG:BL,5,FALSE)*BD88*IF(Y88="1W",1,IF(P88="RDA",0.55,IF(OR(Q88="H",Q88="F"),VLOOKUP(P88&"_"&Q88,GSV_Database!AA:AB,2,FALSE),VLOOKUP(P88&"_"&Charlotte!W88&"_"&Charlotte!AI88,GSV_Database!AA:AB,2,FALSE)))),0))) -> 69400 | AP88: =LOS($P88,$W88,$AL88,$Y88,AM88,AN88,AI88,AO88,$AG$4,GSV_Database!C:V) -> C | AQ88: 6 | AR88: D | AS88: =Service_Volume($P88,$W88,$AT88,$Y88,AU88,AV88,AQ88,AR88,$AG$4,GSV_Database!C:V) -> 111800 | AT88: D | AU88: 0 | AV88: 0A | AW88: =IF($AG$4="Daily",VLOOKUP(D88,Hist_Cur_CNTS!BG:BL,6,FALSE),IF($AG$4="Peak Hour Two-Way",ROUND(VLOOKUP(D88,Hist_Cur_CNTS!BG:BL,6,FALSE) *BD88,0),ROUND(VLOOKUP(D88,Hist_Cur_CNTS!BG:BL,6,FALSE)*BD88*IF(Y88="1W",1,IF(P88="RDA",0.55,IF(OR(Q88="H",Q88="F"),VLOOKUP(P88&"_"&Q88,GSV_Database!AA:AB,2,FALSE),VLOOKUP(P88&"_"&Charlotte!W88&"_"&Charlotte!AQ88,GSV_Database!AA:AB,2,FALSE)))),0))) -> 90500 | AX88: =LOS($P88,$W88,$AT88,$Y88,AU88,AV88,AQ88,AW88,$AG$4,GSV_Database!C:V) -> C | AY88: =VLOOKUP(D88,Hist_Cur_CNTS!BG:BQ,11,FALSE) -> 85979 | AZ88: =VLOOKUP(D88,Hist_Cur_CNTS!BG:BQ,10,FALSE) -> 0.93 | BA88: 79960 | BB88: =IF($AG$4="Daily",BA88,IF($AG$4="Peak Hour Two-Way",ROUND(BA88 *BD88,0),ROUND(BA88*BD88*IF(Y88="1W",1,IF(P88="RDA",0.55,IF(OR(Q88="H",Q88="F"),VLOOKUP(P88&"_"&Q88,GSV_Database!AA:AB,2,FALSE),VLOOKUP(P88&"_"&Charlotte!W88&"_"&Charlotte!AQ88,GSV_Database!AA:AB,2,FALSE)))),0))) -> 79960 | BC88: =LOS($P88,$W88,$AT88,$Y88,AU88,AV88,AQ88,BB88,$AG$4,GSV_Database!C:V) -> C | BD88: =VLOOKUP(D88,Hist_Cur_CNTS!BG:BO,7,FALSE)/100 -> 0.09 | BE88: =VLOOKUP(D88,Hist_Cur_CNTS!BG:BO,8,FALSE)/100 -> 0.552 | BF88: =VLOOKUP(D88,Hist_Cur_CNTS!BG:BO,9,FALSE)/100 -> 0.149 | BG88: UA_FW_6L_0A | BH88: =IF($P88="U", VLOOKUP(Facility("TA",$W88,$X88,$Y88,$Z88,$AA88,$AB88),GSV_Database!C:X,22,FALSE),VLOOKUP(BG88,GSV_Database!C:X,22,FALSE)) -> 0 | BI88: 01075000-15.1-17.912 | BJ88: 0 | BK88: 0
B89: 01075000 | D89: 10037 | E89: I-75 | F89: SR 93/I-75 | G89: CR 776 (Harbor View Rd) | H89: 17.912 | I89: CR 769 (Kings Highway) | J89: 21.089 | K89: 3.177 | L89: Y | M89: SIS | N89: Principal Arterial-Interstate | O89: 70 | P89: UA | Q89: F | R89: D | V89: 0 | W89: F | X89: D | Y89: 2W | AA89: 0A | AB89: 6 | AC89: =Service_Volume($P89,$W89,$X89,$Y89,Z89,AA89,AB89,R89,$AG$4,GSV_Database!C:V) -> 111800 | AD89: =IF($AG$4="Daily",VLOOKUP(D89,Hist_Cur_CNTS!BG:BL,2,FALSE),IF($AG$4="Peak Hour Two-Way",VLOOKUP(D89,Hist_Cur_CNTS!BG:BL,3,FALSE),VLOOKUP(D89,Hist_Cur_CNTS!BG:BL,4,FALSE))) -> 55000 | AE89: =LOS($P89,$W89,$X89,$Y89,Z89,AA89,AB89,AD89,$AG$4,GSV_Database!C:V) -> B | AH89: 49.19499106 | AI89: 6 | AJ89: D | AK89: =Service_Volume($P89,$W89,$AL89,$Y89,AM89,AN89,AI89,AJ89,$AG$4,GSV_Database!C:V) -> 111800 | AL89: D | AM89: 0 | AN89: 0A | AO89: =IF($AG$4="Daily",VLOOKUP(D89,Hist_Cur_CNTS!BG:BL,5,FALSE),IF($AG$4="Peak Hour Two-Way",ROUND(VLOOKUP(D89,Hist_Cur_CNTS!BG:BL,5,FALSE) *BD89,0),ROUND(VLOOKUP(D89,Hist_Cur_CNTS!BG:BL,5,FALSE)*BD89*IF(Y89="1W",1,IF(P89="RDA",0.55,IF(OR(Q89="H",Q89="F"),VLOOKUP(P89&"_"&Q89,GSV_Database!AA:AB,2,FALSE),VLOOKUP(P89&"_"&Charlotte!W89&"_"&Charlotte!AI89,GSV_Database!AA:AB,2,FALSE)))),0))) -> 61600 | AP89: =LOS($P89,$W89,$AL89,$Y89,AM89,AN89,AI89,AO89,$AG$4,GSV_Database!C:V) -> B | AQ89: 6 | AR89: D | AS89: =Service_Volume($P89,$W89,$AT89,$Y89,AU89,AV89,AQ89,AR89,$AG$4,GSV_Database!C:V) -> 111800 | AT89: D | AU89: 0 | AV89: 0A | AW89: =IF($AG$4="Daily",VLOOKUP(D89,Hist_Cur_CNTS!BG:BL,6,FALSE),IF($AG$4="Peak Hour Two-Way",ROUND(VLOOKUP(D89,Hist_Cur_CNTS!BG:BL,6,FALSE) *BD89,0),ROUND(VLOOKUP(D89,Hist_Cur_CNTS!BG:BL,6,FALSE)*BD89*IF(Y89="1W",1,IF(P89="RDA",0.55,IF(OR(Q89="H",Q89="F"),VLOOKUP(P89&"_"&Q89,GSV_Database!AA:AB,2,FALSE),VLOOKUP(P89&"_"&Charlotte!W89&"_"&Charlotte!AQ89,GSV_Database!AA:AB,2,FALSE)))),0))) -> 80300 | AX89: =LOS($P89,$W89,$AT89,$Y89,AU89,AV89,AQ89,AW89,$AG$4,GSV_Database!C:V) -> C | AY89: =VLOOKUP(D89,Hist_Cur_CNTS!BG:BQ,11,FALSE) -> 71074 | AZ89: =VLOOKUP(D89,Hist_Cur_CNTS!BG:BQ,10,FALSE) -> 0.93 | BA89: 66099 | BB89: =IF($AG$4="Daily",BA89,IF($AG$4="Peak Hour Two-Way",ROUND(BA89 *BD89,0),ROUND(BA89*BD89*IF(Y89="1W",1,IF(P89="RDA",0.55,IF(OR(Q89="H",Q89="F"),VLOOKUP(P89&"_"&Q89,GSV_Database!AA:AB,2,FALSE),VLOOKUP(P89&"_"&Charlotte!W89&"_"&Charlotte!AQ89,GSV_Database!AA:AB,2,FALSE)))),0))) -> 66099 | BC89: =LOS($P89,$W89,$AT89,$Y89,AU89,AV89,AQ89,BB89,$AG$4,GSV_Database!C:V) -> B | BD89: =VLOOKUP(D89,Hist_Cur_CNTS!BG:BO,7,FALSE)/100 -> 0.09 | BE89: =VLOOKUP(D89,Hist_Cur_CNTS!BG:BO,8,FALSE)/100 -> 0.552 | BF89: =VLOOKUP(D89,Hist_Cur_CNTS!BG:BO,9,FALSE)/100 -> 0.157 | BG89: UA_FW_6L_0A | BH89: =IF($P89="U", VLOOKUP(Facility("TA",$W89,$X89,$Y89,$Z89,$AA89,$AB89),GSV_Database!C:X,22,FALSE),VLOOKUP(BG89,GSV_Database!C:X,22,FALSE)) -> 0 | BI89: 01075000-17.912-21.089 | BJ89: 0 | BK89: 0
B90: 01075000 | D90: 10038 | E90: I-75 | F90: SR 93/I-75 | G90: CR 769 (Kings Highway) | H90: 21.089 | I90: Sarasota County Line | J90: 22.008 | K90: 0.919 | L90: Y | M90: SIS | N90: Principal Arterial-Interstate | O90: 70 | P90: UA | Q90: F | R90: D | V90: 0 | W90: F | X90: D | Y90: 2W | AA90: 0A | AB90: 6 | AC90: =Service_Volume($P90,$W90,$X90,$Y90,Z90,AA90,AB90,R90,$AG$4,GSV_Database!C:V) -> 111800 | AD90: =IF($AG$4="Daily",VLOOKUP(D90,Hist_Cur_CNTS!BG:BL,2,FALSE),IF($AG$4="Peak Hour Two-Way",VLOOKUP(D90,Hist_Cur_CNTS!BG:BL,3,FALSE),VLOOKUP(D90,Hist_Cur_CNTS!BG:BL,4,FALSE))) -> 55000 | AE90: =LOS($P90,$W90,$X90,$Y90,Z90,AA90,AB90,AD90,$AG$4,GSV_Database!C:V) -> B | AH90: 49.19499106 | AI90: 6 | AJ90: D | AK90: =Service_Volume($P90,$W90,$AL90,$Y90,AM90,AN90,AI90,AJ90,$AG$4,GSV_Database!C:V) -> 111800 | AL90: D | AM90: 0 | AN90: 0A | AO90: =IF($AG$4="Daily",VLOOKUP(D90,Hist_Cur_CNTS!BG:BL,5,FALSE),IF($AG$4="Peak Hour Two-Way",ROUND(VLOOKUP(D90,Hist_Cur_CNTS!BG:BL,5,FALSE) *BD90,0),ROUND(VLOOKUP(D90,Hist_Cur_CNTS!BG:BL,5,FALSE)*BD90*IF(Y90="1W",1,IF(P90="RDA",0.55,IF(OR(Q90="H",Q90="F"),VLOOKUP(P90&"_"&Q90,GSV_Database!AA:AB,2,FALSE),VLOOKUP(P90&"_"&Charlotte!W90&"_"&Charlotte!AI90,GSV_Database!AA:AB,2,FALSE)))),0))) -> 61600 | AP90: =LOS($P90,$W90,$AL90,$Y90,AM90,AN90,AI90,AO90,$AG$4,GSV_Database!C:V) -> B | AQ90: 6 | AR90: D | AS90: =Service_Volume($P90,$W90,$AT90,$Y90,AU90,AV90,AQ90,AR90,$AG$4,GSV_Database!C:V) -> 111800 | AT90: D | AU90: 0 | AV90: 0A | AW90: =IF($AG$4="Daily",VLOOKUP(D90,Hist_Cur_CNTS!BG:BL,6,FALSE),IF($AG$4="Peak Hour Two-Way",ROUND(VLOOKUP(D90,Hist_Cur_CNTS!BG:BL,6,FALSE) *BD90,0),ROUND(VLOOKUP(D90,Hist_Cur_CNTS!BG:BL,6,FALSE)*BD90*IF(Y90="1W",1,IF(P90="RDA",0.55,IF(OR(Q90="H",Q90="F"),VLOOKUP(P90&"_"&Q90,GSV_Database!AA:AB,2,FALSE),VLOOKUP(P90&"_"&Charlotte!W90&"_"&Charlotte!AQ90,GSV_Database!AA:AB,2,FALSE)))),0))) -> 80300 | AX90: =LOS($P90,$W90,$AT90,$Y90,AU90,AV90,AQ90,AW90,$AG$4,GSV_Database!C:V) -> C | AY90: =VLOOKUP(D90,Hist_Cur_CNTS!BG:BQ,11,FALSE) -> 68811 | AZ90: =VLOOKUP(D90,Hist_Cur_CNTS!BG:BQ,10,FALSE) -> 0.93 | BA90: 63994 | BB90: =IF($AG$4="Daily",BA90,IF($AG$4="Peak Hour Two-Way",ROUND(BA90 *BD90,0),ROUND(BA90*BD90*IF(Y90="1W",1,IF(P90="RDA",0.55,IF(OR(Q90="H",Q90="F"),VLOOKUP(P90&"_"&Q90,GSV_Database!AA:AB,2,FALSE),VLOOKUP(P90&"_"&Charlotte!W90&"_"&Charlotte!AQ90,GSV_Database!AA:AB,2,FALSE)))),0))) -> 63994 | BC90: =LOS($P90,$W90,$AT90,$Y90,AU90,AV90,AQ90,BB90,$AG$4,GSV_Database!C:V) -> B | BD90: =VLOOKUP(D90,Hist_Cur_CNTS!BG:BO,7,FALSE)/100 -> 0.09 | BE90: =VLOOKUP(D90,Hist_Cur_CNTS!BG:BO,8,FALSE)/100 -> 0.552 | BF90: =VLOOKUP(D90,Hist_Cur_CNTS!BG:BO,9,FALSE)/100 -> 0.157 | BG90: UA_FW_6L_0A | BH90: =IF($P90="U", VLOOKUP(Facility("TA",$W90,$X90,$Y90,$Z90,$AA90,$AB90),GSV_Database!C:X,22,FALSE),VLOOKUP(BG90,GSV_Database!C:X,22,FALSE)) -> 0 | BI90: 01075000-21.089-22.008 | BJ90: 0 | BK90: 0
B91: 01540000 | D91: 14187 | E91: CR 765 | F91: Burnt Store Rd. | G91: Lee County Line | H91: 0 | I91: Zemel Rd. | J91: 2.032 | K91: =J91-H91 -> 2.032 | L91: Y | N91: Minor Arterial | O91: 55 | P91: U | Q91: H | R91: C | S91: C | V91: =U91/K91 -> 0 | W91: =IF(Q91="F",Q91,IF(Q91="H","",IF(O91>=40,1,2))) ->  | X91: D | Y91: =IF(X91="1w",X91,"2W") -> 2W | Z91: WL | AA91: WR | AB91: 4 | AC91: =Service_Volume($P91,$W91,$X91,$Y91,Z91,AA91,AB91,R91,$AG$4,GSV_Database!C:V) -> 49600 | AD91: =IF($AG$4="Daily",VLOOKUP(D91,Hist_Cur_CNTS!BG:BL,2,FALSE),IF($AG$4="Peak Hour Two-Way",VLOOKUP(D91,Hist_Cur_CNTS!BG:BL,3,FALSE),VLOOKUP(D91,Hist_Cur_CNTS!BG:BL,4,FALSE))) -> 7800 | AE91: =LOS($P91,$W91,$X91,$Y91,Z91,AA91,AB91,AD91,$AG$4,GSV_Database!C:V) -> B | AF91: =IF(AND(AH91>=90,AH91<100),"Near Capacity",IF(AH91>=100,"Over Capacity","")) ->  | AG91: Yes | AH91: =AD91*100/AC91 -> 15.72580645 | AI91: 4 | AJ91: C | AK91: =Service_Volume($P91,$W91,$AL91,$Y91,AM91,AN91,AI91,AJ91,$AG$4,GSV_Database!C:V) -> 49600 | AL91: D | AM91: =Z91 -> WL | AN91: WR | AO91: =IF($AG$4="Daily",VLOOKUP(D91,Hist_Cur_CNTS!BG:BL,5,FALSE),IF($AG$4="Peak Hour Two-Way",ROUND(VLOOKUP(D91,Hist_Cur_CNTS!BG:BL,5,FALSE) *BD91,0),ROUND(VLOOKUP(D91,Hist_Cur_CNTS!BG:BL,5,FALSE)*BD91*IF(Y91="1W",1,IF(P91="RDA",0.55,IF(OR(Q91="H",Q91="F"),VLOOKUP(P91&"_"&Q91,GSV_Database!AA:AB,2,FALSE),VLOOKUP(P91&"_"&Charlotte!W91&"_"&Charlotte!AI91,GSV_Database!AA:AB,2,FALSE)))),0))) -> 9800 | AP91: =LOS($P91,$W91,$AL91,$Y91,AM91,AN91,AI91,AO91,$AG$4,GSV_Database!C:V) -> B | AQ91: 4 | AR91: C | AS91: =Service_Volume($P91,$W91,$AT91,$Y91,AU91,AV91,AQ91,AR91,$AG$4,GSV_Database!C:V) -> 49600 | AT91: D | AU91: =AM91 -> WL | AV91: WR | AW91: =IF($AG$4="Daily",VLOOKUP(D91,Hist_Cur_CNTS!BG:BL,6,FALSE),IF($AG$4="Peak Hour Two-Way",ROUND(VLOOKUP(D91,Hist_Cur_CNTS!BG:BL,6,FALSE) *BD91,0),ROUND(VLOOKUP(D91,Hist_Cur_CNTS!BG:BL,6,FALSE)*BD91*IF(Y91="1W",1,IF(P91="RDA",0.55,IF(OR(Q91="H",Q91="F"),VLOOKUP(P91&"_"&Q91,GSV_Database!AA:AB,2,FALSE),VLOOKUP(P91&"_"&Charlotte!W91&"_"&Charlotte!AQ91,GSV_Database!AA:AB,2,FALSE)))),0))) -> 15600 | AX91: =LOS($P91,$W91,$AT91,$Y91,AU91,AV91,AQ91,AW91,$AG$4,GSV_Database!C:V) -> B | AY91: =VLOOKUP(D91,Hist_Cur_CNTS!BG:BQ,11,FALSE) -> 22575 | AZ91: =VLOOKUP(D91,Hist_Cur_CNTS!BG:BQ,10,FALSE) -> 0.9 | BA91: =ROUND(AZ91*AY91,0) -> 20318 | BB91: =IF($AG$4="Daily",BA91,IF($AG$4="Peak Hour Two-Way",ROUND(BA91 *BD91,0),ROUND(BA91*BD91*IF(Y91="1W",1,IF(P91="RDA",0.55,IF(OR(Q91="H",Q91="F"),VLOOKUP(P91&"_"&Q91,GSV_Database!AA:AB,2,FALSE),VLOOKUP(P91&"_"&Charlotte!W91&"_"&Charlotte!AQ91,GSV_Database!AA:AB,2,FALSE)))),0))) -> 20318 | BC91: =LOS($P91,$W91,$AT91,$Y91,AU91,AV91,AQ91,BB91,$AG$4,GSV_Database!C:V) -> B | BD91: =VLOOKUP(D91,Hist_Cur_CNTS!BG:BO,7,FALSE)/100 -> 0.095 | BE91: =VLOOKUP(D91,Hist_Cur_CNTS!BG:BO,8,FALSE)/100 -> 0.514 | BF91: =VLOOKUP(D91,Hist_Cur_CNTS!BG:BO,9,FALSE)/100 -> 0.083 | BG91: =Facility($P91,$W91,$X91,$Y91,$Z91,$AA91,$AB91) -> U_UFH_2W_4L_D_WL_WR | BH91: =IF($P91="U", VLOOKUP(Facility("TA",$W91,$X91,$Y91,$Z91,$AA91,$AB91),GSV_Database!C:X,22,FALSE),VLOOKUP(BG91,GSV_Database!C:X,22,FALSE)) -> 0 | BI91: 01540000-0-2.032 | BJ91: 0 | BK91: 0
B92: 01501000 | D92: 14105 | E92: CR 769 | F92: Kings Hwy | G92: I-75 | H92: 4.413 | I92: DeSoto County Line | J92: 5.289 | K92: =J92-H92 -> 0.876 | L92: Y | N92: Collector | O92: 45 | P92: UA | Q92: A | R92: D | S92: D | U92: 2 | V92: =U92/K92 -> 2.283105023 | W92: NSS1 | X92: D | Y92: =IF(X92="1w",X92,"2W") -> 2W | Z92: WL | AA92: WR | AB92: 2 | AC92: =Service_Volume($P92,$W92,$X92,$Y92,Z92,AA92,AB92,R92,$AG$4,GSV_Database!C:V) -> 17563 | AD92: =IF($AG$4="Daily",VLOOKUP(D92,Hist_Cur_CNTS!BG:BL,2,FALSE),IF($AG$4="Peak Hour Two-Way",VLOOKUP(D92,Hist_Cur_CNTS!BG:BL,3,FALSE),VLOOKUP(D92,Hist_Cur_CNTS!BG:BL,4,FALSE))) -> 14600 | AE92: =LOS($P92,$W92,$X92,$Y92,Z92,AA92,AB92,AD92,$AG$4,GSV_Database!C:V) -> C | AF92: =IF(AND(AH92>=90,AH92<100),"Near Capacity",IF(AH92>=100,"Over Capacity","")) ->  | AH92: =AD92*100/AC92 -> 83.12930593 | AI92: 2 | AJ92: D | AK92: =Service_Volume($P92,$W92,$AL92,$Y92,AM92,AN92,AI92,AJ92,$AG$4,GSV_Database!C:V) -> 17563 | AL92: D | AM92: WL | AN92: WR | AO92: =IF($AG$4="Daily",VLOOKUP(D92,Hist_Cur_CNTS!BG:BL,5,FALSE),IF($AG$4="Peak Hour Two-Way",ROUND(VLOOKUP(D92,Hist_Cur_CNTS!BG:BL,5,FALSE) *BD92,0),ROUND(VLOOKUP(D92,Hist_Cur_CNTS!BG:BL,5,FALSE)*BD92*IF(Y92="1W",1,IF(P92="RDA",0.55,IF(OR(Q92="H",Q92="F"),VLOOKUP(P92&"_"&Q92,GSV_Database!AA:AB,2,FALSE),VLOOKUP(P92&"_"&Charlotte!W92&"_"&Charlotte!AI92,GSV_Database!AA:AB,2,FALSE)))),0))) -> 16400 | AP92: =LOS($P92,$W92,$AL92,$Y92,AM92,AN92,AI92,AO92,$AG$4,GSV_Database!C:V) -> C | AQ92: 4 | AR92: D | AS92: =Service_Volume($P92,$W92,$AT92,$Y92,AU92,AV92,AQ92,AR92,$AG$4,GSV_Database!C:V) -> 37611 | AT92: D | AU92: WL | AV92: WR | AW92: =IF($AG$4="Daily",VLOOKUP(D92,Hist_Cur_CNTS!BG:BL,6,FALSE),IF($AG$4="Peak Hour Two-Way",ROUND(VLOOKUP(D92,Hist_Cur_CNTS!BG:BL,6,FALSE) *BD92,0),ROUND(VLOOKUP(D92,Hist_Cur_CNTS!BG:BL,6,FALSE)*BD92*IF(Y92="1W",1,IF(P92="RDA",0.55,IF(OR(Q92="H",Q92="F"),VLOOKUP(P92&"_"&Q92,GSV_Database!AA:AB,2,FALSE),VLOOKUP(P92&"_"&Charlotte!W92&"_"&Charlotte!AQ92,GSV_Database!AA:AB,2,FALSE)))),0))) -> 21300 | AX92: =LOS($P92,$W92,$AT92,$Y92,AU92,AV92,AQ92,AW92,$AG$4,GSV_Database!C:V) -> C | AY92: =VLOOKUP(D92,Hist_Cur_CNTS!BG:BQ,11,FALSE) -> 40669 | AZ92: =VLOOKUP(D92,Hist_Cur_CNTS!BG:BQ,10,FALSE) -> 0.9 | BA92: =ROUND(AZ92*AY92,0) -> 36602 | BB92: =IF($AG$4="Daily",BA92,IF($AG$4="Peak Hour Two-Way",ROUND(BA92 *BD92,0),ROUND(BA92*BD92*IF(Y92="1W",1,IF(P92="RDA",0.55,IF(OR(Q92="H",Q92="F"),VLOOKUP(P92&"_"&Q92,GSV_Database!AA:AB,2,FALSE),VLOOKUP(P92&"_"&Charlotte!W92&"_"&Charlotte!AQ92,GSV_Database!AA:AB,2,FALSE)))),0))) -> 36602 | BC92: =LOS($P92,$W92,$AT92,$Y92,AU92,AV92,AQ92,BB92,$AG$4,GSV_Database!C:V) -> D | BD92: =VLOOKUP(D92,Hist_Cur_CNTS!BG:BO,7,FALSE)/100 -> 0.09 | BE92: =VLOOKUP(D92,Hist_Cur_CNTS!BG:BO,8,FALSE)/100 -> 0.525 | BF92: =VLOOKUP(D92,Hist_Cur_CNTS!BG:BO,9,FALSE)/100 -> 0.041 | BG92: UA_NSS1_2W_2L_D_WL_WR | BH92: =IF($P92="U", VLOOKUP(Facility("TA",$W92,$X92,$Y92,$Z92,$AA92,$AB92),GSV_Database!C:X,22,FALSE),VLOOKUP(BG92,GSV_Database!C:X,22,FALSE)) -> 0 | BI92: 01501000-4.413-5.289 | BJ92: 0 | BK92: 0
F93: Winchester Blvd | G93: CR 775 | I93: SR 776 | L93: Y | P93: UA | Q93: H | R93: D | S93: D | V93: 0 | X93: D | Y93: 2W | Z93: WL | AA93: WR | AB93: 2 | AC93: =Service_Volume($P93,$W93,$X93,$Y93,Z93,AA93,AB93,R93,$AG$4,GSV_Database!C:V) -> 25410 | AE93: =LOS($P93,$W93,$X93,$Y93,Z93,AA93,AB93,AD93,$AG$4,GSV_Database!C:V) -> A | AF93: =IF(AND(AH93>=90,AH93<100),"Near Capacity",IF(AH93>=100,"Over Capacity","")) ->  | AG93: Yes | AH93: =AD93*100/AC93 -> 0 | AI93: 2 | AJ93: D | AK93: =Service_Volume($P93,$W93,$AL93,$Y93,AM93,AN93,AI93,AJ93,$AG$4,GSV_Database!C:V) -> 25410 | AL93: D | AM93: WL | AN93: WR | AP93: =LOS($P93,$W93,$AL93,$Y93,AM93,AN93,AI93,AO93,$AG$4,GSV_Database!C:V) -> A | AQ93: 4 | AR93: D | AS93: =Service_Volume($P93,$W93,$AT93,$Y93,AU93,AV93,AQ93,AR93,$AG$4,GSV_Database!C:V) -> 65600 | AT93: D | AU93: WL | AV93: WR | AX93: =LOS($P93,$W93,$AT93,$Y93,AU93,AV93,AQ93,AW93,$AG$4,GSV_Database!C:V) -> A | AY93: 7875 | AZ93: 0.89 | BA93: =ROUND(AZ93*AY93,0) -> 7009 | BC93: =LOS($P93,$W93,$AT93,$Y93,AU93,AV93,AQ93,BB93,$AG$4,GSV_Database!C:V) -> A | BG93: UA_UFH_2W_2L_D_WL_WR | BH93: =IF($P93="U", VLOOKUP(Facility("TA",$W93,$X93,$Y93,$Z93,$AA93,$AB93),GSV_Database!C:X,22,FALSE),VLOOKUP(BG93,GSV_Database!C:X,22,FALSE)) -> 2 | BI93: -- | BJ93: 2 | BK93: 0
E94: Legend | BG94: ___L___ | BH94: =IF($P94="U", VLOOKUP(Facility("TA",$W94,$X94,$Y94,$Z94,$AA94,$AB94),GSV_Database!C:X,22,FALSE),VLOOKUP(BG94,GSV_Database!C:X,22,FALSE)) ->  | BI94: --
F95: Aggregated segment | H95: Single count segment | BG95: ___L___ | BH95: =IF($P95="U", VLOOKUP(Facility("TA",$W95,$X95,$Y95,$Z95,$AA95,$AB95),GSV_Database!C:X,22,FALSE),VLOOKUP(BG95,GSV_Database!C:X,22,FALSE)) ->  | BI95: -Single count segment-
A96: ** Future Model Volumes obtained from D1 Regional Planning Model are found to be less than Existing AADT.
E98: Look in to WP folder for TRIP funded projects
E99: LOCAL LOS STD. - 2008 CHARLOTTE COUNTY CMS AND COMPREHENSIVE PLAN
E100: Charlotte County adopted LOS Std. "D" for all roadways (Charlotte County CIE Page 5)
E101: The exceptions are SIS, FIHS, and TRIP funded Roadways (i.e. I-75 and US 17) (Transportation Element Page 2-11)
E103: CITY LOS STD - CITY OF PUNTA GORDA COMPREHENSIVE PLAN
E104: STATE ROADS WITHIN PUNTA GORDA CITY
E105: Punta Gorda City adopted LOS Std. "D" on all major arterials. And LOS Std. "E" on all minor arterials (Page 18)
E106: 01010000 | F106: US 41 | G106: TAYLOR RD | H106: 8.583 | I106: ALLIGATOR CREEK | J106: 9.833
E107: 01010000 | F107: US 41 | G107: CR 765 | H107: 10.174 | I107: SINGAPORE RD | J107: 11.271
E108: 01010000 | F108: US 41 | G108: COOPER ST | H108: 11.965 | I108: RETTA ESPLANADE | J108: 14.192
E109: 01010101 | F109: US 41 | G109: Peace River Bridge | H109: 1.297 | I109: US 41 (Tamiami Trail) | J109: 2.042
E110: 01040000 | F110: US 17 | H110: 0 | I110: NORTH OF SCOTT ST ST | J110: 0.977
E111: 01040101 | F111: US 17 | G111: US 41 /CROSS ST | H111: 0.588 | I111: US 41 / CROSS ST | J111: 1.668
G112: NORTH OF ELLIOT ST
F118: Roadway Class | G118: Adopted LOS Standard | H118: Limitations (if any)
F119: Arterials | G119: D | H119: None
F120: Collectors | G120: D | H120: None
F121: FIHS, SIS or TRIP Funded (Urban/ Transitioning Area) | G121: C | H121: None
F122: FIHS, SIS or TRIP Funded (Rural Area) | G122: B | H122: None
F124: http://www2.charlottefl.com/CompPlan/main/view_doc.aspx?show_comments=true&docid=10#contentelement_7592
E127: 01070000-0-1.767
E128: NO SLD
E441: Volume Link | F441: 1 | G441: =VLOOKUP(F441,Hist_Cur_CNTS!#REF!,2,FALSE) -> 
E442: 2007 Volume Link | F442: 1 | G442: =VLOOKUP(F442,Hist_Cur_CNTS!#REF!,2,FALSE) -> 
E443: Volume Link | F443: 1 | G443: =VLOOKUP(F443,Hist_Cur_CNTS!#REF!,2,FALSE) -> 
E444: Volume Link | F444: 1 | G444: =VLOOKUP(F444,Hist_Cur_CNTS!#REF!,2,FALSE) -> 

Sheet Collier
B4: ="YEAR " &'Data Update Menu'!E5 &" COLLIER COUNTY LEVEL OF SERVICE SPREADSHEET - " -> YEAR 2017 COLLIER COUNTY LEVEL OF SERVICE SPREADSHEET - | AG4: DAILY
C7: Old | D7: New | E7: State | F7: Local | G7: From | I7: To | L7: FIHS | M7: SIS | R7: FDOT | S7: County | T7: City | U7: ="Year " & 'Data Update Menu'!E5 -> Year 2017 | AI7: ="Year " &'Data Update Menu'!E6&" (E+C)" -> Year 2023 (E+C) | AQ7: ="Year " & 'Data Update Menu'!E7 -> Year 2040 | BD7: Standard | BE7: Existing | BF7: Existing
B8: Section | C8: Cosite | D8: Cosite | E8: Road | F8: Road | H8: From | J8: To | K8: Section | N8: Functional | O8: Posted | P8: Area | Q8: Facility | R8: LOS | S8: LOS | T8: LOS | U8: # | V8: Signal | W8: Arterial | X8: Divided/ | Y8: One/Two | Z8: Left Turn | AA8: Right Turn | AB8: Thru | AC8: =PROPER(AG4) -> Daily | AF8: Deficiency | AG8: TRIP | AH8: % LOS | AI8: Thru | AJ8: LOS | AK8: =PROPER(AG4) -> Daily | AQ8: Thru | AR8: LOS | AS8: =PROPER(AG4) -> Daily | BD8: K | BE8: D | BF8: T24
B9: No. | E9: No. | F9: Name | H9: M.P. | J9: M.P. | K9: Length | N9: Classification | O9: Speed | P9: Type | Q9: Type | R9: Std. | S9: Std. | T9: Std. | U9: Signals | V9: Density | W9: Class | X9: UnDivided | Y9: Way | Z9: Bays | AA9: Bays | AB9: Lanes | AC9: Capacity | AD9: Volume | AE9: LOS | AF9: Determination | AG9: Improvement | AH9: Std | AI9: Lanes | AJ9: Std | AK9: Capacity | AM9: Left | AN9: Right | AO9: Volume | AP9: LOS | AQ9: Lanes | AR9: Std | AS9: Capacity | AU9: Left Turn | AV9: Right Turn | AW9: Trend Volume | AX9: Trend LOS | AY9: PSWADT | AZ9: MOCF | BA9: Model AADT | BB9: Model Volume | BC9: Model LOS | BD9: Factor | BE9: Factor | BF9: Factor
A10: =IF(BB10<AD10,"**","") ->  | B10: 03001000 | D10: 30178 | E10: SR 84 | F10: DAVIS BLVD | G10: US 41 | H10: 0 | I10: Shadowlawn Dr | J10: 0.749 | K10: =J10-H10 -> 0.749 | L10: N | N10: Minor Arterial | O10: 45 | P10: UA | Q10: A | R10: =IF(P10="UA","D","C") -> D | S10: E | U10: 2 | V10: =U10/K10 -> 2.670226969 | W10: =IF(Q10="F",Q10,IF(Q10="H","",IF(O10>=40,1,2))) -> 1 | X10: D | Y10: 2W | Z10: WL | AA10: 0R | AB10: 6 | AC10: =Service_Volume($P10,$W10,$X10,$Y10,Z10,AA10,AB10,R10,$AG$4,GSV_Database!C:V) -> 59900 | AD10: =IF($AG$4="DAILY",VLOOKUP(D10,Hist_Cur_CNTS!BG:BL,2,FALSE),IF($AG$4="PEAK HOUR TWO-WAY",VLOOKUP(D10,Hist_Cur_CNTS!BG:BL,3,FALSE),VLOOKUP(D10,Hist_Cur_CNTS!BG:BL,4,FALSE))) -> 24500 | AE10: =LOS($P10,$W10,$X10,$Y10,Z10,AA10,AB10,AD10,$AG$4,GSV_Database!C:V) -> C | AF10: =IF(AND(AH10>=90,AH10<100),"Near Capacity",IF(AH10>=100,"Over Capacity","")) ->  | AH10: =AD10*100/AC10 -> 40.9015025 | AI10: 6 | AJ10: =R10 -> D | AK10: =Service_Volume($P10,$W10,$AL10,$Y10,AM10,AN10,AI10,AJ10,$AG$4,GSV_Database!C:V) -> 59900 | AL10: D | AM10: =Z10 -> WL | AN10: =AA10 -> 0R | AO10: =IF($AG$4="Daily",VLOOKUP(D10,Hist_Cur_CNTS!BG:BL,5,FALSE),IF($AG$4="Peak Hour Two-Way",ROUND(VLOOKUP(D10,Hist_Cur_CNTS!BG:BL,5,FALSE) *BD10,0),ROUND(VLOOKUP(D10,Hist_Cur_CNTS!BG:BL,5,FALSE)*BD10*IF(Y10="1W",1,IF(P10="RDA",0.55,IF(OR(Q10="H",Q10="F"),VLOOKUP(P10&"_"&Q10,GSV_Database!AA:AB,2,FALSE),VLOOKUP(P10&"_"&W10&"_"&AI10,GSV_Database!AA:AB,2,FALSE)))),0))) -> 27400 | AP10: =LOS($P10,$W10,$AL10,$Y10,AM10,AN10,AI10,AO10,$AG$4,GSV_Database!C:V) -> C | AQ10: 6 | AR10: =AJ10 -> D | AS10: =Service_Volume($P10,$W10,$AT10,$Y10,AU10,AV10,AQ10,AR10,$AG$4,GSV_Database!C:V) -> 59900 | AT10: D | AU10: =AM10 -> WL | AV10: =AN10 -> 0R | AW10: =IF($AG$4="Daily",VLOOKUP(D10,Hist_Cur_CNTS!BG:BL,6,FALSE),IF($AG$4="Peak Hour Two-Way",ROUND(VLOOKUP(D10,Hist_Cur_CNTS!BG:BL,6,FALSE) *BD10,0),ROUND(VLOOKUP(D10,Hist_Cur_CNTS!BG:BL,6,FALSE)*BD10*IF(Y10="1W",1,IF(P10="RDA",0.55,IF(OR(Q10="H",Q10="F"),VLOOKUP(P10&"_"&Q10,GSV_Database!AA:AB,2,FALSE),VLOOKUP(P10&"_"&W10&"_"&AQ10,GSV_Database!AA:AB,2,FALSE)))),0))) -> 35800 | AX10: =LOS($P10,$W10,$AT10,$Y10,AU10,AV10,AQ10,AW10,$AG$4,GSV_Database!C:V) -> C | AY10: =VLOOKUP(D10,Hist_Cur_CNTS!BG:BQ,11,FALSE) -> 51365 | AZ10: =VLOOKUP(D10,Hist_Cur_CNTS!BG:BQ,10,FALSE) -> 0.88 | BA10: =ROUND(AY10*AZ10,0) -> 45201 | BB10: =IF($AG$4="Daily",BA10,IF($AG$4="Peak Hour Two-Way",ROUND(BA10 *BD10,0),ROUND(BA10*BD10*IF(Y10="1W",1,IF(P10="RDA",0.55,IF(OR(Q10="H",Q10="F"),VLOOKUP(P10&"_"&Q10,GSV_Database!AA:AB,2,FALSE),VLOOKUP(P10&"_"&W10&"_"&AQ10,GSV_Database!AA:AB,2,FALSE)))),0))) -> 45201 | BC10: =LOS($P10,$W10,$AT10,$Y10,AU10,AV10,AQ10,BB10,$AG$4,GSV_Database!C:V) -> C | BD10: =VLOOKUP(D10,Hist_Cur_CNTS!BG:BO,7,FALSE)/100 -> 0.09 | BE10: =VLOOKUP(D10,Hist_Cur_CNTS!BG:BO,8,FALSE)/100 -> 0.568 | BF10: =VLOOKUP(D10,Hist_Cur_CNTS!BG:BO,9,FALSE)/100 -> 0.04 | BG10: =Facility($P10,$W10,$X10,$Y10,$Z10,$AA10,$AB10) -> UA_S2WAC1_2W_6L_D_WL_0R | BH10: =IF($P10="U", VLOOKUP(Facility("TA",$W10,$X10,$Y10,$Z10,$AA10,$AB10),GSV_Database!C:X,22,FALSE),VLOOKUP(BG10,GSV_Database!C:X,22,FALSE)) -> 0
A11: =IF(BB11<AD11,"**","") ->  | B11: 03001000 | D11: 30178 | E11: SR 84 | F11: DAVIS BLVD | G11: Shadowlawn Dr | H11: 0.749 | I11: CR 31/Airport - Pulling Rd | J11: 1.005 | K11: 0.256 | L11: N | N11: Minor Arterial | O11: 45 | P11: UA | Q11: A | R11: =IF(P11="UA","D","C") -> D | S11: E | U11: 1 | V11: 3.90625 | W11: =IF(Q11="F",Q11,IF(Q11="H","",IF(O11>=40,1,2))) -> 1 | X11: D | Y11: 2W | Z11: WL | AA11: 0R | AB11: 6 | AC11: =Service_Volume($P11,$W11,$X11,$Y11,Z11,AA11,AB11,R11,$AG$4,GSV_Database!C:V) -> 59900 | AD11: =IF($AG$4="DAILY",VLOOKUP(D11,Hist_Cur_CNTS!BG:BL,2,FALSE),IF($AG$4="PEAK HOUR TWO-WAY",VLOOKUP(D11,Hist_Cur_CNTS!BG:BL,3,FALSE),VLOOKUP(D11,Hist_Cur_CNTS!BG:BL,4,FALSE))) -> 24500 | AE11: =LOS($P11,$W11,$X11,$Y11,Z11,AA11,AB11,AD11,$AG$4,GSV_Database!C:V) -> C | AF11: =IF(AND(AH11>=90,AH11<100),"Near Capacity",IF(AH11>=100,"Over Capacity","")) ->  | AH11: 40.9015025 | AI11: 6 | AJ11: =R11 -> D | AK11: =Service_Volume($P11,$W11,$AL11,$Y11,AM11,AN11,AI11,AJ11,$AG$4,GSV_Database!C:V) -> 59900 | AL11: D | AM11: =Z11 -> WL | AN11: =AA11 -> 0R | AO11: =IF($AG$4="Daily",VLOOKUP(D11,Hist_Cur_CNTS!BG:BL,5,FALSE),IF($AG$4="Peak Hour Two-Way",ROUND(VLOOKUP(D11,Hist_Cur_CNTS!BG:BL,5,FALSE) *BD11,0),ROUND(VLOOKUP(D11,Hist_Cur_CNTS!BG:BL,5,FALSE)*BD11*IF(Y11="1W",1,IF(P11="RDA",0.55,IF(OR(Q11="H",Q11="F"),VLOOKUP(P11&"_"&Q11,GSV_Database!AA:AB,2,FALSE),VLOOKUP(P11&"_"&W11&"_"&AI11,GSV_Database!AA:AB,2,FALSE)))),0))) -> 27400 | AP11: =LOS($P11,$W11,$AL11,$Y11,AM11,AN11,AI11,AO11,$AG$4,GSV_Database!C:V) -> C | AQ11: 6 | AR11: =AJ11 -> D | AS11: =Service_Volume($P11,$W11,$AT11,$Y11,AU11,AV11,AQ11,AR11,$AG$4,GSV_Database!C:V) -> 59900 | AT11: D | AU11: =AM11 -> WL | AV11: =AN11 -> 0R | AW11: =IF($AG$4="Daily",VLOOKUP(D11,Hist_Cur_CNTS!BG:BL,6,FALSE),IF($AG$4="Peak Hour Two-Way",ROUND(VLOOKUP(D11,Hist_Cur_CNTS!BG:BL,6,FALSE) *BD11,0),ROUND(VLOOKUP(D11,Hist_Cur_CNTS!BG:BL,6,FALSE)*BD11*IF(Y11="1W",1,IF(P11="RDA",0.55,IF(OR(Q11="H",Q11="F"),VLOOKUP(P11&"_"&Q11,GSV_Database!AA:AB,2,FALSE),VLOOKUP(P11&"_"&W11&"_"&AQ11,GSV_Database!AA:AB,2,FALSE)))),0))) -> 35800 | AX11: =LOS($P11,$W11,$AT11,$Y11,AU11,AV11,AQ11,AW11,$AG$4,GSV_Database!C:V) -> C | AY11: =VLOOKUP(D11,Hist_Cur_CNTS!BG:BQ,11,FALSE) -> 51365 | AZ11: =VLOOKUP(D11,Hist_Cur_CNTS!BG:BQ,10,FALSE) -> 0.88 | BA11: =ROUND(AY11*AZ11,0) -> 45201 | BB11: =IF($AG$4="Daily",BA11,IF($AG$4="Peak Hour Two-Way",ROUND(BA11 *BD11,0),ROUND(BA11*BD11*IF(Y11="1W",1,IF(P11="RDA",0.55,IF(OR(Q11="H",Q11="F"),VLOOKUP(P11&"_"&Q11,GSV_Database!AA:AB,2,FALSE),VLOOKUP(P11&"_"&W11&"_"&AQ11,GSV_Database!AA:AB,2,FALSE)))),0))) -> 45201 | BC11: =LOS($P11,$W11,$AT11,$Y11,AU11,AV11,AQ11,BB11,$AG$4,GSV_Database!C:V) -> C | BD11: =VLOOKUP(D11,Hist_Cur_CNTS!BG:BO,7,FALSE)/100 -> 0.09 | BE11: =VLOOKUP(D11,Hist_Cur_CNTS!BG:BO,8,FALSE)/100 -> 0.568 | BF11: =VLOOKUP(D11,Hist_Cur_CNTS!BG:BO,9,FALSE)/100 -> 0.04 | BG11: =Facility($P11,$W11,$X11,$Y11,$Z11,$AA11,$AB11) -> UA_S2WAC1_2W_6L_D_WL_0R | BH11: =IF($P11="U", VLOOKUP(Facility("TA",$W11,$X11,$Y11,$Z11,$AA11,$AB11),GSV_Database!C:X,22,FALSE),VLOOKUP(BG11,GSV_Database!C:X,22,FALSE)) -> 0
B12: 03001000 | E12: SR 84 | F12: DAVIS BLVD | G12: US 41 | H12: 0 | I12: =I11 -> CR 31/Airport - Pulling Rd | J12: 1.005 | K12: 1.005 | L12: N | N12: Minor Arterial | O12: 45 | P12: UA | Q12: A | R12: D | S12: E | U12: =SUM(U10:U11) -> 3 | V12: 2.985074627 | W12: 1 | X12: D | Y12: 2W | Z12: WL | AA12: 0R | AB12: 6 | AC12: =Service_Volume($P12,$W12,$X12,$Y12,Z12,AA12,AB12,R12,$AG$4,GSV_Database!C:V) -> 59900 | AD12: =wtavg(AD10:AD11,$K10:$K11) -> 24500 | AE12: =LOS($P12,$W12,$X12,$Y12,Z12,AA12,AB12,AD12,$AG$4,GSV_Database!C:V) -> C | AH12: 40.9015025 | AI12: 6 | AJ12: D | AK12: =Service_Volume($P12,$W12,$AL12,$Y12,AM12,AN12,AI12,AJ12,$AG$4,GSV_Database!C:V) -> 59900 | AL12: D | AM12: WL | AN12: 0R | AO12: =wtavg(AO10:AO11,$K10:$K11) -> 27400 | AP12: =LOS($P12,$W12,$AL12,$Y12,AM12,AN12,AI12,AO12,$AG$4,GSV_Database!C:V) -> C | AQ12: 6 | AR12: D | AS12: =Service_Volume($P12,$W12,$AT12,$Y12,AU12,AV12,AQ12,AR12,$AG$4,GSV_Database!C:V) -> 59900 | AT12: D | AU12: WL | AV12: 0R | AW12: =wtavg(AW10:AW11,$K10:$K11) -> 35800 | AX12: =LOS($P12,$W12,$AT12,$Y12,AU12,AV12,AQ12,AW12,$AG$4,GSV_Database!C:V) -> C | AY12: =wtavg(AY10:AY11,$K10:$K11) -> 51365 | AZ12: =wtavg(AZ10:AZ11,$K10:$K11) -> 0.88 | BA12: 45201 | BB12: =wtavg(BB10:BB11,$K10:$K11) -> 45201 | BC12: =LOS($P12,$W12,$AT12,$Y12,AU12,AV12,AQ12,BB12,$AG$4,GSV_Database!C:V) -> C | BD12: =wtavg(BD10:BD11,$K10:$K11) -> 0.09 | BE12: =wtavg(BE10:BE11,$K10:$K11) -> 0.568 | BF12: =wtavg(BF10:BF11,$K10:$K11) -> 0.04 | BG12: =Facility($P12,$W12,$X12,$Y12,$Z12,$AA12,$AB12) -> UA_S2WAC1_2W_6L_D_WL_0R | BH12: =IF($P12="U", VLOOKUP(Facility("TA",$W12,$X12,$Y12,$Z12,$AA12,$AB12),GSV_Database!C:X,22,FALSE),VLOOKUP(BG12,GSV_Database!C:X,22,FALSE)) -> 0 | BI12: =CONCATENATE(B12,"-",H12,"-",J12) -> 03001000-0-1.005 | BJ12: =BH12 -> 0 | BK12: =AI12-AB12 -> 0
B13: 03001000 | D13: 30176 | E13: SR 84 | F13: DAVIS BLVD | G13: =I12 -> CR 31/Airport - Pulling Rd | H13: 1.005 | I13: County Barn Rd | J13: 3.251 | K13: 2.246 | L13: N | N13: Minor Arterial | O13: 45 | P13: UA | Q13: A | R13: D | S13: D | U13: 3 | V13: 1.335707925 | W13: 1 | X13: D | Y13: 2W | Z13: WL | AA13: WR | AB13: 4 | AC13: =Service_Volume($P13,$W13,$X13,$Y13,Z13,AA13,AB13,R13,$AG$4,GSV_Database!C:V) -> 41790 | AD13: =IF($AG$4="DAILY",VLOOKUP(D13,Hist_Cur_CNTS!BG:BL,2,FALSE),IF($AG$4="PEAK HOUR TWO-WAY",VLOOKUP(D13,Hist_Cur_CNTS!BG:BL,3,FALSE),VLOOKUP(D13,Hist_Cur_CNTS!BG:BL,4,FALSE))) -> 24500 | AE13: =LOS($P13,$W13,$X13,$Y13,Z13,AA13,AB13,AD13,$AG$4,GSV_Database!C:V) -> C | AH13: 58.62646566 | AI13: 4 | AJ13: D | AK13: =Service_Volume($P13,$W13,$AL13,$Y13,AM13,AN13,AI13,AJ13,$AG$4,GSV_Database!C:V) -> 41790 | AL13: D | AM13: WL | AN13: WR | AO13: =IF($AG$4="Daily",VLOOKUP(D13,Hist_Cur_CNTS!BG:BL,5,FALSE),IF($AG$4="Peak Hour Two-Way",ROUND(VLOOKUP(D13,Hist_Cur_CNTS!BG:BL,5,FALSE) *BD13,0),ROUND(VLOOKUP(D13,Hist_Cur_CNTS!BG:BL,5,FALSE)*BD13*IF(Y13="1W",1,IF(P13="RDA",0.55,IF(OR(Q13="H",Q13="F"),VLOOKUP(P13&"_"&Q13,GSV_Database!AA:AB,2,FALSE),VLOOKUP(P13&"_"&W13&"_"&AI13,GSV_Database!AA:AB,2,FALSE)))),0))) -> 27400 | AP13: =LOS($P13,$W13,$AL13,$Y13,AM13,AN13,AI13,AO13,$AG$4,GSV_Database!C:V) -> C | AQ13: 4 | AR13: D | AS13: =Service_Volume($P13,$W13,$AT13,$Y13,AU13,AV13,AQ13,AR13,$AG$4,GSV_Database!C:V) -> 41790 | AT13: D | AU13: WL | AV13: WR | AW13: =IF($AG$4="Daily",VLOOKUP(D13,Hist_Cur_CNTS!BG:BL,6,FALSE),IF($AG$4="Peak Hour Two-Way",ROUND(VLOOKUP(D13,Hist_Cur_CNTS!BG:BL,6,FALSE) *BD13,0),ROUND(VLOOKUP(D13,Hist_Cur_CNTS!BG:BL,6,FALSE)*BD13*IF(Y13="1W",1,IF(P13="RDA",0.55,IF(OR(Q13="H",Q13="F"),VLOOKUP(P13&"_"&Q13,GSV_Database!AA:AB,2,FALSE),VLOOKUP(P13&"_"&W13&"_"&AQ13,GSV_Database!AA:AB,2,FALSE)))),0))) -> 35800 | AX13: =LOS($P13,$W13,$AT13,$Y13,AU13,AV13,AQ13,AW13,$AG$4,GSV_Database!C:V) -> C | AY13: =VLOOKUP(D13,Hist_Cur_CNTS!BG:BQ,11,FALSE) -> 45541 | AZ13: =VLOOKUP(D13,Hist_Cur_CNTS!BG:BQ,10,FALSE) -> 0.88 | BA13: 40076 | BB13: =IF($AG$4="Daily",BA13,IF($AG$4="Peak Hour Two-Way",ROUND(BA13 *BD13,0),ROUND(BA13*BD13*IF(Y13="1W",1,IF(P13="RDA",0.55,IF(OR(Q13="H",Q13="F"),VLOOKUP(P13&"_"&Q13,GSV_Database!AA:AB,2,FALSE),VLOOKUP(P13&"_"&W13&"_"&AQ13,GSV_Database!AA:AB,2,FALSE)))),0))) -> 40076 | BC13: =LOS($P13,$W13,$AT13,$Y13,AU13,AV13,AQ13,BB13,$AG$4,GSV_Database!C:V) -> D | BD13: =VLOOKUP(D13,Hist_Cur_CNTS!BG:BO,7,FALSE)/100 -> 0.09 | BE13: =VLOOKUP(D13,Hist_Cur_CNTS!BG:BO,8,FALSE)/100 -> 0.568 | BF13: =VLOOKUP(D13,Hist_Cur_CNTS!BG:BO,9,FALSE)/100 -> 0.035 | BG13: =Facility($P13,$W13,$X13,$Y13,$Z13,$AA13,$AB13) -> UA_S2WAC1_2W_4L_D_WL_WR | BH13: =IF($P13="U", VLOOKUP(Facility("TA",$W13,$X13,$Y13,$Z13,$AA13,$AB13),GSV_Database!C:X,22,FALSE),VLOOKUP(BG13,GSV_Database!C:X,22,FALSE)) -> 3 | BI13: =CONCATENATE(B13,"-",H13,"-",J13) -> 03001000-1.005-3.251 | BJ13: =BH13 -> 3 | BK13: =AI13-AB13 -> 0
B14: 03001000 | D14: 30195 | E14: SR 84 | F14: DAVIS BLVD | G14: County Barn Rd | H14: 3.251 | I14: Santa Barbara Blvd | J14: 4.005 | K14: 0.754 | L14: N | N14: Minor Arterial | O14: 50 | P14: UA | Q14: A | R14: D | S14: D | U14: 1 | V14: 1.326259947 | W14: 1 | X14: D | Y14: 2W | Z14: WL | AA14: WR | AB14: 4 | AC14: =Service_Volume($P14,$W14,$X14,$Y14,Z14,AA14,AB14,R14,$AG$4,GSV_Database!C:V) -> 41790 | AD14: =IF($AG$4="DAILY",VLOOKUP(D14,Hist_Cur_CNTS!BG:BL,2,FALSE),IF($AG$4="PEAK HOUR TWO-WAY",VLOOKUP(D14,Hist_Cur_CNTS!BG:BL,3,FALSE),VLOOKUP(D14,Hist_Cur_CNTS!BG:BL,4,FALSE))) -> 28000 | AE14: =LOS($P14,$W14,$X14,$Y14,Z14,AA14,AB14,AD14,$AG$4,GSV_Database!C:V) -> C | AH14: 67.00167504 | AI14: 4 | AJ14: D | AK14: =Service_Volume($P14,$W14,$AL14,$Y14,AM14,AN14,AI14,AJ14,$AG$4,GSV_Database!C:V) -> 41790 | AL14: D | AM14: WL | AN14: WR | AO14: =IF($AG$4="Daily",VLOOKUP(D14,Hist_Cur_CNTS!BG:BL,5,FALSE),IF($AG$4="Peak Hour Two-Way",ROUND(VLOOKUP(D14,Hist_Cur_CNTS!BG:BL,5,FALSE) *BD14,0),ROUND(VLOOKUP(D14,Hist_Cur_CNTS!BG:BL,5,FALSE)*BD14*IF(Y14="1W",1,IF(P14="RDA",0.55,IF(OR(Q14="H",Q14="F"),VLOOKUP(P14&"_"&Q14,GSV_Database!AA:AB,2,FALSE),VLOOKUP(P14&"_"&W14&"_"&AI14,GSV_Database!AA:AB,2,FALSE)))),0))) -> 31400 | AP14: =LOS($P14,$W14,$AL14,$Y14,AM14,AN14,AI14,AO14,$AG$4,GSV_Database!C:V) -> C | AQ14: 4 | AR14: D | AS14: =Service_Volume($P14,$W14,$AT14,$Y14,AU14,AV14,AQ14,AR14,$AG$4,GSV_Database!C:V) -> 41790 | AT14: D | AU14: WL | AV14: WR | AW14: =IF($AG$4="Daily",VLOOKUP(D14,Hist_Cur_CNTS!BG:BL,6,FALSE),IF($AG$4="Peak Hour Two-Way",ROUND(VLOOKUP(D14,Hist_Cur_CNTS!BG:BL,6,FALSE) *BD14,0),ROUND(VLOOKUP(D14,Hist_Cur_CNTS!BG:BL,6,FALSE)*BD14*IF(Y14="1W",1,IF(P14="RDA",0.55,IF(OR(Q14="H",Q14="F"),VLOOKUP(P14&"_"&Q14,GSV_Database!AA:AB,2,FALSE),VLOOKUP(P14&"_"&W14&"_"&AQ14,GSV_Database!AA:AB,2,FALSE)))),0))) -> 40900 | AX14: =LOS($P14,$W14,$AT14,$Y14,AU14,AV14,AQ14,AW14,$AG$4,GSV_Database!C:V) -> D | AY14: =VLOOKUP(D14,Hist_Cur_CNTS!BG:BQ,11,FALSE) -> 40415 | AZ14: =VLOOKUP(D14,Hist_Cur_CNTS!BG:BQ,10,FALSE) -> 0.88 | BA14: 35565 | BB14: =IF($AG$4="Daily",BA14,IF($AG$4="Peak Hour Two-Way",ROUND(BA14 *BD14,0),ROUND(BA14*BD14*IF(Y14="1W",1,IF(P14="RDA",0.55,IF(OR(Q14="H",Q14="F"),VLOOKUP(P14&"_"&Q14,GSV_Database!AA:AB,2,FALSE),VLOOKUP(P14&"_"&W14&"_"&AQ14,GSV_Database!AA:AB,2,FALSE)))),0))) -> 35565 | BC14: =LOS($P14,$W14,$AT14,$Y14,AU14,AV14,AQ14,BB14,$AG$4,GSV_Database!C:V) -> C | BD14: =VLOOKUP(D14,Hist_Cur_CNTS!BG:BO,7,FALSE)/100 -> 0.09 | BE14: =VLOOKUP(D14,Hist_Cur_CNTS!BG:BO,8,FALSE)/100 -> 0.568 | BF14: =VLOOKUP(D14,Hist_Cur_CNTS!BG:BO,9,FALSE)/100 -> 0.038 | BG14: UA_S2WAC1_2W_4L_D_WL_WR | BH14: =IF($P14="U", VLOOKUP(Facility("TA",$W14,$X14,$Y14,$Z14,$AA14,$AB14),GSV_Database!C:X,22,FALSE),VLOOKUP(BG14,GSV_Database!C:X,22,FALSE)) -> 3 | BI14: 03001000-3.251-4.005 | BJ14: 3 | BK14: 0
B15: 03001000 | E15: SR 84 | F15: DAVIS BLVD | G15: Airport - Pulling Rd | H15: 1.005 | I15: Santa Barbara Blvd | J15: 4.005 | K15: 3 | L15: N | N15: Minor Arterial | O15: 45 | P15: UA | Q15: A | R15: D | S15: D | U15: =SUM(U13:U14) -> 4 | V15: 1.333333333 | W15: 1 | X15: D | Y15: 2W | Z15: WL | AA15: WR | AB15: 4 | AC15: =Service_Volume($P15,$W15,$X15,$Y15,Z15,AA15,AB15,R15,$AG$4,GSV_Database!C:V) -> 41790 | AD15: =wtavg(AD13:AD14,$K13:$K14) -> 25379.66667 | AE15: =LOS($P15,$W15,$X15,$Y15,Z15,AA15,AB15,AD15,$AG$4,GSV_Database!C:V) -> C | AH15: 60.73143495 | AI15: 4 | AJ15: D | AK15: =Service_Volume($P15,$W15,$AL15,$Y15,AM15,AN15,AI15,AJ15,$AG$4,GSV_Database!C:V) -> 41790 | AL15: D | AM15: WL | AN15: WR | AO15: =wtavg(AO13:AO14,$K13:$K14) -> 28405.33333 | AP15: =LOS($P15,$W15,$AL15,$Y15,AM15,AN15,AI15,AO15,$AG$4,GSV_Database!C:V) -> C | AQ15: 4 | AR15: D | AS15: =Service_Volume($P15,$W15,$AT15,$Y15,AU15,AV15,AQ15,AR15,$AG$4,GSV_Database!C:V) -> 41790 | AT15: D | AU15: WL | AV15: WR | AW15: =wtavg(AW13:AW14,$K13:$K14) -> 37081.8 | AX15: =LOS($P15,$W15,$AT15,$Y15,AU15,AV15,AQ15,AW15,$AG$4,GSV_Database!C:V) -> C | AY15: =wtavg(AY13:AY14,$K13:$K14) -> 44252.66533 | AZ15: =wtavg(AZ13:AZ14,$K13:$K14) -> 0.88 | BA15: 38942 | BB15: =wtavg(BB13:BB14,$K13:$K14) -> 38942.23533 | BC15: =LOS($P15,$W15,$AT15,$Y15,AU15,AV15,AQ15,BB15,$AG$4,GSV_Database!C:V) -> C | BD15: =wtavg(BD13:BD14,$K13:$K14) -> 0.09 | BE15: =wtavg(BE13:BE14,$K13:$K14) -> 0.568 | BF15: =wtavg(BF13:BF14,$K13:$K14) -> 0.035754 | BG15: UA_S2WAC1_2W_4L_D_WL_WR | BH15: =IF($P15="U", VLOOKUP(Facility("TA",$W15,$X15,$Y15,$Z15,$AA15,$AB15),GSV_Database!C:X,22,FALSE),VLOOKUP(BG15,GSV_Database!C:X,22,FALSE)) -> 3 | BI15: 03001000-1.005-4.005 | BJ15: 3 | BK15: 0
B16: 03001000 | D16: 30170 | E16: SR 84 | F16: DAVIS BLVD | G16: Santa Barbara Blvd | H16: 4.005 | I16: Wildwood Lakes Blvd | J16: 4.387 | K16: 0.382 | L16: N | N16: Minor Arterial | O16: 50 | P16: UA | Q16: A | R16: D | S16: D | V16: 0 | W16: 1 | X16: D | Y16: 2W | Z16: WL | AA16: WR | AB16: 5 | AC16: =Service_Volume($P16,$W16,$X16,$Y16,Z16,AA16,AB16,R16,$AG$4,GSV_Database!C:V) -> 52342 | AD16: =IF($AG$4="DAILY",VLOOKUP(D16,Hist_Cur_CNTS!BG:BL,2,FALSE),IF($AG$4="PEAK HOUR TWO-WAY",VLOOKUP(D16,Hist_Cur_CNTS!BG:BL,3,FALSE),VLOOKUP(D16,Hist_Cur_CNTS!BG:BL,4,FALSE))) -> 12800 | AE16: =LOS($P16,$W16,$X16,$Y16,Z16,AA16,AB16,AD16,$AG$4,GSV_Database!C:V) -> C | AH16: 24.45454893 | AI16: 5 | AJ16: D | AK16: =Service_Volume($P16,$W16,$AL16,$Y16,AM16,AN16,AI16,AJ16,$AG$4,GSV_Database!C:V) -> 52342 | AL16: D | AM16: WL | AN16: WR | AO16: =IF($AG$4="Daily",VLOOKUP(D16,Hist_Cur_CNTS!BG:BL,5,FALSE),IF($AG$4="Peak Hour Two-Way",ROUND(VLOOKUP(D16,Hist_Cur_CNTS!BG:BL,5,FALSE) *BD16,0),ROUND(VLOOKUP(D16,Hist_Cur_CNTS!BG:BL,5,FALSE)*BD16*IF(Y16="1W",1,IF(P16="RDA",0.55,IF(OR(Q16="H",Q16="F"),VLOOKUP(P16&"_"&Q16,GSV_Database!AA:AB,2,FALSE),VLOOKUP(P16&"_"&W16&"_"&AI16,GSV_Database!AA:AB,2,FALSE)))),0))) -> 14300 | AP16: =LOS($P16,$W16,$AL16,$Y16,AM16,AN16,AI16,AO16,$AG$4,GSV_Database!C:V) -> C | AQ16: 6 | AR16: D | AS16: =Service_Volume($P16,$W16,$AT16,$Y16,AU16,AV16,AQ16,AR16,$AG$4,GSV_Database!C:V) -> 62895 | AT16: D | AU16: WL | AV16: WR | AW16: =IF($AG$4="Daily",VLOOKUP(D16,Hist_Cur_CNTS!BG:BL,6,FALSE),IF($AG$4="Peak Hour Two-Way",ROUND(VLOOKUP(D16,Hist_Cur_CNTS!BG:BL,6,FALSE) *BD16,0),ROUND(VLOOKUP(D16,Hist_Cur_CNTS!BG:BL,6,FALSE)*BD16*IF(Y16="1W",1,IF(P16="RDA",0.55,IF(OR(Q16="H",Q16="F"),VLOOKUP(P16&"_"&Q16,GSV_Database!AA:AB,2,FALSE),VLOOKUP(P16&"_"&W16&"_"&AQ16,GSV_Database!AA:AB,2,FALSE)))),0))) -> 18700 | AX16: =LOS($P16,$W16,$AT16,$Y16,AU16,AV16,AQ16,AW16,$AG$4,GSV_Database!C:V) -> C | AY16: =VLOOKUP(D16,Hist_Cur_CNTS!BG:BQ,11,FALSE) -> 27528 | AZ16: =VLOOKUP(D16,Hist_Cur_CNTS!BG:BQ,10,FALSE) -> 0.88 | BA16: 24225 | BB16: =IF($AG$4="Daily",BA16,IF($AG$4="Peak Hour Two-Way",ROUND(BA16 *BD16,0),ROUND(BA16*BD16*IF(Y16="1W",1,IF(P16="RDA",0.55,IF(OR(Q16="H",Q16="F"),VLOOKUP(P16&"_"&Q16,GSV_Database!AA:AB,2,FALSE),VLOOKUP(P16&"_"&W16&"_"&AQ16,GSV_Database!AA:AB,2,FALSE)))),0))) -> 24225 | BC16: =LOS($P16,$W16,$AT16,$Y16,AU16,AV16,AQ16,BB16,$AG$4,GSV_Database!C:V) -> C | BD16: =VLOOKUP(D16,Hist_Cur_CNTS!BG:BO,7,FALSE)/100 -> 0.09 | BE16: =VLOOKUP(D16,Hist_Cur_CNTS!BG:BO,8,FALSE)/100 -> 0.568 | BF16: =VLOOKUP(D16,Hist_Cur_CNTS!BG:BO,9,FALSE)/100 -> 0.055 | BG16: UA_S2WAC1_2W_5L_D_WL_WR | BH16: =IF($P16="U", VLOOKUP(Facility("TA",$W16,$X16,$Y16,$Z16,$AA16,$AB16),GSV_Database!C:X,22,FALSE),VLOOKUP(BG16,GSV_Database!C:X,22,FALSE)) -> 3 | BI16: 03001000-4.005-4.387 | BJ16: 3 | BK16: 0
B17: 03001000 | D17: 30170 | E17: SR 84 | F17: DAVIS BLVD | G17: Wildwood Lakes Blvd | H17: 4.387 | I17: Naples Heritage Blvd | J17: 4.776 | K17: 0.389 | L17: N | N17: Minor Arterial | O17: 50 | P17: UA | Q17: A | R17: D | S17: D | V17: 0 | W17: 1 | X17: D | Y17: 2W | Z17: WL | AA17: WR | AB17: 6 | AC17: =Service_Volume($P17,$W17,$X17,$Y17,Z17,AA17,AB17,R17,$AG$4,GSV_Database!C:V) -> 62895 | AD17: =IF($AG$4="DAILY",VLOOKUP(D17,Hist_Cur_CNTS!BG:BL,2,FALSE),IF($AG$4="PEAK HOUR TWO-WAY",VLOOKUP(D17,Hist_Cur_CNTS!BG:BL,3,FALSE),VLOOKUP(D17,Hist_Cur_CNTS!BG:BL,4,FALSE))) -> 12800 | AE17: =LOS($P17,$W17,$X17,$Y17,Z17,AA17,AB17,AD17,$AG$4,GSV_Database!C:V) -> C | AH17: 20.35137928 | AI17: 6 | AJ17: D | AK17: =Service_Volume($P17,$W17,$AL17,$Y17,AM17,AN17,AI17,AJ17,$AG$4,GSV_Database!C:V) -> 62895 | AL17: D | AM17: WL | AN17: WR | AO17: =IF($AG$4="Daily",VLOOKUP(D17,Hist_Cur_CNTS!BG:BL,5,FALSE),IF($AG$4="Peak Hour Two-Way",ROUND(VLOOKUP(D17,Hist_Cur_CNTS!BG:BL,5,FALSE) *BD17,0),ROUND(VLOOKUP(D17,Hist_Cur_CNTS!BG:BL,5,FALSE)*BD17*IF(Y17="1W",1,IF(P17="RDA",0.55,IF(OR(Q17="H",Q17="F"),VLOOKUP(P17&"_"&Q17,GSV_Database!AA:AB,2,FALSE),VLOOKUP(P17&"_"&W17&"_"&AI17,GSV_Database!AA:AB,2,FALSE)))),0))) -> 14300 | AP17: =LOS($P17,$W17,$AL17,$Y17,AM17,AN17,AI17,AO17,$AG$4,GSV_Database!C:V) -> C | AQ17: 6 | AR17: D | AS17: =Service_Volume($P17,$W17,$AT17,$Y17,AU17,AV17,AQ17,AR17,$AG$4,GSV_Database!C:V) -> 62895 | AT17: D | AU17: WL | AV17: WR | AW17: =IF($AG$4="Daily",VLOOKUP(D17,Hist_Cur_CNTS!BG:BL,6,FALSE),IF($AG$4="Peak Hour Two-Way",ROUND(VLOOKUP(D17,Hist_Cur_CNTS!BG:BL,6,FALSE) *BD17,0),ROUND(VLOOKUP(D17,Hist_Cur_CNTS!BG:BL,6,FALSE)*BD17*IF(Y17="1W",1,IF(P17="RDA",0.55,IF(OR(Q17="H",Q17="F"),VLOOKUP(P17&"_"&Q17,GSV_Database!AA:AB,2,FALSE),VLOOKUP(P17&"_"&W17&"_"&AQ17,GSV_Database!AA:AB,2,FALSE)))),0))) -> 18700 | AX17: =LOS($P17,$W17,$AT17,$Y17,AU17,AV17,AQ17,AW17,$AG$4,GSV_Database!C:V) -> C | AY17: =VLOOKUP(D17,Hist_Cur_CNTS!BG:BQ,11,FALSE) -> 27528 | AZ17: =VLOOKUP(D17,Hist_Cur_CNTS!BG:BQ,10,FALSE) -> 0.88 | BA17: 24225 | BB17: =IF($AG$4="Daily",BA17,IF($AG$4="Peak Hour Two-Way",ROUND(BA17 *BD17,0),ROUND(BA17*BD17*IF(Y17="1W",1,IF(P17="RDA",0.55,IF(OR(Q17="H",Q17="F"),VLOOKUP(P17&"_"&Q17,GSV_Database!AA:AB,2,FALSE),VLOOKUP(P17&"_"&W17&"_"&AQ17,GSV_Database!AA:AB,2,FALSE)))),0))) -> 24225 | BC17: =LOS($P17,$W17,$AT17,$Y17,AU17,AV17,AQ17,BB17,$AG$4,GSV_Database!C:V) -> C | BD17: =VLOOKUP(D17,Hist_Cur_CNTS!BG:BO,7,FALSE)/100 -> 0.09 | BE17: =VLOOKUP(D17,Hist_Cur_CNTS!BG:BO,8,FALSE)/100 -> 0.568 | BF17: =VLOOKUP(D17,Hist_Cur_CNTS!BG:BO,9,FALSE)/100 -> 0.055 | BG17: UA_S2WAC1_2W_6L_D_WL_WR | BH17: =IF($P17="U", VLOOKUP(Facility("TA",$W17,$X17,$Y17,$Z17,$AA17,$AB17),GSV_Database!C:X,22,FALSE),VLOOKUP(BG17,GSV_Database!C:X,22,FALSE)) -> 3 | BI17: 03001000-4.387-4.776 | BJ17: 3 | BK17: 0
B18: 03001000 | D18: 30170 | E18: SR 84 | F18: DAVIS BLVD | G18: Naples Heritage Blvd | H18: 4.776 | I18: CR 856 (Radio Rd) | J18: 5.77 | K18: 0.994 | L18: N | N18: Minor Arterial | O18: 50 | P18: UA | Q18: A | R18: D | S18: D | U18: 1 | V18: 1.006036217 | W18: 1 | X18: D | Y18: 2W | Z18: WL | AA18: WR | AB18: 6 | AC18: =Service_Volume($P18,$W18,$X18,$Y18,Z18,AA18,AB18,R18,$AG$4,GSV_Database!C:V) -> 62895 | AD18: =IF($AG$4="DAILY",VLOOKUP(D18,Hist_Cur_CNTS!BG:BL,2,FALSE),IF($AG$4="PEAK HOUR TWO-WAY",VLOOKUP(D18,Hist_Cur_CNTS!BG:BL,3,FALSE),VLOOKUP(D18,Hist_Cur_CNTS!BG:BL,4,FALSE))) -> 12800 | AE18: =LOS($P18,$W18,$X18,$Y18,Z18,AA18,AB18,AD18,$AG$4,GSV_Database!C:V) -> C | AH18: 20.35137928 | AI18: 6 | AJ18: D | AK18: =Service_Volume($P18,$W18,$AL18,$Y18,AM18,AN18,AI18,AJ18,$AG$4,GSV_Database!C:V) -> 62895 | AL18: D | AM18: WL | AN18: WR | AO18: =IF($AG$4="Daily",VLOOKUP(D18,Hist_Cur_CNTS!BG:BL,5,FALSE),IF($AG$4="Peak Hour Two-Way",ROUND(VLOOKUP(D18,Hist_Cur_CNTS!BG:BL,5,FALSE) *BD18,0),ROUND(VLOOKUP(D18,Hist_Cur_CNTS!BG:BL,5,FALSE)*BD18*IF(Y18="1W",1,IF(P18="RDA",0.55,IF(OR(Q18="H",Q18="F"),VLOOKUP(P18&"_"&Q18,GSV_Database!AA:AB,2,FALSE),VLOOKUP(P18&"_"&W18&"_"&AI18,GSV_Database!AA:AB,2,FALSE)))),0))) -> 14300 | AP18: =LOS($P18,$W18,$AL18,$Y18,AM18,AN18,AI18,AO18,$AG$4,GSV_Database!C:V) -> C | AQ18: 6 | AR18: D | AS18: =Service_Volume($P18,$W18,$AT18,$Y18,AU18,AV18,AQ18,AR18,$AG$4,GSV_Database!C:V) -> 62895 | AT18: D | AU18: WL | AV18: WR | AW18: =IF($AG$4="Daily",VLOOKUP(D18,Hist_Cur_CNTS!BG:BL,6,FALSE),IF($AG$4="Peak Hour Two-Way",ROUND(VLOOKUP(D18,Hist_Cur_CNTS!BG:BL,6,FALSE) *BD18,0),ROUND(VLOOKUP(D18,Hist_Cur_CNTS!BG:BL,6,FALSE)*BD18*IF(Y18="1W",1,IF(P18="RDA",0.55,IF(OR(Q18="H",Q18="F"),VLOOKUP(P18&"_"&Q18,GSV_Database!AA:AB,2,FALSE),VLOOKUP(P18&"_"&W18&"_"&AQ18,GSV_Database!AA:AB,2,FALSE)))),0))) -> 18700 | AX18: =LOS($P18,$W18,$AT18,$Y18,AU18,AV18,AQ18,AW18,$AG$4,GSV_Database!C:V) -> C | AY18: =VLOOKUP(D18,Hist_Cur_CNTS!BG:BQ,11,FALSE) -> 27528 | AZ18: =VLOOKUP(D18,Hist_Cur_CNTS!BG:BQ,10,FALSE) -> 0.88 | BA18: 24225 | BB18: =IF($AG$4="Daily",BA18,IF($AG$4="Peak Hour Two-Way",ROUND(BA18 *BD18,0),ROUND(BA18*BD18*IF(Y18="1W",1,IF(P18="RDA",0.55,IF(OR(Q18="H",Q18="F"),VLOOKUP(P18&"_"&Q18,GSV_Database!AA:AB,2,FALSE),VLOOKUP(P18&"_"&W18&"_"&AQ18,GSV_Database!AA:AB,2,FALSE)))),0))) -> 24225 | BC18: =LOS($P18,$W18,$AT18,$Y18,AU18,AV18,AQ18,BB18,$AG$4,GSV_Database!C:V) -> C | BD18: =VLOOKUP(D18,Hist_Cur_CNTS!BG:BO,7,FALSE)/100 -> 0.09 | BE18: =VLOOKUP(D18,Hist_Cur_CNTS!BG:BO,8,FALSE)/100 -> 0.568 | BF18: =VLOOKUP(D18,Hist_Cur_CNTS!BG:BO,9,FALSE)/100 -> 0.055 | BG18: UA_S2WAC1_2W_6L_D_WL_WR | BH18: =IF($P18="U", VLOOKUP(Facility("TA",$W18,$X18,$Y18,$Z18,$AA18,$AB18),GSV_Database!C:X,22,FALSE),VLOOKUP(BG18,GSV_Database!C:X,22,FALSE)) -> 3 | BI18: 03001000-4.776-5.77 | BJ18: 3 | BK18: 0
B19: 03001000 | E19: SR 84 | F19: DAVIS BLVD | G19: Santa Barbara Blvd | H19: 4.005 | I19: CR 856 (Radio Rd) | J19: 5.77 | K19: 1.765 | L19: N | N19: Minor Arterial | O19: 50 | P19: UA | Q19: A | R19: D | S19: D | U19: =SUM(U16:U18) -> 1 | V19: 0.566572238 | W19: 1 | X19: D | Y19: 2W | Z19: WL | AA19: WR | AB19: 6 | AC19: =Service_Volume($P19,$W19,$X19,$Y19,Z19,AA19,AB19,R19,$AG$4,GSV_Database!C:V) -> 62895 | AD19: =wtavg(AD16:AD18,$K16:$K18) -> 12800 | AE19: =LOS($P19,$W19,$X19,$Y19,Z19,AA19,AB19,AD19,$AG$4,GSV_Database!C:V) -> C | AH19: 20.35137928 | AI19: 6 | AJ19: D | AK19: =Service_Volume($P19,$W19,$AL19,$Y19,AM19,AN19,AI19,AJ19,$AG$4,GSV_Database!C:V) -> 62895 | AL19: D | AM19: WL | AN19: WR | AO19: =wtavg(AO17:AO18,$K17:$K18) -> 14300 | AP19: =LOS($P19,$W19,$AL19,$Y19,AM19,AN19,AI19,AO19,$AG$4,GSV_Database!C:V) -> C | AQ19: 6 | AR19: D | AS19: =Service_Volume($P19,$W19,$AT19,$Y19,AU19,AV19,AQ19,AR19,$AG$4,GSV_Database!C:V) -> 62895 | AT19: D | AU19: WL | AV19: WR | AW19: =wtavg(AW16:AW18,$K16:$K18) -> 18700 | AX19: =LOS($P19,$W19,$AT19,$Y19,AU19,AV19,AQ19,AW19,$AG$4,GSV_Database!C:V) -> C | AY19: =wtavg(AY16:AY18,$K16:$K18) -> 27528 | AZ19: =wtavg(AZ16:AZ18,$K16:$K18) -> 0.88 | BA19: 24225 | BB19: =wtavg(BB16:BB18,$K16:$K18) -> 24225 | BC19: =LOS($P19,$W19,$AT19,$Y19,AU19,AV19,AQ19,BB19,$AG$4,GSV_Database!C:V) -> C | BD19: =wtavg(BD16:BD18,$K16:$K18) -> 0.09 | BE19: =wtavg(BE16:BE18,$K16:$K18) -> 0.568 | BF19: =wtavg(BF16:BF18,$K16:$K18) -> 0.055 | BG19: UA_S2WAC1_2W_6L_D_WL_WR | BH19: =IF($P19="U", VLOOKUP(Facility("TA",$W19,$X19,$Y19,$Z19,$AA19,$AB19),GSV_Database!C:X,22,FALSE),VLOOKUP(BG19,GSV_Database!C:X,22,FALSE)) -> 3 | BI19: 03001000-4.005-5.77 | BJ19: 3 | BK19: 0
B20: 03001000 | D20: 30193 | E20: SR 84 | F20: DAVIS BLVD | G20: CR 856 (Radio Rd) | H20: 5.77 | I20: CR 951/SR 951 | J20: 6.464 | K20: 0.694 | L20: N | N20: Minor Arterial | O20: 45 | P20: UA | Q20: A | R20: D | S20: D | U20: 1 | V20: 1.44092219 | W20: 1 | X20: D | Y20: 2W | Z20: WL | AA20: WR | AB20: 6 | AC20: =Service_Volume($P20,$W20,$X20,$Y20,Z20,AA20,AB20,R20,$AG$4,GSV_Database!C:V) -> 62895 | AD20: =IF($AG$4="DAILY",VLOOKUP(D20,Hist_Cur_CNTS!BG:BL,2,FALSE),IF($AG$4="PEAK HOUR TWO-WAY",VLOOKUP(D20,Hist_Cur_CNTS!BG:BL,3,FALSE),VLOOKUP(D20,Hist_Cur_CNTS!BG:BL,4,FALSE))) -> 22000 | AE20: =LOS($P20,$W20,$X20,$Y20,Z20,AA20,AB20,AD20,$AG$4,GSV_Database!C:V) -> C | AH20: 34.97893314 | AI20: 6 | AJ20: D | AK20: =Service_Volume($P20,$W20,$AL20,$Y20,AM20,AN20,AI20,AJ20,$AG$4,GSV_Database!C:V) -> 62895 | AL20: D | AM20: WL | AN20: WR | AO20: =IF($AG$4="Daily",VLOOKUP(D20,Hist_Cur_CNTS!BG:BL,5,FALSE),IF($AG$4="Peak Hour Two-Way",ROUND(VLOOKUP(D20,Hist_Cur_CNTS!BG:BL,5,FALSE) *BD20,0),ROUND(VLOOKUP(D20,Hist_Cur_CNTS!BG:BL,5,FALSE)*BD20*IF(Y20="1W",1,IF(P20="RDA",0.55,IF(OR(Q20="H",Q20="F"),VLOOKUP(P20&"_"&Q20,GSV_Database!AA:AB,2,FALSE),VLOOKUP(P20&"_"&W20&"_"&AI20,GSV_Database!AA:AB,2,FALSE)))),0))) -> 24600 | AP20: =LOS($P20,$W20,$AL20,$Y20,AM20,AN20,AI20,AO20,$AG$4,GSV_Database!C:V) -> C | AQ20: 6 | AR20: D | AS20: =Service_Volume($P20,$W20,$AT20,$Y20,AU20,AV20,AQ20,AR20,$AG$4,GSV_Database!C:V) -> 62895 | AT20: D | AU20: WL | AV20: WR | AW20: =IF($AG$4="Daily",VLOOKUP(D20,Hist_Cur_CNTS!BG:BL,6,FALSE),IF($AG$4="Peak Hour Two-Way",ROUND(VLOOKUP(D20,Hist_Cur_CNTS!BG:BL,6,FALSE) *BD20,0),ROUND(VLOOKUP(D20,Hist_Cur_CNTS!BG:BL,6,FALSE)*BD20*IF(Y20="1W",1,IF(P20="RDA",0.55,IF(OR(Q20="H",Q20="F"),VLOOKUP(P20&"_"&Q20,GSV_Database!AA:AB,2,FALSE),VLOOKUP(P20&"_"&W20&"_"&AQ20,GSV_Database!AA:AB,2,FALSE)))),0))) -> 32100 | AX20: =LOS($P20,$W20,$AT20,$Y20,AU20,AV20,AQ20,AW20,$AG$4,GSV_Database!C:V) -> C | AY20: =VLOOKUP(D20,Hist_Cur_CNTS!BG:BQ,11,FALSE) -> 37737 | AZ20: =VLOOKUP(D20,Hist_Cur_CNTS!BG:BQ,10,FALSE) -> 0.88 | BA20: 33209 | BB20: =IF($AG$4="Daily",BA20,IF($AG$4="Peak Hour Two-Way",ROUND(BA20 *BD20,0),ROUND(BA20*BD20*IF(Y20="1W",1,IF(P20="RDA",0.55,IF(OR(Q20="H",Q20="F"),VLOOKUP(P20&"_"&Q20,GSV_Database!AA:AB,2,FALSE),VLOOKUP(P20&"_"&W20&"_"&AQ20,GSV_Database!AA:AB,2,FALSE)))),0))) -> 33209 | BC20: =LOS($P20,$W20,$AT20,$Y20,AU20,AV20,AQ20,BB20,$AG$4,GSV_Database!C:V) -> C | BD20: =VLOOKUP(D20,Hist_Cur_CNTS!BG:BO,7,FALSE)/100 -> 0.09 | BE20: =VLOOKUP(D20,Hist_Cur_CNTS!BG:BO,8,FALSE)/100 -> 0.568 | BF20: =VLOOKUP(D20,Hist_Cur_CNTS!BG:BO,9,FALSE)/100 -> 0.053 | BG20: UA_S2WAC1_2W_6L_D_WL_WR | BH20: =IF($P20="U", VLOOKUP(Facility("TA",$W20,$X20,$Y20,$Z20,$AA20,$AB20),GSV_Database!C:X,22,FALSE),VLOOKUP(BG20,GSV_Database!C:X,22,FALSE)) -> 3 | BI20: 03001000-5.77-6.464 | BJ20: 3 | BK20: 0
B21: 03010000 | D21: 30179 | E21: US 41 | F21: TAMIAMI TRAIL | G21: Lee County Line | H21: 0 | I21: CR 887 (Old US 41) | J21: 1.299 | K21: 1.299 | L21: N | N21: Principal Arterial-other | O21: 55 | P21: UA | Q21: A | R21: D | S21: E | U21: 1 | V21: 0.7698229407 | W21: 1 | X21: D | Y21: 2W | Z21: WL | AA21: WR | AB21: 6 | AC21: =Service_Volume($P21,$W21,$X21,$Y21,Z21,AA21,AB21,R21,$AG$4,GSV_Database!C:V) -> 62895 | AD21: =IF($AG$4="DAILY",VLOOKUP(D21,Hist_Cur_CNTS!BG:BL,2,FALSE),IF($AG$4="PEAK HOUR TWO-WAY",VLOOKUP(D21,Hist_Cur_CNTS!BG:BL,3,FALSE),VLOOKUP(D21,Hist_Cur_CNTS!BG:BL,4,FALSE))) -> 39000 | AE21: =LOS($P21,$W21,$X21,$Y21,Z21,AA21,AB21,AD21,$AG$4,GSV_Database!C:V) -> C | AH21: 62.00810875 | AI21: 6 | AJ21: D | AK21: =Service_Volume($P21,$W21,$AL21,$Y21,AM21,AN21,AI21,AJ21,$AG$4,GSV_Database!C:V) -> 62895 | AL21: D | AM21: WL | AN21: WR | AO21: =IF($AG$4="Daily",VLOOKUP(D21,Hist_Cur_CNTS!BG:BL,5,FALSE),IF($AG$4="Peak Hour Two-Way",ROUND(VLOOKUP(D21,Hist_Cur_CNTS!BG:BL,5,FALSE) *BD21,0),ROUND(VLOOKUP(D21,Hist_Cur_CNTS!BG:BL,5,FALSE)*BD21*IF(Y21="1W",1,IF(P21="RDA",0.55,IF(OR(Q21="H",Q21="F"),VLOOKUP(P21&"_"&Q21,GSV_Database!AA:AB,2,FALSE),VLOOKUP(P21&"_"&W21&"_"&AI21,GSV_Database!AA:AB,2,FALSE)))),0))) -> 43700 | AP21: =LOS($P21,$W21,$AL21,$Y21,AM21,AN21,AI21,AO21,$AG$4,GSV_Database!C:V) -> C | AQ21: 6 | AR21: D | AS21: =Service_Volume($P21,$W21,$AT21,$Y21,AU21,AV21,AQ21,AR21,$AG$4,GSV_Database!C:V) -> 62895 | AT21: D | AU21: WL | AV21: WR | AW21: =IF($AG$4="Daily",VLOOKUP(D21,Hist_Cur_CNTS!BG:BL,6,FALSE),IF($AG$4="Peak Hour Two-Way",ROUND(VLOOKUP(D21,Hist_Cur_CNTS!BG:BL,6,FALSE) *BD21,0),ROUND(VLOOKUP(D21,Hist_Cur_CNTS!BG:BL,6,FALSE)*BD21*IF(Y21="1W",1,IF(P21="RDA",0.55,IF(OR(Q21="H",Q21="F"),VLOOKUP(P21&"_"&Q21,GSV_Database!AA:AB,2,FALSE),VLOOKUP(P21&"_"&W21&"_"&AQ21,GSV_Database!AA:AB,2,FALSE)))),0))) -> 56900 | AX21: =LOS($P21,$W21,$AT21,$Y21,AU21,AV21,AQ21,AW21,$AG$4,GSV_Database!C:V) -> C | AY21: =VLOOKUP(D21,Hist_Cur_CNTS!BG:BQ,11,FALSE) -> 66812 | AZ21: =VLOOKUP(D21,Hist_Cur_CNTS!BG:BQ,10,FALSE) -> 0.86 | BA21: 57458 | BB21: =IF($AG$4="Daily",BA21,IF($AG$4="Peak Hour Two-Way",ROUND(BA21 *BD21,0),ROUND(BA21*BD21*IF(Y21="1W",1,IF(P21="RDA",0.55,IF(OR(Q21="H",Q21="F"),VLOOKUP(P21&"_"&Q21,GSV_Database!AA:AB,2,FALSE),VLOOKUP(P21&"_"&W21&"_"&AQ21,GSV_Database!AA:AB,2,FALSE)))),0))) -> 57458 | BC21: =LOS($P21,$W21,$AT21,$Y21,AU21,AV21,AQ21,BB21,$AG$4,GSV_Database!C:V) -> C | BD21: =VLOOKUP(D21,Hist_Cur_CNTS!BG:BO,7,FALSE)/100 -> 0.09 | BE21: =VLOOKUP(D21,Hist_Cur_CNTS!BG:BO,8,FALSE)/100 -> 0.562 | BF21: =VLOOKUP(D21,Hist_Cur_CNTS!BG:BO,9,FALSE)/100 -> 0.029 | BG21: UA_S2WAC1_2W_6L_D_WL_WR | BH21: =IF($P21="U", VLOOKUP(Facility("TA",$W21,$X21,$Y21,$Z21,$AA21,$AB21),GSV_Database!C:X,22,FALSE),VLOOKUP(BG21,GSV_Database!C:X,22,FALSE)) -> 3 | BI21: 03010000-0-1.299 | BJ21: 3 | BK21: 0
B22: 03010000 | D22: 30018 | E22: US 41 | F22: TAMIAMI TRAIL | G22: CR 887 (Old US 41) | H22: 1.299 | I22: CR 846 (Immokalee Rd) | J22: 3.041 | K22: 1.742 | L22: N | N22: Principal Arterial-other | O22: 55 | P22: UA | Q22: A | R22: D | S22: E | U22: 4 | V22: 2.296211251 | W22: 1 | X22: D | Y22: 2W | Z22: WL | AA22: WR | AB22: 6 | AC22: =Service_Volume($P22,$W22,$X22,$Y22,Z22,AA22,AB22,R22,$AG$4,GSV_Database!C:V) -> 62895 | AD22: =IF($AG$4="DAILY",VLOOKUP(D22,Hist_Cur_CNTS!BG:BL,2,FALSE),IF($AG$4="PEAK HOUR TWO-WAY",VLOOKUP(D22,Hist_Cur_CNTS!BG:BL,3,FALSE),VLOOKUP(D22,Hist_Cur_CNTS!BG:BL,4,FALSE))) -> 56500 | AE22: =LOS($P22,$W22,$X22,$Y22,Z22,AA22,AB22,AD22,$AG$4,GSV_Database!C:V) -> C | AH22: 89.83226012 | AI22: 6 | AJ22: D | AK22: =Service_Volume($P22,$W22,$AL22,$Y22,AM22,AN22,AI22,AJ22,$AG$4,GSV_Database!C:V) -> 62895 | AL22: D | AM22: WL | AN22: WR | AO22: =IF($AG$4="Daily",VLOOKUP(D22,Hist_Cur_CNTS!BG:BL,5,FALSE),IF($AG$4="Peak Hour Two-Way",ROUND(VLOOKUP(D22,Hist_Cur_CNTS!BG:BL,5,FALSE) *BD22,0),ROUND(VLOOKUP(D22,Hist_Cur_CNTS!BG:BL,5,FALSE)*BD22*IF(Y22="1W",1,IF(P22="RDA",0.55,IF(OR(Q22="H",Q22="F"),VLOOKUP(P22&"_"&Q22,GSV_Database!AA:AB,2,FALSE),VLOOKUP(P22&"_"&W22&"_"&AI22,GSV_Database!AA:AB,2,FALSE)))),0))) -> 63300 | AP22: =LOS($P22,$W22,$AL22,$Y22,AM22,AN22,AI22,AO22,$AG$4,GSV_Database!C:V) -> F | AQ22: 6 | AR22: D | AS22: =Service_Volume($P22,$W22,$AT22,$Y22,AU22,AV22,AQ22,AR22,$AG$4,GSV_Database!C:V) -> 62895 | AT22: D | AU22: WL | AV22: WR | AW22: =IF($AG$4="Daily",VLOOKUP(D22,Hist_Cur_CNTS!BG:BL,6,FALSE),IF($AG$4="Peak Hour Two-Way",ROUND(VLOOKUP(D22,Hist_Cur_CNTS!BG:BL,6,FALSE) *BD22,0),ROUND(VLOOKUP(D22,Hist_Cur_CNTS!BG:BL,6,FALSE)*BD22*IF(Y22="1W",1,IF(P22="RDA",0.55,IF(OR(Q22="H",Q22="F"),VLOOKUP(P22&"_"&Q22,GSV_Database!AA:AB,2,FALSE),VLOOKUP(P22&"_"&W22&"_"&AQ22,GSV_Database!AA:AB,2,FALSE)))),0))) -> 82500 | AX22: =LOS($P22,$W22,$AT22,$Y22,AU22,AV22,AQ22,AW22,$AG$4,GSV_Database!C:V) -> F | AY22: =VLOOKUP(D22,Hist_Cur_CNTS!BG:BQ,11,FALSE) -> 85074 | AZ22: =VLOOKUP(D22,Hist_Cur_CNTS!BG:BQ,10,FALSE) -> 0.86 | BA22: 73164 | BB22: =IF($AG$4="Daily",BA22,IF($AG$4="Peak Hour Two-Way",ROUND(BA22 *BD22,0),ROUND(BA22*BD22*IF(Y22="1W",1,IF(P22="RDA",0.55,IF(OR(Q22="H",Q22="F"),VLOOKUP(P22&"_"&Q22,GSV_Database!AA:AB,2,FALSE),VLOOKUP(P22&"_"&W22&"_"&AQ22,GSV_Database!AA:AB,2,FALSE)))),0))) -> 73164 | BC22: =LOS($P22,$W22,$AT22,$Y22,AU22,AV22,AQ22,BB22,$AG$4,GSV_Database!C:V) -> F | BD22: =VLOOKUP(D22,Hist_Cur_CNTS!BG:BO,7,FALSE)/100 -> 0.09 | BE22: =VLOOKUP(D22,Hist_Cur_CNTS!BG:BO,8,FALSE)/100 -> 0.562 | BF22: =VLOOKUP(D22,Hist_Cur_CNTS!BG:BO,9,FALSE)/100 -> 0.029 | BG22: UA_S2WAC1_2W_6L_D_WL_WR | BH22: =IF($P22="U", VLOOKUP(Facility("TA",$W22,$X22,$Y22,$Z22,$AA22,$AB22),GSV_Database!C:X,22,FALSE),VLOOKUP(BG22,GSV_Database!C:X,22,FALSE)) -> 3 | BI22: 03010000-1.299-3.041 | BJ22: 3 | BK22: 0
B23: 03010000 | D23: 30192 | E23: US 41 | F23: TAMIAMI TRAIL | G23: CR 846 (Immokalee Rd) | H23: 3.041 | I23: CR 862 (Vanderbilt Beach Rd) | J23: 4.553 | K23: 1.512 | L23: N | N23: Principal Arterial-other | O23: 50 | P23: UA | Q23: A | R23: D | S23: E | U23: 4 | V23: 2.645502646 | W23: 1 | X23: D | Y23: 2W | Z23: WL | AA23: WR | AB23: 6 | AC23: =Service_Volume($P23,$W23,$X23,$Y23,Z23,AA23,AB23,R23,$AG$4,GSV_Database!C:V) -> 62895 | AD23: =IF($AG$4="DAILY",VLOOKUP(D23,Hist_Cur_CNTS!BG:BL,2,FALSE),IF($AG$4="PEAK HOUR TWO-WAY",VLOOKUP(D23,Hist_Cur_CNTS!BG:BL,3,FALSE),VLOOKUP(D23,Hist_Cur_CNTS!BG:BL,4,FALSE))) -> 47000 | AE23: =LOS($P23,$W23,$X23,$Y23,Z23,AA23,AB23,AD23,$AG$4,GSV_Database!C:V) -> C | AH23: 74.7277208 | AI23: 6 | AJ23: D | AK23: =Service_Volume($P23,$W23,$AL23,$Y23,AM23,AN23,AI23,AJ23,$AG$4,GSV_Database!C:V) -> 62895 | AL23: D | AM23: WL | AN23: WR | AO23: =IF($AG$4="Daily",VLOOKUP(D23,Hist_Cur_CNTS!BG:BL,5,FALSE),IF($AG$4="Peak Hour Two-Way",ROUND(VLOOKUP(D23,Hist_Cur_CNTS!BG:BL,5,FALSE) *BD23,0),ROUND(VLOOKUP(D23,Hist_Cur_CNTS!BG:BL,5,FALSE)*BD23*IF(Y23="1W",1,IF(P23="RDA",0.55,IF(OR(Q23="H",Q23="F"),VLOOKUP(P23&"_"&Q23,GSV_Database!AA:AB,2,FALSE),VLOOKUP(P23&"_"&W23&"_"&AI23,GSV_Database!AA:AB,2,FALSE)))),0))) -> 52600 | AP23: =LOS($P23,$W23,$AL23,$Y23,AM23,AN23,AI23,AO23,$AG$4,GSV_Database!C:V) -> C | AQ23: 6 | AR23: D | AS23: =Service_Volume($P23,$W23,$AT23,$Y23,AU23,AV23,AQ23,AR23,$AG$4,GSV_Database!C:V) -> 62895 | AT23: D | AU23: WL | AV23: WR | AW23: =IF($AG$4="Daily",VLOOKUP(D23,Hist_Cur_CNTS!BG:BL,6,FALSE),IF($AG$4="Peak Hour Two-Way",ROUND(VLOOKUP(D23,Hist_Cur_CNTS!BG:BL,6,FALSE) *BD23,0),ROUND(VLOOKUP(D23,Hist_Cur_CNTS!BG:BL,6,FALSE)*BD23*IF(Y23="1W",1,IF(P23="RDA",0.55,IF(OR(Q23="H",Q23="F"),VLOOKUP(P23&"_"&Q23,GSV_Database!AA:AB,2,FALSE),VLOOKUP(P23&"_"&W23&"_"&AQ23,GSV_Database!AA:AB,2,FALSE)))),0))) -> 68600 | AX23: =LOS($P23,$W23,$AT23,$Y23,AU23,AV23,AQ23,AW23,$AG$4,GSV_Database!C:V) -> F | AY23: =VLOOKUP(D23,Hist_Cur_CNTS!BG:BQ,11,FALSE) -> 68710 | AZ23: =VLOOKUP(D23,Hist_Cur_CNTS!BG:BQ,10,FALSE) -> 0.86 | BA23: 59091 | BB23: =IF($AG$4="Daily",BA23,IF($AG$4="Peak Hour Two-Way",ROUND(BA23 *BD23,0),ROUND(BA23*BD23*IF(Y23="1W",1,IF(P23="RDA",0.55,IF(OR(Q23="H",Q23="F"),VLOOKUP(P23&"_"&Q23,GSV_Database!AA:AB,2,FALSE),VLOOKUP(P23&"_"&W23&"_"&AQ23,GSV_Database!AA:AB,2,FALSE)))),0))) -> 59091 | BC23: =LOS($P23,$W23,$AT23,$Y23,AU23,AV23,AQ23,BB23,$AG$4,GSV_Database!C:V) -> C | BD23: =VLOOKUP(D23,Hist_Cur_CNTS!BG:BO,7,FALSE)/100 -> 0.09 | BE23: =VLOOKUP(D23,Hist_Cur_CNTS!BG:BO,8,FALSE)/100 -> 0.562 | BF23: =VLOOKUP(D23,Hist_Cur_CNTS!BG:BO,9,FALSE)/100 -> 0.03 | BG23: UA_S2WAC1_2W_6L_D_WL_WR | BH23: =IF($P23="U", VLOOKUP(Facility("TA",$W23,$X23,$Y23,$Z23,$AA23,$AB23),GSV_Database!C:X,22,FALSE),VLOOKUP(BG23,GSV_Database!C:X,22,FALSE)) -> 3 | BI23: 03010000-3.041-4.553 | BJ23: 3 | BK23: 0
B24: 03010000 | D24: 30017 | E24: US 41 | F24: TAMIAMI TRAIL | G24: CR 862 (Vanderbilt Beach Rd) | H24: 4.553 | I24: Gulf Park Dr | J24: 5.824 | K24: 1.271 | L24: N | N24: Principal Arterial-other | O24: 55 | P24: UA | Q24: A | R24: D | S24: E | U24: 1 | V24: 0.7867820614 | W24: 1 | X24: D | Y24: 2W | Z24: WL | AA24: WR | AB24: 6 | AC24: =Service_Volume($P24,$W24,$X24,$Y24,Z24,AA24,AB24,R24,$AG$4,GSV_Database!C:V) -> 62895 | AD24: =IF($AG$4="DAILY",VLOOKUP(D24,Hist_Cur_CNTS!BG:BL,2,FALSE),IF($AG$4="PEAK HOUR TWO-WAY",VLOOKUP(D24,Hist_Cur_CNTS!BG:BL,3,FALSE),VLOOKUP(D24,Hist_Cur_CNTS!BG:BL,4,FALSE))) -> 40500 | AE24: =LOS($P24,$W24,$X24,$Y24,Z24,AA24,AB24,AD24,$AG$4,GSV_Database!C:V) -> C | AH24: 64.39303601 | AI24: 6 | AJ24: D | AK24: =Service_Volume($P24,$W24,$AL24,$Y24,AM24,AN24,AI24,AJ24,$AG$4,GSV_Database!C:V) -> 62895 | AL24: D | AM24: WL | AN24: WR | AO24: =IF($AG$4="Daily",VLOOKUP(D24,Hist_Cur_CNTS!BG:BL,5,FALSE),IF($AG$4="Peak Hour Two-Way",ROUND(VLOOKUP(D24,Hist_Cur_CNTS!BG:BL,5,FALSE) *BD24,0),ROUND(VLOOKUP(D24,Hist_Cur_CNTS!BG:BL,5,FALSE)*BD24*IF(Y24="1W",1,IF(P24="RDA",0.55,IF(OR(Q24="H",Q24="F"),VLOOKUP(P24&"_"&Q24,GSV_Database!AA:AB,2,FALSE),VLOOKUP(P24&"_"&W24&"_"&AI24,GSV_Database!AA:AB,2,FALSE)))),0))) -> 45400 | AP24: =LOS($P24,$W24,$AL24,$Y24,AM24,AN24,AI24,AO24,$AG$4,GSV_Database!C:V) -> C | AQ24: 6 | AR24: D | AS24: =Service_Volume($P24,$W24,$AT24,$Y24,AU24,AV24,AQ24,AR24,$AG$4,GSV_Database!C:V) -> 62895 | AT24: D | AU24: WL | AV24: WR | AW24: =IF($AG$4="Daily",VLOOKUP(D24,Hist_Cur_CNTS!BG:BL,6,FALSE),IF($AG$4="Peak Hour Two-Way",ROUND(VLOOKUP(D24,Hist_Cur_CNTS!BG:BL,6,FALSE) *BD24,0),ROUND(VLOOKUP(D24,Hist_Cur_CNTS!BG:BL,6,FALSE)*BD24*IF(Y24="1W",1,IF(P24="RDA",0.55,IF(OR(Q24="H",Q24="F"),VLOOKUP(P24&"_"&Q24,GSV_Database!AA:AB,2,FALSE),VLOOKUP(P24&"_"&W24&"_"&AQ24,GSV_Database!AA:AB,2,FALSE)))),0))) -> 59100 | AX24: =LOS($P24,$W24,$AT24,$Y24,AU24,AV24,AQ24,AW24,$AG$4,GSV_Database!C:V) -> C | AY24: =VLOOKUP(D24,Hist_Cur_CNTS!BG:BQ,11,FALSE) -> 59956 | AZ24: =VLOOKUP(D24,Hist_Cur_CNTS!BG:BQ,10,FALSE) -> 0.86 | BA24: 51562 | BB24: =IF($AG$4="Daily",BA24,IF($AG$4="Peak Hour Two-Way",ROUND(BA24 *BD24,0),ROUND(BA24*BD24*IF(Y24="1W",1,IF(P24="RDA",0.55,IF(OR(Q24="H",Q24="F"),VLOOKUP(P24&"_"&Q24,GSV_Database!AA:AB,2,FALSE),VLOOKUP(P24&"_"&W24&"_"&AQ24,GSV_Database!AA:AB,2,FALSE)))),0))) -> 51562 | BC24: =LOS($P24,$W24,$AT24,$Y24,AU24,AV24,AQ24,BB24,$AG$4,GSV_Database!C:V) -> C | BD24: =VLOOKUP(D24,Hist_Cur_CNTS!BG:BO,7,FALSE)/100 -> 0.09 | BE24: =VLOOKUP(D24,Hist_Cur_CNTS!BG:BO,8,FALSE)/100 -> 0.562 | BF24: =VLOOKUP(D24,Hist_Cur_CNTS!BG:BO,9,FALSE)/100 -> 0.028 | BG24: UA_S2WAC1_2W_6L_D_WL_WR | BH24: =IF($P24="U", VLOOKUP(Facility("TA",$W24,$X24,$Y24,$Z24,$AA24,$AB24),GSV_Database!C:X,22,FALSE),VLOOKUP(BG24,GSV_Database!C:X,22,FALSE)) -> 3 | BI24: 03010000-4.553-5.824 | BJ24: 3 | BK24: 0
B25: 03010000 | D25: 30012 | E25: US 41 | F25: TAMIAMI TRAIL | G25: Gulf Park Dr | H25: 5.824 | I25: CR 896 (Pine Ridge Rd/Seagate Dr) | J25: 7.256 | K25: 1.432 | L25: N | N25: Principal Arterial-other | O25: 55 | P25: UA | Q25: A | R25: D | S25: E | U25: 2 | V25: 1.396648045 | W25: 1 | X25: D | Y25: 2W | Z25: WL | AA25: WR | AB25: 6 | AC25: =Service_Volume($P25,$W25,$X25,$Y25,Z25,AA25,AB25,R25,$AG$4,GSV_Database!C:V) -> 62895 | AD25: =IF($AG$4="DAILY",VLOOKUP(D25,Hist_Cur_CNTS!BG:BL,2,FALSE),IF($AG$4="PEAK HOUR TWO-WAY",VLOOKUP(D25,Hist_Cur_CNTS!BG:BL,3,FALSE),VLOOKUP(D25,Hist_Cur_CNTS!BG:BL,4,FALSE))) -> 40000 | AE25: =LOS($P25,$W25,$X25,$Y25,Z25,AA25,AB25,AD25,$AG$4,GSV_Database!C:V) -> C | AH25: 63.59806026 | AI25: 6 | AJ25: D | AK25: =Service_Volume($P25,$W25,$AL25,$Y25,AM25,AN25,AI25,AJ25,$AG$4,GSV_Database!C:V) -> 62895 | AL25: D | AM25: WL | AN25: WR | AO25: =IF($AG$4="Daily",VLOOKUP(D25,Hist_Cur_CNTS!BG:BL,5,FALSE),IF($AG$4="Peak Hour Two-Way",ROUND(VLOOKUP(D25,Hist_Cur_CNTS!BG:BL,5,FALSE) *BD25,0),ROUND(VLOOKUP(D25,Hist_Cur_CNTS!BG:BL,5,FALSE)*BD25*IF(Y25="1W",1,IF(P25="RDA",0.55,IF(OR(Q25="H",Q25="F"),VLOOKUP(P25&"_"&Q25,GSV_Database!AA:AB,2,FALSE),VLOOKUP(P25&"_"&W25&"_"&AI25,GSV_Database!AA:AB,2,FALSE)))),0))) -> 44800 | AP25: =LOS($P25,$W25,$AL25,$Y25,AM25,AN25,AI25,AO25,$AG$4,GSV_Database!C:V) -> C | AQ25: 6 | AR25: D | AS25: =Service_Volume($P25,$W25,$AT25,$Y25,AU25,AV25,AQ25,AR25,$AG$4,GSV_Database!C:V) -> 62895 | AT25: D | AU25: WL | AV25: WR | AW25: =IF($AG$4="Daily",VLOOKUP(D25,Hist_Cur_CNTS!BG:BL,6,FALSE),IF($AG$4="Peak Hour Two-Way",ROUND(VLOOKUP(D25,Hist_Cur_CNTS!BG:BL,6,FALSE) *BD25,0),ROUND(VLOOKUP(D25,Hist_Cur_CNTS!BG:BL,6,FALSE)*BD25*IF(Y25="1W",1,IF(P25="RDA",0.55,IF(OR(Q25="H",Q25="F"),VLOOKUP(P25&"_"&Q25,GSV_Database!AA:AB,2,FALSE),VLOOKUP(P25&"_"&W25&"_"&AQ25,GSV_Database!AA:AB,2,FALSE)))),0))) -> 58400 | AX25: =LOS($P25,$W25,$AT25,$Y25,AU25,AV25,AQ25,AW25,$AG$4,GSV_Database!C:V) -> C | AY25: =VLOOKUP(D25,Hist_Cur_CNTS!BG:BQ,11,FALSE) -> 61350 | AZ25: =VLOOKUP(D25,Hist_Cur_CNTS!BG:BQ,10,FALSE) -> 0.86 | BA25: 52761 | BB25: =IF($AG$4="Daily",BA25,IF($AG$4="Peak Hour Two-Way",ROUND(BA25 *BD25,0),ROUND(BA25*BD25*IF(Y25="1W",1,IF(P25="RDA",0.55,IF(OR(Q25="H",Q25="F"),VLOOKUP(P25&"_"&Q25,GSV_Database!AA:AB,2,FALSE),VLOOKUP(P25&"_"&W25&"_"&AQ25,GSV_Database!AA:AB,2,FALSE)))),0))) -> 52761 | BC25: =LOS($P25,$W25,$AT25,$Y25,AU25,AV25,AQ25,BB25,$AG$4,GSV_Database!C:V) -> C | BD25: =VLOOKUP(D25,Hist_Cur_CNTS!BG:BO,7,FALSE)/100 -> 0.09 | BE25: =VLOOKUP(D25,Hist_Cur_CNTS!BG:BO,8,FALSE)/100 -> 0.562 | BF25: =VLOOKUP(D25,Hist_Cur_CNTS!BG:BO,9,FALSE)/100 -> 0.03 | BG25: UA_S2WAC1_2W_6L_D_WL_WR | BH25: =IF($P25="U", VLOOKUP(Facility("TA",$W25,$X25,$Y25,$Z25,$AA25,$AB25),GSV_Database!C:X,22,FALSE),VLOOKUP(BG25,GSV_Database!C:X,22,FALSE)) -> 3 | BI25: 03010000-5.824-7.256 | BJ25: 3 | BK25: 0
B26: 03010000 | D26: 30003 | E26: US 41 | F26: TAMIAMI TRAIL | G26: =I25 -> CR 896 (Pine Ridge Rd/Seagate Dr) | H26: 7.256 | I26: Park Shore Dr/Cypress Woods Dr | J26: 8.538 | K26: 1.282 | L26: N | N26: Principal Arterial-other | O26: 45 | P26: UA | Q26: A | R26: D | S26: E | T26: E | U26: 4 | V26: 3.120124805 | W26: 1 | X26: D | Y26: 2W | Z26: WL | AA26: WR | AB26: 6 | AC26: =Service_Volume($P26,$W26,$X26,$Y26,Z26,AA26,AB26,R26,$AG$4,GSV_Database!C:V) -> 62895 | AD26: =IF($AG$4="DAILY",VLOOKUP(D26,Hist_Cur_CNTS!BG:BL,2,FALSE),IF($AG$4="PEAK HOUR TWO-WAY",VLOOKUP(D26,Hist_Cur_CNTS!BG:BL,3,FALSE),VLOOKUP(D26,Hist_Cur_CNTS!BG:BL,4,FALSE))) -> 40500 | AE26: =LOS($P26,$W26,$X26,$Y26,Z26,AA26,AB26,AD26,$AG$4,GSV_Database!C:V) -> C | AH26: 64.39303601 | AI26: 6 | AJ26: D | AK26: =Service_Volume($P26,$W26,$AL26,$Y26,AM26,AN26,AI26,AJ26,$AG$4,GSV_Database!C:V) -> 62895 | AL26: D | AM26: WL | AN26: WR | AO26: =IF($AG$4="Daily",VLOOKUP(D26,Hist_Cur_CNTS!BG:BL,5,FALSE),IF($AG$4="Peak Hour Two-Way",ROUND(VLOOKUP(D26,Hist_Cur_CNTS!BG:BL,5,FALSE) *BD26,0),ROUND(VLOOKUP(D26,Hist_Cur_CNTS!BG:BL,5,FALSE)*BD26*IF(Y26="1W",1,IF(P26="RDA",0.55,IF(OR(Q26="H",Q26="F"),VLOOKUP(P26&"_"&Q26,GSV_Database!AA:AB,2,FALSE),VLOOKUP(P26&"_"&W26&"_"&AI26,GSV_Database!AA:AB,2,FALSE)))),0))) -> 45400 | AP26: =LOS($P26,$W26,$AL26,$Y26,AM26,AN26,AI26,AO26,$AG$4,GSV_Database!C:V) -> C | AQ26: 6 | AR26: D | AS26: =Service_Volume($P26,$W26,$AT26,$Y26,AU26,AV26,AQ26,AR26,$AG$4,GSV_Database!C:V) -> 62895 | AT26: D | AU26: WL | AV26: WR | AW26: =IF($AG$4="Daily",VLOOKUP(D26,Hist_Cur_CNTS!BG:BL,6,FALSE),IF($AG$4="Peak Hour Two-Way",ROUND(VLOOKUP(D26,Hist_Cur_CNTS!BG:BL,6,FALSE) *BD26,0),ROUND(VLOOKUP(D26,Hist_Cur_CNTS!BG:BL,6,FALSE)*BD26*IF(Y26="1W",1,IF(P26="RDA",0.55,IF(OR(Q26="H",Q26="F"),VLOOKUP(P26&"_"&Q26,GSV_Database!AA:AB,2,FALSE),VLOOKUP(P26&"_"&W26&"_"&AQ26,GSV_Database!AA:AB,2,FALSE)))),0))) -> 59100 | AX26: =LOS($P26,$W26,$AT26,$Y26,AU26,AV26,AQ26,AW26,$AG$4,GSV_Database!C:V) -> C | AY26: =VLOOKUP(D26,Hist_Cur_CNTS!BG:BQ,11,FALSE) -> 64914 | AZ26: =VLOOKUP(D26,Hist_Cur_CNTS!BG:BQ,10,FALSE) -> 0.86 | BA26: 55826 | BB26: =IF($AG$4="Daily",BA26,IF($AG$4="Peak Hour Two-Way",ROUND(BA26 *BD26,0),ROUND(BA26*BD26*IF(Y26="1W",1,IF(P26="RDA",0.55,IF(OR(Q26="H",Q26="F"),VLOOKUP(P26&"_"&Q26,GSV_Database!AA:AB,2,FALSE),VLOOKUP(P26&"_"&W26&"_"&AQ26,GSV_Database!AA:AB,2,FALSE)))),0))) -> 55826 | BC26: =LOS($P26,$W26,$AT26,$Y26,AU26,AV26,AQ26,BB26,$AG$4,GSV_Database!C:V) -> C | BD26: =VLOOKUP(D26,Hist_Cur_CNTS!BG:BO,7,FALSE)/100 -> 0.09 | BE26: =VLOOKUP(D26,Hist_Cur_CNTS!BG:BO,8,FALSE)/100 -> 0.562 | BF26: =VLOOKUP(D26,Hist_Cur_CNTS!BG:BO,9,FALSE)/100 -> 0.026 | BG26: UA_S2WAC1_2W_6L_D_WL_WR | BH26: =IF($P26="U", VLOOKUP(Facility("TA",$W26,$X26,$Y26,$Z26,$AA26,$AB26),GSV_Database!C:X,22,FALSE),VLOOKUP(BG26,GSV_Database!C:X,22,FALSE)) -> 3 | BI26: 03010000-7.256-8.538 | BJ26: 3 | BK26: 0
B27: 03010000 | D27: 35011 | E27: US 41 | F27: TAMIAMI TRAIL | G27: Park Shore Dr/Cypress Woods Dr | H27: 8.538 | I27: 22nd Ave | J27: 9.81 | K27: 1.272 | L27: N | N27: Principal Arterial-other | O27: 45 | P27: UA | Q27: A | R27: D | S27: E | T27: E | U27: 4 | V27: 3.144654088 | W27: 1 | X27: D | Y27: 2W | Z27: WL | AA27: 0R | AB27: 6 | AC27: =Service_Volume($P27,$W27,$X27,$Y27,Z27,AA27,AB27,R27,$AG$4,GSV_Database!C:V) -> 59900 | AD27: =IF($AG$4="DAILY",VLOOKUP(D27,Hist_Cur_CNTS!BG:BL,2,FALSE),IF($AG$4="PEAK HOUR TWO-WAY",VLOOKUP(D27,Hist_Cur_CNTS!BG:BL,3,FALSE),VLOOKUP(D27,Hist_Cur_CNTS!BG:BL,4,FALSE))) -> 39000 | AE27: =LOS($P27,$W27,$X27,$Y27,Z27,AA27,AB27,AD27,$AG$4,GSV_Database!C:V) -> C | AH27: 65.10851419 | AI27: 6 | AJ27: D | AK27: =Service_Volume($P27,$W27,$AL27,$Y27,AM27,AN27,AI27,AJ27,$AG$4,GSV_Database!C:V) -> 59900 | AL27: D | AM27: WL | AN27: 0R | AO27: =IF($AG$4="Daily",VLOOKUP(D27,Hist_Cur_CNTS!BG:BL,5,FALSE),IF($AG$4="Peak Hour Two-Way",ROUND(VLOOKUP(D27,Hist_Cur_CNTS!BG:BL,5,FALSE) *BD27,0),ROUND(VLOOKUP(D27,Hist_Cur_CNTS!BG:BL,5,FALSE)*BD27*IF(Y27="1W",1,IF(P27="RDA",0.55,IF(OR(Q27="H",Q27="F"),VLOOKUP(P27&"_"&Q27,GSV_Database!AA:AB,2,FALSE),VLOOKUP(P27&"_"&W27&"_"&AI27,GSV_Database!AA:AB,2,FALSE)))),0))) -> 43700 | AP27: =LOS($P27,$W27,$AL27,$Y27,AM27,AN27,AI27,AO27,$AG$4,GSV_Database!C:V) -> C | AQ27: 6 | AR27: D | AS27: =Service_Volume($P27,$W27,$AT27,$Y27,AU27,AV27,AQ27,AR27,$AG$4,GSV_Database!C:V) -> 59900 | AT27: D | AU27: WL | AV27: 0R | AW27: =IF($AG$4="Daily",VLOOKUP(D27,Hist_Cur_CNTS!BG:BL,6,FALSE),IF($AG$4="Peak Hour Two-Way",ROUND(VLOOKUP(D27,Hist_Cur_CNTS!BG:BL,6,FALSE) *BD27,0),ROUND(VLOOKUP(D27,Hist_Cur_CNTS!BG:BL,6,FALSE)*BD27*IF(Y27="1W",1,IF(P27="RDA",0.55,IF(OR(Q27="H",Q27="F"),VLOOKUP(P27&"_"&Q27,GSV_Database!AA:AB,2,FALSE),VLOOKUP(P27&"_"&W27&"_"&AQ27,GSV_Database!AA:AB,2,FALSE)))),0))) -> 56900 | AX27: =LOS($P27,$W27,$AT27,$Y27,AU27,AV27,AQ27,AW27,$AG$4,GSV_Database!C:V) -> C | AY27: =VLOOKUP(D27,Hist_Cur_CNTS!BG:BQ,11,FALSE) -> 63093 | AZ27: =VLOOKUP(D27,Hist_Cur_CNTS!BG:BQ,10,FALSE) -> 0.86 | BA27: 54260 | BB27: =IF($AG$4="Daily",BA27,IF($AG$4="Peak Hour Two-Way",ROUND(BA27 *BD27,0),ROUND(BA27*BD27*IF(Y27="1W",1,IF(P27="RDA",0.55,IF(OR(Q27="H",Q27="F"),VLOOKUP(P27&"_"&Q27,GSV_Database!AA:AB,2,FALSE),VLOOKUP(P27&"_"&W27&"_"&AQ27,GSV_Database!AA:AB,2,FALSE)))),0))) -> 54260 | BC27: =LOS($P27,$W27,$AT27,$Y27,AU27,AV27,AQ27,BB27,$AG$4,GSV_Database!C:V) -> C | BD27: =VLOOKUP(D27,Hist_Cur_CNTS!BG:BO,7,FALSE)/100 -> 0.09 | BE27: =VLOOKUP(D27,Hist_Cur_CNTS!BG:BO,8,FALSE)/100 -> 0.562 | BF27: =VLOOKUP(D27,Hist_Cur_CNTS!BG:BO,9,FALSE)/100 -> 0.03 | BG27: UA_S2WAC1_2W_6L_D_WL_0R | BH27: =IF($P27="U", VLOOKUP(Facility("TA",$W27,$X27,$Y27,$Z27,$AA27,$AB27),GSV_Database!C:X,22,FALSE),VLOOKUP(BG27,GSV_Database!C:X,22,FALSE)) -> 0 | BI27: 03010000-8.538-9.81 | BJ27: 0 | BK27: 0
B28: 03010000 | D28: 35011 | E28: US 41 | F28: TAMIAMI TRAIL | G28: 22nd Ave | H28: 9.81 | I28: CR 886 (Goldengate Pkwy) | J28: 9.957 | K28: 0.147 | L28: N | N28: Principal Arterial-other | O28: 45 | P28: UA | Q28: A | R28: D | S28: E | T28: E | U28: 1 | V28: 6.802721088 | W28: 1 | X28: D | Y28: 2W | Z28: WL | AA28: WR | AB28: 6 | AC28: =Service_Volume($P28,$W28,$X28,$Y28,Z28,AA28,AB28,R28,$AG$4,GSV_Database!C:V) -> 62895 | AD28: =IF($AG$4="DAILY",VLOOKUP(D28,Hist_Cur_CNTS!BG:BL,2,FALSE),IF($AG$4="PEAK HOUR TWO-WAY",VLOOKUP(D28,Hist_Cur_CNTS!BG:BL,3,FALSE),VLOOKUP(D28,Hist_Cur_CNTS!BG:BL,4,FALSE))) -> 39000 | AE28: =LOS($P28,$W28,$X28,$Y28,Z28,AA28,AB28,AD28,$AG$4,GSV_Database!C:V) -> C | AH28: 62.00810875 | AI28: 6 | AJ28: D | AK28: =Service_Volume($P28,$W28,$AL28,$Y28,AM28,AN28,AI28,AJ28,$AG$4,GSV_Database!C:V) -> 62895 | AL28: D | AM28: WL | AN28: WR | AO28: =IF($AG$4="Daily",VLOOKUP(D28,Hist_Cur_CNTS!BG:BL,5,FALSE),IF($AG$4="Peak Hour Two-Way",ROUND(VLOOKUP(D28,Hist_Cur_CNTS!BG:BL,5,FALSE) *BD28,0),ROUND(VLOOKUP(D28,Hist_Cur_CNTS!BG:BL,5,FALSE)*BD28*IF(Y28="1W",1,IF(P28="RDA",0.55,IF(OR(Q28="H",Q28="F"),VLOOKUP(P28&"_"&Q28,GSV_Database!AA:AB,2,FALSE),VLOOKUP(P28&"_"&W28&"_"&AI28,GSV_Database!AA:AB,2,FALSE)))),0))) -> 43700 | AP28: =LOS($P28,$W28,$AL28,$Y28,AM28,AN28,AI28,AO28,$AG$4,GSV_Database!C:V) -> C | AQ28: 6 | AR28: D | AS28: =Service_Volume($P28,$W28,$AT28,$Y28,AU28,AV28,AQ28,AR28,$AG$4,GSV_Database!C:V) -> 62895 | AT28: D | AU28: WL | AV28: WR | AW28: =IF($AG$4="Daily",VLOOKUP(D28,Hist_Cur_CNTS!BG:BL,6,FALSE),IF($AG$4="Peak Hour Two-Way",ROUND(VLOOKUP(D28,Hist_Cur_CNTS!BG:BL,6,FALSE) *BD28,0),ROUND(VLOOKUP(D28,Hist_Cur_CNTS!BG:BL,6,FALSE)*BD28*IF(Y28="1W",1,IF(P28="RDA",0.55,IF(OR(Q28="H",Q28="F"),VLOOKUP(P28&"_"&Q28,GSV_Database!AA:AB,2,FALSE),VLOOKUP(P28&"_"&W28&"_"&AQ28,GSV_Database!AA:AB,2,FALSE)))),0))) -> 56900 | AX28: =LOS($P28,$W28,$AT28,$Y28,AU28,AV28,AQ28,AW28,$AG$4,GSV_Database!C:V) -> C | AY28: =VLOOKUP(D28,Hist_Cur_CNTS!BG:BQ,11,FALSE) -> 63093 | AZ28: =VLOOKUP(D28,Hist_Cur_CNTS!BG:BQ,10,FALSE) -> 0.86 | BA28: 54260 | BB28: =IF($AG$4="Daily",BA28,IF($AG$4="Peak Hour Two-Way",ROUND(BA28 *BD28,0),ROUND(BA28*BD28*IF(Y28="1W",1,IF(P28="RDA",0.55,IF(OR(Q28="H",Q28="F"),VLOOKUP(P28&"_"&Q28,GSV_Database!AA:AB,2,FALSE),VLOOKUP(P28&"_"&W28&"_"&AQ28,GSV_Database!AA:AB,2,FALSE)))),0))) -> 54260 | BC28: =LOS($P28,$W28,$AT28,$Y28,AU28,AV28,AQ28,BB28,$AG$4,GSV_Database!C:V) -> C | BD28: =VLOOKUP(D28,Hist_Cur_CNTS!BG:BO,7,FALSE)/100 -> 0.09 | BE28: =VLOOKUP(D28,Hist_Cur_CNTS!BG:BO,8,FALSE)/100 -> 0.562 | BF28: =VLOOKUP(D28,Hist_Cur_CNTS!BG:BO,9,FALSE)/100 -> 0.03 | BG28: UA_S2WAC1_2W_6L_D_WL_WR | BH28: =IF($P28="U", VLOOKUP(Facility("TA",$W28,$X28,$Y28,$Z28,$AA28,$AB28),GSV_Database!C:X,22,FALSE),VLOOKUP(BG28,GSV_Database!C:X,22,FALSE)) -> 3 | BI28: 03010000-9.81-9.957 | BJ28: 3 | BK28: 0
B29: 03010000 | D29: 35029 | E29: US 41 | F29: TAMIAMI TRAIL | G29: CR 886 (Goldengate Pkwy) | H29: 9.957 | I29: 12th Ave | J29: 10.653 | K29: 0.696 | L29: N | N29: Principal Arterial-other | O29: 45 | P29: UA | Q29: A | R29: D | S29: E | T29: E | U29: 1 | V29: 1.436781609 | W29: 1 | X29: D | Y29: 2W | Z29: WL | AA29: 0R | AB29: 6 | AC29: =Service_Volume($P29,$W29,$X29,$Y29,Z29,AA29,AB29,R29,$AG$4,GSV_Database!C:V) -> 59900 | AD29: =IF($AG$4="DAILY",VLOOKUP(D29,Hist_Cur_CNTS!BG:BL,2,FALSE),IF($AG$4="PEAK HOUR TWO-WAY",VLOOKUP(D29,Hist_Cur_CNTS!BG:BL,3,FALSE),VLOOKUP(D29,Hist_Cur_CNTS!BG:BL,4,FALSE))) -> 38500 | AE29: =LOS($P29,$W29,$X29,$Y29,Z29,AA29,AB29,AD29,$AG$4,GSV_Database!C:V) -> C | AH29: 64.27378965 | AI29: 6 | AJ29: D | AK29: =Service_Volume($P29,$W29,$AL29,$Y29,AM29,AN29,AI29,AJ29,$AG$4,GSV_Database!C:V) -> 59900 | AL29: D | AM29: WL | AN29: 0R | AO29: =IF($AG$4="Daily",VLOOKUP(D29,Hist_Cur_CNTS!BG:BL,5,FALSE),IF($AG$4="Peak Hour Two-Way",ROUND(VLOOKUP(D29,Hist_Cur_CNTS!BG:BL,5,FALSE) *BD29,0),ROUND(VLOOKUP(D29,Hist_Cur_CNTS!BG:BL,5,FALSE)*BD29*IF(Y29="1W",1,IF(P29="RDA",0.55,IF(OR(Q29="H",Q29="F"),VLOOKUP(P29&"_"&Q29,GSV_Database!AA:AB,2,FALSE),VLOOKUP(P29&"_"&W29&"_"&AI29,GSV_Database!AA:AB,2,FALSE)))),0))) -> 43100 | AP29: =LOS($P29,$W29,$AL29,$Y29,AM29,AN29,AI29,AO29,$AG$4,GSV_Database!C:V) -> C | AQ29: 6 | AR29: D | AS29: =Service_Volume($P29,$W29,$AT29,$Y29,AU29,AV29,AQ29,AR29,$AG$4,GSV_Database!C:V) -> 59900 | AT29: D | AU29: WL | AV29: 0R | AW29: =IF($AG$4="Daily",VLOOKUP(D29,Hist_Cur_CNTS!BG:BL,6,FALSE),IF($AG$4="Peak Hour Two-Way",ROUND(VLOOKUP(D29,Hist_Cur_CNTS!BG:BL,6,FALSE) *BD29,0),ROUND(VLOOKUP(D29,Hist_Cur_CNTS!BG:BL,6,FALSE)*BD29*IF(Y29="1W",1,IF(P29="RDA",0.55,IF(OR(Q29="H",Q29="F"),VLOOKUP(P29&"_"&Q29,GSV_Database!AA:AB,2,FALSE),VLOOKUP(P29&"_"&W29&"_"&AQ29,GSV_Database!AA:AB,2,FALSE)))),0))) -> 56200 | AX29: =LOS($P29,$W29,$AT29,$Y29,AU29,AV29,AQ29,AW29,$AG$4,GSV_Database!C:V) -> C | AY29: =VLOOKUP(D29,Hist_Cur_CNTS!BG:BQ,11,FALSE) -> 48723 | AZ29: =VLOOKUP(D29,Hist_Cur_CNTS!BG:BQ,10,FALSE) -> 0.86 | BA29: 41902 | BB29: =IF($AG$4="Daily",BA29,IF($AG$4="Peak Hour Two-Way",ROUND(BA29 *BD29,0),ROUND(BA29*BD29*IF(Y29="1W",1,IF(P29="RDA",0.55,IF(OR(Q29="H",Q29="F"),VLOOKUP(P29&"_"&Q29,GSV_Database!AA:AB,2,FALSE),VLOOKUP(P29&"_"&W29&"_"&AQ29,GSV_Database!AA:AB,2,FALSE)))),0))) -> 41902 | BC29: =LOS($P29,$W29,$AT29,$Y29,AU29,AV29,AQ29,BB29,$AG$4,GSV_Database!C:V) -> C | BD29: =VLOOKUP(D29,Hist_Cur_CNTS!BG:BO,7,FALSE)/100 -> 0.09 | BE29: =VLOOKUP(D29,Hist_Cur_CNTS!BG:BO,8,FALSE)/100 -> 0.562 | BF29: =VLOOKUP(D29,Hist_Cur_CNTS!BG:BO,9,FALSE)/100 -> 0.03 | BG29: UA_S2WAC1_2W_6L_D_WL_0R | BH29: =IF($P29="U", VLOOKUP(Facility("TA",$W29,$X29,$Y29,$Z29,$AA29,$AB29),GSV_Database!C:X,22,FALSE),VLOOKUP(BG29,GSV_Database!C:X,22,FALSE)) -> 0 | BI29: 03010000-9.957-10.653 | BJ29: 0 | BK29: 0
B30: 03010000 | E30: US 41 | F30: TAMIAMI TRAIL | G30: Park Shore Dr | H30: =H27 -> 8.538 | I30: 12th Ave | J30: 10.653 | K30: 2.115 | L30: N | N30: Principal Arterial-other | O30: 45 | P30: UA | Q30: A | R30: D | S30: E | T30: E | U30: =SUM(U27:U29) -> 6 | V30: 2.836879433 | W30: 1 | X30: D | Y30: 2W | Z30: WL | AA30: WR | AB30: 6 | AC30: =Service_Volume($P30,$W30,$X30,$Y30,Z30,AA30,AB30,R30,$AG$4,GSV_Database!C:V) -> 62895 | AD30: =wtavg(AD27:AD29,$K27:$K29) -> 38835.46099 | AE30: =LOS($P30,$W30,$X30,$Y30,Z30,AA30,AB30,AD30,$AG$4,GSV_Database!C:V) -> C | AF30: =IF(AND(AH30>=90,AH30<100),"Near Capacity",IF(AH30>100,"Over Capacity","")) ->  | AH30: 61.74649971 | AI30: 6 | AJ30: D | AK30: =Service_Volume($P30,$W30,$AL30,$Y30,AM30,AN30,AI30,AJ30,$AG$4,GSV_Database!C:V) -> 62895 | AL30: D | AM30: WL | AN30: WR | AO30: =wtavg(AO28:AO29,$K28:$K29) -> 43204.62633 | AP30: =LOS($P30,$W30,$AL30,$Y30,AM30,AN30,AI30,AO30,$AG$4,GSV_Database!C:V) -> C | AQ30: 6 | AR30: D | AS30: =Service_Volume($P30,$W30,$AT30,$Y30,AU30,AV30,AQ30,AR30,$AG$4,GSV_Database!C:V) -> 62895 | AT30: D | AU30: WL | AV30: WR | AW30: =wtavg(AW27:AW29,$K27:$K29) -> 56669.64539 | AX30: =LOS($P30,$W30,$AT30,$Y30,AU30,AV30,AQ30,AW30,$AG$4,GSV_Database!C:V) -> C | AY30: =wtavg(AY27:AY29,$K27:$K29) -> 58364.14894 | AZ30: =wtavg(AZ27:AZ29,$K27:$K29) -> 0.86 | BA30: 50193 | BB30: =wtavg(BB27:BB29,$K27:$K29) -> 50193.2539 | BC30: =LOS($P30,$W30,$AT30,$Y30,AU30,AV30,AQ30,BB30,$AG$4,GSV_Database!C:V) -> C | BD30: =wtavg(BD27:BD29,$K27:$K29) -> 0.09 | BE30: =wtavg(BE27:BE29,$K27:$K29) -> 0.562 | BF30: =wtavg(BF27:BF29,$K27:$K29) -> 0.03 | BG30: UA_S2WAC1_2W_6L_D_WL_WR | BH30: =IF($P30="U", VLOOKUP(Facility("TA",$W30,$X30,$Y30,$Z30,$AA30,$AB30),GSV_Database!C:X,22,FALSE),VLOOKUP(BG30,GSV_Database!C:X,22,FALSE)) -> 3 | BI30: 03010000-8.538-10.653 | BJ30: 3 | BK30: 0
B31: 03010000 | D31: 35007 | E31: US 41 | F31: TAMIAMI TRAIL | G31: 12th Ave | H31: 10.653 | I31: 200 Ft N. 3rd Ave South | J31: 11.846 | K31: 1.193 | L31: N | N31: Principal Arterial-other | O31: 40 | P31: UA | Q31: A | R31: D | S31: E | T31: E | U31: 3 | V31: 2.514668902 | W31: 1 | X31: D | Y31: 2W | Z31: WL | AA31: 0R | AB31: 6 | AC31: =Service_Volume($P31,$W31,$X31,$Y31,Z31,AA31,AB31,R31,$AG$4,GSV_Database!C:V) -> 59900 | AD31: =IF($AG$4="DAILY",VLOOKUP(D31,Hist_Cur_CNTS!BG:BL,2,FALSE),IF($AG$4="PEAK HOUR TWO-WAY",VLOOKUP(D31,Hist_Cur_CNTS!BG:BL,3,FALSE),VLOOKUP(D31,Hist_Cur_CNTS!BG:BL,4,FALSE))) -> 35000 | AE31: =LOS($P31,$W31,$X31,$Y31,Z31,AA31,AB31,AD31,$AG$4,GSV_Database!C:V) -> C | AF31: =IF(AND(AH31>=90,AH31<100),"Near Capacity",IF(AH31>=100,"Over Capacity","")) ->  | AH31: 58.43071786 | AI31: 6 | AJ31: D | AK31: =Service_Volume($P31,$W31,$AL31,$Y31,AM31,AN31,AI31,AJ31,$AG$4,GSV_Database!C:V) -> 59900 | AL31: D | AM31: WL | AN31: 0R | AO31: =IF($AG$4="Daily",VLOOKUP(D31,Hist_Cur_CNTS!BG:BL,5,FALSE),IF($AG$4="Peak Hour Two-Way",ROUND(VLOOKUP(D31,Hist_Cur_CNTS!BG:BL,5,FALSE) *BD31,0),ROUND(VLOOKUP(D31,Hist_Cur_CNTS!BG:BL,5,FALSE)*BD31*IF(Y31="1W",1,IF(P31="RDA",0.55,IF(OR(Q31="H",Q31="F"),VLOOKUP(P31&"_"&Q31,GSV_Database!AA:AB,2,FALSE),VLOOKUP(P31&"_"&W31&"_"&AI31,GSV_Database!AA:AB,2,FALSE)))),0))) -> 39200 | AP31: =LOS($P31,$W31,$AL31,$Y31,AM31,AN31,AI31,AO31,$AG$4,GSV_Database!C:V) -> C | AQ31: 6 | AR31: D | AS31: =Service_Volume($P31,$W31,$AT31,$Y31,AU31,AV31,AQ31,AR31,$AG$4,GSV_Database!C:V) -> 59900 | AT31: D | AU31: WL | AV31: 0R | AW31: =IF($AG$4="Daily",VLOOKUP(D31,Hist_Cur_CNTS!BG:BL,6,FALSE),IF($AG$4="Peak Hour Two-Way",ROUND(VLOOKUP(D31,Hist_Cur_CNTS!BG:BL,6,FALSE) *BD31,0),ROUND(VLOOKUP(D31,Hist_Cur_CNTS!BG:BL,6,FALSE)*BD31*IF(Y31="1W",1,IF(P31="RDA",0.55,IF(OR(Q31="H",Q31="F"),VLOOKUP(P31&"_"&Q31,GSV_Database!AA:AB,2,FALSE),VLOOKUP(P31&"_"&W31&"_"&AQ31,GSV_Database!AA:AB,2,FALSE)))),0))) -> 51100 | AX31: =LOS($P31,$W31,$AT31,$Y31,AU31,AV31,AQ31,AW31,$AG$4,GSV_Database!C:V) -> C | AY31: =VLOOKUP(D31,Hist_Cur_CNTS!BG:BQ,11,FALSE) -> 50748 | AZ31: =VLOOKUP(D31,Hist_Cur_CNTS!BG:BQ,10,FALSE) -> 0.86 | BA31: 43643 | BB31: =IF($AG$4="Daily",BA31,IF($AG$4="Peak Hour Two-Way",ROUND(BA31 *BD31,0),ROUND(BA31*BD31*IF(Y31="1W",1,IF(P31="RDA",0.55,IF(OR(Q31="H",Q31="F"),VLOOKUP(P31&"_"&Q31,GSV_Database!AA:AB,2,FALSE),VLOOKUP(P31&"_"&W31&"_"&AQ31,GSV_Database!AA:AB,2,FALSE)))),0))) -> 43643 | BC31: =LOS($P31,$W31,$AT31,$Y31,AU31,AV31,AQ31,BB31,$AG$4,GSV_Database!C:V) -> C | BD31: =VLOOKUP(D31,Hist_Cur_CNTS!BG:BO,7,FALSE)/100 -> 0.09 | BE31: =VLOOKUP(D31,Hist_Cur_CNTS!BG:BO,8,FALSE)/100 -> 0.562 | BF31: =VLOOKUP(D31,Hist_Cur_CNTS!BG:BO,9,FALSE)/100 -> 0.031 | BG31: UA_S2WAC1_2W_6L_D_WL_0R | BH31: =IF($P31="U", VLOOKUP(Facility("TA",$W31,$X31,$Y31,$Z31,$AA31,$AB31),GSV_Database!C:X,22,FALSE),VLOOKUP(BG31,GSV_Database!C:X,22,FALSE)) -> 0 | BI31: 03010000-10.653-11.846 | BJ31: 0 | BK31: 0
B32: 03010000 | D32: 35007 | E32: US 41 | F32: TAMIAMI TRAIL | G32: 200 Ft N. 3rd Ave South | H32: 11.846 | I32: 5th Ave South | J32: 12.064 | K32: 0.218 | L32: N | N32: Principal Arterial-other | O32: 30 | P32: UA | Q32: A | R32: D | S32: E | T32: E | U32: 2 | V32: 9.174311927 | W32: 2 | X32: D | Y32: 2W | Z32: WL | AA32: WR | AB32: 6 | AC32: =Service_Volume($P32,$W32,$X32,$Y32,Z32,AA32,AB32,R32,$AG$4,GSV_Database!C:V) -> 52500 | AD32: =IF($AG$4="DAILY",VLOOKUP(D32,Hist_Cur_CNTS!BG:BL,2,FALSE),IF($AG$4="PEAK HOUR TWO-WAY",VLOOKUP(D32,Hist_Cur_CNTS!BG:BL,3,FALSE),VLOOKUP(D32,Hist_Cur_CNTS!BG:BL,4,FALSE))) -> 35000 | AE32: =LOS($P32,$W32,$X32,$Y32,Z32,AA32,AB32,AD32,$AG$4,GSV_Database!C:V) -> D | AF32: =IF(AND(AH32>=90,AH32<100),"Near Capacity",IF(AH32>100,"Over Capacity","")) ->  | AH32: 66.66666667 | AI32: 6 | AJ32: D | AK32: =Service_Volume($P32,$W32,$AL32,$Y32,AM32,AN32,AI32,AJ32,$AG$4,GSV_Database!C:V) -> 52500 | AL32: D | AM32: WL | AN32: WR | AO32: =IF($AG$4="Daily",VLOOKUP(D32,Hist_Cur_CNTS!BG:BL,5,FALSE),IF($AG$4="Peak Hour Two-Way",ROUND(VLOOKUP(D32,Hist_Cur_CNTS!BG:BL,5,FALSE) *BD32,0),ROUND(VLOOKUP(D32,Hist_Cur_CNTS!BG:BL,5,FALSE)*BD32*IF(Y32="1W",1,IF(P32="RDA",0.55,IF(OR(Q32="H",Q32="F"),VLOOKUP(P32&"_"&Q32,GSV_Database!AA:AB,2,FALSE),VLOOKUP(P32&"_"&W32&"_"&AI32,GSV_Database!AA:AB,2,FALSE)))),0))) -> 39200 | AP32: =LOS($P32,$W32,$AL32,$Y32,AM32,AN32,AI32,AO32,$AG$4,GSV_Database!C:V) -> D | AQ32: 6 | AR32: D | AS32: =Service_Volume($P32,$W32,$AT32,$Y32,AU32,AV32,AQ32,AR32,$AG$4,GSV_Database!C:V) -> 52500 | AT32: D | AU32: WL | AV32: WR | AW32: =IF($AG$4="Daily",VLOOKUP(D32,Hist_Cur_CNTS!BG:BL,6,FALSE),IF($AG$4="Peak Hour Two-Way",ROUND(VLOOKUP(D32,Hist_Cur_CNTS!BG:BL,6,FALSE) *BD32,0),ROUND(VLOOKUP(D32,Hist_Cur_CNTS!BG:BL,6,FALSE)*BD32*IF(Y32="1W",1,IF(P32="RDA",0.55,IF(OR(Q32="H",Q32="F"),VLOOKUP(P32&"_"&Q32,GSV_Database!AA:AB,2,FALSE),VLOOKUP(P32&"_"&W32&"_"&AQ32,GSV_Database!AA:AB,2,FALSE)))),0))) -> 51100 | AX32: =LOS($P32,$W32,$AT32,$Y32,AU32,AV32,AQ32,AW32,$AG$4,GSV_Database!C:V) -> D | AY32: =VLOOKUP(D32,Hist_Cur_CNTS!BG:BQ,11,FALSE) -> 50748 | AZ32: =VLOOKUP(D32,Hist_Cur_CNTS!BG:BQ,10,FALSE) -> 0.86 | BA32: =ROUND(AY32*AZ32,0) -> 43643 | BB32: =IF($AG$4="Daily",BA32,IF($AG$4="Peak Hour Two-Way",ROUND(BA32 *BD32,0),ROUND(BA32*BD32*IF(Y32="1W",1,IF(P32="RDA",0.55,IF(OR(Q32="H",Q32="F"),VLOOKUP(P32&"_"&Q32,GSV_Database!AA:AB,2,FALSE),VLOOKUP(P32&"_"&W32&"_"&AQ32,GSV_Database!AA:AB,2,FALSE)))),0))) -> 43643 | BC32: =LOS($P32,$W32,$AT32,$Y32,AU32,AV32,AQ32,BB32,$AG$4,GSV_Database!C:V) -> D | BD32: =VLOOKUP(D32,Hist_Cur_CNTS!BG:BO,7,FALSE)/100 -> 0.09 | BE32: =VLOOKUP(D32,Hist_Cur_CNTS!BG:BO,8,FALSE)/100 -> 0.562 | BF32: =VLOOKUP(D32,Hist_Cur_CNTS!BG:BO,9,FALSE)/100 -> 0.031 | BG32: UA_S2WAC2_2W_6L_D_WL_WR | BH32: =IF($P32="U", VLOOKUP(Facility("TA",$W32,$X32,$Y32,$Z32,$AA32,$AB32),GSV_Database!C:X,22,FALSE),VLOOKUP(BG32,GSV_Database!C:X,22,FALSE)) -> 3 | BI32: 03010000-11.846-12.064 | BJ32: 3 | BK32: 0
B33: 03010000 | D33: 30123 | E33: US 41 | F33: TAMIAMI TRAIL | G33: 5th Ave South | H33: 12.064 | I33: 11th St South | J33: 12.24 | K33: 0.176 | L33: N | N33: Principal Arterial-other | O33: 30 | P33: UA | Q33: A | R33: D | S33: E | T33: E | U33: 1 | V33: 5.681818182 | W33: 2 | X33: D | Y33: 2W | Z33: WL | AA33: WR | AB33: 6 | AC33: =Service_Volume($P33,$W33,$X33,$Y33,Z33,AA33,AB33,R33,$AG$4,GSV_Database!C:V) -> 52500 | AD33: =IF($AG$4="DAILY",VLOOKUP(D33,Hist_Cur_CNTS!BG:BL,2,FALSE),IF($AG$4="PEAK HOUR TWO-WAY",VLOOKUP(D33,Hist_Cur_CNTS!BG:BL,3,FALSE),VLOOKUP(D33,Hist_Cur_CNTS!BG:BL,4,FALSE))) -> 35000 | AE33: =LOS($P33,$W33,$X33,$Y33,Z33,AA33,AB33,AD33,$AG$4,GSV_Database!C:V) -> D | AF33: =IF(AND(AH33>=90,AH33<100),"Near Capacity",IF(AH33>=100,"Over Capacity","")) ->  | AH33: 66.66666667 | AI33: 6 | AJ33: D | AK33: =Service_Volume($P33,$W33,$AL33,$Y33,AM33,AN33,AI33,AJ33,$AG$4,GSV_Database!C:V) -> 52500 | AL33: D | AM33: WL | AN33: WR | AO33: =IF($AG$4="Daily",VLOOKUP(D33,Hist_Cur_CNTS!BG:BL,5,FALSE),IF($AG$4="Peak Hour Two-Way",ROUND(VLOOKUP(D33,Hist_Cur_CNTS!BG:BL,5,FALSE) *BD33,0),ROUND(VLOOKUP(D33,Hist_Cur_CNTS!BG:BL,5,FALSE)*BD33*IF(Y33="1W",1,IF(P33="RDA",0.55,IF(OR(Q33="H",Q33="F"),VLOOKUP(P33&"_"&Q33,GSV_Database!AA:AB,2,FALSE),VLOOKUP(P33&"_"&W33&"_"&AI33,GSV_Database!AA:AB,2,FALSE)))),0))) -> 39200 | AP33: =LOS($P33,$W33,$AL33,$Y33,AM33,AN33,AI33,AO33,$AG$4,GSV_Database!C:V) -> D | AQ33: 6 | AR33: D | AS33: =Service_Volume($P33,$W33,$AT33,$Y33,AU33,AV33,AQ33,AR33,$AG$4,GSV_Database!C:V) -> 52500 | AT33: D | AU33: WL | AV33: WR | AW33: =IF($AG$4="Daily",VLOOKUP(D33,Hist_Cur_CNTS!BG:BL,6,FALSE),IF($AG$4="Peak Hour Two-Way",ROUND(VLOOKUP(D33,Hist_Cur_CNTS!BG:BL,6,FALSE) *BD33,0),ROUND(VLOOKUP(D33,Hist_Cur_CNTS!BG:BL,6,FALSE)*BD33*IF(Y33="1W",1,IF(P33="RDA",0.55,IF(OR(Q33="H",Q33="F"),VLOOKUP(P33&"_"&Q33,GSV_Database!AA:AB,2,FALSE),VLOOKUP(P33&"_"&W33&"_"&AQ33,GSV_Database!AA:AB,2,FALSE)))),0))) -> 51100 | AX33: =LOS($P33,$W33,$AT33,$Y33,AU33,AV33,AQ33,AW33,$AG$4,GSV_Database!C:V) -> D | AY33: =VLOOKUP(D33,Hist_Cur_CNTS!BG:BQ,11,FALSE) -> 69146 | AZ33: =VLOOKUP(D33,Hist_Cur_CNTS!BG:BQ,10,FALSE) -> 0.86 | BA33: 59466 | BB33: =IF($AG$4="Daily",BA33,IF($AG$4="Peak Hour Two-Way",ROUND(BA33 *BD33,0),ROUND(BA33*BD33*IF(Y33="1W",1,IF(P33="RDA",0.55,IF(OR(Q33="H",Q33="F"),VLOOKUP(P33&"_"&Q33,GSV_Database!AA:AB,2,FALSE),VLOOKUP(P33&"_"&W33&"_"&AQ33,GSV_Database!AA:AB,2,FALSE)))),0))) -> 59466 | BC33: =LOS($P33,$W33,$AT33,$Y33,AU33,AV33,AQ33,BB33,$AG$4,GSV_Database!C:V) -> F | BD33: =VLOOKUP(D33,Hist_Cur_CNTS!BG:BO,7,FALSE)/100 -> 0.09 | BE33: =VLOOKUP(D33,Hist_Cur_CNTS!BG:BO,8,FALSE)/100 -> 0.562 | BF33: =VLOOKUP(D33,Hist_Cur_CNTS!BG:BO,9,FALSE)/100 -> 0.036 | BG33: UA_S2WAC2_2W_6L_D_WL_WR | BH33: =IF($P33="U", VLOOKUP(Facility("TA",$W33,$X33,$Y33,$Z33,$AA33,$AB33),GSV_Database!C:X,22,FALSE),VLOOKUP(BG33,GSV_Database!C:X,22,FALSE)) -> 3 | BI33: 03010000-12.064-12.24 | BJ33: 3 | BK33: 0
B34: 03010000 | D34: 30123 | E34: US 41 | F34: TAMIAMI TRAIL | G34: 11th St South | H34: 12.24 | I34: 12th St South | J34: 12.298 | K34: 0.058 | L34: N | N34: Principal Arterial-other | O34: 30 | P34: UA | Q34: A | R34: D | S34: E | T34: E | V34: 0 | W34: 2 | X34: D | Y34: 2W | Z34: WL | AA34: 0R | AB34: 6 | AC34: =Service_Volume($P34,$W34,$X34,$Y34,Z34,AA34,AB34,R34,$AG$4,GSV_Database!C:V) -> 50000 | AD34: =IF($AG$4="DAILY",VLOOKUP(D34,Hist_Cur_CNTS!BG:BL,2,FALSE),IF($AG$4="PEAK HOUR TWO-WAY",VLOOKUP(D34,Hist_Cur_CNTS!BG:BL,3,FALSE),VLOOKUP(D34,Hist_Cur_CNTS!BG:BL,4,FALSE))) -> 35000 | AE34: =LOS($P34,$W34,$X34,$Y34,Z34,AA34,AB34,AD34,$AG$4,GSV_Database!C:V) -> D | AH34: 70 | AI34: 6 | AJ34: D | AK34: =Service_Volume($P34,$W34,$AL34,$Y34,AM34,AN34,AI34,AJ34,$AG$4,GSV_Database!C:V) -> 50000 | AL34: D | AM34: WL | AN34: 0R | AO34: =IF($AG$4="Daily",VLOOKUP(D34,Hist_Cur_CNTS!BG:BL,5,FALSE),IF($AG$4="Peak Hour Two-Way",ROUND(VLOOKUP(D34,Hist_Cur_CNTS!BG:BL,5,FALSE) *BD34,0),ROUND(VLOOKUP(D34,Hist_Cur_CNTS!BG:BL,5,FALSE)*BD34*IF(Y34="1W",1,IF(P34="RDA",0.55,IF(OR(Q34="H",Q34="F"),VLOOKUP(P34&"_"&Q34,GSV_Database!AA:AB,2,FALSE),VLOOKUP(P34&"_"&W34&"_"&AI34,GSV_Database!AA:AB,2,FALSE)))),0))) -> 39200 | AP34: =LOS($P34,$W34,$AL34,$Y34,AM34,AN34,AI34,AO34,$AG$4,GSV_Database!C:V) -> D | AQ34: 6 | AR34: D | AS34: =Service_Volume($P34,$W34,$AT34,$Y34,AU34,AV34,AQ34,AR34,$AG$4,GSV_Database!C:V) -> 50000 | AT34: D | AU34: WL | AV34: 0R | AW34: =IF($AG$4="Daily",VLOOKUP(D34,Hist_Cur_CNTS!BG:BL,6,FALSE),IF($AG$4="Peak Hour Two-Way",ROUND(VLOOKUP(D34,Hist_Cur_CNTS!BG:BL,6,FALSE) *BD34,0),ROUND(VLOOKUP(D34,Hist_Cur_CNTS!BG:BL,6,FALSE)*BD34*IF(Y34="1W",1,IF(P34="RDA",0.55,IF(OR(Q34="H",Q34="F"),VLOOKUP(P34&"_"&Q34,GSV_Database!AA:AB,2,FALSE),VLOOKUP(P34&"_"&W34&"_"&AQ34,GSV_Database!AA:AB,2,FALSE)))),0))) -> 51100 | AX34: =LOS($P34,$W34,$AT34,$Y34,AU34,AV34,AQ34,AW34,$AG$4,GSV_Database!C:V) -> F | AY34: =VLOOKUP(D34,Hist_Cur_CNTS!BG:BQ,11,FALSE) -> 69146 | AZ34: =VLOOKUP(D34,Hist_Cur_CNTS!BG:BQ,10,FALSE) -> 0.86 | BA34: 59466 | BB34: =IF($AG$4="Daily",BA34,IF($AG$4="Peak Hour Two-Way",ROUND(BA34 *BD34,0),ROUND(BA34*BD34*IF(Y34="1W",1,IF(P34="RDA",0.55,IF(OR(Q34="H",Q34="F"),VLOOKUP(P34&"_"&Q34,GSV_Database!AA:AB,2,FALSE),VLOOKUP(P34&"_"&W34&"_"&AQ34,GSV_Database!AA:AB,2,FALSE)))),0))) -> 59466 | BC34: =LOS($P34,$W34,$AT34,$Y34,AU34,AV34,AQ34,BB34,$AG$4,GSV_Database!C:V) -> F | BD34: =VLOOKUP(D34,Hist_Cur_CNTS!BG:BO,7,FALSE)/100 -> 0.09 | BE34: =VLOOKUP(D34,Hist_Cur_CNTS!BG:BO,8,FALSE)/100 -> 0.562 | BF34: =VLOOKUP(D34,Hist_Cur_CNTS!BG:BO,9,FALSE)/100 -> 0.036 | BG34: UA_S2WAC2_2W_6L_D_WL_0R | BH34: =IF($P34="U", VLOOKUP(Facility("TA",$W34,$X34,$Y34,$Z34,$AA34,$AB34),GSV_Database!C:X,22,FALSE),VLOOKUP(BG34,GSV_Database!C:X,22,FALSE)) -> 0 | BI34: 03010000-12.24-12.298 | BJ34: 0 | BK34: 0
